Workbook

Sheet Home
C2: CLUSTER REPORT
C5: 2013-08-01
C7: CCCM | F7: Report & Analysis | L7: Dashboards | P7: 3W | T7: Contact List
L9: Rakhine | M9: Kachin | N9: Myanmar | P9: Rakhine | Q9: Kachin | R9: Myanmar | T9: Rakhine | U9: Kachin | V9: Myanmar
C14: Shelter
L16: Rakhine | M16: Kachin | N16: Myanmar | P16: Rakhine | Q16: Kachin | R16: Myanmar | T16: Rakhine | U16: Kachin | V16: Myanmar
C21: NFI
M22: Kachin
L23: Rakhine | M23: Kachin | N23: Myanmar | P23: Rakhine | Q23: Kachin | R23: Myanmar | T23: Rakhine | U23: Kachin | V23: Myanmar

Sheet Camp List
A2: KACHIN & NORTHERN SHAN CAMP LIST
A3: =Report_Date -> 2013-08-01
A4: Index | B4: Update Date | C4: Status | D4: State | E4: State_Pcode | F4: District | G4: District_Pcode | H4: TOWNSHIP_NAME | I4: Township_Pcode | J4: VillageTracKTown_Name | K4: VillageTrackTown_Pcode | L4: VillageWard_Name | M4: VillageWard_Pcode | N4: Camp Name | O4: P_Code | P4: Accessibility | Q4: Longitude | R4: Latitude | S4: HH | T4: Total | U4: Avg | V4: Source | W4: Method | X4: Type of Accomodation | Y4: Comment | Z4: Status2
C5: Open | D5: Kachin | E5: MMR001 | F5: Myitkyina | G5: MMR001D001 | H5: Myitkyina | I5: MMR001001 | J5: Myitkyina Town | K5: MMR001001701 | L5: Tat Kone Ward | M5: MMR001001701520 | N5: Tat Kone Baptist Church | O5: MMR001CMP001 | P5: GCA | Q5: 97.386719 | R5: 25.415482 | S5: 62 | T5: 260 | U5: =IF(CampList[[#This Row],[HH]]>0,CampList[[#This Row],[Total]]/CampList[[#This Row],[HH]],"NA") -> 4.193548387 | X5: Camp | Z5: =C5 -> Open
C6: Open | D6: Kachin | E6: MMR001 | F6: Myitkyina | G6: MMR001D001 | H6: Myitkyina | I6: MMR001001 | J6: Myitkyina Town | K6: MMR001001701 | L6: N Jang Dung | N6: Njang Dung Baptist Church | O6: MMR001CMP002 | P6: GCA | Q6: 97.394547 | R6: 25.422194 | S6: 58 | T6: 239 | U6: =IF(CampList[[#This Row],[HH]]>0,CampList[[#This Row],[Total]]/CampList[[#This Row],[HH]],"NA") -> 4.120689655 | X6: Camp | Z6: Open
C7: Open | D7: Kachin | E7: MMR001 | F7: Myitkyina | G7: MMR001D001 | H7: Myitkyina | I7: MMR001001 | J7: Myitkyina Town | K7: MMR001001701 | L7: Tat Kone Ward | M7: MMR001001701520 | N7: Tat Kone Galile Baptist Church | O7: MMR001CMP003 | P7: GCA | Q7: 97.377663 | R7: 25.404753 | S7: 30 | T7: 139 | U7: =IF(CampList[[#This Row],[HH]]>0,CampList[[#This Row],[Total]]/CampList[[#This Row],[HH]],"NA") -> 4.633333333 | X7: Camp | Z7: Open
C8: Open | D8: Kachin | E8: MMR001 | F8: Myitkyina | G8: MMR001D001 | H8: Myitkyina | I8: MMR001001 | J8: Myitkyina Town | K8: MMR001001701 | L8: Tat Kone Ward | M8: MMR001001701520 | N8: Tat Kone Emanuel Church | O8: MMR001CMP004 | P8: GCA | Q8: 97.379272 | R8: 25.401075 | S8: 14 | T8: 61 | U8: =IF(CampList[[#This Row],[HH]]>0,CampList[[#This Row],[Total]]/CampList[[#This Row],[HH]],"NA") -> 4.357142857 | X8: Camp | Z8: Open
C9: Open | D9: Kachin | E9: MMR001 | F9: Myitkyina | G9: MMR001D001 | H9: Myitkyina | I9: MMR001001 | J9: Myitkyina Town | K9: MMR001001701 | L9: Tat Kone Ward | M9: MMR001001701520 | N9: Tat Kone San Pya Baptist Church | O9: MMR001CMP005 | P9: GCA | Q9: 97.382192 | R9: 25.404015 | S9: 43 | T9: 185 | U9: =IF(CampList[[#This Row],[HH]]>0,CampList[[#This Row],[Total]]/CampList[[#This Row],[HH]],"NA") -> 4.302325581 | X9: Camp | Z9: Open
C10: Open | D10: Kachin | E10: MMR001 | F10: Myitkyina | G10: MMR001D001 | H10: Myitkyina | I10: MMR001001 | J10: Myitkyina Town | K10: MMR001001701 | L10: Si Tar Pu Ward | M10: MMR001001701521 | N10: Shatapru Sut Ngai Tawng | O10: MMR001CMP006 | P10: GCA | Q10: 97.399628 | R10: 25.412313 | S10: 96 | T10: 396 | U10: =IF(CampList[[#This Row],[HH]]>0,CampList[[#This Row],[Total]]/CampList[[#This Row],[HH]],"NA") -> 4.125 | X10: Camp | Z10: Open
C11: Open | D11: Kachin | E11: MMR001 | F11: Myitkyina | G11: MMR001D001 | H11: Myitkyina | I11: MMR001001 | J11: Myitkyina Town | K11: MMR001001701 | L11: Si Tar Pu Ward | M11: MMR001001701521 | N11: Shatapru Thida Aye Baptist Church | O11: MMR001CMP007 | P11: GCA | Q11: 97.418005 | R11: 25.423817 | S11: 15 | T11: 74 | U11: =IF(CampList[[#This Row],[HH]]>0,CampList[[#This Row],[Total]]/CampList[[#This Row],[HH]],"NA") -> 4.933333333 | X11: Camp | Z11: Open
C12: Open | D12: Kachin | E12: MMR001 | F12: Myitkyina | G12: MMR001D001 | H12: Myitkyina | I12: MMR001001 | J12: Myitkyina Town | K12: MMR001001701 | L12: Man Khein Ward | M12: MMR001001701519 | N12: Man Hkring Baptist Church | O12: MMR001CMP008 | P12: GCA | Q12: 97.418694 | R12: 25.428911 | S12: 33 | T12: 390 | U12: =IF(CampList[[#This Row],[HH]]>0,CampList[[#This Row],[Total]]/CampList[[#This Row],[HH]],"NA") -> 11.81818182 | X12: Camp | Z12: Open
C13: Open | D13: Kachin | E13: MMR001 | F13: Myitkyina | G13: MMR001D001 | H13: Myitkyina | I13: MMR001001 | J13: Myitkyina Town | K13: MMR001001701 | L13: Shwe Set Ward | M13: MMR001001701518 | N13: Shwe Zet Baptist Church | O13: MMR001CMP009 | P13: GCA | Q13: 97.419403 | R13: 25.440928 | S13: 74 | T13: 364 | U13: =IF(CampList[[#This Row],[HH]]>0,CampList[[#This Row],[Total]]/CampList[[#This Row],[HH]],"NA") -> 4.918918919 | X13: Camp | Z13: Open
C14: Open | D14: Kachin | E14: MMR001 | F14: Myitkyina | G14: MMR001D001 | H14: Myitkyina | I14: MMR001001 | J14: Myitkyina Town | K14: MMR001001701 | L14: Du Ka Htaung Ward | M14: MMR001001701504 | N14: Du Kahtawng Qtr. 4 | O14: MMR001CMP010 | P14: GCA | Q14: 97.383057 | R14: 25.395994 | S14: 6 | T14: 36 | U14: =IF(CampList[[#This Row],[HH]]>0,CampList[[#This Row],[Total]]/CampList[[#This Row],[HH]],"NA") -> 6 | X14: Camp | Z14: Open
C15: Open | D15: Kachin | E15: MMR001 | F15: Myitkyina | G15: MMR001D001 | H15: Myitkyina | I15: MMR001001 | J15: Myitkyina Town | K15: MMR001001701 | L15: Du Ka Htaung Ward | M15: MMR001001701504 | N15: Du Kahtawng Qtr. 5 | O15: MMR001CMP011 | P15: GCA | Q15: 97.381195 | R15: 25.396364 | S15: 8 | T15: 26 | U15: =IF(CampList[[#This Row],[HH]]>0,CampList[[#This Row],[Total]]/CampList[[#This Row],[HH]],"NA") -> 3.25 | X15: Camp | Z15: Open
C16: Open | D16: Kachin | E16: MMR001 | F16: Myitkyina | G16: MMR001D001 | H16: Myitkyina | I16: MMR001001 | J16: Myitkyina Town | K16: MMR001001701 | L16: Du Ka Htaung Ward | M16: MMR001001701504 | N16: Du Kahtawng Qtr. 14 | O16: MMR001CMP012 | P16: GCA | Q16: 97.385101 | R16: 25.399796 | S16: 6 | T16: 32 | U16: =IF(CampList[[#This Row],[HH]]>0,CampList[[#This Row],[Total]]/CampList[[#This Row],[HH]],"NA") -> 5.333333333 | X16: Camp | Z16: Open
C17: Open | D17: Kachin | E17: MMR001 | F17: Myitkyina | G17: MMR001D001 | H17: Myitkyina | I17: MMR001001 | J17: Myitkyina Town | K17: MMR001001701 | L17: Kyun Pin Thar Ward | M17: MMR001001701510 | N17: Kyun Pin Thar Baptist Church | O17: MMR001CMP013 | P17: GCA | Q17: 97.405121 | R17: 25.365891 | S17: 53 | T17: 215 | U17: =IF(CampList[[#This Row],[HH]]>0,CampList[[#This Row],[Total]]/CampList[[#This Row],[HH]],"NA") -> 4.056603774 | X17: Camp | Z17: Open
C18: Open | D18: Kachin | E18: MMR001 | F18: Myitkyina | G18: MMR001D001 | H18: Myitkyina | I18: MMR001001 | J18: Myitkyina Town | K18: MMR001001701 | L18: Lel Kone Ward | M18: MMR001001701525 | N18: Le Kone Ziun Baptist Church | O18: MMR001CMP014 | P18: GCA | Q18: 97.40892 | R18: 25.355984 | S18: 151 | T18: 743 | U18: =IF(CampList[[#This Row],[HH]]>0,CampList[[#This Row],[Total]]/CampList[[#This Row],[HH]],"NA") -> 4.920529801 | X18: Camp | Z18: Open
C19: Open | D19: Kachin | E19: MMR001 | F19: Myitkyina | G19: MMR001D001 | H19: Myitkyina | I19: MMR001001 | J19: Myitkyina Town | K19: MMR001001701 | L19: Lel Kone Ward | M19: MMR001001701525 | N19: Le Kone Bethlehem Church | O19: MMR001CMP015 | P19: GCA | Q19: 97.409317 | R19: 25.36219 | S19: 84 | T19: 440 | U19: =IF(CampList[[#This Row],[HH]]>0,CampList[[#This Row],[Total]]/CampList[[#This Row],[HH]],"NA") -> 5.238095238 | X19: Camp | Z19: Open
C20: Open | D20: Kachin | E20: MMR001 | F20: Myitkyina | G20: MMR001D001 | H20: Myitkyina | I20: MMR001001 | J20: Myitkyina Town | K20: MMR001001701 | N20: Maliyang Baptist Church | O20: MMR001CMP016 | P20: GCA | Q20: 97.411606 | R20: 25.360476 | S20: 77 | T20: 329 | U20: =IF(CampList[[#This Row],[HH]]>0,CampList[[#This Row],[Total]]/CampList[[#This Row],[HH]],"NA") -> 4.272727273 | X20: Camp | Z20: Open
C21: Open | D21: Kachin | E21: MMR001 | F21: Myitkyina | G21: MMR001D001 | H21: Myitkyina | I21: MMR001001 | J21: Myitkyina Town | K21: MMR001001701 | L21: Myay Myint Ward | M21: MMR001001701517 | N21: Myay Myint Baptist Church | O21: MMR001CMP017 | P21: GCA | Q21: 97.376672 | R21: 25.387863 | S21: 12 | T21: 53 | U21: =IF(CampList[[#This Row],[HH]]>0,CampList[[#This Row],[Total]]/CampList[[#This Row],[HH]],"NA") -> 4.416666667 | X21: Camp | Z21: Open
C22: Open | D22: Kachin | E22: MMR001 | F22: Myitkyina | G22: MMR001D001 | H22: Myitkyina | I22: MMR001001 | J22: Myitkyina Town | K22: MMR001001701 | N22: Jan Mai Kawng Baptist Church | O22: MMR001CMP018 | P22: GCA | Q22: 97.389778 | R22: 25.417734 | S22: 203 | T22: 952 | U22: =IF(CampList[[#This Row],[HH]]>0,CampList[[#This Row],[Total]]/CampList[[#This Row],[HH]],"NA") -> 4.689655172 | X22: Camp | Z22: Open
C23: Open | D23: Kachin | E23: MMR001 | F23: Myitkyina | G23: MMR001D001 | H23: Myitkyina | I23: MMR001001 | J23: Myitkyina Town | K23: MMR001001701 | L23: Jan Mai Kawng | N23: Jan Mai Kawng Catholic Church | O23: MMR001CMP019 | P23: GCA | Q23: 97.373361 | R23: 25.403477 | S23: 110 | T23: 460 | U23: =IF(CampList[[#This Row],[HH]]>0,CampList[[#This Row],[Total]]/CampList[[#This Row],[HH]],"NA") -> 4.181818182 | X23: Camp | Z23: Open
C24: Open | D24: Kachin | E24: MMR001 | F24: Myitkyina | G24: MMR001D001 | H24: Myitkyina | I24: MMR001001 | J24: Maw Hpawng | K24: MMR001001007 | L24: Maw Hpawng | M24: 165698 | N24: Maw Hpawng Hka Nan Baptist Church | O24: MMR001CMP020 | P24: GCA | Q24: 97.28473 | R24: 25.37402 | S24: 26 | T24: 102 | U24: =IF(CampList[[#This Row],[HH]]>0,CampList[[#This Row],[Total]]/CampList[[#This Row],[HH]],"NA") -> 3.923076923 | X24: Camp | Z24: Open
C25: Open | D25: Kachin | E25: MMR001 | F25: Myitkyina | G25: MMR001D001 | H25: Myitkyina | I25: MMR001001 | J25: Maw Hpawng | K25: MMR001001007 | L25: Maw Hpawng | M25: 165698 | N25: Maw Hpawng Lhaovo Baptist Church | O25: MMR001CMP021 | P25: GCA | Q25: 97.29108 | R25: 25.37118 | S25: 20 | T25: 99 | U25: =IF(CampList[[#This Row],[HH]]>0,CampList[[#This Row],[Total]]/CampList[[#This Row],[HH]],"NA") -> 4.95 | X25: Camp | Z25: Open
C26: Open | D26: Kachin | E26: MMR001 | F26: Myitkyina | G26: MMR001D001 | H26: Myitkyina | I26: MMR001001 | J26: Myitkyina Town | K26: MMR001001701 | L26: Kachin Su Ward | M26: MMR001001701509 | N26: Wun Tho Buddhist Monastery | O26: MMR001CMP022 | P26: GCA | Q26: 97.403408 | R26: 25.377546 | S26: 24 | T26: 104 | U26: =IF(CampList[[#This Row],[HH]]>0,CampList[[#This Row],[Total]]/CampList[[#This Row],[HH]],"NA") -> 4.333333333 | X26: Camp | Z26: Open
C27: Open | D27: Kachin | E27: MMR001 | F27: Myitkyina | G27: MMR001D001 | H27: Myitkyina | I27: MMR001001 | J27: Myitkyina Town | K27: MMR001001701 | L27: Tat Kone Ward | M27: MMR001001701520 | N27: Tat Kone COC Baptist / Tat Kone Htoi San | O27: MMR001CMP023 | P27: GCA | Q27: 97.3884 | R27: 25.40982 | S27: 69 | T27: 322 | U27: =IF(CampList[[#This Row],[HH]]>0,CampList[[#This Row],[Total]]/CampList[[#This Row],[HH]],"NA") -> 4.666666667 | X27: Camp | Z27: Open
C28: Open | D28: Kachin | E28: MMR001 | F28: Myitkyina | G28: MMR001D001 | H28: Myitkyina | I28: MMR001001 | J28: Nam Koi | K28: MMR001001005 | L28: Nam Koi | M28: 165695 | N28: Nan Kway St. John Catholic Church | O28: MMR001CMP024 | P28: GCA | Q28: 97.35938 | R28: 25.41177 | S28: 73 | T28: 319 | U28: =IF(CampList[[#This Row],[HH]]>0,CampList[[#This Row],[Total]]/CampList[[#This Row],[HH]],"NA") -> 4.369863014 | X28: Camp | Z28: Open
C29: Open | D29: Kachin | E29: MMR001 | F29: Myitkyina | G29: MMR001D001 | H29: Waingmaw | I29: MMR001002 | J29: Waingmaw Town | K29: MMR001002701 | L29: No (2) Ward | M29: MMR001002701502 | N29: Qtr. 2 Myoma Baptist Church | O29: MMR001CMP025 | P29: GCA | Q29: 97.438271 | R29: 25.351655 | S29: 83 | T29: 373 | U29: =IF(CampList[[#This Row],[HH]]>0,CampList[[#This Row],[Total]]/CampList[[#This Row],[HH]],"NA") -> 4.493975904 | X29: Camp | Z29: Open
C30: Open | D30: Kachin | E30: MMR001 | F30: Myitkyina | G30: MMR001D001 | H30: Waingmaw | I30: MMR001002 | J30: Waingmaw Town | K30: MMR001002701 | L30: No (4) Ward | M30: MMR001002701504 | N30: Qtr. 4 Monestry (Thargaya Thayett Taw) | O30: MMR001CMP026 | P30: GCA | Q30: 97.432495 | R30: 25.350809 | S30: 101 | T30: 524 | U30: =IF(CampList[[#This Row],[HH]]>0,CampList[[#This Row],[Total]]/CampList[[#This Row],[HH]],"NA") -> 5.188118812 | X30: Camp | Z30: Open
C31: Open | D31: Kachin | E31: MMR001 | F31: Myitkyina | G31: MMR001D001 | H31: Waingmaw | I31: MMR001002 | J31: Mading | K31: MMR001002001 | L31: Mading/Hka Kun | M31: 165730 | N31: Mading Baptist Church | O31: MMR001CMP027 | P31: GCA | Q31: 97.451965 | R31: 25.356632 | S31: 23 | T31: 114 | U31: =IF(CampList[[#This Row],[HH]]>0,CampList[[#This Row],[Total]]/CampList[[#This Row],[HH]],"NA") -> 4.956521739 | X31: Camp | Z31: Open
C32: Open | D32: Kachin | E32: MMR001 | F32: Myitkyina | G32: MMR001D001 | H32: Waingmaw | I32: MMR001002 | J32: Hkat Shu | K32: MMR001002003 | L32: Hkat Shu | M32: 165735 | N32: Hkat Cho | O32: MMR001CMP028 | P32: GCA | Q32: 97.408302 | R32: 25.324568 | S32: 134 | T32: 554 | U32: =IF(CampList[[#This Row],[HH]]>0,CampList[[#This Row],[Total]]/CampList[[#This Row],[HH]],"NA") -> 4.134328358 | X32: Camp | Z32: Open
C33: Open | D33: Kachin | E33: MMR001 | F33: Myitkyina | G33: MMR001D001 | H33: Waingmaw | I33: MMR001002 | J33: Mai Na | K33: MMR001002006 | L33: Mai Na | M33: 165740 | N33: Maina Catholic Church (St. Joseph) | O33: MMR001CMP029 | P33: GCA | Q33: 97.43845 | R33: 25.4159 | S33: 243 | T33: 1078 | U33: =IF(CampList[[#This Row],[HH]]>0,CampList[[#This Row],[Total]]/CampList[[#This Row],[HH]],"NA") -> 4.436213992 | X33: Camp | Z33: Open
C34: Open | D34: Kachin | E34: MMR001 | F34: Myitkyina | G34: MMR001D001 | H34: Waingmaw | I34: MMR001002 | J34: Waingmaw Town | K34: MMR001002701 | L34: No (3) Ward | M34: MMR001002701503 | N34: Qtr. 3 Mu-yin Baptist Church | O34: MMR001CMP030 | P34: GCA | Q34: 97.437569 | R34: 25.346004 | S34: 28 | T34: 131 | U34: =IF(CampList[[#This Row],[HH]]>0,CampList[[#This Row],[Total]]/CampList[[#This Row],[HH]],"NA") -> 4.678571429 | X34: Camp | Z34: Open
C35: Open | D35: Kachin | E35: MMR001 | F35: Myitkyina | G35: MMR001D001 | H35: Waingmaw | I35: MMR001002 | J35: Mai Na | K35: MMR001002006 | L35: Mai Na | M35: 165740 | N35: Maina AG Church | O35: MMR001CMP031 | P35: GCA | Q35: 97.435234 | R35: 25.425276 | S35: 107 | T35: 493 | U35: =IF(CampList[[#This Row],[HH]]>0,CampList[[#This Row],[Total]]/CampList[[#This Row],[HH]],"NA") -> 4.607476636 | X35: Camp | Z35: Open
C36: Open | D36: Kachin | E36: MMR001 | F36: Myitkyina | G36: MMR001D001 | H36: Waingmaw | I36: MMR001002 | J36: Waingmaw Town | K36: MMR001002701 | L36: No (2) Ward | M36: MMR001002701502 | N36: Qtr. 2 Lhaovo Baptist Church | O36: MMR001CMP032 | P36: GCA | Q36: 97.441483 | R36: 25.354884 | S36: 118 | T36: 332 | U36: =IF(CampList[[#This Row],[HH]]>0,CampList[[#This Row],[Total]]/CampList[[#This Row],[HH]],"NA") -> 2.813559322 | X36: Camp | Z36: Open
C37: Open | D37: Kachin | E37: MMR001 | F37: Myitkyina | G37: MMR001D001 | H37: Waingmaw | I37: MMR001002 | J37: Nawng Hee | K37: MMR001002008 | L37: Nawng Hee | M37: 165745 | N37: Nawng Hee Village | O37: MMR001CMP033 | P37: GCA | Q37: 97.345039 | R37: 25.351965 | S37: 19 | T37: 71 | U37: =IF(CampList[[#This Row],[HH]]>0,CampList[[#This Row],[Total]]/CampList[[#This Row],[HH]],"NA") -> 3.736842105 | X37: Host Families | Z37: Open
C38: Close | D38: Kachin | E38: MMR001 | F38: Myitkyina | G38: MMR001D001 | H38: Waingmaw | I38: MMR001002 | J38: Nawng Si Paw | K38: MMR001002013 | L38: Nawng Si Paw | M38: 165750 | N38: Nawng Si Paw Village / Inn Lay | O38: MMR001CMP034 | P38: GCA | U38: =IF(CampList[[#This Row],[HH]]>0,CampList[[#This Row],[Total]]/CampList[[#This Row],[HH]],"NA") -> NA | X38: Camp | Z38: Close
C39: Close | D39: Kachin | E39: MMR001 | F39: Myitkyina | G39: MMR001D001 | H39: Waingmaw | I39: MMR001002 | J39: Hkat Shu | K39: MMR001002003 | L39: Hkat Shu | M39: 165735 | N39: Moke Lwe Village / Hkar Shi | O39: MMR001CMP035 | P39: GCA | Q39: 97.421104 | R39: 25.328987 | U39: =IF(CampList[[#This Row],[HH]]>0,CampList[[#This Row],[Total]]/CampList[[#This Row],[HH]],"NA") -> NA | X39: Camp | Z39: Close
C40: Open | D40: Kachin | E40: MMR001 | F40: Myitkyina | G40: MMR001D001 | H40: Waingmaw | I40: MMR001002 | J40: Waingmaw Town | K40: MMR001002701 | L40: No (2) Ward | M40: MMR001002701502 | N40: Waingmaw Baptist Zonal Office | O40: MMR001CMP036 | P40: GCA | Q40: 97.438259 | R40: 25.355842 | S40: 132 | T40: 132 | U40: =IF(CampList[[#This Row],[HH]]>0,CampList[[#This Row],[Total]]/CampList[[#This Row],[HH]],"NA") -> 1 | X40: Camp | Z40: Open
C41: Open | D41: Kachin | E41: MMR001 | F41: Myitkyina | G41: MMR001D001 | H41: Waingmaw | I41: MMR001002 | J41: Waingmaw Town | K41: MMR001002701 | L41: No (4) Ward | M41: MMR001002701504 | N41: Thargaya Lisu Baptist Church | O41: MMR001CMP037 | P41: GCA | Q41: 97.42796 | R41: 25.33351 | S41: 74 | T41: 323 | U41: =IF(CampList[[#This Row],[HH]]>0,CampList[[#This Row],[Total]]/CampList[[#This Row],[HH]],"NA") -> 4.364864865 | X41: Camp | Z41: Open
C42: Open | D42: Kachin | E42: MMR001 | F42: Myitkyina | G42: MMR001D001 | H42: Waingmaw | I42: MMR001002 | J42: Waingmaw Town | K42: MMR001002701 | L42: No (3) Ward | M42: MMR001002701503 | N42: Waingmaw AG Church | O42: MMR001CMP038 | P42: GCA | Q42: 97.443702 | R42: 25.351242 | S42: 77 | T42: 372 | U42: =IF(CampList[[#This Row],[HH]]>0,CampList[[#This Row],[Total]]/CampList[[#This Row],[HH]],"NA") -> 4.831168831 | X42: Camp | Z42: Open
C43: Open | D43: Kachin | E43: MMR001 | F43: Myitkyina | G43: MMR001D001 | H43: Waingmaw | I43: MMR001002 | J43: Mai Na | K43: MMR001002006 | L43: Mai Na | M43: 165740 | N43: Maina Lawang Baptist Church | O43: MMR001CMP039 | P43: GCA | Q43: 97.426297 | R43: 25.409566 | S43: 47 | T43: 184 | U43: =IF(CampList[[#This Row],[HH]]>0,CampList[[#This Row],[Total]]/CampList[[#This Row],[HH]],"NA") -> 3.914893617 | X43: Camp | Z43: Open
C44: Open | D44: Kachin | E44: MMR001 | F44: Myitkyina | G44: MMR001D001 | H44: Waingmaw | I44: MMR001002 | J44: Mai Na | K44: MMR001002006 | L44: Mai Na | M44: 165740 | N44: Maina KBC (Bawng Ring) | O44: MMR001CMP040 | P44: GCA | Q44: 97.437435 | R44: 25.411413 | S44: 384 | T44: 1694 | U44: =IF(CampList[[#This Row],[HH]]>0,CampList[[#This Row],[Total]]/CampList[[#This Row],[HH]],"NA") -> 4.411458333 | X44: Camp | Z44: Open
C45: Open | D45: Kachin | E45: MMR001 | F45: Myitkyina | G45: MMR001D001 | H45: Waingmaw | I45: MMR001002 | J45: Waw Shung (Kan Paik Ti Sub-township) | K45: MMR001002035 | L45: Shan Kyaing | M45: 165845 | N45: Shing Jai | O45: MMR001CMP041 | P45: GCA | Q45: 98.025663 | R45: 25.418084 | S45: 182 | T45: 948 | U45: =IF(CampList[[#This Row],[HH]]>0,CampList[[#This Row],[Total]]/CampList[[#This Row],[HH]],"NA") -> 5.208791209 | X45: Camp | Z45: Open
C46: Open | D46: Kachin | E46: MMR001 | F46: Myitkyina | G46: MMR001D001 | H46: Chipwi | I46: MMR001005 | J46: Chipwi Town | K46: MMR001005701 | N46: Chipwi KBC camp | O46: MMR001CMP042 | P46: GCA | S46: 103 | T46: 452 | U46: =IF(CampList[[#This Row],[HH]]>0,CampList[[#This Row],[Total]]/CampList[[#This Row],[HH]],"NA") -> 4.388349515 | X46: Camp | Y46: Data source from Camp Profile | Z46: Open
C47: Open | D47: Kachin | E47: MMR001 | F47: Myitkyina | G47: MMR001D001 | H47: Chipwi | I47: MMR001005 | J47: Hpa Re (Pang War Sub-township) | K47: MMR001005026 | L47: Hpa Re Waw Jang | M47: 166355 | N47: Hpare Hkyer - BP6 | O47: MMR001CMP043 | P47: GCA | S47: 141 | T47: 820 | U47: =IF(CampList[[#This Row],[HH]]>0,CampList[[#This Row],[Total]]/CampList[[#This Row],[HH]],"NA") -> 5.815602837 | X47: Camp | Y47: Data source from Camp Profile | Z47: Open
C48: Close | D48: Kachin | E48: MMR001 | F48: Myitkyina | G48: MMR001D001 | H48: Chipwi | I48: MMR001005 | N48: Women's Affairs Association Building | O48: MMR001CMP044 | P48: GCA | U48: =IF(CampList[[#This Row],[HH]]>0,CampList[[#This Row],[Total]]/CampList[[#This Row],[HH]],"NA") ->  | X48: Camp | Z48: Close
C49: Open | D49: Kachin | E49: MMR001 | F49: Myitkyina | G49: MMR001D001 | H49: Chipwi | I49: MMR001005 | J49: Lang Jaw (Pang War Sub-township) | K49: MMR001005022 | L49: Lang Jaw | M49: 166337 | N49: Lan Jaw | O49: MMR001CMP045 | P49: GCA | Q49: 98.354147 | R49: 25.708763 | U49: =IF(CampList[[#This Row],[HH]]>0,CampList[[#This Row],[Total]]/CampList[[#This Row],[HH]],"NA") ->  | X49: Host Families | Z49: Open
C50: Open | D50: Kachin | E50: MMR001 | F50: Myitkyina | G50: MMR001D001 | H50: Chipwi | I50: MMR001005 | N50: Gant Gwin | O50: MMR001CMP046 | P50: GCA | S50: 255 | T50: 1273 | U50: =IF(CampList[[#This Row],[HH]]>0,CampList[[#This Row],[Total]]/CampList[[#This Row],[HH]],"NA") -> 4.992156863 | X50: Camp | Z50: Open
C51: Open | D51: Kachin | E51: MMR001 | F51: Bhamo | G51: MMR001D003 | H51: Bhamo | I51: MMR001010 | J51: Bhamo Town | K51: MMR001010701 | L51: Nyaung Pin Ward | M51: MMR001010701508 | N51: Robert Church | O51: MMR001CMP047 | P51: GCA | Q51: 97.22877 | R51: 24.26502 | S51: 514 | T51: 2487 | U51: =IF(CampList[[#This Row],[HH]]>0,CampList[[#This Row],[Total]]/CampList[[#This Row],[HH]],"NA") -> 4.838521401 | X51: Camp | Z51: Open
C52: Open | D52: Kachin | E52: MMR001 | F52: Bhamo | G52: MMR001D003 | H52: Bhamo | I52: MMR001010 | N52: Kannar Yeik Thar | O52: MMR001CMP048 | P52: GCA | Q52: 97.2215565 | R52: 24.26241802 | S52: 3 | T52: 13 | U52: =IF(CampList[[#This Row],[HH]]>0,CampList[[#This Row],[Total]]/CampList[[#This Row],[HH]],"NA") -> 4.333333333 | X52: Camp | Z52: Open
C53: Open | D53: Kachin | E53: MMR001 | F53: Bhamo | G53: MMR001D003 | H53: Bhamo | I53: MMR001010 | J53: Moe Hping | K53: MMR001010009 | L53: Thar Si | M53: 166837 | N53: Lisu Boarding-House | O53: MMR001CMP049 | P53: GCA | Q53: 97.24163 | R53: 24.26611 | S53: 63 | T53: 315 | U53: =IF(CampList[[#This Row],[HH]]>0,CampList[[#This Row],[Total]]/CampList[[#This Row],[HH]],"NA") -> 5 | X53: Camp | Z53: Open
C54: Open | D54: Kachin | E54: MMR001 | F54: Bhamo | G54: MMR001D003 | H54: Bhamo | I54: MMR001010 | J54: Moe Hping | K54: MMR001010009 | L54: Thar Si | M54: 166837 | N54: AD-2000 Tharthana Compound | O54: MMR001CMP050 | P54: GCA | Q54: 97.23883 | R54: 24.26072 | S54: 219 | T54: 858 | U54: =IF(CampList[[#This Row],[HH]]>0,CampList[[#This Row],[Total]]/CampList[[#This Row],[HH]],"NA") -> 3.917808219 | X54: Camp | Z54: Open
C55: Open | D55: Kachin | E55: MMR001 | F55: Bhamo | G55: MMR001D003 | H55: Bhamo | I55: MMR001010 | J55: Bhamo Town | K55: MMR001010701 | L55: Pauk Kone Ward | M55: MMR001010701506 | N55: Mu-yin Baptist Church | O55: MMR001CMP051 | P55: GCA | Q55: 97.2342 | R55: 24.253067 | S55: 4 | T55: 12 | U55: =IF(CampList[[#This Row],[HH]]>0,CampList[[#This Row],[Total]]/CampList[[#This Row],[HH]],"NA") -> 3 | X55: Camp | Z55: Open
C56: Open | D56: Kachin | E56: MMR001 | F56: Bhamo | G56: MMR001D003 | H56: Bhamo | I56: MMR001010 | J56: Bhamo Town | K56: MMR001010701 | L56: Pauk Kone Ward | M56: MMR001010701506 | N56: Htoi San Church | O56: MMR001CMP052 | P56: GCA | Q56: 97.23692 | R56: 24.24766 | S56: 46 | T56: 210 | U56: =IF(CampList[[#This Row],[HH]]>0,CampList[[#This Row],[Total]]/CampList[[#This Row],[HH]],"NA") -> 4.565217391 | X56: Camp | Z56: Open
C57: Open | D57: Kachin | E57: MMR001 | F57: Bhamo | G57: MMR001D003 | H57: Bhamo | I57: MMR001010 | J57: Han Te | K57: MMR001010024 | L57: Yoe Gyi | M57: 166852 | N57: Yoe Kyi Monastery | O57: MMR001CMP053 | P57: GCA | Q57: 97.24064 | R57: 24.24953 | S57: 31 | T57: 108 | U57: =IF(CampList[[#This Row],[HH]]>0,CampList[[#This Row],[Total]]/CampList[[#This Row],[HH]],"NA") -> 3.483870968 | X57: Camp | Z57: Open
C58: Open | D58: Kachin | E58: MMR001 | F58: Bhamo | G58: MMR001D003 | H58: Bhamo | I58: MMR001010 | J58: Nam Hlaing | K58: MMR001010015 | L58: Nam Hlaing | M58: 166844 | N58: Nant Hlaing Church | O58: MMR001CMP054 | P58: GCA | Q58: 97.31586 | R58: 24.32638 | S58: 21 | T58: 101 | U58: =IF(CampList[[#This Row],[HH]]>0,CampList[[#This Row],[Total]]/CampList[[#This Row],[HH]],"NA") -> 4.80952381 | X58: Camp | Z58: Open
C59: Open | D59: Kachin | E59: MMR001 | F59: Bhamo | G59: MMR001D003 | H59: Bhamo | I59: MMR001010 | J59: Bhamo Town | K59: MMR001010701 | L59: Shwe Kyee Nar Ward | M59: MMR001010701513 | N59: Ta Gun Taing Monastery (Shwe Kyi Na) | O59: MMR001CMP055 | P59: GCA | Q59: 97.22779 | R59: 24.29138 | S59: 74 | T59: 318 | U59: =IF(CampList[[#This Row],[HH]]>0,CampList[[#This Row],[Total]]/CampList[[#This Row],[HH]],"NA") -> 4.297297297 | X59: Camp | Z59: Open
C60: Open | D60: Kachin | E60: MMR001 | F60: Bhamo | G60: MMR001D003 | H60: Momauk | I60: MMR001012 | J60: Momauk Town | K60: MMR001012701 | L60: Ah Lin Kawng Ward | M60: MMR001012701502 | N60: Momauk Baptist Church | O60: MMR001CMP056 | P60: GCA | Q60: 97.34436 | R60: 24.25069 | S60: 384 | T60: 1502 | U60: =IF(CampList[[#This Row],[HH]]>0,CampList[[#This Row],[Total]]/CampList[[#This Row],[HH]],"NA") -> 3.911458333 | X60: Camp | Z60: Open
C61: Open | D61: Kachin | E61: MMR001 | F61: Bhamo | G61: MMR001D003 | H61: Momauk | I61: MMR001012 | J61: Momauk Town | K61: MMR001012701 | L61: Kyay Nan Waing Ward | M61: MMR001012701503 | N61: Momauk Catholic Church (St. Patrick) | O61: MMR001CMP057 | P61: GCA | Q61: 97.34695 | R61: 24.25177 | S61: 285 | T61: 1036 | U61: =IF(CampList[[#This Row],[HH]]>0,CampList[[#This Row],[Total]]/CampList[[#This Row],[HH]],"NA") -> 3.635087719 | X61: Camp | Z61: Open
C62: Open | D62: Kachin | E62: MMR001 | F62: Bhamo | G62: MMR001D003 | H62: Momauk | I62: MMR001012 | J62: Momauk Town | K62: MMR001012701 | L62: Ah Lin Kawng Ward | M62: MMR001012701502 | N62: Mandalay Monestry | O62: MMR001CMP058 | P62: GCA | Q62: 97.34694 | R62: 24.25186 | S62: 8 | T62: 25 | U62: =IF(CampList[[#This Row],[HH]]>0,CampList[[#This Row],[Total]]/CampList[[#This Row],[HH]],"NA") -> 3.125 | X62: Camp | Z62: Open
C63: Open | D63: Kachin | E63: MMR001 | F63: Bhamo | G63: MMR001D003 | H63: Momauk | I63: MMR001012 | J63: Momauk Town | K63: MMR001012701 | L63: Ah Lin Kawng Ward | M63: MMR001012701502 | N63: Ni Thaw Ka Monestry | O63: MMR001CMP059 | P63: GCA | Q63: 97.34774 | R63: 24.25377 | S63: 26 | T63: 101 | U63: =IF(CampList[[#This Row],[HH]]>0,CampList[[#This Row],[Total]]/CampList[[#This Row],[HH]],"NA") -> 3.884615385 | X63: Camp | Z63: Open
C64: Open | D64: Kachin | E64: MMR001 | F64: Bhamo | G64: MMR001D003 | H64: Momauk | I64: MMR001012 | J64: Tar Li | K64: MMR001012021 | L64: Tar Li | M64: 167086 | N64: Tarli | O64: MMR001CMP060 | P64: GCA | S64: 10 | T64: 38 | U64: =IF(CampList[[#This Row],[HH]]>0,CampList[[#This Row],[Total]]/CampList[[#This Row],[HH]],"NA") -> 3.8 | X64: Host Families | Z64: Open
C65: Open | D65: Kachin | E65: MMR001 | F65: Bhamo | G65: MMR001D003 | H65: Momauk | I65: MMR001012 | J65: Myo Thit | K65: MMR001012010 | L65: Myo Thit | M65: 167048 | N65: Myo Thit | O65: MMR001CMP061 | P65: GCA | S65: 13 | T65: 53 | U65: =IF(CampList[[#This Row],[HH]]>0,CampList[[#This Row],[Total]]/CampList[[#This Row],[HH]],"NA") -> 4.076923077 | X65: Host Families | Z65: Open
C66: Open | D66: Kachin | E66: MMR001 | F66: Bhamo | G66: MMR001D003 | H66: Momauk | I66: MMR001012 | J66: Man Pon | K66: MMR001012001 | L66: Man Pon | M66: 167009 | N66: Man Bung Catholic compound | O66: MMR001CMP062 | P66: GCA | Q66: 97.32502 | R66: 24.2451 | S66: 18 | T66: 65 | U66: =IF(CampList[[#This Row],[HH]]>0,CampList[[#This Row],[Total]]/CampList[[#This Row],[HH]],"NA") -> 3.611111111 | X66: Camp | Z66: Open
C67: Open | D67: Kachin | E67: MMR001 | F67: Bhamo | G67: MMR001D003 | H67: Momauk | I67: MMR001012 | J67: Man Nawng | K67: MMR001012014 | L67: Man Nawng | M67: 167063 | N67: Man Nawng | O67: MMR001CMP063 | P67: GCA | Q67: 97.32166 | R67: 24.41 | S67: 28 | T67: 136 | U67: =IF(CampList[[#This Row],[HH]]>0,CampList[[#This Row],[Total]]/CampList[[#This Row],[HH]],"NA") -> 4.857142857 | X67: Host Families | Z67: Open
C68: Open | D68: Kachin | E68: MMR001 | F68: Bhamo | G68: MMR001D003 | H68: Momauk | I68: MMR001012 | J68: Maing Khat | K68: MMR001012020 | L68: Maing Khat | M68: 167078 | N68: Mai Khat | O68: MMR001CMP064 | P68: GCA | S68: 2 | T68: 9 | U68: =IF(CampList[[#This Row],[HH]]>0,CampList[[#This Row],[Total]]/CampList[[#This Row],[HH]],"NA") -> 4.5 | X68: Host Families | Z68: Open
C69: Open | D69: Kachin | E69: MMR001 | F69: Bhamo | G69: MMR001D003 | H69: Momauk | I69: MMR001012 | J69: Hpar Kei (Dawthponeyan Sub-township) | K69: MMR001012046 | L69: Hpar Kei | M69: 167242 | N69: Phar Kay/Nant Waing | O69: MMR001CMP065 | P69: GCA | Q69: 97.42986 | R69: 24.63086 | S69: 31 | T69: 147 | U69: =IF(CampList[[#This Row],[HH]]>0,CampList[[#This Row],[Total]]/CampList[[#This Row],[HH]],"NA") -> 4.741935484 | X69: Host Families | Z69: =C69 -> Open
C70: Open | D70: Kachin | E70: MMR001 | F70: Bhamo | G70: MMR001D003 | H70: Mansi | I70: MMR001013 | J70: Mansi Town | K70: MMR001013701 | L70: Kawng Yar Ward | M70: MMR001013701504 | N70: Mansi Baptist Church | O70: MMR001CMP066 | P70: GCA | Q70: 97.29182 | R70: 24.12906 | S70: 84 | T70: 348 | U70: =IF(CampList[[#This Row],[HH]]>0,CampList[[#This Row],[Total]]/CampList[[#This Row],[HH]],"NA") -> 4.142857143 | X70: Camp | Z70: Open
C71: Open | D71: Kachin | E71: MMR001 | F71: Bhamo | G71: MMR001D003 | H71: Shwegu | I71: MMR001011 | J71: Shwegu Town | K71: MMR001011701 | L71: Shwegu Town | M71: MMR001011701504 | N71: Shwe Gu Baptist Church | O71: MMR001CMP067 | P71: GCA | Q71: 96.807353 | R71: 24.200361 | S71: 106 | T71: 263 | U71: =IF(CampList[[#This Row],[HH]]>0,CampList[[#This Row],[Total]]/CampList[[#This Row],[HH]],"NA") -> 2.481132075 | X71: Camp | Z71: Open
C72: Open | D72: Kachin | E72: MMR001 | F72: Bhamo | G72: MMR001D003 | H72: Shwegu | I72: MMR001011 | J72: Shwegu Town | K72: MMR001011701 | L72: Shwegu Town | M72: MMR001011701504 | N72: Shwe Gu Catholic Church | O72: MMR001CMP068 | P72: GCA | Q72: 96.807353 | R72: 24.200367 | S72: 45 | T72: 174 | U72: =IF(CampList[[#This Row],[HH]]>0,CampList[[#This Row],[Total]]/CampList[[#This Row],[HH]],"NA") -> 3.866666667 | X72: Camp | Z72: Open
C73: Open | D73: Kachin | E73: MMR001 | F73: Bhamo | G73: MMR001D003 | H73: Momauk | I73: MMR001012 | J73: Lwegel Town | K73: MMR001012702 | L73: Loi Je | N73: Loi Je Catholic Church | O73: MMR001CMP069 | P73: GCA | Q73: 97.724567 | R73: 24.205417 | S73: 59 | T73: 281 | U73: =IF(CampList[[#This Row],[HH]]>0,CampList[[#This Row],[Total]]/CampList[[#This Row],[HH]],"NA") -> 4.762711864 | X73: Camp | Z73: Open
C74: Open | D74: Kachin | E74: MMR001 | F74: Bhamo | G74: MMR001D003 | H74: Momauk | I74: MMR001012 | J74: Lwegel Town | K74: MMR001012702 | L74: Aung Zay Yar Ward | M74: MMR001012702505 | N74: Loi Je Lisu Camp | O74: MMR001CMP070 | P74: GCA | Q74: 97.717133 | R74: 24.200433 | S74: 127 | T74: 631 | U74: =IF(CampList[[#This Row],[HH]]>0,CampList[[#This Row],[Total]]/CampList[[#This Row],[HH]],"NA") -> 4.968503937 | X74: Camp | Z74: Open
C75: Open | D75: Kachin | E75: MMR001 | F75: Bhamo | G75: MMR001D003 | H75: Momauk | I75: MMR001012 | J75: Lwegel Town | K75: MMR001012702 | N75: Loi Je Baptist Church | O75: MMR001CMP071 | P75: GCA | Q75: 97.718583 | R75: 24.200972 | S75: 19 | T75: 106 | U75: =IF(CampList[[#This Row],[HH]]>0,CampList[[#This Row],[Total]]/CampList[[#This Row],[HH]],"NA") -> 5.578947368 | X75: Camp | Z75: Open
C76: Open | D76: Kachin | E76: MMR001 | F76: Bhamo | G76: MMR001D003 | H76: Momauk | I76: MMR001012 | J76: Lwegel Town | K76: MMR001012702 | L76: Say Yone Kone | N76: Nyaung Na Pin | O76: MMR001CMP072 | P76: GCA | Q76: 97.724483 | R76: 24.205417 | S76: 47 | T76: 258 | U76: =IF(CampList[[#This Row],[HH]]>0,CampList[[#This Row],[Total]]/CampList[[#This Row],[HH]],"NA") -> 5.489361702 | X76: Camp | Z76: Open
C77: Open | D77: Kachin | E77: MMR001 | F77: Bhamo | G77: MMR001D003 | H77: Momauk | I77: MMR001012 | J77: Lwegel Town | K77: MMR001012702 | L77: Seng Ja | N77: Seng Ja | O77: MMR001CMP073 | P77: GCA | Q77: 97.710864 | R77: 24.207333 | S77: 32 | T77: 173 | U77: =IF(CampList[[#This Row],[HH]]>0,CampList[[#This Row],[Total]]/CampList[[#This Row],[HH]],"NA") -> 5.40625 | X77: Camp | Z77: Open
C78: Open | D78: Kachin | E78: MMR001 | F78: Puta-O | G78: MMR001D004 | H78: Khaunglanhpu | I78: MMR001018 | J78: La Ja Ga | K78: MMR001018021 | L78: La Ja | M78: 168236 | N78: La Ja | O78: MMR001CMP074 | P78: GCA | Q78: 98.15 | R78: 26.89 | S78: 22 | T78: 107 | U78: =IF(CampList[[#This Row],[HH]]>0,CampList[[#This Row],[Total]]/CampList[[#This Row],[HH]],"NA") -> 4.863636364 | X78: Camp | Z78: Open
C79: Open | D79: Kachin | E79: MMR001 | F79: Puta-O | G79: MMR001D004 | H79: Puta-O | I79: MMR001014 | J79: Puta-O Town | K79: MMR001014701 | N79: Tote Tan Ward | O79: MMR001CMP075 | P79: GCA | S79: 7 | T79: 15 | U79: =IF(CampList[[#This Row],[HH]]>0,CampList[[#This Row],[Total]]/CampList[[#This Row],[HH]],"NA") -> 2.142857143 | X79: Camp | Z79: Open
C80: Open | D80: Kachin | E80: MMR001 | F80: Mohnyin | G80: MMR001D002 | H80: Mogaung | I80: MMR001008 | J80: Nawng Kaing Htaw | K80: MMR001008002 | L80: Ma Haung | M80: 166676 | N80: Mang Hawng Baptist Church | O80: MMR001CMP077 | P80: GCA | Q80: 96.94228 | R80: 25.29658 | S80: 16 | T80: 69 | U80: =IF(CampList[[#This Row],[HH]]>0,CampList[[#This Row],[Total]]/CampList[[#This Row],[HH]],"NA") -> 4.3125 | X80: Camp | Z80: Open
C81: Open | D81: Kachin | E81: MMR001 | F81: Mohnyin | G81: MMR001D002 | H81: Mogaung | I81: MMR001008 | J81: Mogaung Town | K81: MMR001008701 | N81: Kyun Taw Baptist Church | O81: MMR001CMP078 | P81: GCA | Q81: 96.92262 | R81: 25.30567 | S81: 15 | T81: 69 | U81: =IF(CampList[[#This Row],[HH]]>0,CampList[[#This Row],[Total]]/CampList[[#This Row],[HH]],"NA") -> 4.6 | X81: Camp | Z81: Open
C82: Open | D82: Kachin | E82: MMR001 | F82: Mohnyin | G82: MMR001D002 | H82: Mogaung | I82: MMR001008 | J82: Mogaung Town | K82: MMR001008701 | L82: Nat Gyi Kone Ward | M82: MMR001008701506 | N82: Nat Gyi Kone Baptist Church | O82: MMR001CMP079 | P82: GCA | Q82: 96.94874 | R82: 25.30442 | S82: 14 | T82: 49 | U82: =IF(CampList[[#This Row],[HH]]>0,CampList[[#This Row],[Total]]/CampList[[#This Row],[HH]],"NA") -> 3.5 | X82: Camp | Z82: Open
C83: Open | D83: Kachin | E83: MMR001 | F83: Mohnyin | G83: MMR001D002 | H83: Mohnyin | I83: MMR001007 | N83: St. Patrick Catholic Church | O83: MMR001CMP080 | P83: GCA | Q83: 96.36706 | R83: 24.7648 | S83: 12 | T83: 43 | U83: =IF(CampList[[#This Row],[HH]]>0,CampList[[#This Row],[Total]]/CampList[[#This Row],[HH]],"NA") -> 3.583333333 | X83: Camp | Z83: Open
C84: Open | D84: Kachin | E84: MMR001 | F84: Mohnyin | G84: MMR001D002 | H84: Mohnyin | I84: MMR001007 | J84: Nam Mun | K84: MMR001007016 | L84: Nam Mun | M84: 166591 | N84: Nant Mun | O84: MMR001CMP081 | P84: GCA | Q84: 96.36495 | R84: 24.99835 | S84: 22 | T84: 101 | U84: =IF(CampList[[#This Row],[HH]]>0,CampList[[#This Row],[Total]]/CampList[[#This Row],[HH]],"NA") -> 4.590909091 | X84: Camp | Z84: Open
C85: Open | D85: Kachin | E85: MMR001 | F85: Mohnyin | G85: MMR001D002 | H85: Hpakant | I85: MMR001009 | J85: Hpakan Town | K85: MMR001009701 | L85: Hnget Pyaw Taw Ward | M85: MMR001009701502 | N85: Nga Pyaw Taw Baptist Nursery School | O85: MMR001CMP082 | P85: GCA | Q85: 96.31279 | R85: 25.61116 | S85: 143 | T85: 543 | U85: =IF(CampList[[#This Row],[HH]]>0,CampList[[#This Row],[Total]]/CampList[[#This Row],[HH]],"NA") -> 3.797202797 | X85: Camp | Z85: Open
C86: Close | D86: Kachin | E86: MMR001 | F86: Mohnyin | G86: MMR001D002 | H86: Hpakant | I86: MMR001009 | J86: Hpakan Town | K86: MMR001009701 | L86: Hnget Pyaw Taw Ward | M86: MMR001009701502 | N86: Nga Pyaw Taw Roman Catholic Church | O86: MMR001CMP083 | P86: GCA | Q86: 96.31326 | R86: 25.6119 | U86: =IF(CampList[[#This Row],[HH]]>0,CampList[[#This Row],[Total]]/CampList[[#This Row],[HH]],"NA") -> NA | X86: Camp | Z86: Close
C87: Close | D87: Kachin | E87: MMR001 | F87: Mohnyin | G87: MMR001D002 | H87: Hpakant | I87: MMR001009 | J87: Hpakan Town | K87: MMR001009701 | L87: Maw Wam Ward | M87: MMR001009701501 | N87: Maw Wan, Kyauk Hlaing Gu Pagoda Compound | O87: MMR001CMP084 | P87: GCA | U87: =IF(CampList[[#This Row],[HH]]>0,CampList[[#This Row],[Total]]/CampList[[#This Row],[HH]],"NA") -> NA | X87: Camp | Z87: Close
C88: Close | D88: Kachin | E88: MMR001 | F88: Mohnyin | G88: MMR001D002 | H88: Hpakant | I88: MMR001009 | J88: Hpakan Town | K88: MMR001009701 | L88: Maw Wam Ward | M88: MMR001009701501 | N88: Maw Wan, Kachin Baptist Church | O88: MMR001CMP085 | P88: GCA | Q88: 96.316211 | R88: 25.619221 | U88: =IF(CampList[[#This Row],[HH]]>0,CampList[[#This Row],[Total]]/CampList[[#This Row],[HH]],"NA") -> NA | X88: Camp | Z88: Close
C89: Close | D89: Kachin | E89: MMR001 | F89: Mohnyin | G89: MMR001D002 | H89: Hpakant | I89: MMR001009 | N89: Chin(Zomi) Baptist Church | O89: MMR001CMP086 | P89: GCA | U89: =IF(CampList[[#This Row],[HH]]>0,CampList[[#This Row],[Total]]/CampList[[#This Row],[HH]],"NA") -> NA | X89: Camp | Z89: Close
C90: Close | D90: Kachin | E90: MMR001 | F90: Mohnyin | G90: MMR001D002 | H90: Hpakant | I90: MMR001009 | J90: Hpakan Town | K90: MMR001009701 | L90: Maw Wam Ward | M90: MMR001009701501 | N90: Maw Wan, Myo Oo Pagoda | O90: MMR001CMP088 | P90: GCA | U90: =IF(CampList[[#This Row],[HH]]>0,CampList[[#This Row],[Total]]/CampList[[#This Row],[HH]],"NA") -> NA | X90: Camp | Z90: Close
C91: Close | D91: Kachin | E91: MMR001 | F91: Mohnyin | G91: MMR001D002 | H91: Hpakant | I91: MMR001009 | J91: Hpakan Town | K91: MMR001009701 | L91: Maw Wam Ward | M91: MMR001009701501 | N91: Maw Wan, Catholic Church | O91: MMR001CMP090 | P91: GCA | U91: =IF(CampList[[#This Row],[HH]]>0,CampList[[#This Row],[Total]]/CampList[[#This Row],[HH]],"NA") -> NA | X91: Camp | Z91: Close
C92: Open | D92: Kachin | E92: MMR001 | F92: Mohnyin | G92: MMR001D002 | H92: Hpakant | I92: MMR001009 | J92: Hpakan Town | K92: MMR001009701 | L92: Maw Wam Ward | M92: MMR001009701501 | N92: Maw Wan, Mu-yin Baptist Church | O92: MMR001CMP091 | P92: GCA | Q92: 96.319688 | R92: 25.615202 | S92: 28 | T92: 82 | U92: =IF(CampList[[#This Row],[HH]]>0,CampList[[#This Row],[Total]]/CampList[[#This Row],[HH]],"NA") -> 2.928571429 | X92: Camp | Z92: Open
C93: Close | D93: Kachin | E93: MMR001 | F93: Mohnyin | G93: MMR001D002 | H93: Hpakant | I93: MMR001009 | J93: Hpakan Town | K93: MMR001009701 | L93: Aye Mya Thar Yar Ward | M93: MMR001009701504 | N93: Aye Mya Tharyar Church of Christ | O93: MMR001CMP092 | P93: GCA | U93: =IF(CampList[[#This Row],[HH]]>0,CampList[[#This Row],[Total]]/CampList[[#This Row],[HH]],"NA") -> NA | X93: Camp | Z93: Close
C94: Close | D94: Kachin | E94: MMR001 | F94: Mohnyin | G94: MMR001D002 | H94: Hpakant | I94: MMR001009 | J94: Hpakan Town | K94: MMR001009701 | L94: Ma Shi Ka Htaung Ward | M94: MMR001009701505 | N94: Mashi Kahtawng Catholic Church | O94: MMR001CMP093 | P94: GCA | U94: =IF(CampList[[#This Row],[HH]]>0,CampList[[#This Row],[Total]]/CampList[[#This Row],[HH]],"NA") -> NA | X94: Camp | Z94: Close
C95: Close | D95: Kachin | E95: MMR001 | F95: Mohnyin | G95: MMR001D002 | H95: Hpakant | I95: MMR001009 | J95: Hpakan Town | K95: MMR001009701 | L95: Ma Shi Ka Htaung Ward | M95: MMR001009701505 | N95: Mashi Kahtawng Baptist Church | O95: MMR001CMP094 | P95: GCA | Q95: 96.310928 | R95: 25.60918 | U95: =IF(CampList[[#This Row],[HH]]>0,CampList[[#This Row],[Total]]/CampList[[#This Row],[HH]],"NA") -> NA | X95: Camp | Z95: Close
C96: Close | D96: Kachin | E96: MMR001 | F96: Mohnyin | G96: MMR001D002 | H96: Hpakant | I96: MMR001009 | J96: Hpakan Town | K96: MMR001009701 | L96: Ma Shi Ka Htaung Ward | M96: MMR001009701505 | N96: Mashi Kahtawng Rakhine traditional group | O96: MMR001CMP095 | P96: GCA | U96: =IF(CampList[[#This Row],[HH]]>0,CampList[[#This Row],[Total]]/CampList[[#This Row],[HH]],"NA") -> NA | X96: Camp | Z96: Close
C97: Close | D97: Kachin | E97: MMR001 | F97: Mohnyin | G97: MMR001D002 | H97: Hpakant | I97: MMR001009 | J97: Hpakan Town | K97: MMR001009701 | L97: Ma Shi Ka Htaung Ward | M97: MMR001009701505 | N97: Mashi Kahtawng Evangelical Church | O97: MMR001CMP096 | P97: GCA | U97: =IF(CampList[[#This Row],[HH]]>0,CampList[[#This Row],[Total]]/CampList[[#This Row],[HH]],"NA") -> NA | X97: Camp | Z97: Close
C98: Close | D98: Kachin | E98: MMR001 | F98: Mohnyin | G98: MMR001D002 | H98: Hpakant | I98: MMR001009 | J98: Hpakan Town | K98: MMR001009701 | L98: Ma Shi Ka Htaung Ward | M98: MMR001009701505 | N98: Mashi Kahtawng Yaung Chi Oo Thi la shin Monestry | O98: MMR001CMP097 | P98: GCA | U98: =IF(CampList[[#This Row],[HH]]>0,CampList[[#This Row],[Total]]/CampList[[#This Row],[HH]],"NA") -> NA | X98: Camp | Z98: Close
C99: Close | D99: Kachin | E99: MMR001 | F99: Mohnyin | G99: MMR001D002 | H99: Hpakant | I99: MMR001009 | J99: Hpakan Town | K99: MMR001009701 | L99: Ma Shi Ka Htaung Ward | M99: MMR001009701505 | N99: Mashi Kahtawng Municipal Dammar Yone | O99: MMR001CMP098 | P99: GCA | U99: =IF(CampList[[#This Row],[HH]]>0,CampList[[#This Row],[Total]]/CampList[[#This Row],[HH]],"NA") -> NA | X99: Camp | Z99: Close
C100: Close | D100: Kachin | E100: MMR001 | F100: Mohnyin | G100: MMR001D002 | H100: Hpakant | I100: MMR001009 | J100: Hpakan Town | K100: MMR001009701 | L100: Ma Shi Ka Htaung Ward | M100: MMR001009701505 | N100: Mashi Kahtawng Myo Oo Taw Ya Monestry | O100: MMR001CMP099 | P100: GCA | U100: =IF(CampList[[#This Row],[HH]]>0,CampList[[#This Row],[Total]]/CampList[[#This Row],[HH]],"NA") -> NA | X100: Camp | Z100: Close
C101: Close | D101: Kachin | E101: MMR001 | F101: Mohnyin | G101: MMR001D002 | H101: Hpakant | I101: MMR001009 | J101: Hpakan Town | K101: MMR001009701 | L101: Ma Shi Ka Htaung Ward | M101: MMR001009701505 | N101: Mashi Kahtawng Shan Traditional Monestry | O101: MMR001CMP100 | P101: GCA | U101: =IF(CampList[[#This Row],[HH]]>0,CampList[[#This Row],[Total]]/CampList[[#This Row],[HH]],"NA") -> NA | X101: Camp | Z101: Close
C102: Close | D102: Kachin | E102: MMR001 | F102: Mohnyin | G102: MMR001D002 | H102: Hpakant | I102: MMR001009 | J102: Hpakan Town | K102: MMR001009701 | L102: Myo Ma Ward | M102: MMR001009701503 | N102: Thiri Mingalar Manizay Yone, Myoma Quarter | O102: MMR001CMP101 | P102: GCA | U102: =IF(CampList[[#This Row],[HH]]>0,CampList[[#This Row],[Total]]/CampList[[#This Row],[HH]],"NA") -> NA | X102: Camp | Z102: Close
C103: Close | D103: Kachin | E103: MMR001 | F103: Mohnyin | G103: MMR001D002 | H103: Hpakant | I103: MMR001009 | J103: Hpakan Town | K103: MMR001009701 | L103: Myo Ma Ward | M103: MMR001009701503 | N103: Parami, Charity Office, MyoMa Quarter | O103: MMR001CMP102 | P103: GCA | U103: =IF(CampList[[#This Row],[HH]]>0,CampList[[#This Row],[Total]]/CampList[[#This Row],[HH]],"NA") -> NA | X103: Camp | Z103: Close
C104: Open | D104: Kachin | E104: MMR001 | F104: Mohnyin | G104: MMR001D002 | H104: Hpakant | I104: MMR001009 | J104: Nam Ma Hpyit | K104: MMR001009002 | L104: Nam Ma Hpyit | M104: 166776 | N104: Nant Ma Hpit Catholic Church | O104: MMR001CMP103 | P104: GCA | Q104: 96.341353 | R104: 25.613895 | S104: 96 | T104: 332 | U104: =IF(CampList[[#This Row],[HH]]>0,CampList[[#This Row],[Total]]/CampList[[#This Row],[HH]],"NA") -> 3.458333333 | X104: Camp | Z104: Open
C105: Close | D105: Kachin | E105: MMR001 | F105: Mohnyin | G105: MMR001D002 | H105: Hpakant | I105: MMR001009 | N105: San Kyel, Masoe Yein Monestry | O105: MMR001CMP104 | P105: GCA | U105: =IF(CampList[[#This Row],[HH]]>0,CampList[[#This Row],[Total]]/CampList[[#This Row],[HH]],"NA") -> NA | X105: Camp | Z105: Close
C106: Open | D106: Kachin | E106: MMR001 | F106: Mohnyin | G106: MMR001D002 | H106: Hpakant | I106: MMR001009 | J106: Seik Mu | K106: MMR001009003 | L106: Seik Mu | M106: 166783 | N106: Yumar Baptist Church | O106: MMR001CMP105 | P106: GCA | Q106: 96.306911 | R106: 25.59925 | S106: 49 | T106: 245 | U106: =IF(CampList[[#This Row],[HH]]>0,CampList[[#This Row],[Total]]/CampList[[#This Row],[HH]],"NA") -> 5 | X106: Camp | Z106: Open
C107: Close | D107: Kachin | E107: MMR001 | F107: Mohnyin | G107: MMR001D002 | H107: Hpakant | I107: MMR001009 | N107: Maw Si Zar, Thiriyardanar Sein, Damma Compound, Lone Khin | O107: MMR001CMP106 | P107: GCA | Q107: 96.34335 | R107: 25.6447 | U107: =IF(CampList[[#This Row],[HH]]>0,CampList[[#This Row],[Total]]/CampList[[#This Row],[HH]],"NA") -> NA | X107: Camp | Z107: Close
C108: Close | D108: Kachin | E108: MMR001 | F108: Mohnyin | G108: MMR001D002 | H108: Hpakant | I108: MMR001009 | J108: Seik Mu | K108: MMR001009003 | L108: Ma Mon | M108: 166790 | N108: Ma Mon Buddhist Monastery | O108: MMR001CMP107 | P108: GCA | U108: =IF(CampList[[#This Row],[HH]]>0,CampList[[#This Row],[Total]]/CampList[[#This Row],[HH]],"NA") -> NA | X108: Camp | Z108: Close
C109: Close | D109: Kachin | E109: MMR001 | F109: Mohnyin | G109: MMR001D002 | H109: Hpakant | I109: MMR001009 | N109: Sa Baw Sarsana Parla Monastery | O109: MMR001CMP108 | P109: GCA | U109: =IF(CampList[[#This Row],[HH]]>0,CampList[[#This Row],[Total]]/CampList[[#This Row],[HH]],"NA") -> NA | X109: Camp | Z109: Close
C110: Open | D110: Kachin | E110: MMR001 | F110: Mohnyin | G110: MMR001D002 | H110: Hpakant | I110: MMR001009 | J110: Seik Mu | K110: MMR001009003 | L110: Seik Mu | M110: 166783 | N110: Chin Church, Seik Mu | O110: MMR001CMP109 | P110: GCA | Q110: 96.283377 | R110: 25.582065 | S110: 9 | T110: 35 | U110: =IF(CampList[[#This Row],[HH]]>0,CampList[[#This Row],[Total]]/CampList[[#This Row],[HH]],"NA") -> 3.888888889 | X110: Camp | Z110: Open
C111: Close | D111: Kachin | E111: MMR001 | F111: Mohnyin | G111: MMR001D002 | H111: Hpakant | I111: MMR001009 | J111: Haung Par | K111: MMR001009004 | L111: Haung Par | M111: 166794 | N111: Tar Ma Hkan Buddhist Monastery, Haung Par | O111: MMR001CMP110 | P111: GCA | U111: =IF(CampList[[#This Row],[HH]]>0,CampList[[#This Row],[Total]]/CampList[[#This Row],[HH]],"NA") -> NA | X111: Camp | Z111: Close
C112: Open | D112: Kachin | E112: MMR001 | F112: Myitkyina | G112: MMR001D001 | H112: Waingmaw | I112: MMR001002 | J112: Hpawt Dawt | K112: MMR001002032 | L112: Zai Aung | N112: Zai Awng / Mung Ga Zup | O112: MMR001CMP111 | P112: NGCA | Q112: 97.75679 | R112: 25.10667 | S112: 627 | T112: 2287 | U112: =IF(CampList[[#This Row],[HH]]>0,CampList[[#This Row],[Total]]/CampList[[#This Row],[HH]],"NA") -> 3.647527911 | X112: Camp | Z112: Open
C113: Open | D113: Kachin | E113: MMR001 | F113: Myitkyina | G113: MMR001D001 | H113: Waingmaw | I113: MMR001002 | J113: Saga Pa (Sadung Sub-township) | K113: MMR001002040 | L113: Saga Pa | N113: Border Post 8 | O113: MMR001CMP113 | P113: NGCA | Q113: 97.915833 | R113: 25.220278 | S113: 132 | T113: 560 | U113: =IF(CampList[[#This Row],[HH]]>0,CampList[[#This Row],[Total]]/CampList[[#This Row],[HH]],"NA") -> 4.242424242 | X113: Camp | Z113: Open
C114: Close | D114: Kachin | E114: MMR001 | F114: Myitkyina | G114: MMR001D001 | H114: Waingmaw | I114: MMR001002 | J114: Saga Pa (Sadung Sub-township) | N114: Border Post 10 | O114: MMR001CMP114 | P114: NGCA | Q114: 97.837778 | R114: 25.273333 | U114: =IF(CampList[[#This Row],[HH]]>0,CampList[[#This Row],[Total]]/CampList[[#This Row],[HH]],"NA") -> NA | X114: Camp | Z114: Close
C115: Open | D115: Kachin | E115: MMR001 | F115: Myitkyina | G115: MMR001D001 | H115: Waingmaw | I115: MMR001002 | J115: Saga Pa (Sadung Sub-township) | L115: Hkau Shau | N115: Hkau Shau (BP 12) | O115: MMR001CMP115 | P115: NGCA | Q115: 97.807183 | R115: 25.200333 | S115: 170 | T115: 1156 | U115: =IF(CampList[[#This Row],[HH]]>0,CampList[[#This Row],[Total]]/CampList[[#This Row],[HH]],"NA") -> 6.8 | X115: Camp | Z115: Open
C116: Open | D116: Kachin | E116: MMR001 | F116: Myitkyina | G116: MMR001D001 | H116: Waingmaw | I116: MMR001002 | J116: Nam Sang Yang | K116: MMR001002024 | L116: Nam Sang Yang | M116: 165772 | N116: Woi Chyai | O116: MMR001CMP116 | P116: NGCA | Q116: 97.567117 | R116: 24.768383 | S116: 840 | T116: 4296 | U116: =IF(CampList[[#This Row],[HH]]>0,CampList[[#This Row],[Total]]/CampList[[#This Row],[HH]],"NA") -> 5.114285714 | X116: Camp | Z116: Open
C117: Open | D117: Kachin | E117: MMR001 | F117: Myitkyina | G117: MMR001D001 | H117: Waingmaw | I117: MMR001002 | J117: Nam Sang Yang | K117: MMR001002024 | L117: Nam Sang Yang | M117: 165772 | N117: Laiza Market 3 / Laiza Gat | O117: MMR001CMP117 | P117: NGCA | Q117: 97.551717 | R117: 24.746817 | S117: 482 | T117: 2184 | U117: =IF(CampList[[#This Row],[HH]]>0,CampList[[#This Row],[Total]]/CampList[[#This Row],[HH]],"NA") -> 4.531120332 | X117: Camp | Z117: Open
C118: Open | D118: Kachin | E118: MMR001 | F118: Myitkyina | G118: MMR001D001 | H118: Waingmaw | I118: MMR001002 | J118: Nam Sang Yang | K118: MMR001002024 | L118: Nam Sang Yang | M118: 165772 | N118: Manau Compound | O118: MMR001CMP118 | P118: GCA | Q118: 97.550267 | R118: 24.747967 | U118: =IF(CampList[[#This Row],[HH]]>0,CampList[[#This Row],[Total]]/CampList[[#This Row],[HH]],"NA") ->  | X118: Camp | Z118: Open
C119: Open | D119: Kachin | E119: MMR001 | F119: Myitkyina | G119: MMR001D001 | H119: Waingmaw | I119: MMR001002 | J119: Sa Ma | K119: MMR001002031 | L119: Nar Gu | M119: 165790 | N119: Maga Yang | O119: MMR001CMP119 | P119: NGCA | Q119: 97.71523 | R119: 24.98025 | S119: 627 | T119: 2618 | U119: =IF(CampList[[#This Row],[HH]]>0,CampList[[#This Row],[Total]]/CampList[[#This Row],[HH]],"NA") -> 4.175438596 | X119: Camp | Z119: Open
C120: Open | D120: Kachin | E120: MMR001 | F120: Myitkyina | G120: MMR001D001 | H120: Waingmaw | I120: MMR001002 | J120: Sa Ma | K120: MMR001002031 | L120: Pa Jau | N120: Pajau / Jan Mai | O120: MMR001CMP120 | P120: NGCA | Q120: 97.751389 | R120: 24.831944 | S120: 157 | T120: 759 | U120: =IF(CampList[[#This Row],[HH]]>0,CampList[[#This Row],[Total]]/CampList[[#This Row],[HH]],"NA") -> 4.834394904 | X120: Camp | Z120: Open
C121: Open | D121: Kachin | E121: MMR001 | F121: Bhamo | G121: MMR001D003 | H121: Momauk | I121: MMR001012 | J121: Dawthponeyan Town | K121: MMR001012703 | L121: Laiza | N121: Je Yang Hka | O121: MMR001CMP121 | P121: NGCA | Q121: 97.568283 | R121: 24.688167 | S121: 1644 | T121: 7896 | U121: =IF(CampList[[#This Row],[HH]]>0,CampList[[#This Row],[Total]]/CampList[[#This Row],[HH]],"NA") -> 4.802919708 | X121: Camp | Z121: Open
C122: Open | D122: Kachin | E122: MMR001 | F122: Bhamo | G122: MMR001D003 | H122: Momauk | I122: MMR001012 | J122: In Baw Mai Kyin (Dawthponeyan Sub-township) | K122: MMR001012042 | L122: Hpun Lum Yang | M122: 167223 | N122: Hpun Lum Yang | O122: MMR001CMP122 | P122: NGCA | Q122: 97.573167 | R122: 24.661467 | S122: 439 | T122: 1956 | U122: =IF(CampList[[#This Row],[HH]]>0,CampList[[#This Row],[Total]]/CampList[[#This Row],[HH]],"NA") -> 4.455580866 | X122: Camp | Z122: Open
C123: Open | D123: Kachin | E123: MMR001 | F123: Bhamo | G123: MMR001D003 | H123: Momauk | I123: MMR001012 | J123: Zee Wone Gawt | K123: MMR001012023 | L123: Dum Bung | N123: Dum Bung | O123: MMR001CMP123 | P123: NGCA | Q123: 97.5371 | R123: 24.461033 | S123: 121 | T123: 620 | U123: =IF(CampList[[#This Row],[HH]]>0,CampList[[#This Row],[Total]]/CampList[[#This Row],[HH]],"NA") -> 5.123966942 | X123: Camp | Z123: Open
C124: Open | D124: Kachin | E124: MMR001 | F124: Bhamo | G124: MMR001D003 | H124: Momauk | I124: MMR001012 | J124: Kawng Hsa (Lwegel Sub-township) | K124: MMR001012033 | L124: Mai Gyar Yang | M124: 216913 | N124: Pa Kahtawng | O124: MMR001CMP126 | P124: NGCA | Q124: 97.752667 | R124: 24.2744 | S124: 503 | T124: 3320 | U124: =IF(CampList[[#This Row],[HH]]>0,CampList[[#This Row],[Total]]/CampList[[#This Row],[HH]],"NA") -> 6.600397614 | X124: Camp | Z124: Open
C125: Open | D125: Kachin | E125: MMR001 | F125: Bhamo | G125: MMR001D003 | H125: Mansi | I125: MMR001013 | J125: In Ba Pa | K125: MMR001013012 | L125: La Na | M125: 216948 | N125: Lana Zup Ja | O125: MMR001CMP128 | P125: NGCA | Q125: 97.625617 | R125: 24.056133 | S125: 551 | T125: 2586 | U125: =IF(CampList[[#This Row],[HH]]>0,CampList[[#This Row],[Total]]/CampList[[#This Row],[HH]],"NA") -> 4.693284936 | X125: Camp | Y125: Mansi | Z125: Open
C126: Open | D126: Kachin | E126: MMR001 | F126: Bhamo | G126: MMR001D003 | H126: Mansi | I126: MMR001013 | J126: Dum Buk | K126: MMR001013014 | L126: Dum Buk | M126: Dum Buk | N126: Bum Tsit Pa | O126: MMR001CMP129 | P126: NGCA | Q126: 97.609833 | R126: 24.002433 | S126: 173 | T126: 832 | U126: =IF(CampList[[#This Row],[HH]]>0,CampList[[#This Row],[Total]]/CampList[[#This Row],[HH]],"NA") -> 4.809248555 | X126: Camp | Y126: Mansi | Z126: Open
C127: Open | D127: Kachin | E127: MMR001 | F127: Bhamo | G127: MMR001D003 | H127: Momauk | I127: MMR001012 | J127: Ba Lawng Kawng (Lwegel Sub-township) | K127: MMR001012030 | L127: Hpa Lum | M127: 167138 | N127: Nhkawng Pa | O127: MMR001CMP131 | P127: NGCA | Q127: 97.669367 | R127: 24.378167 | S127: 380 | T127: 1701 | U127: =IF(CampList[[#This Row],[HH]]>0,CampList[[#This Row],[Total]]/CampList[[#This Row],[HH]],"NA") -> 4.476315789 | X127: Camp | Z127: Open
C128: Open | D128: Kachin | E128: MMR001 | F128: Bhamo | G128: MMR001D003 | H128: Mansi | I128: MMR001013 | J128: Man Wein | K128: MMR001013021 | N128: Man Wing Catholic Church | O128: MMR001CMP132 | P128: NGCA | Q128: 97.33463 | R128: 23.51491 | S128: 308 | T128: 1592 | U128: =IF(CampList[[#This Row],[HH]]>0,CampList[[#This Row],[Total]]/CampList[[#This Row],[HH]],"NA") -> 5.168831169 | X128: Camp | Z128: Open
C129: Open | D129: Kachin | E129: MMR001 | F129: Bhamo | G129: MMR001D003 | H129: Mansi | I129: MMR001013 | J129: Man Wein | K129: MMR001013021 | N129: Man Wing Baptist Church | O129: MMR001CMP133 | P129: NGCA | Q129: 97.5879 | R129: 23.83 | S129: 111 | T129: 719 | U129: =IF(CampList[[#This Row],[HH]]>0,CampList[[#This Row],[Total]]/CampList[[#This Row],[HH]],"NA") -> 6.477477477 | X129: Camp | Z129: Open
C130: Open | D130: Kachin | E130: MMR001 | F130: Bhamo | G130: MMR001D003 | H130: Mansi | I130: MMR001013 | J130: Man Wein | K130: MMR001013021 | N130: Man Wing Host Families | O130: MMR001CMP134 | P130: NGCA | S130: 342 | T130: 1393 | U130: =IF(CampList[[#This Row],[HH]]>0,CampList[[#This Row],[Total]]/CampList[[#This Row],[HH]],"NA") -> 4.073099415 | X130: Host Families | Z130: Open
C131: Open | D131: Kachin | E131: MMR001 | F131: Bhamo | G131: MMR001D003 | H131: Mansi | I131: MMR001013 | J131: La Gat Dawt | K131: MMR001013027 | N131: Lung Kawk ( Hka Hkye Zup) | O131: MMR001CMP135 | P131: NGCA | Q131: 97.585667 | R131: 23.9055 | S131: 93 | T131: 352 | U131: =IF(CampList[[#This Row],[HH]]>0,CampList[[#This Row],[Total]]/CampList[[#This Row],[HH]],"NA") -> 3.784946237 | X131: Camp | Z131: Open
C132: Open | D132: Kachin | E132: MMR001 | F132: Bhamo | G132: MMR001D003 | H132: Mansi | I132: MMR001013 | J132: Man Wein | K132: MMR001013021 | N132: Nam Hka Mare (west of Man Wing) | O132: MMR001CMP136 | P132: NGCA | S132: 73 | T132: 637 | U132: =IF(CampList[[#This Row],[HH]]>0,CampList[[#This Row],[Total]]/CampList[[#This Row],[HH]],"NA") -> 8.726027397 | X132: Camp | Z132: Open
C133: Open | D133: Kachin | E133: MMR001 | F133: Bhamo | G133: MMR001D003 | H133: Mansi | I133: MMR001013 | J133: Nam Lin Pa | K133: MMR001013037 | N133: Nam Lim Pa - Scattered IDPs in forest | O133: MMR001CMP137 | P133: NGCA | Q133: 96.80894 | R133: 24.20635 | S133: 193 | T133: 1350 | U133: =IF(CampList[[#This Row],[HH]]>0,CampList[[#This Row],[Total]]/CampList[[#This Row],[HH]],"NA") -> 6.994818653 | X133: Camp | Z133: =C133 -> Open
C134: Open | D134: Kachin | E134: MMR001 | F134: Myitkyina | G134: MMR001D001 | H134: Injangyang | I134: MMR001003 | N134: Lawk Hkawng Ginwang | O134: MMR001CMP146 | P134: GCA | U134: =IF(CampList[[#This Row],[HH]]>0,CampList[[#This Row],[Total]]/CampList[[#This Row],[HH]],"NA") ->  | X134: Camp | Z134: Open
C135: Open | D135: Kachin | E135: MMR001 | F135: Bhamo | G135: MMR001D003 | H135: Shwegu | I135: MMR001011 | N135: Lawk Awng Mare D. (Sinbo Area) | O135: MMR001CMP147 | P135: NGCA | S135: 375 | T135: 1691 | U135: =IF(CampList[[#This Row],[HH]]>0,CampList[[#This Row],[Total]]/CampList[[#This Row],[HH]],"NA") -> 4.509333333 | X135: Camp | Z135: Open
C136: Open | D136: Kachin | E136: MMR001 | F136: Mohnyin | G136: MMR001D002 | H136: Hpakant | I136: MMR001009 | J136: Nam Si In (Karmaing Sub-township) | K136: MMR001009012 | L136: Nam Si In | M136: 166822 | N136: Hlaing Naung Baptist | O136: MMR001CMP148 | P136: GCA | Q136: 96.70596 | R136: 25.51352 | S136: 15 | T136: 53 | U136: =IF(CampList[[#This Row],[HH]]>0,CampList[[#This Row],[Total]]/CampList[[#This Row],[HH]],"NA") -> 3.533333333 | X136: Camp | Z136: Open
C137: Open | D137: Kachin | E137: MMR001 | F137: Myitkyina | G137: MMR001D001 | H137: Waingmaw | I137: MMR001002 | J137: Hpawt Dawt | K137: MMR001002032 | L137: Lai Zar | M137: 165816 | N137: Laiza Muklum Hpyen Yen Mungshawa ni | O137: MMR001CMP149 | P137: NGCA | S137: 347 | T137: 4420 | U137: =IF(CampList[[#This Row],[HH]]>0,CampList[[#This Row],[Total]]/CampList[[#This Row],[HH]],"NA") -> 12.73775216 | X137: Host Families | Z137: Open
C138: Open | D138: Kachin | E138: MMR001 | F138: Mohnyin | G138: MMR001D002 | H138: Mohnyin | I138: MMR001007 | N138: Nawng Ing (Indawgyi) Baptist Church | O138: MMR001CMP152 | P138: GCA | U138: =IF(CampList[[#This Row],[HH]]>0,CampList[[#This Row],[Total]]/CampList[[#This Row],[HH]],"NA") ->  | X138: Camp | Z138: Open
C139: Open | D139: Kachin | E139: MMR001 | F139: Bhamo | G139: MMR001D003 | H139: Bhamo | I139: MMR001010 | N139: Daw Hpum Yang Ninghtawn | O139: MMR001CMP153 | P139: GCA | U139: =IF(CampList[[#This Row],[HH]]>0,CampList[[#This Row],[Total]]/CampList[[#This Row],[HH]],"NA") ->  | X139: Host Families | Z139: Open
C140: Open | D140: Kachin | E140: MMR001 | F140: Myitkyina | G140: MMR001D001 | H140: Waingmaw | I140: MMR001002 | J140: Saga Pa (Sadung Sub-township) | K140: MMR001002040 | N140: Post 6 Camp | O140: MMR001CMP160 | P140: NGCA | Q140: 97.990556 | R140: 25.265278 | S140: 120 | T140: 586 | U140: =IF(CampList[[#This Row],[HH]]>0,CampList[[#This Row],[Total]]/CampList[[#This Row],[HH]],"NA") -> 4.883333333 | X140: Camp | Z140: Open
C141: Open | D141: Kachin | E141: MMR001 | F141: Myitkyina | G141: MMR001D001 | H141: Myitkyina | I141: MMR001001 | J141: Pa La Na Sa Khan Myar | K141: MMR001001003 | L141: Pi Tauk Myaing | M141: 165685 | N141: Pa Dauk Myaing(Pa La Na) | O141: MMR001CMP162 | P141: GCA | Q141: 97.4345 | R141: 25.49382 | S141: 31 | T141: 163 | U141: =IF(CampList[[#This Row],[HH]]>0,CampList[[#This Row],[Total]]/CampList[[#This Row],[HH]],"NA") -> 5.258064516 | X141: Camp | Z141: Open
C142: Open | D142: Kachin | E142: MMR001 | F142: Bhamo | G142: MMR001D003 | H142: Bhamo | I142: MMR001010 | N142: Host Families | O142: MMR001CMP163 | P142: GCA | S142: 284 | T142: 1299 | U142: =IF(CampList[[#This Row],[HH]]>0,CampList[[#This Row],[Total]]/CampList[[#This Row],[HH]],"NA") -> 4.573943662 | X142: Host Families | Z142: Open
C143: Open | D143: Kachin | E143: MMR001 | F143: Mohnyin | G143: MMR001D002 | H143: Hpakant | I143: MMR001009 | J143: Hpakan Town | K143: MMR001009701 | L143: Maw Wam Ward | M143: MMR001009701501 | N143: Lisu Baptist Church, Maw Wan Ward | O143: MMR001CMP167 | P143: GCA | Q143: 96.3164 | R143: 25.61842 | S143: 11 | T143: 40 | U143: =IF(CampList[[#This Row],[HH]]>0,CampList[[#This Row],[Total]]/CampList[[#This Row],[HH]],"NA") -> 3.636363636 | X143: Camp | Z143: Open
C144: Open | D144: Kachin | E144: MMR001 | F144: Mohnyin | G144: MMR001D002 | H144: Hpakant | I144: MMR001009 | J144: Lone Khin | K144: MMR001009001 | L144: Lone Khin | M144: 166773 | N144: 5 Ward RC Church(lon Khin) | O144: MMR001CMP168 | P144: GCA | Q144: 96.35307 | R144: 25.65582 | S144: 164 | T144: 649 | U144: =IF(CampList[[#This Row],[HH]]>0,CampList[[#This Row],[Total]]/CampList[[#This Row],[HH]],"NA") -> 3.957317073 | X144: Camp | Z144: Open
C145: Open | D145: Kachin | E145: MMR001 | F145: Mohnyin | G145: MMR001D002 | H145: Hpakant | I145: MMR001009 | J145: Lone Khin | K145: MMR001009001 | L145: Hmaw Si Zar | M145: 166775 | N145: Baptist Church, Hmaw Si Sar(Lon Khin) | O145: MMR001CMP169 | P145: GCA | Q145: 96.34647 | R145: 25.64765 | S145: 107 | T145: 441 | U145: =IF(CampList[[#This Row],[HH]]>0,CampList[[#This Row],[Total]]/CampList[[#This Row],[HH]],"NA") -> 4.121495327 | X145: Camp | Z145: Open
C146: Close | D146: Kachin | E146: MMR001 | F146: Mohnyin | G146: MMR001D002 | H146: Hpakant | I146: MMR001009 | J146: Lone Khin | K146: MMR001009001 | L146: Ku Day | M146: 216877 | N146: Away Yar Rama Monastery, Ka Day village | O146: MMR001CMP170 | P146: GCA | Q146: 96.33987 | R146: 25.65599 | U146: =IF(CampList[[#This Row],[HH]]>0,CampList[[#This Row],[Total]]/CampList[[#This Row],[HH]],"NA") -> NA | X146: Camp | Z146: Close
C147: Close | D147: Kachin | E147: MMR001 | F147: Mohnyin | G147: MMR001D002 | H147: Hpakant | I147: MMR001009 | J147: Lone Khin | K147: MMR001009001 | L147: Lone Khin | M147: 166773 | N147: 1 Ward, Sein Yadanar Company(Lon Khin) | O147: MMR001CMP171 | P147: GCA | Q147: 96.35955 | R147: 25.65865 | U147: =IF(CampList[[#This Row],[HH]]>0,CampList[[#This Row],[Total]]/CampList[[#This Row],[HH]],"NA") -> NA | X147: Camp | Z147: Close
C148: Open | D148: Kachin | E148: MMR001 | F148: Mohnyin | G148: MMR001D002 | H148: Hpakant | I148: MMR001009 | J148: Lone Khin | K148: MMR001009001 | L148: Ma Sut Yang | M148: 216880 | N148: Baptist Church, Sai Ra village | O148: MMR001CMP172 | P148: GCA | Q148: 96.35307 | R148: 25.66847 | S148: 11 | T148: 43 | U148: =IF(CampList[[#This Row],[HH]]>0,CampList[[#This Row],[Total]]/CampList[[#This Row],[HH]],"NA") -> 3.909090909 | X148: Camp | Z148: Open
C149: Close | D149: Kachin | E149: MMR001 | F149: Mohnyin | G149: MMR001D002 | H149: Hpakant | I149: MMR001009 | J149: Lone Khin | K149: MMR001009001 | L149: Hmaw Si Zar | M149: 166775 | N149: Anglican Church, Hmaw Si Sar | O149: MMR001CMP173 | P149: GCA | U149: =IF(CampList[[#This Row],[HH]]>0,CampList[[#This Row],[Total]]/CampList[[#This Row],[HH]],"NA") -> NA | X149: Camp | Y149: Double with 149 | Z149: Close
C150: Open | D150: Kachin | E150: MMR001 | F150: Mohnyin | G150: MMR001D002 | H150: Hpakant | I150: MMR001009 | J150: Lone Khin | K150: MMR001009001 | L150: Nyein Chan Thar Yar | M150: 216876 | N150: Dhama Rakhita, Nyein Chan Tar Yar Ward(Lon Khin) | O150: MMR001CMP174 | P150: GCA | Q150: 96.35493 | R150: 25.64309 | S150: 59 | T150: 282 | U150: =IF(CampList[[#This Row],[HH]]>0,CampList[[#This Row],[Total]]/CampList[[#This Row],[HH]],"NA") -> 4.779661017 | X150: Camp | Z150: Open
C151: Close | D151: Kachin | E151: MMR001 | F151: Mohnyin | G151: MMR001D002 | H151: Hpakant | I151: MMR001009 | J151: Hpakan Town | K151: MMR001009701 | L151: Ma Shi Ka Htaung Ward | M151: MMR001009701505 | N151: Wrad(5) Christian Association | O151: MMR001CMP175 | P151: GCA | U151: =IF(CampList[[#This Row],[HH]]>0,CampList[[#This Row],[Total]]/CampList[[#This Row],[HH]],"NA") -> NA | X151: Camp | Z151: Close
C152: Open | D152: Kachin | E152: MMR001 | F152: Mohnyin | G152: MMR001D002 | H152: Hpakant | I152: MMR001009 | J152: Lone Khin | K152: MMR001009001 | L152: Hmaw Si Zar | M152: 166775 | N152: AG Church, Hmaw Si Sa | O152: MMR001CMP176 | P152: GCA | Q152: 96.34557 | R152: 25.6353 | S152: 42 | T152: 190 | U152: =IF(CampList[[#This Row],[HH]]>0,CampList[[#This Row],[Total]]/CampList[[#This Row],[HH]],"NA") -> 4.523809524 | X152: Camp | Z152: Open
C153: Open | D153: Kachin | E153: MMR001 | F153: Mohnyin | G153: MMR001D002 | H153: Hpakant | I153: MMR001009 | J153: Lone Khin | K153: MMR001009001 | L153: Lone Khin | M153: 166773 | N153: Muring Baptist Church, Awng Ra, Wa Ra Zut VT | O153: MMR001CMP177 | P153: GCA | Q153: 96.35416 | R153: 25.65867 | S153: 26 | T153: 55 | U153: =IF(CampList[[#This Row],[HH]]>0,CampList[[#This Row],[Total]]/CampList[[#This Row],[HH]],"NA") -> 2.115384615 | X153: Camp | Z153: Open
C154: Close | D154: Kachin | E154: MMR001 | F154: Mohnyin | G154: MMR001D002 | H154: Hpakant | I154: MMR001009 | J154: Lone Khin | K154: MMR001009001 | L154: Lone Khin | M154: 166773 | N154: May Di Ka Rama Monastery(Lon Khin) | O154: MMR001CMP178 | P154: GCA | Q154: 96.35931 | R154: 25.65144 | U154: =IF(CampList[[#This Row],[HH]]>0,CampList[[#This Row],[Total]]/CampList[[#This Row],[HH]],"NA") -> NA | X154: Camp | Z154: Close
C155: Open | D155: Kachin | E155: MMR001 | F155: Mohnyin | G155: MMR001D002 | H155: Hpakant | I155: MMR001009 | J155: Lone Khin | K155: MMR001009001 | L155: Lone Khin | M155: 166773 | N155: 5 Ward Baptist Church(lon Khin) | O155: MMR001CMP179 | P155: GCA | Q155: 96.35527 | R155: 25.65613 | S155: 164 | T155: 546 | U155: =IF(CampList[[#This Row],[HH]]>0,CampList[[#This Row],[Total]]/CampList[[#This Row],[HH]],"NA") -> 3.329268293 | X155: Camp | Z155: Open
C156: Close | D156: Kachin | E156: MMR001 | F156: Mohnyin | G156: MMR001D002 | H156: Hpakant | I156: MMR001009 | J156: Seik Mu | K156: MMR001009003 | L156: Seik Mu | M156: 166783 | N156: Ei Wan Gali Asso., Ward 1, Seik Mu | O156: MMR001CMP180 | P156: GCA | U156: =IF(CampList[[#This Row],[HH]]>0,CampList[[#This Row],[Total]]/CampList[[#This Row],[HH]],"NA") -> NA | X156: Camp | Z156: Close
C157: Open | D157: Kachin | E157: MMR001 | F157: Mohnyin | G157: MMR001D002 | H157: Hpakant | I157: MMR001009 | J157: Seik Mu | K157: MMR001009003 | L157: Maw Shan | M157: 166785 | N157: Lisu Baptist Church, Maw Shan Vil,. Seik Mu | O157: MMR001CMP181 | P157: GCA | Q157: 96.2692 | R157: 25.56651 | S157: 37 | T157: 116 | U157: =IF(CampList[[#This Row],[HH]]>0,CampList[[#This Row],[Total]]/CampList[[#This Row],[HH]],"NA") -> 3.135135135 | X157: Camp | Z157: Open
C158: Open | D158: Kachin | E158: MMR001 | F158: Mohnyin | G158: MMR001D002 | H158: Hpakant | I158: MMR001009 | J158: Seik Mu | K158: MMR001009003 | L158: Maw Shan | M158: 166785 | N158: Rawan Baptist Church, Maw Shan Vil., Seik Mu | O158: MMR001CMP182 | P158: GCA | Q158: 96.2792 | R158: 25.56551 | S158: 7 | T158: 30 | U158: =IF(CampList[[#This Row],[HH]]>0,CampList[[#This Row],[Total]]/CampList[[#This Row],[HH]],"NA") -> 4.285714286 | X158: Camp | Z158: Open
C159: Open | D159: Kachin | E159: MMR001 | F159: Mohnyin | G159: MMR001D002 | H159: Hpakant | I159: MMR001009 | J159: Seik Mu | K159: MMR001009003 | L159: Maw Shan | M159: 166785 | N159: Sai Nai Baptish Church, Maw Shan Vil., Seki Mu | O159: MMR001CMP183 | P159: GCA | Q159: 96.35303 | R159: 25.6684 | S159: 60 | T159: 198 | U159: =IF(CampList[[#This Row],[HH]]>0,CampList[[#This Row],[Total]]/CampList[[#This Row],[HH]],"NA") -> 3.3 | X159: Camp | Z159: Open
C160: Open | D160: Kachin | E160: MMR001 | F160: Mohnyin | G160: MMR001D002 | H160: Hpakant | I160: MMR001009 | J160: Seik Mu | K160: MMR001009003 | L160: Sai Taung (Ywar Haung) | M160: 166788 | N160: Ward 2 Sai Taung Baptist Church, Seik Mu | O160: MMR001CMP184 | P160: GCA | Q160: 96.28668 | R160: 25.57756 | S160: 134 | T160: 503 | U160: =IF(CampList[[#This Row],[HH]]>0,CampList[[#This Row],[Total]]/CampList[[#This Row],[HH]],"NA") -> 3.753731343 | X160: Camp | Z160: Open
C161: Open | D161: Kachin | E161: MMR001 | F161: Mohnyin | G161: MMR001D002 | H161: Hpakant | I161: MMR001009 | J161: Seik Mu | K161: MMR001009003 | L161: Seik Mu | M161: 166783 | N161: Ward 2 Cahotlic Church, Seik Mu | O161: MMR001CMP185 | P161: GCA | Q161: 96.28825 | R161: 25.57921 | S161: 75 | T161: 288 | U161: =IF(CampList[[#This Row],[HH]]>0,CampList[[#This Row],[Total]]/CampList[[#This Row],[HH]],"NA") -> 3.84 | X161: Camp | Z161: Open
C162: Close | D162: Kachin | E162: MMR001 | F162: Mohnyin | G162: MMR001D002 | H162: Hpakant | I162: MMR001009 | J162: Seik Mu | K162: MMR001009003 | L162: Seik Mu | M162: 166783 | N162: Free Christian Asso., Ward 1, Seik Mu | O162: MMR001CMP186 | P162: GCA | U162: =IF(CampList[[#This Row],[HH]]>0,CampList[[#This Row],[Total]]/CampList[[#This Row],[HH]],"NA") -> NA | X162: Camp | Z162: Close
C163: Open | D163: Kachin | E163: MMR001 | F163: Mohnyin | G163: MMR001D002 | H163: Hpakant | I163: MMR001009 | J163: Nawng Mi | K163: MMR001009008 | L163: Nawng Myi | M163: 166817 | N163: Baptist Church, Naung Hmee VT | O163: MMR001CMP188 | P163: GCA | Q163: 96.673805 | R163: 25.728653 | S163: 16 | T163: 68 | U163: =IF(CampList[[#This Row],[HH]]>0,CampList[[#This Row],[Total]]/CampList[[#This Row],[HH]],"NA") -> 4.25 | X163: Camp | Z163: Open
C164: Close | D164: Kachin | E164: MMR001 | F164: Mohnyin | G164: MMR001D002 | H164: Hpakant | I164: MMR001009 | J164: Hpakan Town | K164: MMR001009701 | L164: Maw Wam Ward | M164: MMR001009701501 | N164: Hmaw Wan, Baptist Christian Church | O164: MMR001CMP189 | P164: GCA | U164: =IF(CampList[[#This Row],[HH]]>0,CampList[[#This Row],[Total]]/CampList[[#This Row],[HH]],"NA") -> NA | X164: Camp | Z164: Close
C165: Open | D165: Kachin | E165: MMR001 | F165: Mohnyin | G165: MMR001D002 | H165: Hpakant | I165: MMR001009 | J165: Hpakan Town | K165: MMR001009701 | L165: Maw Wam Ward | M165: MMR001009701501 | N165: AG Church, Maw Wan | O165: MMR001CMP190 | P165: GCA | Q165: 96.31735 | R165: 25.616509 | S165: 20 | T165: 90 | U165: =IF(CampList[[#This Row],[HH]]>0,CampList[[#This Row],[Total]]/CampList[[#This Row],[HH]],"NA") -> 4.5 | X165: Camp | Z165: Open
C166: Open | D166: Kachin | E166: MMR001 | F166: Mohnyin | G166: MMR001D002 | H166: Hpakant | I166: MMR001009 | J166: Hpakan Town | K166: MMR001009701 | L166: Maw Wam Ward | M166: MMR001009701501 | N166: Hmaw Wan, Anglican | O166: MMR001CMP191 | P166: GCA | Q166: 96.316564 | R166: 25.615961 | S166: 28 | T166: 148 | U166: =IF(CampList[[#This Row],[HH]]>0,CampList[[#This Row],[Total]]/CampList[[#This Row],[HH]],"NA") -> 5.285714286 | X166: Camp | Z166: Open
C167: Open | D167: Kachin | E167: MMR001 | F167: Mohnyin | G167: MMR001D002 | H167: Hpakant | I167: MMR001009 | J167: Nam Ma Hpyit | K167: MMR001009002 | L167: Nam Ma Hpyit | M167: 166776 | N167: Nam Ma Phyit, COC | O167: MMR001CMP192 | P167: GCA | Q167: 96.33959 | R167: 25.617998 | S167: 29 | T167: 98 | U167: =IF(CampList[[#This Row],[HH]]>0,CampList[[#This Row],[Total]]/CampList[[#This Row],[HH]],"NA") -> 3.379310345 | X167: Camp | Z167: Open
C168: Open | D168: Kachin | E168: MMR001 | F168: Bhamo | G168: MMR001D003 | H168: Bhamo | I168: MMR001010 | J168: Han Te | K168: MMR001010024 | L168: Hpan Hkar Kone | M168: 166854 | N168: Phan Khar Kone | O168: MMR001CMP193 | P168: GCA | Q168: 97.25265 | R168: 24.22235 | S168: 17 | T168: 70 | U168: =IF(CampList[[#This Row],[HH]]>0,CampList[[#This Row],[Total]]/CampList[[#This Row],[HH]],"NA") -> 4.117647059 | X168: Camp | Z168: Open
C169: Open | D169: Kachin | E169: MMR001 | F169: Bhamo | G169: MMR001D003 | H169: Bhamo | I169: MMR001010 | J169: Aung Thar | K169: MMR001010048 | L169: Aung Thar | M169: 166904 | N169: Aung Thar Church | O169: MMR001CMP194 | P169: GCA | Q169: 97.25265 | R169: 24.260467 | S169: 10 | T169: 37 | U169: =IF(CampList[[#This Row],[HH]]>0,CampList[[#This Row],[Total]]/CampList[[#This Row],[HH]],"NA") -> 3.7 | X169: Camp | Z169: Open
C170: Open | D170: Kachin | E170: MMR001 | F170: Myitkyina | G170: MMR001D001 | H170: Chipwi | I170: MMR001005 | J170: Urban | L170: Rit Law | N170: Lhaovao Baptist Church (LBC) | O170: MMR001CMP195 | P170: GCA | S170: 138 | T170: 517 | U170: =IF(CampList[[#This Row],[HH]]>0,CampList[[#This Row],[Total]]/CampList[[#This Row],[HH]],"NA") -> 3.746376812 | X170: Camp | Y170: Data source from Camp Profile | Z170: Open
C171: Open | D171: Kachin | E171: MMR001 | F171: Bhamo | G171: MMR001D003 | H171: Mansi | I171: MMR001013 | N171: Host Families | O171: MMR001CMP196 | P171: GCA | S171: 278 | T171: 1011 | U171: =IF(CampList[[#This Row],[HH]]>0,CampList[[#This Row],[Total]]/CampList[[#This Row],[HH]],"NA") -> 3.636690647 | X171: Host Families | Z171: Open
C172: Open | D172: Kachin | E172: MMR001 | F172: Bhamo | G172: MMR001D003 | H172: Momauk | I172: MMR001012 | N172: Host Families | O172: MMR001CMP197 | P172: GCA | S172: 421 | T172: 1369 | U172: =IF(CampList[[#This Row],[HH]]>0,CampList[[#This Row],[Total]]/CampList[[#This Row],[HH]],"NA") -> 3.251781473 | X172: Host Families | Z172: Open
C173: Open | D173: Kachin | E173: MMR001 | F173: Bhamo | G173: MMR001D003 | H173: Momauk | I173: MMR001012 | J173: Man Ping (Ping) (Dawthponeyan Sub-township) | K173: MMR001012052 | L173: Man Ping | M173: 167270 | N173: Man Ting | O173: MMR001CMP198 | P173: GCA | U173: =IF(CampList[[#This Row],[HH]]>0,CampList[[#This Row],[Total]]/CampList[[#This Row],[HH]],"NA") ->  | X173: Host Families | Z173: Open
C174: Open | D174: Kachin | E174: MMR001 | F174: Bhamo | G174: MMR001D003 | H174: Shwegu | I174: MMR001011 | N174: Host Families | O174: MMR001CMP199 | P174: GCA | S174: 9 | T174: 25 | U174: =IF(CampList[[#This Row],[HH]]>0,CampList[[#This Row],[Total]]/CampList[[#This Row],[HH]],"NA") -> 2.777777778 | X174: Host Families | Z174: Open
C175: Open | D175: Kachin | E175: MMR001 | F175: Bhamo | G175: MMR001D003 | H175: Momauk | I175: MMR001012 | N175: Khun Sint Village | O175: MMR001CMP200 | P175: GCA | S175: 4 | T175: 26 | U175: =IF(CampList[[#This Row],[HH]]>0,CampList[[#This Row],[Total]]/CampList[[#This Row],[HH]],"NA") -> 6.5 | X175: Camp | Z175: Open
C176: Close | D176: Kachin | E176: MMR001 | F176: Mohnyin | G176: MMR001D002 | H176: Hpakant | I176: MMR001009 | J176: Hpakan Town | K176: MMR001009701 | L176: Maw Wam Ward | M176: MMR001009701501 | N176: Zomee Baptist Church camp, Hmaw Wan | O176: MMR001CMP201 | P176: GCA | Q176: 96.315602 | R176: 25.615006 | U176: =IF(CampList[[#This Row],[HH]]>0,CampList[[#This Row],[Total]]/CampList[[#This Row],[HH]],"NA") -> NA | X176: Camp | Z176: Close
C177: Open | D177: Kachin | E177: MMR001 | F177: Bhamo | G177: MMR001D003 | H177: Mansi | I177: MMR001013 | J177: Man Mawn | K177: MMR001013022 | N177: Lagatyan | O177: MMR001CMP202 | P177: GCA | Q177: 97.6137 | R177: 23.8799 | S177: 85 | T177: 343 | U177: =IF(CampList[[#This Row],[HH]]>0,CampList[[#This Row],[Total]]/CampList[[#This Row],[HH]],"NA") -> 4.035294118 | X177: Camp | Z177: Open
C178: Open | D178: Kachin | E178: MMR001 | F178: Bhamo | G178: MMR001D003 | H178: Mansi | I178: MMR001013 | J178: Mung Ding Pa | K178: MMR001013038 | N178: Mung Ding Pa (Boarder) | O178: MMR001CMP203 | P178: NGCA | Q178: 96.80885 | R178: 24.20645 | S178: 98 | T178: 400 | U178: =IF(CampList[[#This Row],[HH]]>0,CampList[[#This Row],[Total]]/CampList[[#This Row],[HH]],"NA") -> 4.081632653 | X178: Camp | Y178: Data source from Camp Profile | Z178: Open
C179: Open | D179: Kachin | E179: MMR001 | F179: Bhamo | G179: MMR001D003 | H179: Mansi | I179: MMR001013 | J179: Nam Lin Pa | K179: MMR001013037 | N179: Nam Lim Pa (Boarder) | O179: MMR001CMP204 | P179: NGCA | Q179: 96.80894 | R179: 24.20635 | S179: 185 | T179: 1144 | U179: =IF(CampList[[#This Row],[HH]]>0,CampList[[#This Row],[Total]]/CampList[[#This Row],[HH]],"NA") -> 6.183783784 | X179: Camp | Y179: Data source from Camp Profile | Z179: Open
C180: Open | D180: Kachin | E180: MMR001 | F180: Puta-O | G180: MMR001D004 | H180: Sumprabum | I180: MMR001015 | J180: Sumprabum Town | K180: MMR001015701 | N180: Sumprabum | O180: MMR001CMP206 | P180: GCA | S180: 8 | T180: 38 | U180: =IF(CampList[[#This Row],[HH]]>0,CampList[[#This Row],[Total]]/CampList[[#This Row],[HH]],"NA") -> 4.75 | X180: Camp | Z180: Open
C181: Open | D181: Shan_North | E181: MMR001 | F181: Myitkyina | G181: MMR001D001 | H181: Waingmaw | I181: MMR001002 | N181: IDP Boarding School, A Len Bum | O181: MMR001CMP208 | P181: NGCA | S181: 357 | T181: 1784 | U181: =IF(CampList[[#This Row],[HH]]>0,CampList[[#This Row],[Total]]/CampList[[#This Row],[HH]],"NA") -> 4.99719888 | X181: Camp | Y181: IDP childrens boarding school. | Z181: Open
C182: Open | D182: Kachin | E182: MMR001 | F182: Mohnyin | G182: MMR001D002 | H182: Hpakant | I182: MMR001009 | J182: Kamaing Town | K182: MMR001009702 | L182: Kamaing Ward | M182: MMR001009702501 | N182: Lai Nawng Baptist Church | O182: MMR001CMP211 | P182: GCA | U182: =IF(CampList[[#This Row],[HH]]>0,CampList[[#This Row],[Total]]/CampList[[#This Row],[HH]],"NA") -> NA | X182: Camp | Y182: New Camp | Z182: Open
C183: Open | D183: Shan_North | E183: MMR015 | F183: Muse | G183: MMR015D002 | H183: Namhkan | I183: MMR015010 | J183: Nawng Hkam | K183: MMR015010010 | L183: Nawng Hkam | M183: 208353 | N183: Nam Hkam (KBC Jaw Wang) | O183: MMR015CMP001 | P183: NGCA | Q183: 97.6835 | R183: 23.8317 | S183: 98 | T183: 444 | U183: =IF(CampList[[#This Row],[HH]]>0,CampList[[#This Row],[Total]]/CampList[[#This Row],[HH]],"NA") -> 4.530612245 | X183: Camp | Z183: Open
C184: Open | D184: Shan_North | E184: MMR015 | F184: Muse | G184: MMR015D002 | H184: Namhkan | I184: MMR015010 | J184: Nawng Hkam | K184: MMR015010010 | L184: Nawng Hkam | M184: 208353 | N184: Nam Hkam Malut Jak | O184: MMR015CMP002 | P184: NGCA | S184: 46 | T184: 207 | U184: =IF(CampList[[#This Row],[HH]]>0,CampList[[#This Row],[Total]]/CampList[[#This Row],[HH]],"NA") -> 4.5 | X184: Camp | Z184: Open
C185: Open | D185: Shan_North | E185: MMR015 | F185: Muse | G185: MMR015D002 | H185: Namhkan | I185: MMR015010 | J185: Nawng Hkam | K185: MMR015010010 | L185: Nawng Hkam | M185: 208353 | N185: Nam Hkam Catholic Church ( St. Thomas I) | O185: MMR015CMP003 | P185: NGCA | Q185: 97.6852 | R185: 23.8331 | S185: 66 | T185: 275 | U185: =IF(CampList[[#This Row],[HH]]>0,CampList[[#This Row],[Total]]/CampList[[#This Row],[HH]],"NA") -> 4.166666667 | X185: Camp | Y185: Data source from Camp Profile | Z185: Open
C186: Open | D186: Shan_North | E186: MMR015 | F186: Muse | G186: MMR015D002 | H186: Namhkan | I186: MMR015010 | J186: Nawng Hkam | K186: MMR015010010 | L186: Nawng Hkam | M186: 208353 | N186: Nam Hkam - Nay Win Ni (Palawng) | O186: MMR015CMP004 | P186: NGCA | Q186: 97.6892 | R186: 23.8336 | S186: 93 | T186: 375 | U186: =IF(CampList[[#This Row],[HH]]>0,CampList[[#This Row],[Total]]/CampList[[#This Row],[HH]],"NA") -> 4.032258065 | X186: Camp | Z186: Open
C187: Open | D187: Shan_North | E187: MMR015 | F187: Muse | G187: MMR015D002 | H187: Muse | I187: MMR015009 | N187: Mung Baw | O187: MMR015CMP005 | P187: NGCA | S187: 123 | T187: 503 | U187: =IF(CampList[[#This Row],[HH]]>0,CampList[[#This Row],[Total]]/CampList[[#This Row],[HH]],"NA") -> 4.089430894 | X187: Camp | Z187: Open
C188: Open | D188: Shan_North | E188: MMR015 | F188: Muse | G188: MMR015D002 | H188: Kutkai | I188: MMR015011 | J188: Long Waun Nam Rein (Tarmoenye Sub-township) | K188: MMR015011050 | L188: Mai Pong (Shu See) | N188: Mungji Pa Dabang (Baptist Church) | O188: MMR015CMP006 | P188: NGCA | Q188: 98.220615 | R188: 23.400156 | S188: 67 | T188: 296 | U188: =IF(CampList[[#This Row],[HH]]>0,CampList[[#This Row],[Total]]/CampList[[#This Row],[HH]],"NA") -> 4.417910448 | X188: Camp | Z188: Open
C189: Open | D189: Shan_North | E189: MMR015 | F189: Muse | G189: MMR015D002 | H189: Kutkai | I189: MMR015011 | J189: Nam Hpat Kar | L189: Nam Hpat Kar (Ho Pon + Pang Sa Lorp) | N189: Nam Hpak Ka Mare | O189: MMR015CMP007 | P189: NGCA | Q189: 97.49075 | R189: 23.413949 | S189: 81 | T189: 275 | U189: =IF(CampList[[#This Row],[HH]]>0,CampList[[#This Row],[Total]]/CampList[[#This Row],[HH]],"NA") -> 3.395061728 | X189: Camp | Y189: Mabein | Z189: Open
C190: Open | D190: Shan_North | E190: MMR015 | F190: Kyaukme | G190: MMR015D003 | H190: Manton | I190: MMR015019 | J190: Urban | L190: Ward (2) | N190: Mandung - Jinghpaw | O190: MMR015CMP009 | P190: NGCA | S190: 43 | T190: 183 | U190: =IF(CampList[[#This Row],[HH]]>0,CampList[[#This Row],[Total]]/CampList[[#This Row],[HH]],"NA") -> 4.255813953 | X190: Camp | Y190: Data source from Camp Profile | Z190: Open
C191: Open | D191: Shan_North | E191: MMR015 | F191: Kyaukme | G191: MMR015D003 | H191: Manton | I191: MMR015019 | N191: Howa | O191: MMR015CMP010 | P191: GCA | U191: =IF(CampList[[#This Row],[HH]]>0,CampList[[#This Row],[Total]]/CampList[[#This Row],[HH]],"NA") ->  | X191: Camp | Z191: Open
C192: Open | D192: Shan_North | E192: MMR015 | F192: Kyaukme | G192: MMR015D003 | H192: Manton | I192: MMR015019 | N192: Nam Hkyet | O192: MMR015CMP011 | P192: GCA | U192: =IF(CampList[[#This Row],[HH]]>0,CampList[[#This Row],[Total]]/CampList[[#This Row],[HH]],"NA") ->  | X192: Camp | Z192: Open
C193: Open | D193: Shan_North | E193: MMR015 | F193: Muse | G193: MMR015D002 | H193: Muse | I193: MMR015009 | J193: Man Gyat (Monekoe Sub-township) | L193: Gwum Hsan | N193: Munekoe Pa (Giwang) - Hka San (Mung Go Pa ) | O193: MMR015CMP012 | P193: NGCA | S193: 53 | T193: 192 | U193: =IF(CampList[[#This Row],[HH]]>0,CampList[[#This Row],[Total]]/CampList[[#This Row],[HH]],"NA") -> 3.622641509 | X193: Camp | Z193: Open
C194: Open | D194: Shan_North | E194: MMR015 | F194: Kyaukme | G194: MMR015D003 | H194: Namtu | I194: MMR015015 | J194: Namtu Town | K194: MMR015015701 | L194: Namtu Ward | M194: MMR015015701501 | N194: Nam Tu Baptist | O194: MMR015CMP014 | P194: NGCA | S194: 59 | T194: 287 | U194: =IF(CampList[[#This Row],[HH]]>0,CampList[[#This Row],[Total]]/CampList[[#This Row],[HH]],"NA") -> 4.86440678 | X194: Camp | Y194: Data source from Camp Profile | Z194: Open
C195: Open | D195: Shan_North | E195: MMR015 | F195: Muse | G195: MMR015D002 | H195: Kutkai | I195: MMR015011 | J195: Kar Lai Kone Hsar | K195: MMR015011005 | L195: Kar Lai | M195: 208557 | N195: Kone Khem Camp | O195: MMR015CMP015 | P195: GCA | S195: 86 | T195: 453 | U195: =IF(CampList[[#This Row],[HH]]>0,CampList[[#This Row],[Total]]/CampList[[#This Row],[HH]],"NA") -> 5.26744186 | X195: Camp | Y195: Data source from Camp Profile | Z195: Open
C196: Open | D196: Shan_North | E196: MMR015 | F196: Muse | G196: MMR015D002 | H196: Kutkai | I196: MMR015011 | J196: Kutkai Town | K196: MMR015011701 | L196: No (5) Ward | M196: MMR015011701505 | N196: Kutkai downtown (KBC Church) | O196: MMR015CMP016 | P196: GCA | Q196: 97.554308 | R196: 23.271719 | S196: 87 | T196: 382 | U196: =IF(CampList[[#This Row],[HH]]>0,CampList[[#This Row],[Total]]/CampList[[#This Row],[HH]],"NA") -> 4.390804598 | X196: Camp | Z196: Open
C197: Open | D197: Shan_North | E197: MMR015 | F197: Muse | G197: MMR015D002 | H197: Kutkai | I197: MMR015011 | J197: Kutkai Town | K197: MMR015011701 | L197: No (3) Ward | M197: MMR015011701503 | N197: Kutkai downtown (RC Church) | O197: MMR015CMP017 | P197: GCA | Q197: 97.565616 | R197: 23.273361 | S197: 41 | T197: 172 | U197: =IF(CampList[[#This Row],[HH]]>0,CampList[[#This Row],[Total]]/CampList[[#This Row],[HH]],"NA") -> 4.195121951 | X197: Camp | Z197: =C197 -> Open
C198: Open | D198: Shan_North | E198: MMR015 | F198: Muse | G198: MMR015D002 | H198: Kutkai | I198: MMR015011 | J198: Mong Yu | L198: Mong Yu | N198: Mine Yu Lay village | O198: MMR015CMP018 | P198: GCA | Q198: 97.474306 | R198: 23.352518 | S198: 59 | T198: 378 | U198: =IF(CampList[[#This Row],[HH]]>0,CampList[[#This Row],[Total]]/CampList[[#This Row],[HH]],"NA") -> 6.406779661 | X198: Camp | Y198: Manton?? | Z198: Open
C199: Open | D199: Shan_North | E199: MMR015 | F199: Muse | G199: MMR015D002 | H199: Kutkai | I199: MMR015011 | J199: Long Waun Nam Rein (Tarmoenye Sub-township) | K199: MMR015011050 | L199: Mai Pong (Shu See) | N199: Mungji Pa Dabang (RC Church) | O199: MMR015CMP019 | P199: GCA | Q199: 98.213958 | R199: 23.391741 | S199: 17 | T199: 80 | U199: =IF(CampList[[#This Row],[HH]]>0,CampList[[#This Row],[Total]]/CampList[[#This Row],[HH]],"NA") -> 4.705882353 | X199: Camp | Y199: Data source from Camp Profile | Z199: Open
C200: Open | D200: Shan_North | E200: MMR015 | F200: Muse | G200: MMR015D002 | H200: Kutkai | I200: MMR015011 | J200: Kar Lai Kone Hsar | K200: MMR015011005 | L200: Kar Lai | M200: 208557 | N200: Zup Aung Camp | O200: MMR015CMP020 | P200: GCA | Q200: 97.83435 | R200: 23.384 | S200: 75 | T200: 380 | U200: =IF(CampList[[#This Row],[HH]]>0,CampList[[#This Row],[Total]]/CampList[[#This Row],[HH]],"NA") -> 5.066666667 | X200: Camp | Y200: Data source from Camp Profile | Z200: Open
C201: Open | D201: Shan_North | E201: MMR015 | F201: Muse | G201: MMR015D002 | H201: Muse | I201: MMR015009 | J201: Hpai Kawng (Pang Hseng-Kyu Koke Sub-township | K201: MMR015009031 | L201: Hpai Kawng | M201: 208156 | N201: Hpai Kawng Mare | O201: MMR015CMP022 | P201: NGCA | Q201: 98.11581 | R201: 24.08738 | S201: 32 | T201: 187 | U201: =IF(CampList[[#This Row],[HH]]>0,CampList[[#This Row],[Total]]/CampList[[#This Row],[HH]],"NA") -> 5.84375 | X201: Camp | Z201: Open
... 6 more rows

Sheet Camp Analysis
A2: KACHIN & NORTHERN SHAN CAMP ANALYSIS
A3: 2013-08-01
A5: KACHIN & NORTHERN SHAN # OF IDPs/TOWNSHIP
A7: State | B7: (All) | C7: (Select State)
A9: Row Labels | B9: # of Camps | C9: Households | D9: Population | P9: State | Q9: (All) | R9: (Select State)
A10: Open | B10: 167 | C10: 19445 | D10: 91431
A11: Bhamo | B11: 13 | C11: 1286 | D11: 5828 | P11: Row Labels | Q11: Population
A12: Chipwi | B12: 5 | C12: 637 | D12: 3062 | P12: Waingmaw | Q12: 27973
A13: Hpakant | B13: 24 | C13: 1330 | D13: 5075 | P13: Momauk | Q13: 21449
A14: Hseni | B14: 1 | C14: 50 | D14: 258 | P14: Mansi | Q14: 12707
A15: Injangyang | B15: 1 | C15: 0 | D15: 0 | P15: Myitkyina | Q15: 6503
A16: Khaunglanhpu | B16: 1 | C16: 22 | D16: 107 | P16: Bhamo | Q16: 5828
A17: Kutkai | B17: 8 | C17: 513 | D17: 2416 | P17: Hpakant | Q17: 5075
A18: Mansi | B18: 13 | C18: 2574 | D18: 12707 | P18: Chipwi | Q18: 3062
A19: Manton | B19: 4 | C19: 69 | D19: 330 | P19: Kutkai | Q19: 2416
A20: Mogaung | B20: 3 | C20: 45 | D20: 187 | P20: Shwegu | Q20: 2153
A21: Mohnyin | B21: 3 | C21: 34 | D21: 144 | P21: Namhkan | Q21: 1497
A22: Momauk | B22: 23 | C22: 4601 | D22: 21449 | P22: Muse | Q22: 882
A23: Muse | B23: 3 | C23: 208 | D23: 882 | P23: Namtu | Q23: 807
A24: Myitkyina | B24: 25 | C24: 1378 | D24: 6503 | P24: Manton | Q24: 330
A25: Namhkan | B25: 6 | C25: 360 | D25: 1497 | P25: Hseni | Q25: 258
A26: Namtu | B26: 2 | C26: 177 | D26: 807 | P26: Mogaung | Q26: 187
A27: Puta-O | B27: 1 | C27: 7 | D27: 15 | P27: Mohnyin | Q27: 144
A28: Shwegu | B28: 4 | C28: 535 | D28: 2153 | P28: Khaunglanhpu | Q28: 107
A29: Sumprabum | B29: 1 | C29: 8 | D29: 38 | P29: Sumprabum | Q29: 38
A30: Waingmaw | B30: 26 | C30: 5611 | D30: 27973 | P30: Puta-O | Q30: 15
A31: Close | B31: 36 | C31: 0 | D31: 0 | P31: Injangyang | Q31: 0
A32: Chipwi | B32: 1 | C32: 0 | D32: 0 | P32: Grand Total | Q32: 91431
A33: Hpakant | B33: 31
A34: Namhkan | B34: 1
A35: Waingmaw | B35: 3
A36: Grand Total | B36: 203 | C36: 19445 | D36: 91431
A38: KACHIN & NORTHERN SHAN # of IDPs/TOWNSHIP/CONTROLLED AREA
A40: State | B40: (All) | C40: (Select State)
A42: Sum of Total | B42: Column Labels
A43: Row Labels | B43: GCA | C43: NGCA | D43: Grand Total
A44: Open | B44: 38394 | C44: 53037 | D44: 91431
A45: Bhamo | B45: 5828 | D45: 5828
A46: Chipwi | B46: 3062 | D46: 3062
A47: Hpakant | B47: 5075 | D47: 5075
A48: Hseni | C48: 258 | D48: 258
A49: Injangyang | B49: 0 | D49: 0
A50: Khaunglanhpu | B50: 107 | D50: 107
A51: Kutkai | B51: 1845 | C51: 571 | D51: 2416
A52: Mansi | B52: 1702 | C52: 11005 | D52: 12707
A53: Manton | B53: 147 | C53: 183 | D53: 330
A54: Mogaung | B54: 187 | D54: 187
A55: Mohnyin | B55: 144 | D55: 144
A56: Momauk | B56: 5956 | C56: 15493 | D56: 21449
A57: Muse | C57: 882 | D57: 882
A58: Myitkyina | B58: 6503 | D58: 6503
A59: Namhkan | C59: 1497 | D59: 1497
A60: Namtu | C60: 807 | D60: 807
A61: Puta-O | B61: 15 | D61: 15
A62: Shwegu | B62: 462 | C62: 1691 | D62: 2153
A63: Sumprabum | B63: 38 | D63: 38
A64: Waingmaw | B64: 7323 | C64: 20650 | D64: 27973
A65: Close | B65: 0 | D65: 0
A66: Chipwi | B66: 0 | D66: 0
A67: Hpakant
A68: Namhkan
A69: Waingmaw
A70: Grand Total | B70: 38394 | C70: 53037 | D70: 91431

Sheet CCCM Dashboard
A2: KACHIN & NORTHERN SHAN CCCM DASHBOARD
A3: 2013-08-01
AH4: Township | AI4: 1-1k | AJ4: 1k-5k | AK4: 5k-10k | AL4: Over 10k
AH5: Bhamo | AI5: =SUMIFS(Camplist_Popl,Camplist_Township,AH5,Camplist_Popl,">0",Camplist_Popl,"<=1000") -> 2042 | AJ5: =SUMIFS(Camplist_Popl,Camplist_Township,AH5,Camplist_Popl,">1000",Camplist_Popl,"<=5000") -> 3786 | AK5: =SUMIFS(Camplist_Popl,Camplist_Township,AH5,Camplist_Popl,">5000",Camplist_Popl,"<=10000") -> 0 | AL5: =SUMIFS(Camplist_Popl,Camplist_Township,AH5,Camplist_Popl,">10000") -> 0
AH6: Chipwi | AI6: 1789 | AJ6: 1273 | AK6: 0 | AL6: 0
AH7: Hpakant | AI7: 5075 | AJ7: 0 | AK7: 0 | AL7: 0
AH8: Hseni | AI8: 258 | AJ8: 0 | AK8: 0 | AL8: 0
AH9: Injangyang | AI9: 0 | AJ9: 0 | AK9: 0 | AL9: 0
AH10: Khaunglanhpu | AI10: 107 | AJ10: 0 | AK10: 0 | AL10: 0
A11: Township | B11: # of HH | C11: # of IDPs | D11: # of Camp | AH11: Kutkai | AI11: 2416 | AJ11: 0 | AK11: 0 | AL11: 0
A12: Bhamo | B12: =SUMIFS(Camplist_HH,Camplist_Township,'CCCM Dashboard'!$A12,CampList_Status,"Open") -> 1286 | C12: =SUMIFS(Camplist_Popl,Camplist_Township,'CCCM Dashboard'!$A12,CampList_Status,"Open") -> 5828 | D12: =COUNTIFS(Camplist_Township,'CCCM Dashboard'!A12,CampList_Status,"open") -> 13 | AH12: Mansi | AI12: 3631 | AJ12: 9076 | AK12: 0 | AL12: 0
A13: Chipwi | B13: =SUMIFS(Camplist_HH,Camplist_Township,'CCCM Dashboard'!$A13,CampList_Status,"Open") -> 637 | C13: =SUMIFS(Camplist_Popl,Camplist_Township,'CCCM Dashboard'!$A13,CampList_Status,"Open") -> 3062 | D13: =COUNTIFS(Camplist_Township,'CCCM Dashboard'!A13,CampList_Status,"open") -> 5 | AH13: Manton | AI13: 330 | AJ13: 0 | AK13: 0 | AL13: 0
A14: Hpakant | B14: =SUMIFS(Camplist_HH,Camplist_Township,'CCCM Dashboard'!$A14,CampList_Status,"Open") -> 1330 | C14: =SUMIFS(Camplist_Popl,Camplist_Township,'CCCM Dashboard'!$A14,CampList_Status,"Open") -> 5075 | D14: =COUNTIFS(Camplist_Township,'CCCM Dashboard'!A14,CampList_Status,"open") -> 24 | AH14: Mogaung | AI14: 187 | AJ14: 0 | AK14: 0 | AL14: 0
A15: Hseni | B15: =SUMIFS(Camplist_HH,Camplist_Township,'CCCM Dashboard'!$A15,CampList_Status,"Open") -> 50 | C15: =SUMIFS(Camplist_Popl,Camplist_Township,'CCCM Dashboard'!$A15,CampList_Status,"Open") -> 258 | D15: =COUNTIFS(Camplist_Township,'CCCM Dashboard'!A15,CampList_Status,"open") -> 1 | AH15: Mohnyin | AI15: 144 | AJ15: 0 | AK15: 0 | AL15: 0
A16: Injangyang | B16: =SUMIFS(Camplist_HH,Camplist_Township,'CCCM Dashboard'!$A16,CampList_Status,"Open") -> 0 | C16: =SUMIFS(Camplist_Popl,Camplist_Township,'CCCM Dashboard'!$A16,CampList_Status,"Open") -> 0 | D16: =COUNTIFS(Camplist_Township,'CCCM Dashboard'!A16,CampList_Status,"open") -> 1 | AH16: Momauk | AI16: 2669 | AJ16: 10884 | AK16: 7896 | AL16: 0
A17: Khaunglanhpu | B17: =SUMIFS(Camplist_HH,Camplist_Township,'CCCM Dashboard'!$A17,CampList_Status,"Open") -> 22 | C17: =SUMIFS(Camplist_Popl,Camplist_Township,'CCCM Dashboard'!$A17,CampList_Status,"Open") -> 107 | D17: =COUNTIFS(Camplist_Township,'CCCM Dashboard'!A17,CampList_Status,"open") -> 1 | AH17: Muse | AI17: 882 | AJ17: 0 | AK17: 0 | AL17: 0
A18: Kutkai | B18: =SUMIFS(Camplist_HH,Camplist_Township,'CCCM Dashboard'!$A18,CampList_Status,"Open") -> 513 | C18: =SUMIFS(Camplist_Popl,Camplist_Township,'CCCM Dashboard'!$A18,CampList_Status,"Open") -> 2416 | D18: =COUNTIFS(Camplist_Township,'CCCM Dashboard'!A18,CampList_Status,"open") -> 8 | AH18: Myitkyina | AI18: 6503 | AJ18: 0 | AK18: 0 | AL18: 0
A19: Mansi | B19: =SUMIFS(Camplist_HH,Camplist_Township,'CCCM Dashboard'!$A19,CampList_Status,"Open") -> 2574 | C19: =SUMIFS(Camplist_Popl,Camplist_Township,'CCCM Dashboard'!$A19,CampList_Status,"Open") -> 12707 | D19: =COUNTIFS(Camplist_Township,'CCCM Dashboard'!A19,CampList_Status,"open") -> 13 | AH19: Namhkan | AI19: 1497 | AJ19: 0 | AK19: 0 | AL19: 0
A20: Manton | B20: =SUMIFS(Camplist_HH,Camplist_Township,'CCCM Dashboard'!$A20,CampList_Status,"Open") -> 69 | C20: =SUMIFS(Camplist_Popl,Camplist_Township,'CCCM Dashboard'!$A20,CampList_Status,"Open") -> 330 | D20: =COUNTIFS(Camplist_Township,'CCCM Dashboard'!A20,CampList_Status,"open") -> 4 | AH20: Namtu | AI20: 807 | AJ20: 0 | AK20: 0 | AL20: 0
A21: Mogaung | B21: =SUMIFS(Camplist_HH,Camplist_Township,'CCCM Dashboard'!$A21,CampList_Status,"Open") -> 45 | C21: =SUMIFS(Camplist_Popl,Camplist_Township,'CCCM Dashboard'!$A21,CampList_Status,"Open") -> 187 | D21: =COUNTIFS(Camplist_Township,'CCCM Dashboard'!A21,CampList_Status,"open") -> 3 | AH21: Puta-O | AI21: 15 | AJ21: 0 | AK21: 0 | AL21: 0
A22: Mohnyin | B22: =SUMIFS(Camplist_HH,Camplist_Township,'CCCM Dashboard'!$A22,CampList_Status,"Open") -> 34 | C22: =SUMIFS(Camplist_Popl,Camplist_Township,'CCCM Dashboard'!$A22,CampList_Status,"Open") -> 144 | D22: =COUNTIFS(Camplist_Township,'CCCM Dashboard'!A22,CampList_Status,"open") -> 3 | AH22: Shwegu | AI22: 462 | AJ22: 1691 | AK22: 0 | AL22: 0
A23: Momauk | B23: =SUMIFS(Camplist_HH,Camplist_Township,'CCCM Dashboard'!$A23,CampList_Status,"Open") -> 4601 | C23: =SUMIFS(Camplist_Popl,Camplist_Township,'CCCM Dashboard'!$A23,CampList_Status,"Open") -> 21449 | D23: =COUNTIFS(Camplist_Township,'CCCM Dashboard'!A23,CampList_Status,"open") -> 23 | AH23: Sumprabum | AI23: 38 | AJ23: 0 | AK23: 0 | AL23: 0
A24: Muse | B24: =SUMIFS(Camplist_HH,Camplist_Township,'CCCM Dashboard'!$A24,CampList_Status,"Open") -> 208 | C24: =SUMIFS(Camplist_Popl,Camplist_Township,'CCCM Dashboard'!$A24,CampList_Status,"Open") -> 882 | D24: =COUNTIFS(Camplist_Township,'CCCM Dashboard'!A24,CampList_Status,"open") -> 3 | AH24: Waingmaw | AI24: 6456 | AJ24: 21517 | AK24: 0 | AL24: 0
A25: Myitkyina | B25: =SUMIFS(Camplist_HH,Camplist_Township,'CCCM Dashboard'!$A25,CampList_Status,"Open") -> 1378 | C25: =SUMIFS(Camplist_Popl,Camplist_Township,'CCCM Dashboard'!$A25,CampList_Status,"Open") -> 6503 | D25: =COUNTIFS(Camplist_Township,'CCCM Dashboard'!A25,CampList_Status,"open") -> 25 | AH25: Total | AI25: =SUM(AI5:AI24) -> 35308 | AJ25: =SUM(AJ5:AJ24) -> 48227 | AK25: =SUM(AK5:AK24) -> 7896 | AL25: =SUM(AL5:AL24) -> 0 | AM25: =AL25+AI25+AJ25+AK25 -> 91431
A26: Namhkan | B26: =SUMIFS(Camplist_HH,Camplist_Township,'CCCM Dashboard'!$A26,CampList_Status,"Open") -> 360 | C26: =SUMIFS(Camplist_Popl,Camplist_Township,'CCCM Dashboard'!$A26,CampList_Status,"Open") -> 1497 | D26: =COUNTIFS(Camplist_Township,'CCCM Dashboard'!A26,CampList_Status,"open") -> 6 | AH26: % of IDP | AI26: =AI25/$AM$25 -> 0.3861709923 | AJ26: =AJ25/$AM$25 -> 0.5274688016 | AK26: 0.08636020606 | AL26: 0
A27: Namtu | B27: =SUMIFS(Camplist_HH,Camplist_Township,'CCCM Dashboard'!$A27,CampList_Status,"Open") -> 177 | C27: =SUMIFS(Camplist_Popl,Camplist_Township,'CCCM Dashboard'!$A27,CampList_Status,"Open") -> 807 | D27: =COUNTIFS(Camplist_Township,'CCCM Dashboard'!A27,CampList_Status,"open") -> 2
A28: Puta-O | B28: =SUMIFS(Camplist_HH,Camplist_Township,'CCCM Dashboard'!$A28,CampList_Status,"Open") -> 7 | C28: =SUMIFS(Camplist_Popl,Camplist_Township,'CCCM Dashboard'!$A28,CampList_Status,"Open") -> 15 | D28: =COUNTIFS(Camplist_Township,'CCCM Dashboard'!A28,CampList_Status,"open") -> 1
A29: Shwegu | B29: =SUMIFS(Camplist_HH,Camplist_Township,'CCCM Dashboard'!$A29,CampList_Status,"Open") -> 535 | C29: =SUMIFS(Camplist_Popl,Camplist_Township,'CCCM Dashboard'!$A29,CampList_Status,"Open") -> 2153 | D29: =COUNTIFS(Camplist_Township,'CCCM Dashboard'!A29,CampList_Status,"open") -> 4
A30: Sumprabum | B30: =SUMIFS(Camplist_HH,Camplist_Township,'CCCM Dashboard'!$A30,CampList_Status,"Open") -> 8 | C30: =SUMIFS(Camplist_Popl,Camplist_Township,'CCCM Dashboard'!$A30,CampList_Status,"Open") -> 38 | D30: =COUNTIFS(Camplist_Township,'CCCM Dashboard'!A30,CampList_Status,"open") -> 1
A31: Waingmaw | B31: =SUMIFS(Camplist_HH,Camplist_Township,'CCCM Dashboard'!$A31,CampList_Status,"Open") -> 5611 | C31: =SUMIFS(Camplist_Popl,Camplist_Township,'CCCM Dashboard'!$A31,CampList_Status,"Open") -> 27973 | D31: =COUNTIFS(Camplist_Township,'CCCM Dashboard'!A31,CampList_Status,"open") -> 26 | AI31: # of camps by Size of Population
A32: Total | B32: =SUM(B11:B30) -> 13834 | C32: =SUM(C11:C31) -> 91431 | D32: =SUM(D11:D31) -> 167 | AH32: Township | AI32: 1-1k | AJ32: 1k - 5k | AK32: 5k-10k | AL32: >10k | AM32: Unknown
E33: Size of camps | AH33: Bhamo | AI33: =COUNTIFS(Camplist_Township,'CCCM Dashboard'!$AH33,Camplist_Popl,">0",Camplist_Popl,"<=1000",CampList_Status,"Open") -> 10 | AJ33: =COUNTIFS(Camplist_Township,'CCCM Dashboard'!$AH33,Camplist_Popl,">1000",Camplist_Popl,"<=5000",CampList_Status,"Open") -> 2 | AK33: =COUNTIFS(Camplist_Township,'CCCM Dashboard'!$AH33,Camplist_Popl,">5000",Camplist_Popl,"<=10000",CampList_Status,"Open") -> 0 | AL33: =COUNTIFS(Camplist_Township,'CCCM Dashboard'!$AH33,Camplist_Popl,">10000",CampList_Status,"Open") -> 0 | AM33: =COUNTIFS(Camplist_Township,'CCCM Dashboard'!$AH33,Camplist_Popl,"=0",CampList_Status,"Open")+COUNTIFS(Camplist_Township,'CCCM Dashboard'!$AH33,Camplist_Popl,"",CampList_Status,"Open") -> 1 | AN33: =SUM(AI33:AM33) -> 13
F34: 1-1k | G34: 1k-5k | H34: 5k-10k | I34: Over 10k | J34: Unknown | AH34: Chipwi | AI34: =COUNTIFS(Camplist_Township,'CCCM Dashboard'!$AH34,Camplist_Popl,">0",Camplist_Popl,"<=1000",CampList_Status,"Open") -> 3 | AJ34: =COUNTIFS(Camplist_Township,'CCCM Dashboard'!$AH34,Camplist_Popl,">1000",Camplist_Popl,"<=5000",CampList_Status,"Open") -> 1 | AK34: =COUNTIFS(Camplist_Township,'CCCM Dashboard'!$AH34,Camplist_Popl,">5000",Camplist_Popl,"<=10000",CampList_Status,"Open") -> 0 | AL34: =COUNTIFS(Camplist_Township,'CCCM Dashboard'!$AH34,Camplist_Popl,">10000",CampList_Status,"Open") -> 0 | AM34: =COUNTIFS(Camplist_Township,'CCCM Dashboard'!$AH34,Camplist_Popl,"=0",CampList_Status,"Open")+COUNTIFS(Camplist_Township,'CCCM Dashboard'!$AH34,Camplist_Popl,"",CampList_Status,"Open") -> 1 | AN34: =SUM(AI34:AM34) -> 5
E35: # of Camps | F35: =AI53 -> 132 | G35: =AJ53 -> 25 | H35: =AK53 -> 1 | I35: =AL53 -> 0 | J35: =AM53 -> 9 | AH35: Hpakant | AI35: =COUNTIFS(Camplist_Township,'CCCM Dashboard'!$AH35,Camplist_Popl,">0",Camplist_Popl,"<=1000",CampList_Status,"Open") -> 23 | AJ35: =COUNTIFS(Camplist_Township,'CCCM Dashboard'!$AH35,Camplist_Popl,">1000",Camplist_Popl,"<=5000",CampList_Status,"Open") -> 0 | AK35: =COUNTIFS(Camplist_Township,'CCCM Dashboard'!$AH35,Camplist_Popl,">5000",Camplist_Popl,"<=10000",CampList_Status,"Open") -> 0 | AL35: =COUNTIFS(Camplist_Township,'CCCM Dashboard'!$AH35,Camplist_Popl,">10000",CampList_Status,"Open") -> 0 | AM35: =COUNTIFS(Camplist_Township,'CCCM Dashboard'!$AH35,Camplist_Popl,"=0",CampList_Status,"Open")+COUNTIFS(Camplist_Township,'CCCM Dashboard'!$AH35,Camplist_Popl,"",CampList_Status,"Open") -> 1 | AN35: 24
E36: # of IDP | F36: =AI25 -> 35308 | G36: =AJ25 -> 48227 | H36: =AK25 -> 7896 | I36: =AM25 -> 91431 | J36: =AN25 -> 0 | AH36: Injangyang | AI36: =COUNTIFS(Camplist_Township,'CCCM Dashboard'!$AH36,Camplist_Popl,">0",Camplist_Popl,"<=1000",CampList_Status,"Open") -> 0 | AJ36: =COUNTIFS(Camplist_Township,'CCCM Dashboard'!$AH36,Camplist_Popl,">1000",Camplist_Popl,"<=5000",CampList_Status,"Open") -> 0 | AK36: =COUNTIFS(Camplist_Township,'CCCM Dashboard'!$AH36,Camplist_Popl,">5000",Camplist_Popl,"<=10000",CampList_Status,"Open") -> 0 | AL36: =COUNTIFS(Camplist_Township,'CCCM Dashboard'!$AH36,Camplist_Popl,">10000",CampList_Status,"Open") -> 0 | AM36: =COUNTIFS(Camplist_Township,'CCCM Dashboard'!$AH36,Camplist_Popl,"=0",CampList_Status,"Open")+COUNTIFS(Camplist_Township,'CCCM Dashboard'!$AH36,Camplist_Popl,"",CampList_Status,"Open") -> 1 | AN36: 1
AH37: Khaunglanhpu | AI37: =COUNTIFS(Camplist_Township,'CCCM Dashboard'!$AH37,Camplist_Popl,">0",Camplist_Popl,"<=1000",CampList_Status,"Open") -> 1 | AJ37: =COUNTIFS(Camplist_Township,'CCCM Dashboard'!$AH37,Camplist_Popl,">1000",Camplist_Popl,"<=5000",CampList_Status,"Open") -> 0 | AK37: =COUNTIFS(Camplist_Township,'CCCM Dashboard'!$AH37,Camplist_Popl,">5000",Camplist_Popl,"<=10000",CampList_Status,"Open") -> 0 | AL37: =COUNTIFS(Camplist_Township,'CCCM Dashboard'!$AH37,Camplist_Popl,">10000",CampList_Status,"Open") -> 0 | AM37: =COUNTIFS(Camplist_Township,'CCCM Dashboard'!$AH37,Camplist_Popl,"=0",CampList_Status,"Open")+COUNTIFS(Camplist_Township,'CCCM Dashboard'!$AH37,Camplist_Popl,"",CampList_Status,"Open") -> 0 | AN37: 1
AH38: Kutkai | AI38: =COUNTIFS(Camplist_Township,'CCCM Dashboard'!$AH38,Camplist_Popl,">0",Camplist_Popl,"<=1000",CampList_Status,"Open") -> 8 | AJ38: =COUNTIFS(Camplist_Township,'CCCM Dashboard'!$AH38,Camplist_Popl,">1000",Camplist_Popl,"<=5000",CampList_Status,"Open") -> 0 | AK38: =COUNTIFS(Camplist_Township,'CCCM Dashboard'!$AH38,Camplist_Popl,">5000",Camplist_Popl,"<=10000",CampList_Status,"Open") -> 0 | AL38: =COUNTIFS(Camplist_Township,'CCCM Dashboard'!$AH38,Camplist_Popl,">10000",CampList_Status,"Open") -> 0 | AM38: =COUNTIFS(Camplist_Township,'CCCM Dashboard'!$AH38,Camplist_Popl,"=0",CampList_Status,"Open")+COUNTIFS(Camplist_Township,'CCCM Dashboard'!$AH38,Camplist_Popl,"",CampList_Status,"Open") -> 0 | AN38: 8
AH39: Mansi | AI39: =COUNTIFS(Camplist_Township,'CCCM Dashboard'!$AH39,Camplist_Popl,">0",Camplist_Popl,"<=1000",CampList_Status,"Open") -> 7 | AJ39: =COUNTIFS(Camplist_Township,'CCCM Dashboard'!$AH39,Camplist_Popl,">1000",Camplist_Popl,"<=5000",CampList_Status,"Open") -> 6 | AK39: =COUNTIFS(Camplist_Township,'CCCM Dashboard'!$AH39,Camplist_Popl,">5000",Camplist_Popl,"<=10000",CampList_Status,"Open") -> 0 | AL39: =COUNTIFS(Camplist_Township,'CCCM Dashboard'!$AH39,Camplist_Popl,">10000",CampList_Status,"Open") -> 0 | AM39: =COUNTIFS(Camplist_Township,'CCCM Dashboard'!$AH39,Camplist_Popl,"=0",CampList_Status,"Open")+COUNTIFS(Camplist_Township,'CCCM Dashboard'!$AH39,Camplist_Popl,"",CampList_Status,"Open") -> 0 | AN39: 13
AH40: Manton | AI40: =COUNTIFS(Camplist_Township,'CCCM Dashboard'!$AH40,Camplist_Popl,">0",Camplist_Popl,"<=1000",CampList_Status,"Open") -> 2 | AJ40: =COUNTIFS(Camplist_Township,'CCCM Dashboard'!$AH40,Camplist_Popl,">1000",Camplist_Popl,"<=5000",CampList_Status,"Open") -> 0 | AK40: =COUNTIFS(Camplist_Township,'CCCM Dashboard'!$AH40,Camplist_Popl,">5000",Camplist_Popl,"<=10000",CampList_Status,"Open") -> 0 | AL40: =COUNTIFS(Camplist_Township,'CCCM Dashboard'!$AH40,Camplist_Popl,">10000",CampList_Status,"Open") -> 0 | AM40: =COUNTIFS(Camplist_Township,'CCCM Dashboard'!$AH40,Camplist_Popl,"=0",CampList_Status,"Open")+COUNTIFS(Camplist_Township,'CCCM Dashboard'!$AH40,Camplist_Popl,"",CampList_Status,"Open") -> 2 | AN40: 4
AH41: Mogaung | AI41: =COUNTIFS(Camplist_Township,'CCCM Dashboard'!$AH41,Camplist_Popl,">0",Camplist_Popl,"<=1000",CampList_Status,"Open") -> 3 | AJ41: =COUNTIFS(Camplist_Township,'CCCM Dashboard'!$AH41,Camplist_Popl,">1000",Camplist_Popl,"<=5000",CampList_Status,"Open") -> 0 | AK41: =COUNTIFS(Camplist_Township,'CCCM Dashboard'!$AH41,Camplist_Popl,">5000",Camplist_Popl,"<=10000",CampList_Status,"Open") -> 0 | AL41: =COUNTIFS(Camplist_Township,'CCCM Dashboard'!$AH41,Camplist_Popl,">10000",CampList_Status,"Open") -> 0 | AM41: =COUNTIFS(Camplist_Township,'CCCM Dashboard'!$AH41,Camplist_Popl,"=0",CampList_Status,"Open")+COUNTIFS(Camplist_Township,'CCCM Dashboard'!$AH41,Camplist_Popl,"",CampList_Status,"Open") -> 0 | AN41: 3
AH42: Mohnyin | AI42: =COUNTIFS(Camplist_Township,'CCCM Dashboard'!$AH42,Camplist_Popl,">0",Camplist_Popl,"<=1000",CampList_Status,"Open") -> 2 | AJ42: =COUNTIFS(Camplist_Township,'CCCM Dashboard'!$AH42,Camplist_Popl,">1000",Camplist_Popl,"<=5000",CampList_Status,"Open") -> 0 | AK42: =COUNTIFS(Camplist_Township,'CCCM Dashboard'!$AH42,Camplist_Popl,">5000",Camplist_Popl,"<=10000",CampList_Status,"Open") -> 0 | AL42: =COUNTIFS(Camplist_Township,'CCCM Dashboard'!$AH42,Camplist_Popl,">10000",CampList_Status,"Open") -> 0 | AM42: =COUNTIFS(Camplist_Township,'CCCM Dashboard'!$AH42,Camplist_Popl,"=0",CampList_Status,"Open")+COUNTIFS(Camplist_Township,'CCCM Dashboard'!$AH42,Camplist_Popl,"",CampList_Status,"Open") -> 1 | AN42: 3
AH43: Momauk | AI43: =COUNTIFS(Camplist_Township,'CCCM Dashboard'!$AH43,Camplist_Popl,">0",Camplist_Popl,"<=1000",CampList_Status,"Open") -> 15 | AJ43: =COUNTIFS(Camplist_Township,'CCCM Dashboard'!$AH43,Camplist_Popl,">1000",Camplist_Popl,"<=5000",CampList_Status,"Open") -> 6 | AK43: =COUNTIFS(Camplist_Township,'CCCM Dashboard'!$AH43,Camplist_Popl,">5000",Camplist_Popl,"<=10000",CampList_Status,"Open") -> 1 | AL43: =COUNTIFS(Camplist_Township,'CCCM Dashboard'!$AH43,Camplist_Popl,">10000",CampList_Status,"Open") -> 0 | AM43: =COUNTIFS(Camplist_Township,'CCCM Dashboard'!$AH43,Camplist_Popl,"=0",CampList_Status,"Open")+COUNTIFS(Camplist_Township,'CCCM Dashboard'!$AH43,Camplist_Popl,"",CampList_Status,"Open") -> 1 | AN43: 23
AH44: Muse | AI44: =COUNTIFS(Camplist_Township,'CCCM Dashboard'!$AH44,Camplist_Popl,">0",Camplist_Popl,"<=1000",CampList_Status,"Open") -> 3 | AJ44: =COUNTIFS(Camplist_Township,'CCCM Dashboard'!$AH44,Camplist_Popl,">1000",Camplist_Popl,"<=5000",CampList_Status,"Open") -> 0 | AK44: =COUNTIFS(Camplist_Township,'CCCM Dashboard'!$AH44,Camplist_Popl,">5000",Camplist_Popl,"<=10000",CampList_Status,"Open") -> 0 | AL44: =COUNTIFS(Camplist_Township,'CCCM Dashboard'!$AH44,Camplist_Popl,">10000",CampList_Status,"Open") -> 0 | AM44: =COUNTIFS(Camplist_Township,'CCCM Dashboard'!$AH44,Camplist_Popl,"=0",CampList_Status,"Open")+COUNTIFS(Camplist_Township,'CCCM Dashboard'!$AH44,Camplist_Popl,"",CampList_Status,"Open") -> 0 | AN44: 3
AH45: Myitkyina | AI45: =COUNTIFS(Camplist_Township,'CCCM Dashboard'!$AH45,Camplist_Popl,">0",Camplist_Popl,"<=1000",CampList_Status,"Open") -> 25 | AJ45: =COUNTIFS(Camplist_Township,'CCCM Dashboard'!$AH45,Camplist_Popl,">1000",Camplist_Popl,"<=5000",CampList_Status,"Open") -> 0 | AK45: =COUNTIFS(Camplist_Township,'CCCM Dashboard'!$AH45,Camplist_Popl,">5000",Camplist_Popl,"<=10000",CampList_Status,"Open") -> 0 | AL45: =COUNTIFS(Camplist_Township,'CCCM Dashboard'!$AH45,Camplist_Popl,">10000",CampList_Status,"Open") -> 0 | AM45: =COUNTIFS(Camplist_Township,'CCCM Dashboard'!$AH45,Camplist_Popl,"=0",CampList_Status,"Open")+COUNTIFS(Camplist_Township,'CCCM Dashboard'!$AH45,Camplist_Popl,"",CampList_Status,"Open") -> 0 | AN45: 25
AH46: Namhkan | AI46: =COUNTIFS(Camplist_Township,'CCCM Dashboard'!$AH46,Camplist_Popl,">0",Camplist_Popl,"<=1000",CampList_Status,"Open") -> 6 | AJ46: =COUNTIFS(Camplist_Township,'CCCM Dashboard'!$AH46,Camplist_Popl,">1000",Camplist_Popl,"<=5000",CampList_Status,"Open") -> 0 | AK46: =COUNTIFS(Camplist_Township,'CCCM Dashboard'!$AH46,Camplist_Popl,">5000",Camplist_Popl,"<=10000",CampList_Status,"Open") -> 0 | AL46: =COUNTIFS(Camplist_Township,'CCCM Dashboard'!$AH46,Camplist_Popl,">10000",CampList_Status,"Open") -> 0 | AM46: =COUNTIFS(Camplist_Township,'CCCM Dashboard'!$AH46,Camplist_Popl,"=0",CampList_Status,"Open")+COUNTIFS(Camplist_Township,'CCCM Dashboard'!$AH46,Camplist_Popl,"",CampList_Status,"Open") -> 0 | AN46: 6
AH47: Namtu | AI47: =COUNTIFS(Camplist_Township,'CCCM Dashboard'!$AH47,Camplist_Popl,">0",Camplist_Popl,"<=1000",CampList_Status,"Open") -> 2 | AJ47: =COUNTIFS(Camplist_Township,'CCCM Dashboard'!$AH47,Camplist_Popl,">1000",Camplist_Popl,"<=5000",CampList_Status,"Open") -> 0 | AK47: =COUNTIFS(Camplist_Township,'CCCM Dashboard'!$AH47,Camplist_Popl,">5000",Camplist_Popl,"<=10000",CampList_Status,"Open") -> 0 | AL47: =COUNTIFS(Camplist_Township,'CCCM Dashboard'!$AH47,Camplist_Popl,">10000",CampList_Status,"Open") -> 0 | AM47: =COUNTIFS(Camplist_Township,'CCCM Dashboard'!$AH47,Camplist_Popl,"=0",CampList_Status,"Open")+COUNTIFS(Camplist_Township,'CCCM Dashboard'!$AH47,Camplist_Popl,"",CampList_Status,"Open") -> 0 | AN47: 2
AH48: Puta-O | AI48: =COUNTIFS(Camplist_Township,'CCCM Dashboard'!$AH48,Camplist_Popl,">0",Camplist_Popl,"<=1000",CampList_Status,"Open") -> 1 | AJ48: =COUNTIFS(Camplist_Township,'CCCM Dashboard'!$AH48,Camplist_Popl,">1000",Camplist_Popl,"<=5000",CampList_Status,"Open") -> 0 | AK48: =COUNTIFS(Camplist_Township,'CCCM Dashboard'!$AH48,Camplist_Popl,">5000",Camplist_Popl,"<=10000",CampList_Status,"Open") -> 0 | AL48: =COUNTIFS(Camplist_Township,'CCCM Dashboard'!$AH48,Camplist_Popl,">10000",CampList_Status,"Open") -> 0 | AM48: =COUNTIFS(Camplist_Township,'CCCM Dashboard'!$AH48,Camplist_Popl,"=0",CampList_Status,"Open")+COUNTIFS(Camplist_Township,'CCCM Dashboard'!$AH48,Camplist_Popl,"",CampList_Status,"Open") -> 0 | AN48: 1
AH49: Shwegu | AI49: =COUNTIFS(Camplist_Township,'CCCM Dashboard'!$AH49,Camplist_Popl,">0",Camplist_Popl,"<=1000",CampList_Status,"Open") -> 3 | AJ49: =COUNTIFS(Camplist_Township,'CCCM Dashboard'!$AH49,Camplist_Popl,">1000",Camplist_Popl,"<=5000",CampList_Status,"Open") -> 1 | AK49: =COUNTIFS(Camplist_Township,'CCCM Dashboard'!$AH49,Camplist_Popl,">5000",Camplist_Popl,"<=10000",CampList_Status,"Open") -> 0 | AL49: =COUNTIFS(Camplist_Township,'CCCM Dashboard'!$AH49,Camplist_Popl,">10000",CampList_Status,"Open") -> 0 | AM49: =COUNTIFS(Camplist_Township,'CCCM Dashboard'!$AH49,Camplist_Popl,"=0",CampList_Status,"Open")+COUNTIFS(Camplist_Township,'CCCM Dashboard'!$AH49,Camplist_Popl,"",CampList_Status,"Open") -> 0 | AN49: 4
AH50: Hseni | AI50: =COUNTIFS(Camplist_Township,'CCCM Dashboard'!$AH50,Camplist_Popl,">0",Camplist_Popl,"<=1000",CampList_Status,"Open") -> 1 | AJ50: =COUNTIFS(Camplist_Township,'CCCM Dashboard'!$AH50,Camplist_Popl,">1000",Camplist_Popl,"<=5000",CampList_Status,"Open") -> 0 | AK50: =COUNTIFS(Camplist_Township,'CCCM Dashboard'!$AH50,Camplist_Popl,">5000",Camplist_Popl,"<=10000",CampList_Status,"Open") -> 0 | AL50: =COUNTIFS(Camplist_Township,'CCCM Dashboard'!$AH50,Camplist_Popl,">10000",CampList_Status,"Open") -> 0 | AM50: =COUNTIFS(Camplist_Township,'CCCM Dashboard'!$AH50,Camplist_Popl,"=0",CampList_Status,"Open")+COUNTIFS(Camplist_Township,'CCCM Dashboard'!$AH50,Camplist_Popl,"",CampList_Status,"Open") -> 0 | AN50: 1
AH51: Sumprabum | AI51: =COUNTIFS(Camplist_Township,'CCCM Dashboard'!$AH51,Camplist_Popl,">0",Camplist_Popl,"<=1000",CampList_Status,"Open") -> 1 | AJ51: =COUNTIFS(Camplist_Township,'CCCM Dashboard'!$AH51,Camplist_Popl,">1000",Camplist_Popl,"<=5000",CampList_Status,"Open") -> 0 | AK51: =COUNTIFS(Camplist_Township,'CCCM Dashboard'!$AH51,Camplist_Popl,">5000",Camplist_Popl,"<=10000",CampList_Status,"Open") -> 0 | AL51: =COUNTIFS(Camplist_Township,'CCCM Dashboard'!$AH51,Camplist_Popl,">10000",CampList_Status,"Open") -> 0 | AM51: =COUNTIFS(Camplist_Township,'CCCM Dashboard'!$AH51,Camplist_Popl,"=0",CampList_Status,"Open")+COUNTIFS(Camplist_Township,'CCCM Dashboard'!$AH51,Camplist_Popl,"",CampList_Status,"Open") -> 0 | AN51: 1
AH52: Waingmaw | AI52: =COUNTIFS(Camplist_Township,'CCCM Dashboard'!$AH52,Camplist_Popl,">0",Camplist_Popl,"<=1000",CampList_Status,"Open") -> 16 | AJ52: =COUNTIFS(Camplist_Township,'CCCM Dashboard'!$AH52,Camplist_Popl,">1000",Camplist_Popl,"<=5000",CampList_Status,"Open") -> 9 | AK52: =COUNTIFS(Camplist_Township,'CCCM Dashboard'!$AH52,Camplist_Popl,">5000",Camplist_Popl,"<=10000",CampList_Status,"Open") -> 0 | AL52: =COUNTIFS(Camplist_Township,'CCCM Dashboard'!$AH52,Camplist_Popl,">10000",CampList_Status,"Open") -> 0 | AM52: =COUNTIFS(Camplist_Township,'CCCM Dashboard'!$AH52,Camplist_Popl,"=0",CampList_Status,"Open")+COUNTIFS(Camplist_Township,'CCCM Dashboard'!$AH52,Camplist_Popl,"",CampList_Status,"Open") -> 1 | AN52: 26
AH53: Total | AI53: =SUM(AI33:AI52) -> 132 | AJ53: 25 | AK53: 1 | AL53: 0 | AM53: 9 | AN53: 167

Sheet Shelter Tracking
A2: KACHIN & NORTHEN SHAN SHELTER TRACKING
A3: =Report_Date -> 2013-08-01
A4: DateUpdated | B4: Organization | C4: Implementing Partner | D4: State | E4: Township | F4: Camp Name | G4: HH per Shelter | H4: # of Family Tent Planned (Target) | I4: # of Family Tent Distributed | J4: # of Temporary Shelter Units Planned (Target) | K4: # of Temporary Shelter Units Built | L4: # of Temporary Shelter Under Construction | M4: # of Permanent House Planned (Target) | N4: # of Permanent House Built | O4: # of Permanent House Under Construction | P4: HH Covered | Q4: Pcode | R4: Status | S4: Column 1 | T4: Column 2 | U4: Column 3
A5: 31.07.2013 | B5: Caritas | C5: KMSS Bhamo | D5: Kachin | E5: Shwegu | F5: Shwe Gu Catholic Church | G5: 1 | J5: 36 | K5: 36 | P5: =Table_Shelter[[#This Row],[HH per Shelter]]*(Table_Shelter[[#This Row],['# of Temporary Shelter Units Built]]+Table_Shelter[[#This Row],['# of Temporary Shelter Under Construction]]+Table_Shelter[[#This Row],['# of Permanent House Built]]+Table_Shelter[[#This Row],['# of Permanent House Under Construction]]) -> 36 | Q5: =VLOOKUP(Table_Shelter[[#This Row],[Camp Name]],'Camp List'!N$5:O$400,2,0) -> MMR001CMP068 | R5: =VLOOKUP(Table_Shelter[[#This Row],[Camp Name]],'Camp List'!N$5:Z$395,14,0) ->  | T5: =MATCH(Table_Shelter[[#This Row],['# of Temporary Shelter Units Built]],Table_Shelter[[#This Row],[HH Covered]]) -> 1 | U5: =MATCH(Table_Shelter[[#This Row],['# of Temporary Shelter Units Built]],Table_Shelter[[#This Row],[HH Covered]]) -> 1
A6: 31.07.2013 | B6: Caritas | C6: KMSS Bhamo | D6: Kachin | E6: Momauk | F6: Momauk Catholic Church (St. Patrick) | G6: 1 | J6: 48 | K6: 48 | P6: =Table_Shelter[[#This Row],[HH per Shelter]]*(Table_Shelter[[#This Row],['# of Temporary Shelter Units Built]]+Table_Shelter[[#This Row],['# of Temporary Shelter Under Construction]]+Table_Shelter[[#This Row],['# of Permanent House Built]]+Table_Shelter[[#This Row],['# of Permanent House Under Construction]]) -> 48 | Q6: =VLOOKUP(Table_Shelter[[#This Row],[Camp Name]],'Camp List'!N$5:O$400,2,0) -> MMR001CMP057 | R6: =VLOOKUP(Table_Shelter[[#This Row],[Camp Name]],'Camp List'!N$5:Z$395,14,0) ->  | U6: =MATCH(Table_Shelter[[#This Row],['# of Temporary Shelter Units Built]],Table_Shelter[[#This Row],[HH Covered]]) -> 1
A7: 31.07.2013 | B7: Caritas | C7: KMSS Bhamo | D7: Kachin | E7: Momauk | F7: Momauk Catholic Church (St. Patrick) | G7: 1 | J7: 10 | K7: 10 | P7: =Table_Shelter[[#This Row],[HH per Shelter]]*(Table_Shelter[[#This Row],['# of Temporary Shelter Units Built]]+Table_Shelter[[#This Row],['# of Temporary Shelter Under Construction]]+Table_Shelter[[#This Row],['# of Permanent House Built]]+Table_Shelter[[#This Row],['# of Permanent House Under Construction]]) -> 10 | Q7: =VLOOKUP(Table_Shelter[[#This Row],[Camp Name]],'Camp List'!N$5:O$400,2,0) -> MMR001CMP057 | R7: =VLOOKUP(Table_Shelter[[#This Row],[Camp Name]],'Camp List'!N$5:Z$395,14,0) ->  | U7: =MATCH(Table_Shelter[[#This Row],['# of Temporary Shelter Units Built]],Table_Shelter[[#This Row],[HH Covered]]) -> 1
A8: 31.07.2013 | B8: Caritas | C8: KMSS Bhamo | D8: Kachin | E8: Momauk | F8: Man Bung Catholic compound | G8: 1 | J8: 24 | K8: 24 | P8: =Table_Shelter[[#This Row],[HH per Shelter]]*(Table_Shelter[[#This Row],['# of Temporary Shelter Units Built]]+Table_Shelter[[#This Row],['# of Temporary Shelter Under Construction]]+Table_Shelter[[#This Row],['# of Permanent House Built]]+Table_Shelter[[#This Row],['# of Permanent House Under Construction]]) -> 24 | Q8: =VLOOKUP(Table_Shelter[[#This Row],[Camp Name]],'Camp List'!N$5:O$400,2,0) -> MMR001CMP062 | R8: =VLOOKUP(Table_Shelter[[#This Row],[Camp Name]],'Camp List'!N$5:Z$395,14,0) ->  | U8: =MATCH(Table_Shelter[[#This Row],['# of Temporary Shelter Units Built]],Table_Shelter[[#This Row],[HH Covered]]) -> 1
A9: 31.07.2013 | B9: Caritas | C9: KMSS Bhamo | D9: Kachin | E9: Mansi | F9: Lagatyan | G9: 1 | J9: 100 | K9: 100 | P9: =Table_Shelter[[#This Row],[HH per Shelter]]*(Table_Shelter[[#This Row],['# of Temporary Shelter Units Built]]+Table_Shelter[[#This Row],['# of Temporary Shelter Under Construction]]+Table_Shelter[[#This Row],['# of Permanent House Built]]+Table_Shelter[[#This Row],['# of Permanent House Under Construction]]) -> 100 | Q9: =VLOOKUP(Table_Shelter[[#This Row],[Camp Name]],'Camp List'!N$5:O$400,2,0) -> MMR001CMP202 | R9: =VLOOKUP(Table_Shelter[[#This Row],[Camp Name]],'Camp List'!N$5:Z$395,14,0) ->  | U9: =MATCH(Table_Shelter[[#This Row],['# of Temporary Shelter Units Built]],Table_Shelter[[#This Row],[HH Covered]]) -> 1
A10: 31.07.2013 | B10: Caritas | C10: KMSS Bhamo | D10: Kachin | E10: Momauk | F10: Nhkawng Pa | G10: 1 | J10: 200 | P10: =Table_Shelter[[#This Row],[HH per Shelter]]*(Table_Shelter[[#This Row],['# of Temporary Shelter Units Built]]+Table_Shelter[[#This Row],['# of Temporary Shelter Under Construction]]+Table_Shelter[[#This Row],['# of Permanent House Built]]+Table_Shelter[[#This Row],['# of Permanent House Under Construction]]) -> 0 | Q10: =VLOOKUP(Table_Shelter[[#This Row],[Camp Name]],'Camp List'!N$5:O$400,2,0) -> MMR001CMP131 | R10: =VLOOKUP(Table_Shelter[[#This Row],[Camp Name]],'Camp List'!N$5:Z$395,14,0) ->  | U10: =MATCH(Table_Shelter[[#This Row],['# of Temporary Shelter Units Built]],Table_Shelter[[#This Row],[HH Covered]]) -> 1
A11: 29.5.2013 | B11: Caritas | C11: KMSS | D11: Kachin | E11: Myitkyina | F11: Pa Dauk Myaing(Pa La Na) | G11: 1 | J11: 30 | K11: 30 | P11: =Table_Shelter[[#This Row],[HH per Shelter]]*(Table_Shelter[[#This Row],['# of Temporary Shelter Units Built]]+Table_Shelter[[#This Row],['# of Temporary Shelter Under Construction]]+Table_Shelter[[#This Row],['# of Permanent House Built]]+Table_Shelter[[#This Row],['# of Permanent House Under Construction]]) -> 30 | Q11: =VLOOKUP(Table_Shelter[[#This Row],[Camp Name]],'Camp List'!N$5:O$400,2,0) -> MMR001CMP162 | R11: =VLOOKUP(Table_Shelter[[#This Row],[Camp Name]],'Camp List'!N$5:Z$395,14,0) ->  | U11: =MATCH(Table_Shelter[[#This Row],['# of Temporary Shelter Units Built]],Table_Shelter[[#This Row],[HH Covered]]) -> 1
A12: 29.5.2013 | B12: Caritas | C12: KMSS | D12: Kachin | E12: Mohnyin | F12: St.Patrick catholic church | G12: 1 | J12: 12 | K12: 12 | P12: =Table_Shelter[[#This Row],[HH per Shelter]]*(Table_Shelter[[#This Row],['# of Temporary Shelter Units Built]]+Table_Shelter[[#This Row],['# of Temporary Shelter Under Construction]]+Table_Shelter[[#This Row],['# of Permanent House Built]]+Table_Shelter[[#This Row],['# of Permanent House Under Construction]]) -> 12 | Q12: =VLOOKUP(Table_Shelter[[#This Row],[Camp Name]],'Camp List'!N$5:O$400,2,0) ->  | R12: =VLOOKUP(Table_Shelter[[#This Row],[Camp Name]],'Camp List'!N$5:Z$395,14,0) ->  | U12: =MATCH(Table_Shelter[[#This Row],['# of Temporary Shelter Units Built]],Table_Shelter[[#This Row],[HH Covered]]) -> 1
A13: 31.12.2012 | B13: Caritas | C13: KMSS | D13: Kachin | E13: Myitkyina | F13: Jan Mai Kawng Catholic Church | G13: 1 | J13: 60 | K13: 60 | P13: =Table_Shelter[[#This Row],[HH per Shelter]]*(Table_Shelter[[#This Row],['# of Temporary Shelter Units Built]]+Table_Shelter[[#This Row],['# of Temporary Shelter Under Construction]]+Table_Shelter[[#This Row],['# of Permanent House Built]]+Table_Shelter[[#This Row],['# of Permanent House Under Construction]]) -> 60 | Q13: =VLOOKUP(Table_Shelter[[#This Row],[Camp Name]],'Camp List'!N$5:O$400,2,0) -> MMR001CMP019 | R13: =VLOOKUP(Table_Shelter[[#This Row],[Camp Name]],'Camp List'!N$5:Z$395,14,0) ->  | U13: =MATCH(Table_Shelter[[#This Row],['# of Temporary Shelter Units Built]],Table_Shelter[[#This Row],[HH Covered]]) -> 1
A14: 31.12.2012 | B14: Caritas | C14: KMSS | D14: Kachin | E14: Waingmaw | F14: Maina Catholic Church (St. Joseph) | G14: 1 | J14: 20 | K14: 20 | P14: =Table_Shelter[[#This Row],[HH per Shelter]]*(Table_Shelter[[#This Row],['# of Temporary Shelter Units Built]]+Table_Shelter[[#This Row],['# of Temporary Shelter Under Construction]]+Table_Shelter[[#This Row],['# of Permanent House Built]]+Table_Shelter[[#This Row],['# of Permanent House Under Construction]]) -> 20 | Q14: =VLOOKUP(Table_Shelter[[#This Row],[Camp Name]],'Camp List'!N$5:O$400,2,0) -> MMR001CMP029 | R14: =VLOOKUP(Table_Shelter[[#This Row],[Camp Name]],'Camp List'!N$5:Z$395,14,0) ->  | U14: =MATCH(Table_Shelter[[#This Row],['# of Temporary Shelter Units Built]],Table_Shelter[[#This Row],[HH Covered]]) -> 1
A15: 31.07.2013 | B15: DFID | C15: KMSS Bhamo | D15: Kachin | E15: Momauk | F15: Nhkawng Pa | G15: 1 | J15: 350 | K15: 350 | P15: =Table_Shelter[[#This Row],[HH per Shelter]]*(Table_Shelter[[#This Row],['# of Temporary Shelter Units Built]]+Table_Shelter[[#This Row],['# of Temporary Shelter Under Construction]]+Table_Shelter[[#This Row],['# of Permanent House Built]]+Table_Shelter[[#This Row],['# of Permanent House Under Construction]]) -> 350 | Q15: =VLOOKUP(Table_Shelter[[#This Row],[Camp Name]],'Camp List'!N$5:O$400,2,0) -> MMR001CMP131 | R15: =VLOOKUP(Table_Shelter[[#This Row],[Camp Name]],'Camp List'!N$5:Z$395,14,0) ->  | U15: =MATCH(Table_Shelter[[#This Row],['# of Temporary Shelter Units Built]],Table_Shelter[[#This Row],[HH Covered]]) -> 1
A16: 30.06.2013 | B16: DRC | C16: Shalom | D16: Kachin | E16: Chipwi | F16: Lhaovao Baptist Church (LBC) | G16: 1 | J16: 82 | K16: 82 | P16: =Table_Shelter[[#This Row],[HH per Shelter]]*(Table_Shelter[[#This Row],['# of Temporary Shelter Units Built]]+Table_Shelter[[#This Row],['# of Temporary Shelter Under Construction]]+Table_Shelter[[#This Row],['# of Permanent House Built]]+Table_Shelter[[#This Row],['# of Permanent House Under Construction]]) -> 82 | Q16: =VLOOKUP(Table_Shelter[[#This Row],[Camp Name]],'Camp List'!N$5:O$400,2,0) -> MMR001CMP195 | R16: =VLOOKUP(Table_Shelter[[#This Row],[Camp Name]],'Camp List'!N$5:Z$395,14,0) ->  | U16: =MATCH(Table_Shelter[[#This Row],['# of Temporary Shelter Units Built]],Table_Shelter[[#This Row],[HH Covered]]) -> 1
A17: 30.06.2013 | B17: DRC | C17: KBC | D17: Kachin | E17: Mansi | F17: Man Wing Baptist Church | G17: 1 | J17: 39 | K17: 39 | P17: =Table_Shelter[[#This Row],[HH per Shelter]]*(Table_Shelter[[#This Row],['# of Temporary Shelter Units Built]]+Table_Shelter[[#This Row],['# of Temporary Shelter Under Construction]]+Table_Shelter[[#This Row],['# of Permanent House Built]]+Table_Shelter[[#This Row],['# of Permanent House Under Construction]]) -> 39 | Q17: =VLOOKUP(Table_Shelter[[#This Row],[Camp Name]],'Camp List'!N$5:O$400,2,0) -> MMR001CMP133 | R17: =VLOOKUP(Table_Shelter[[#This Row],[Camp Name]],'Camp List'!N$5:Z$395,14,0) ->  | U17: =MATCH(Table_Shelter[[#This Row],['# of Temporary Shelter Units Built]],Table_Shelter[[#This Row],[HH Covered]]) -> 1
A18: 30.06.2013 | B18: DRC | C18: KMSS | D18: Kachin | E18: Momauk | F18: Hpun Lum Yang | G18: 1 | J18: 338 | K18: 338 | P18: =Table_Shelter[[#This Row],[HH per Shelter]]*(Table_Shelter[[#This Row],['# of Temporary Shelter Units Built]]+Table_Shelter[[#This Row],['# of Temporary Shelter Under Construction]]+Table_Shelter[[#This Row],['# of Permanent House Built]]+Table_Shelter[[#This Row],['# of Permanent House Under Construction]]) -> 338 | Q18: =VLOOKUP(Table_Shelter[[#This Row],[Camp Name]],'Camp List'!N$5:O$400,2,0) -> MMR001CMP122 | R18: =VLOOKUP(Table_Shelter[[#This Row],[Camp Name]],'Camp List'!N$5:Z$395,14,0) ->  | U18: =MATCH(Table_Shelter[[#This Row],['# of Temporary Shelter Units Built]],Table_Shelter[[#This Row],[HH Covered]]) -> 1
A19: 30.06.2013 | B19: DRC | C19: KMSS | D19: Kachin | E19: Myitkyina | F19: Nan Kway St. John Catholic Church | G19: 1 | J19: 46 | K19: 46 | P19: =Table_Shelter[[#This Row],[HH per Shelter]]*(Table_Shelter[[#This Row],['# of Temporary Shelter Units Built]]+Table_Shelter[[#This Row],['# of Temporary Shelter Under Construction]]+Table_Shelter[[#This Row],['# of Permanent House Built]]+Table_Shelter[[#This Row],['# of Permanent House Under Construction]]) -> 46 | Q19: =VLOOKUP(Table_Shelter[[#This Row],[Camp Name]],'Camp List'!N$5:O$400,2,0) -> MMR001CMP024 | R19: =VLOOKUP(Table_Shelter[[#This Row],[Camp Name]],'Camp List'!N$5:Z$395,14,0) ->  | U19: =MATCH(Table_Shelter[[#This Row],['# of Temporary Shelter Units Built]],Table_Shelter[[#This Row],[HH Covered]]) -> 1
A20: 30.06.2013 | B20: DRC | C20: KBC | D20: Kachin | E20: Namhkan | F20: Nam Hkam - Nay Win Ni (Palawng) | G20: 1 | J20: 78 | K20: 78 | P20: =Table_Shelter[[#This Row],[HH per Shelter]]*(Table_Shelter[[#This Row],['# of Temporary Shelter Units Built]]+Table_Shelter[[#This Row],['# of Temporary Shelter Under Construction]]+Table_Shelter[[#This Row],['# of Permanent House Built]]+Table_Shelter[[#This Row],['# of Permanent House Under Construction]]) -> 78 | Q20: =VLOOKUP(Table_Shelter[[#This Row],[Camp Name]],'Camp List'!N$5:O$400,2,0) -> MMR015CMP004 | R20: =VLOOKUP(Table_Shelter[[#This Row],[Camp Name]],'Camp List'!N$5:Z$395,14,0) ->  | U20: =MATCH(Table_Shelter[[#This Row],['# of Temporary Shelter Units Built]],Table_Shelter[[#This Row],[HH Covered]]) -> 1
A21: 30.06.2013 | B21: DRC | C21: KBC | D21: Kachin | E21: Namhkan | F21: Nam Hkam (KBC Jaw Wang) | G21: 1 | J21: 60 | K21: 60 | P21: =Table_Shelter[[#This Row],[HH per Shelter]]*(Table_Shelter[[#This Row],['# of Temporary Shelter Units Built]]+Table_Shelter[[#This Row],['# of Temporary Shelter Under Construction]]+Table_Shelter[[#This Row],['# of Permanent House Built]]+Table_Shelter[[#This Row],['# of Permanent House Under Construction]]) -> 60 | Q21: =VLOOKUP(Table_Shelter[[#This Row],[Camp Name]],'Camp List'!N$5:O$400,2,0) -> MMR015CMP001 | R21: =VLOOKUP(Table_Shelter[[#This Row],[Camp Name]],'Camp List'!N$5:Z$395,14,0) ->  | U21: =MATCH(Table_Shelter[[#This Row],['# of Temporary Shelter Units Built]],Table_Shelter[[#This Row],[HH Covered]]) -> 1
A22: 30.06.2013 | B22: DRC | C22: Shalom | D22: Kachin | E22: Waingmaw | F22: Hkat Cho | G22: 1 | J22: 60 | K22: 60 | P22: =Table_Shelter[[#This Row],[HH per Shelter]]*(Table_Shelter[[#This Row],['# of Temporary Shelter Units Built]]+Table_Shelter[[#This Row],['# of Temporary Shelter Under Construction]]+Table_Shelter[[#This Row],['# of Permanent House Built]]+Table_Shelter[[#This Row],['# of Permanent House Under Construction]]) -> 60 | Q22: =VLOOKUP(Table_Shelter[[#This Row],[Camp Name]],'Camp List'!N$5:O$400,2,0) -> MMR001CMP028 | R22: =VLOOKUP(Table_Shelter[[#This Row],[Camp Name]],'Camp List'!N$5:Z$395,14,0) ->  | U22: =MATCH(Table_Shelter[[#This Row],['# of Temporary Shelter Units Built]],Table_Shelter[[#This Row],[HH Covered]]) -> 1
A23: 30.06.2013 | B23: DRC | C23: KMSS | D23: Kachin | E23: Waingmaw | F23: Maina Catholic Church (St. Joseph) | G23: 1 | J23: 12 | K23: 12 | P23: =Table_Shelter[[#This Row],[HH per Shelter]]*(Table_Shelter[[#This Row],['# of Temporary Shelter Units Built]]+Table_Shelter[[#This Row],['# of Temporary Shelter Under Construction]]+Table_Shelter[[#This Row],['# of Permanent House Built]]+Table_Shelter[[#This Row],['# of Permanent House Under Construction]]) -> 12 | Q23: =VLOOKUP(Table_Shelter[[#This Row],[Camp Name]],'Camp List'!N$5:O$400,2,0) -> MMR001CMP029 | R23: =VLOOKUP(Table_Shelter[[#This Row],[Camp Name]],'Camp List'!N$5:Z$395,14,0) ->  | U23: =MATCH(Table_Shelter[[#This Row],['# of Temporary Shelter Units Built]],Table_Shelter[[#This Row],[HH Covered]]) -> 1
A24: 30.06.2013 | B24: DRC | C24: Shalom | D24: Kachin | E24: Waingmaw | F24: Hkau Shau (BP 12) | G24: 1 | J24: 100 | K24: 100 | P24: =Table_Shelter[[#This Row],[HH per Shelter]]*(Table_Shelter[[#This Row],['# of Temporary Shelter Units Built]]+Table_Shelter[[#This Row],['# of Temporary Shelter Under Construction]]+Table_Shelter[[#This Row],['# of Permanent House Built]]+Table_Shelter[[#This Row],['# of Permanent House Under Construction]]) -> 100 | Q24: =VLOOKUP(Table_Shelter[[#This Row],[Camp Name]],'Camp List'!N$5:O$400,2,0) -> MMR001CMP115 | R24: =VLOOKUP(Table_Shelter[[#This Row],[Camp Name]],'Camp List'!N$5:Z$395,14,0) ->  | U24: =MATCH(Table_Shelter[[#This Row],['# of Temporary Shelter Units Built]],Table_Shelter[[#This Row],[HH Covered]]) -> 1
A25: 30.06.2013 | B25: DRC | C25: KMSS | D25: Kachin | E25: Waingmaw | F25: Maga Yang | G25: 1 | J25: 604 | K25: 604 | P25: =Table_Shelter[[#This Row],[HH per Shelter]]*(Table_Shelter[[#This Row],['# of Temporary Shelter Units Built]]+Table_Shelter[[#This Row],['# of Temporary Shelter Under Construction]]+Table_Shelter[[#This Row],['# of Permanent House Built]]+Table_Shelter[[#This Row],['# of Permanent House Under Construction]]) -> 604 | Q25: =VLOOKUP(Table_Shelter[[#This Row],[Camp Name]],'Camp List'!N$5:O$400,2,0) -> MMR001CMP119 | R25: =VLOOKUP(Table_Shelter[[#This Row],[Camp Name]],'Camp List'!N$5:Z$395,14,0) ->  | U25: =MATCH(Table_Shelter[[#This Row],['# of Temporary Shelter Units Built]],Table_Shelter[[#This Row],[HH Covered]]) -> 1
A26: 31.07.2013 | B26: IRRC | C26: KMSS Bhamo | D26: Kachin | E26: Bhamo | F26: AD-2000 Tharthana Compound | G26: 1 | J26: 18 | K26: 18 | P26: =Table_Shelter[[#This Row],[HH per Shelter]]*(Table_Shelter[[#This Row],['# of Temporary Shelter Units Built]]+Table_Shelter[[#This Row],['# of Temporary Shelter Under Construction]]+Table_Shelter[[#This Row],['# of Permanent House Built]]+Table_Shelter[[#This Row],['# of Permanent House Under Construction]]) -> 18 | Q26: =VLOOKUP(Table_Shelter[[#This Row],[Camp Name]],'Camp List'!N$5:O$400,2,0) -> MMR001CMP050 | R26: =VLOOKUP(Table_Shelter[[#This Row],[Camp Name]],'Camp List'!N$5:Z$395,14,0) ->  | U26: =MATCH(Table_Shelter[[#This Row],['# of Temporary Shelter Units Built]],Table_Shelter[[#This Row],[HH Covered]]) -> 1
A27: 31.12.2012 | B27: KBC | C27: KBC | D27: Kachin | E27: Myitkyina | F27: Man Hkring Baptist Church | G27: 1 | J27: 10 | K27: 10 | P27: =Table_Shelter[[#This Row],[HH per Shelter]]*(Table_Shelter[[#This Row],['# of Temporary Shelter Units Built]]+Table_Shelter[[#This Row],['# of Temporary Shelter Under Construction]]+Table_Shelter[[#This Row],['# of Permanent House Built]]+Table_Shelter[[#This Row],['# of Permanent House Under Construction]]) -> 10 | Q27: =VLOOKUP(Table_Shelter[[#This Row],[Camp Name]],'Camp List'!N$5:O$400,2,0) -> MMR001CMP008 | R27: =VLOOKUP(Table_Shelter[[#This Row],[Camp Name]],'Camp List'!N$5:Z$395,14,0) ->  | U27: =MATCH(Table_Shelter[[#This Row],['# of Temporary Shelter Units Built]],Table_Shelter[[#This Row],[HH Covered]]) -> 1
A28: 31.12.2012 | B28: KBC | C28: KBC | D28: Kachin | E28: Myitkyina | F28: Njang Dung Baptist Church | G28: 1 | J28: 32 | K28: 32 | P28: =Table_Shelter[[#This Row],[HH per Shelter]]*(Table_Shelter[[#This Row],['# of Temporary Shelter Units Built]]+Table_Shelter[[#This Row],['# of Temporary Shelter Under Construction]]+Table_Shelter[[#This Row],['# of Permanent House Built]]+Table_Shelter[[#This Row],['# of Permanent House Under Construction]]) -> 32 | Q28: =VLOOKUP(Table_Shelter[[#This Row],[Camp Name]],'Camp List'!N$5:O$400,2,0) -> MMR001CMP002 | R28: =VLOOKUP(Table_Shelter[[#This Row],[Camp Name]],'Camp List'!N$5:Z$395,14,0) ->  | U28: =MATCH(Table_Shelter[[#This Row],['# of Temporary Shelter Units Built]],Table_Shelter[[#This Row],[HH Covered]]) -> 1
A29: 31.12.2012 | B29: KBC | C29: KBC | D29: Kachin | E29: Myitkyina | F29: Jan Mai Kawng Baptist Church | G29: 1 | J29: 20 | K29: 20 | P29: =Table_Shelter[[#This Row],[HH per Shelter]]*(Table_Shelter[[#This Row],['# of Temporary Shelter Units Built]]+Table_Shelter[[#This Row],['# of Temporary Shelter Under Construction]]+Table_Shelter[[#This Row],['# of Permanent House Built]]+Table_Shelter[[#This Row],['# of Permanent House Under Construction]]) -> 20 | Q29: =VLOOKUP(Table_Shelter[[#This Row],[Camp Name]],'Camp List'!N$5:O$400,2,0) -> MMR001CMP018 | R29: =VLOOKUP(Table_Shelter[[#This Row],[Camp Name]],'Camp List'!N$5:Z$395,14,0) ->  | U29: =MATCH(Table_Shelter[[#This Row],['# of Temporary Shelter Units Built]],Table_Shelter[[#This Row],[HH Covered]]) -> 1
A30: 31.12.2012 | B30: KBC | C30: KBC | D30: Kachin | E30: Myitkyina | F30: Tat Kone Galile Baptist Church | G30: 1 | J30: 12 | K30: 12 | P30: =Table_Shelter[[#This Row],[HH per Shelter]]*(Table_Shelter[[#This Row],['# of Temporary Shelter Units Built]]+Table_Shelter[[#This Row],['# of Temporary Shelter Under Construction]]+Table_Shelter[[#This Row],['# of Permanent House Built]]+Table_Shelter[[#This Row],['# of Permanent House Under Construction]]) -> 12 | Q30: =VLOOKUP(Table_Shelter[[#This Row],[Camp Name]],'Camp List'!N$5:O$400,2,0) -> MMR001CMP003 | R30: =VLOOKUP(Table_Shelter[[#This Row],[Camp Name]],'Camp List'!N$5:Z$395,14,0) ->  | U30: =MATCH(Table_Shelter[[#This Row],['# of Temporary Shelter Units Built]],Table_Shelter[[#This Row],[HH Covered]]) -> 1
A31: 31.12.2012 | B31: KBC | C31: KBC | D31: Kachin | E31: Waingmaw | F31: Qtr. 2 Myoma Baptist Church | G31: 1 | J31: 8 | K31: 8 | P31: =Table_Shelter[[#This Row],[HH per Shelter]]*(Table_Shelter[[#This Row],['# of Temporary Shelter Units Built]]+Table_Shelter[[#This Row],['# of Temporary Shelter Under Construction]]+Table_Shelter[[#This Row],['# of Permanent House Built]]+Table_Shelter[[#This Row],['# of Permanent House Under Construction]]) -> 8 | Q31: =VLOOKUP(Table_Shelter[[#This Row],[Camp Name]],'Camp List'!N$5:O$400,2,0) -> MMR001CMP025 | R31: =VLOOKUP(Table_Shelter[[#This Row],[Camp Name]],'Camp List'!N$5:Z$395,14,0) ->  | U31: =MATCH(Table_Shelter[[#This Row],['# of Temporary Shelter Units Built]],Table_Shelter[[#This Row],[HH Covered]]) -> 1
A32: 31.07.2013 | B32: Metta Foundation | D32: Kachin | E32: Bhamo | F32: Yoe Kyi Monastery | G32: 1 | J32: 12 | K32: 30 | P32: =Table_Shelter[[#This Row],[HH per Shelter]]*(Table_Shelter[[#This Row],['# of Temporary Shelter Units Built]]+Table_Shelter[[#This Row],['# of Temporary Shelter Under Construction]]+Table_Shelter[[#This Row],['# of Permanent House Built]]+Table_Shelter[[#This Row],['# of Permanent House Under Construction]]) -> 30 | Q32: =VLOOKUP(Table_Shelter[[#This Row],[Camp Name]],'Camp List'!N$5:O$400,2,0) -> MMR001CMP053 | R32: =VLOOKUP(Table_Shelter[[#This Row],[Camp Name]],'Camp List'!N$5:Z$395,14,0) ->  | U32: =MATCH(Table_Shelter[[#This Row],['# of Temporary Shelter Units Built]],Table_Shelter[[#This Row],[HH Covered]]) -> 1
A33: 31.07.2013 | B33: Metta Foundation | D33: Kachin | E33: Bhamo | F33: Htoi San Church | G33: 1 | K33: 30 | P33: =Table_Shelter[[#This Row],[HH per Shelter]]*(Table_Shelter[[#This Row],['# of Temporary Shelter Units Built]]+Table_Shelter[[#This Row],['# of Temporary Shelter Under Construction]]+Table_Shelter[[#This Row],['# of Permanent House Built]]+Table_Shelter[[#This Row],['# of Permanent House Under Construction]]) -> 30 | Q33: =VLOOKUP(Table_Shelter[[#This Row],[Camp Name]],'Camp List'!N$5:O$400,2,0) -> MMR001CMP052 | R33: =VLOOKUP(Table_Shelter[[#This Row],[Camp Name]],'Camp List'!N$5:Z$395,14,0) ->  | U33: =MATCH(Table_Shelter[[#This Row],['# of Temporary Shelter Units Built]],Table_Shelter[[#This Row],[HH Covered]]) -> 1
A34: 31.07.2013 | B34: Metta Foundation | D34: Kachin | E34: Bhamo | F34: Lisu Boarding-House | G34: 1 | J34: 30 | K34: 12 | P34: =Table_Shelter[[#This Row],[HH per Shelter]]*(Table_Shelter[[#This Row],['# of Temporary Shelter Units Built]]+Table_Shelter[[#This Row],['# of Temporary Shelter Under Construction]]+Table_Shelter[[#This Row],['# of Permanent House Built]]+Table_Shelter[[#This Row],['# of Permanent House Under Construction]]) -> 12 | Q34: =VLOOKUP(Table_Shelter[[#This Row],[Camp Name]],'Camp List'!N$5:O$400,2,0) -> MMR001CMP049 | R34: =VLOOKUP(Table_Shelter[[#This Row],[Camp Name]],'Camp List'!N$5:Z$395,14,0) ->  | U34: =MATCH(Table_Shelter[[#This Row],['# of Temporary Shelter Units Built]],Table_Shelter[[#This Row],[HH Covered]]) -> 1
A35: 31.07.2013 | B35: Metta Foundation | D35: Kachin | E35: Momauk | F35: Momauk Baptist Church | G35: 1 | J35: 30 | K35: 140 | P35: =Table_Shelter[[#This Row],[HH per Shelter]]*(Table_Shelter[[#This Row],['# of Temporary Shelter Units Built]]+Table_Shelter[[#This Row],['# of Temporary Shelter Under Construction]]+Table_Shelter[[#This Row],['# of Permanent House Built]]+Table_Shelter[[#This Row],['# of Permanent House Under Construction]]) -> 140 | Q35: =VLOOKUP(Table_Shelter[[#This Row],[Camp Name]],'Camp List'!N$5:O$400,2,0) -> MMR001CMP056 | R35: =VLOOKUP(Table_Shelter[[#This Row],[Camp Name]],'Camp List'!N$5:Z$395,14,0) ->  | U35: =MATCH(Table_Shelter[[#This Row],['# of Temporary Shelter Units Built]],Table_Shelter[[#This Row],[HH Covered]]) -> 1
A36: 31.07.2013 | B36: Metta Foundation | D36: Kachin | E36: Momauk | F36: Mandalay Monestry | G36: 1 | K36: 6 | P36: =Table_Shelter[[#This Row],[HH per Shelter]]*(Table_Shelter[[#This Row],['# of Temporary Shelter Units Built]]+Table_Shelter[[#This Row],['# of Temporary Shelter Under Construction]]+Table_Shelter[[#This Row],['# of Permanent House Built]]+Table_Shelter[[#This Row],['# of Permanent House Under Construction]]) -> 6 | Q36: =VLOOKUP(Table_Shelter[[#This Row],[Camp Name]],'Camp List'!N$5:O$400,2,0) -> MMR001CMP058 | R36: =VLOOKUP(Table_Shelter[[#This Row],[Camp Name]],'Camp List'!N$5:Z$395,14,0) ->  | U36: =MATCH(Table_Shelter[[#This Row],['# of Temporary Shelter Units Built]],Table_Shelter[[#This Row],[HH Covered]]) -> 1
A37: 31.07.2013 | B37: Metta Foundation | D37: Kachin | E37: Momauk | F37: Ni Thaw Ka Monestry | G37: 1 | K37: 18 | P37: =Table_Shelter[[#This Row],[HH per Shelter]]*(Table_Shelter[[#This Row],['# of Temporary Shelter Units Built]]+Table_Shelter[[#This Row],['# of Temporary Shelter Under Construction]]+Table_Shelter[[#This Row],['# of Permanent House Built]]+Table_Shelter[[#This Row],['# of Permanent House Under Construction]]) -> 18 | Q37: =VLOOKUP(Table_Shelter[[#This Row],[Camp Name]],'Camp List'!N$5:O$400,2,0) -> MMR001CMP059 | R37: =VLOOKUP(Table_Shelter[[#This Row],[Camp Name]],'Camp List'!N$5:Z$395,14,0) ->  | U37: =MATCH(Table_Shelter[[#This Row],['# of Temporary Shelter Units Built]],Table_Shelter[[#This Row],[HH Covered]]) -> 1
A38: 31.07.2013 | B38: Metta Foundation | D38: Kachin | E38: Mansi | F38: Mansi Baptist Church | G38: 1 | J38: 30 | K38: 30 | P38: =Table_Shelter[[#This Row],[HH per Shelter]]*(Table_Shelter[[#This Row],['# of Temporary Shelter Units Built]]+Table_Shelter[[#This Row],['# of Temporary Shelter Under Construction]]+Table_Shelter[[#This Row],['# of Permanent House Built]]+Table_Shelter[[#This Row],['# of Permanent House Under Construction]]) -> 30 | Q38: =VLOOKUP(Table_Shelter[[#This Row],[Camp Name]],'Camp List'!N$5:O$400,2,0) -> MMR001CMP066 | R38: =VLOOKUP(Table_Shelter[[#This Row],[Camp Name]],'Camp List'!N$5:Z$395,14,0) ->  | U38: =MATCH(Table_Shelter[[#This Row],['# of Temporary Shelter Units Built]],Table_Shelter[[#This Row],[HH Covered]]) -> 1
A39: 31.07.2013 | B39: Metta Foundation | D39: Kachin | E39: Shwegu | F39: Mansi Baptist Church | G39: 1 | J39: 12 | K39: 30 | P39: =Table_Shelter[[#This Row],[HH per Shelter]]*(Table_Shelter[[#This Row],['# of Temporary Shelter Units Built]]+Table_Shelter[[#This Row],['# of Temporary Shelter Under Construction]]+Table_Shelter[[#This Row],['# of Permanent House Built]]+Table_Shelter[[#This Row],['# of Permanent House Under Construction]]) -> 30 | Q39: =VLOOKUP(Table_Shelter[[#This Row],[Camp Name]],'Camp List'!N$5:O$400,2,0) -> MMR001CMP066 | R39: =VLOOKUP(Table_Shelter[[#This Row],[Camp Name]],'Camp List'!N$5:Z$395,14,0) ->  | U39: =MATCH(Table_Shelter[[#This Row],['# of Temporary Shelter Units Built]],Table_Shelter[[#This Row],[HH Covered]]) -> 1
A40: 31.12.2012 | B40: Miserreor | C40: Shalom | D40: Kachin | E40: Myitkyina | F40: Tat Kone COC Baptist / Tat Kone Htoi San | G40: 1 | J40: 12 | K40: 12 | P40: =Table_Shelter[[#This Row],[HH per Shelter]]*(Table_Shelter[[#This Row],['# of Temporary Shelter Units Built]]+Table_Shelter[[#This Row],['# of Temporary Shelter Under Construction]]+Table_Shelter[[#This Row],['# of Permanent House Built]]+Table_Shelter[[#This Row],['# of Permanent House Under Construction]]) -> 12 | Q40: =VLOOKUP(Table_Shelter[[#This Row],[Camp Name]],'Camp List'!N$5:O$400,2,0) -> MMR001CMP023 | R40: =VLOOKUP(Table_Shelter[[#This Row],[Camp Name]],'Camp List'!N$5:Z$395,14,0) ->  | U40: =MATCH(Table_Shelter[[#This Row],['# of Temporary Shelter Units Built]],Table_Shelter[[#This Row],[HH Covered]]) -> 1
A41: 31.12.2012 | B41: Oxfam | C41: KBC | D41: Kachin | E41: Waingmaw | F41: Zai Awng / Mung Ga Zup | G41: 1 | J41: 220 | K41: 220 | P41: =Table_Shelter[[#This Row],[HH per Shelter]]*(Table_Shelter[[#This Row],['# of Temporary Shelter Units Built]]+Table_Shelter[[#This Row],['# of Temporary Shelter Under Construction]]+Table_Shelter[[#This Row],['# of Permanent House Built]]+Table_Shelter[[#This Row],['# of Permanent House Under Construction]]) -> 220 | Q41: =VLOOKUP(Table_Shelter[[#This Row],[Camp Name]],'Camp List'!N$5:O$400,2,0) -> MMR001CMP111 | R41: =VLOOKUP(Table_Shelter[[#This Row],[Camp Name]],'Camp List'!N$5:Z$395,14,0) ->  | U41: =MATCH(Table_Shelter[[#This Row],['# of Temporary Shelter Units Built]],Table_Shelter[[#This Row],[HH Covered]]) -> 1
A42: 31.12.2012 | B42: Oxfam | C42: KBC | D42: Kachin | E42: Myitkyina | F42: Le Kone Bethlehem Church | G42: 1 | J42: 5 | K42: 5 | P42: =Table_Shelter[[#This Row],[HH per Shelter]]*(Table_Shelter[[#This Row],['# of Temporary Shelter Units Built]]+Table_Shelter[[#This Row],['# of Temporary Shelter Under Construction]]+Table_Shelter[[#This Row],['# of Permanent House Built]]+Table_Shelter[[#This Row],['# of Permanent House Under Construction]]) -> 5 | Q42: =VLOOKUP(Table_Shelter[[#This Row],[Camp Name]],'Camp List'!N$5:O$400,2,0) -> MMR001CMP015 | R42: =VLOOKUP(Table_Shelter[[#This Row],[Camp Name]],'Camp List'!N$5:Z$395,14,0) ->  | U42: =MATCH(Table_Shelter[[#This Row],['# of Temporary Shelter Units Built]],Table_Shelter[[#This Row],[HH Covered]]) -> 1
A43: 31.12.2012 | B43: Oxfam | C43: KBC | D43: Kachin | E43: Myitkyina | F43: Jan Mai Kawng Baptist Church | G43: 1 | J43: 85 | K43: 85 | P43: =Table_Shelter[[#This Row],[HH per Shelter]]*(Table_Shelter[[#This Row],['# of Temporary Shelter Units Built]]+Table_Shelter[[#This Row],['# of Temporary Shelter Under Construction]]+Table_Shelter[[#This Row],['# of Permanent House Built]]+Table_Shelter[[#This Row],['# of Permanent House Under Construction]]) -> 85 | Q43: =VLOOKUP(Table_Shelter[[#This Row],[Camp Name]],'Camp List'!N$5:O$400,2,0) -> MMR001CMP018 | R43: =VLOOKUP(Table_Shelter[[#This Row],[Camp Name]],'Camp List'!N$5:Z$395,14,0) ->  | U43: =MATCH(Table_Shelter[[#This Row],['# of Temporary Shelter Units Built]],Table_Shelter[[#This Row],[HH Covered]]) -> 1
A44: 31.12.2012 | B44: Oxfam | C44: KBC | D44: Kachin | E44: Myitkyina | F44: Le Kone Ziun Baptist Church | G44: 1 | J44: 20 | K44: 20 | P44: =Table_Shelter[[#This Row],[HH per Shelter]]*(Table_Shelter[[#This Row],['# of Temporary Shelter Units Built]]+Table_Shelter[[#This Row],['# of Temporary Shelter Under Construction]]+Table_Shelter[[#This Row],['# of Permanent House Built]]+Table_Shelter[[#This Row],['# of Permanent House Under Construction]]) -> 20 | Q44: =VLOOKUP(Table_Shelter[[#This Row],[Camp Name]],'Camp List'!N$5:O$400,2,0) -> MMR001CMP014 | R44: =VLOOKUP(Table_Shelter[[#This Row],[Camp Name]],'Camp List'!N$5:Z$395,14,0) ->  | U44: =MATCH(Table_Shelter[[#This Row],['# of Temporary Shelter Units Built]],Table_Shelter[[#This Row],[HH Covered]]) -> 1
A45: 31.12.2012 | B45: Oxfam | C45: KBC | D45: Kachin | E45: Waingmaw | F45: Maina KBC (Bawng Ring) | G45: 1 | J45: 50 | K45: 50 | P45: =Table_Shelter[[#This Row],[HH per Shelter]]*(Table_Shelter[[#This Row],['# of Temporary Shelter Units Built]]+Table_Shelter[[#This Row],['# of Temporary Shelter Under Construction]]+Table_Shelter[[#This Row],['# of Permanent House Built]]+Table_Shelter[[#This Row],['# of Permanent House Under Construction]]) -> 50 | Q45: =VLOOKUP(Table_Shelter[[#This Row],[Camp Name]],'Camp List'!N$5:O$400,2,0) -> MMR001CMP040 | R45: =VLOOKUP(Table_Shelter[[#This Row],[Camp Name]],'Camp List'!N$5:Z$395,14,0) ->  | U45: =MATCH(Table_Shelter[[#This Row],['# of Temporary Shelter Units Built]],Table_Shelter[[#This Row],[HH Covered]]) -> 1
A46: 31.12.2012 | B46: Shalom | C46: Shalom | D46: Kachin | E46: Waingmaw | F46: Qtr. 3 Mu-yin Baptist Church | G46: 1 | J46: 12 | K46: 12 | P46: =Table_Shelter[[#This Row],[HH per Shelter]]*(Table_Shelter[[#This Row],['# of Temporary Shelter Units Built]]+Table_Shelter[[#This Row],['# of Temporary Shelter Under Construction]]+Table_Shelter[[#This Row],['# of Permanent House Built]]+Table_Shelter[[#This Row],['# of Permanent House Under Construction]]) -> 12 | Q46: =VLOOKUP(Table_Shelter[[#This Row],[Camp Name]],'Camp List'!N$5:O$400,2,0) -> MMR001CMP030 | R46: =VLOOKUP(Table_Shelter[[#This Row],[Camp Name]],'Camp List'!N$5:Z$395,14,0) ->  | U46: =MATCH(Table_Shelter[[#This Row],['# of Temporary Shelter Units Built]],Table_Shelter[[#This Row],[HH Covered]]) -> 1
A47: 31.12.2012 | B47: Shalom | C47: KBC | D47: Kachin | E47: Myitkyina | F47: Shatapru Sut Ngai Tawng | G47: 1 | J47: 20 | K47: 20 | P47: =Table_Shelter[[#This Row],[HH per Shelter]]*(Table_Shelter[[#This Row],['# of Temporary Shelter Units Built]]+Table_Shelter[[#This Row],['# of Temporary Shelter Under Construction]]+Table_Shelter[[#This Row],['# of Permanent House Built]]+Table_Shelter[[#This Row],['# of Permanent House Under Construction]]) -> 20 | Q47: =VLOOKUP(Table_Shelter[[#This Row],[Camp Name]],'Camp List'!N$5:O$400,2,0) -> MMR001CMP006 | R47: =VLOOKUP(Table_Shelter[[#This Row],[Camp Name]],'Camp List'!N$5:Z$395,14,0) ->  | U47: =MATCH(Table_Shelter[[#This Row],['# of Temporary Shelter Units Built]],Table_Shelter[[#This Row],[HH Covered]]) -> 1
A48: 31.12.2012 | B48: UNHCR | C48: KBC | D48: Kachin | E48: Myitkyina | F48: Le Kone Bethlehem Church | G48: 1 | J48: 10 | K48: 10 | P48: =Table_Shelter[[#This Row],[HH per Shelter]]*(Table_Shelter[[#This Row],['# of Temporary Shelter Units Built]]+Table_Shelter[[#This Row],['# of Temporary Shelter Under Construction]]+Table_Shelter[[#This Row],['# of Permanent House Built]]+Table_Shelter[[#This Row],['# of Permanent House Under Construction]]) -> 10 | Q48: =VLOOKUP(Table_Shelter[[#This Row],[Camp Name]],'Camp List'!N$5:O$400,2,0) -> MMR001CMP015 | R48: =VLOOKUP(Table_Shelter[[#This Row],[Camp Name]],'Camp List'!N$5:Z$395,14,0) ->  | U48: =MATCH(Table_Shelter[[#This Row],['# of Temporary Shelter Units Built]],Table_Shelter[[#This Row],[HH Covered]]) -> 1
A49: 31.12.2012 | B49: UNHCR | C49: KBC | D49: Kachin | E49: Myitkyina | F49: Tat Kone Baptist Church | G49: 1 | J49: 60 | K49: 60 | P49: =Table_Shelter[[#This Row],[HH per Shelter]]*(Table_Shelter[[#This Row],['# of Temporary Shelter Units Built]]+Table_Shelter[[#This Row],['# of Temporary Shelter Under Construction]]+Table_Shelter[[#This Row],['# of Permanent House Built]]+Table_Shelter[[#This Row],['# of Permanent House Under Construction]]) -> 60 | Q49: =VLOOKUP(Table_Shelter[[#This Row],[Camp Name]],'Camp List'!N$5:O$400,2,0) -> MMR001CMP001 | R49: =VLOOKUP(Table_Shelter[[#This Row],[Camp Name]],'Camp List'!N$5:Z$395,14,0) ->  | U49: =MATCH(Table_Shelter[[#This Row],['# of Temporary Shelter Units Built]],Table_Shelter[[#This Row],[HH Covered]]) -> 1
A50: 31.12.2012 | B50: UNHCR | C50: KBC | D50: Kachin | E50: Myitkyina | F50: Tat Kone Galile Baptist Church | G50: 1 | J50: 20 | K50: 20 | P50: =Table_Shelter[[#This Row],[HH per Shelter]]*(Table_Shelter[[#This Row],['# of Temporary Shelter Units Built]]+Table_Shelter[[#This Row],['# of Temporary Shelter Under Construction]]+Table_Shelter[[#This Row],['# of Permanent House Built]]+Table_Shelter[[#This Row],['# of Permanent House Under Construction]]) -> 20 | Q50: =VLOOKUP(Table_Shelter[[#This Row],[Camp Name]],'Camp List'!N$5:O$400,2,0) -> MMR001CMP003 | R50: =VLOOKUP(Table_Shelter[[#This Row],[Camp Name]],'Camp List'!N$5:Z$395,14,0) ->  | U50: =MATCH(Table_Shelter[[#This Row],['# of Temporary Shelter Units Built]],Table_Shelter[[#This Row],[HH Covered]]) -> 1
A51: 31.12.2012 | B51: UNHCR | C51: KBC | D51: Kachin | E51: Myitkyina | F51: Kyun Pin Thar Baptist Church | G51: 1 | J51: 5 | K51: 5 | P51: =Table_Shelter[[#This Row],[HH per Shelter]]*(Table_Shelter[[#This Row],['# of Temporary Shelter Units Built]]+Table_Shelter[[#This Row],['# of Temporary Shelter Under Construction]]+Table_Shelter[[#This Row],['# of Permanent House Built]]+Table_Shelter[[#This Row],['# of Permanent House Under Construction]]) -> 5 | Q51: =VLOOKUP(Table_Shelter[[#This Row],[Camp Name]],'Camp List'!N$5:O$400,2,0) -> MMR001CMP013 | R51: =VLOOKUP(Table_Shelter[[#This Row],[Camp Name]],'Camp List'!N$5:Z$395,14,0) ->  | U51: =MATCH(Table_Shelter[[#This Row],['# of Temporary Shelter Units Built]],Table_Shelter[[#This Row],[HH Covered]]) -> 1
A52: 31.12.2012 | B52: UNHCR | C52: KBC | D52: Kachin | E52: Myitkyina | F52: Jan Mai Kawng Baptist Church | G52: 1 | J52: 20 | K52: 20 | P52: =Table_Shelter[[#This Row],[HH per Shelter]]*(Table_Shelter[[#This Row],['# of Temporary Shelter Units Built]]+Table_Shelter[[#This Row],['# of Temporary Shelter Under Construction]]+Table_Shelter[[#This Row],['# of Permanent House Built]]+Table_Shelter[[#This Row],['# of Permanent House Under Construction]]) -> 20 | Q52: =VLOOKUP(Table_Shelter[[#This Row],[Camp Name]],'Camp List'!N$5:O$400,2,0) -> MMR001CMP018 | R52: =VLOOKUP(Table_Shelter[[#This Row],[Camp Name]],'Camp List'!N$5:Z$395,14,0) ->  | U52: =MATCH(Table_Shelter[[#This Row],['# of Temporary Shelter Units Built]],Table_Shelter[[#This Row],[HH Covered]]) -> 1
A53: 31.12.2012 | B53: UNHCR | C53: KBC | D53: Kachin | E53: Myitkyina | F53: Maliyang Baptist Church | G53: 1 | J53: 20 | K53: 20 | P53: =Table_Shelter[[#This Row],[HH per Shelter]]*(Table_Shelter[[#This Row],['# of Temporary Shelter Units Built]]+Table_Shelter[[#This Row],['# of Temporary Shelter Under Construction]]+Table_Shelter[[#This Row],['# of Permanent House Built]]+Table_Shelter[[#This Row],['# of Permanent House Under Construction]]) -> 20 | Q53: =VLOOKUP(Table_Shelter[[#This Row],[Camp Name]],'Camp List'!N$5:O$400,2,0) -> MMR001CMP016 | R53: =VLOOKUP(Table_Shelter[[#This Row],[Camp Name]],'Camp List'!N$5:Z$395,14,0) ->  | U53: =MATCH(Table_Shelter[[#This Row],['# of Temporary Shelter Units Built]],Table_Shelter[[#This Row],[HH Covered]]) -> 1
A54: 31.12.2012 | B54: UNHCR | C54: KBC | D54: Kachin | E54: Myitkyina | F54: Man Hkring Baptist Church | G54: 1 | J54: 60 | K54: 60 | P54: =Table_Shelter[[#This Row],[HH per Shelter]]*(Table_Shelter[[#This Row],['# of Temporary Shelter Units Built]]+Table_Shelter[[#This Row],['# of Temporary Shelter Under Construction]]+Table_Shelter[[#This Row],['# of Permanent House Built]]+Table_Shelter[[#This Row],['# of Permanent House Under Construction]]) -> 60 | Q54: =VLOOKUP(Table_Shelter[[#This Row],[Camp Name]],'Camp List'!N$5:O$400,2,0) -> MMR001CMP008 | R54: =VLOOKUP(Table_Shelter[[#This Row],[Camp Name]],'Camp List'!N$5:Z$395,14,0) ->  | U54: =MATCH(Table_Shelter[[#This Row],['# of Temporary Shelter Units Built]],Table_Shelter[[#This Row],[HH Covered]]) -> 1
A55: 31.12.2012 | B55: UNHCR | C55: KBC | D55: Kachin | E55: Myitkyina | F55: Njang Dung Baptist Church | G55: 1 | J55: 20 | K55: 20 | P55: =Table_Shelter[[#This Row],[HH per Shelter]]*(Table_Shelter[[#This Row],['# of Temporary Shelter Units Built]]+Table_Shelter[[#This Row],['# of Temporary Shelter Under Construction]]+Table_Shelter[[#This Row],['# of Permanent House Built]]+Table_Shelter[[#This Row],['# of Permanent House Under Construction]]) -> 20 | Q55: =VLOOKUP(Table_Shelter[[#This Row],[Camp Name]],'Camp List'!N$5:O$400,2,0) -> MMR001CMP002 | R55: =VLOOKUP(Table_Shelter[[#This Row],[Camp Name]],'Camp List'!N$5:Z$395,14,0) ->  | U55: =MATCH(Table_Shelter[[#This Row],['# of Temporary Shelter Units Built]],Table_Shelter[[#This Row],[HH Covered]]) -> 1
A56: 31.12.2012 | B56: UNHCR | C56: KBC | D56: Kachin | E56: Myitkyina | F56: Tat Kone San Pya Baptist Church | G56: 1 | J56: 10 | K56: 10 | P56: =Table_Shelter[[#This Row],[HH per Shelter]]*(Table_Shelter[[#This Row],['# of Temporary Shelter Units Built]]+Table_Shelter[[#This Row],['# of Temporary Shelter Under Construction]]+Table_Shelter[[#This Row],['# of Permanent House Built]]+Table_Shelter[[#This Row],['# of Permanent House Under Construction]]) -> 10 | Q56: =VLOOKUP(Table_Shelter[[#This Row],[Camp Name]],'Camp List'!N$5:O$400,2,0) -> MMR001CMP005 | R56: =VLOOKUP(Table_Shelter[[#This Row],[Camp Name]],'Camp List'!N$5:Z$395,14,0) ->  | U56: =MATCH(Table_Shelter[[#This Row],['# of Temporary Shelter Units Built]],Table_Shelter[[#This Row],[HH Covered]]) -> 1
A57: 31.12.2012 | B57: UNHCR | C57: KBC | D57: Kachin | E57: Myitkyina | F57: Shatapru Sut Ngai Tawng | G57: 1 | J57: 10 | K57: 10 | P57: =Table_Shelter[[#This Row],[HH per Shelter]]*(Table_Shelter[[#This Row],['# of Temporary Shelter Units Built]]+Table_Shelter[[#This Row],['# of Temporary Shelter Under Construction]]+Table_Shelter[[#This Row],['# of Permanent House Built]]+Table_Shelter[[#This Row],['# of Permanent House Under Construction]]) -> 10 | Q57: =VLOOKUP(Table_Shelter[[#This Row],[Camp Name]],'Camp List'!N$5:O$400,2,0) -> MMR001CMP006 | R57: =VLOOKUP(Table_Shelter[[#This Row],[Camp Name]],'Camp List'!N$5:Z$395,14,0) ->  | U57: =MATCH(Table_Shelter[[#This Row],['# of Temporary Shelter Units Built]],Table_Shelter[[#This Row],[HH Covered]]) -> 1
A58: 31.12.2012 | B58: UNHCR | C58: KBC | D58: Kachin | E58: Myitkyina | F58: Shwe Zet Baptist Church | G58: 1 | J58: 50 | K58: 50 | P58: =Table_Shelter[[#This Row],[HH per Shelter]]*(Table_Shelter[[#This Row],['# of Temporary Shelter Units Built]]+Table_Shelter[[#This Row],['# of Temporary Shelter Under Construction]]+Table_Shelter[[#This Row],['# of Permanent House Built]]+Table_Shelter[[#This Row],['# of Permanent House Under Construction]]) -> 50 | Q58: =VLOOKUP(Table_Shelter[[#This Row],[Camp Name]],'Camp List'!N$5:O$400,2,0) -> MMR001CMP009 | R58: =VLOOKUP(Table_Shelter[[#This Row],[Camp Name]],'Camp List'!N$5:Z$395,14,0) ->  | U58: =MATCH(Table_Shelter[[#This Row],['# of Temporary Shelter Units Built]],Table_Shelter[[#This Row],[HH Covered]]) -> 1
A59: 31.12.2012 | B59: UNHCR | C59: KBC | D59: Kachin | E59: Myitkyina | F59: Le Kone Ziun Baptist Church | G59: 1 | J59: 60 | K59: 60 | P59: =Table_Shelter[[#This Row],[HH per Shelter]]*(Table_Shelter[[#This Row],['# of Temporary Shelter Units Built]]+Table_Shelter[[#This Row],['# of Temporary Shelter Under Construction]]+Table_Shelter[[#This Row],['# of Permanent House Built]]+Table_Shelter[[#This Row],['# of Permanent House Under Construction]]) -> 60 | Q59: =VLOOKUP(Table_Shelter[[#This Row],[Camp Name]],'Camp List'!N$5:O$400,2,0) -> MMR001CMP014 | R59: =VLOOKUP(Table_Shelter[[#This Row],[Camp Name]],'Camp List'!N$5:Z$395,14,0) ->  | U59: =MATCH(Table_Shelter[[#This Row],['# of Temporary Shelter Units Built]],Table_Shelter[[#This Row],[HH Covered]]) -> 1
A60: 31.12.2012 | B60: UNHCR | C60: KBC | D60: Kachin | E60: Waingmaw | F60: Maina Lawang Baptist Church | G60: 1 | J60: 30 | K60: 30 | P60: =Table_Shelter[[#This Row],[HH per Shelter]]*(Table_Shelter[[#This Row],['# of Temporary Shelter Units Built]]+Table_Shelter[[#This Row],['# of Temporary Shelter Under Construction]]+Table_Shelter[[#This Row],['# of Permanent House Built]]+Table_Shelter[[#This Row],['# of Permanent House Under Construction]]) -> 30 | Q60: =VLOOKUP(Table_Shelter[[#This Row],[Camp Name]],'Camp List'!N$5:O$400,2,0) -> MMR001CMP039 | R60: =VLOOKUP(Table_Shelter[[#This Row],[Camp Name]],'Camp List'!N$5:Z$395,14,0) ->  | U60: =MATCH(Table_Shelter[[#This Row],['# of Temporary Shelter Units Built]],Table_Shelter[[#This Row],[HH Covered]]) -> 1
A61: 31.12.2012 | B61: UNHCR | C61: KBC | D61: Kachin | E61: Waingmaw | F61: Waingmaw Baptist Zonal Office | G61: 1 | J61: 10 | K61: 10 | P61: =Table_Shelter[[#This Row],[HH per Shelter]]*(Table_Shelter[[#This Row],['# of Temporary Shelter Units Built]]+Table_Shelter[[#This Row],['# of Temporary Shelter Under Construction]]+Table_Shelter[[#This Row],['# of Permanent House Built]]+Table_Shelter[[#This Row],['# of Permanent House Under Construction]]) -> 10 | Q61: =VLOOKUP(Table_Shelter[[#This Row],[Camp Name]],'Camp List'!N$5:O$400,2,0) -> MMR001CMP036 | R61: =VLOOKUP(Table_Shelter[[#This Row],[Camp Name]],'Camp List'!N$5:Z$395,14,0) ->  | U61: =MATCH(Table_Shelter[[#This Row],['# of Temporary Shelter Units Built]],Table_Shelter[[#This Row],[HH Covered]]) -> 1
A62: 31.12.2012 | B62: UNHCR | C62: KBC | D62: Kachin | E62: Waingmaw | F62: Qtr. 2 Myoma Baptist Church | G62: 1 | J62: 10 | K62: 10 | P62: =Table_Shelter[[#This Row],[HH per Shelter]]*(Table_Shelter[[#This Row],['# of Temporary Shelter Units Built]]+Table_Shelter[[#This Row],['# of Temporary Shelter Under Construction]]+Table_Shelter[[#This Row],['# of Permanent House Built]]+Table_Shelter[[#This Row],['# of Permanent House Under Construction]]) -> 10 | Q62: =VLOOKUP(Table_Shelter[[#This Row],[Camp Name]],'Camp List'!N$5:O$400,2,0) -> MMR001CMP025 | R62: =VLOOKUP(Table_Shelter[[#This Row],[Camp Name]],'Camp List'!N$5:Z$395,14,0) ->  | U62: =MATCH(Table_Shelter[[#This Row],['# of Temporary Shelter Units Built]],Table_Shelter[[#This Row],[HH Covered]]) -> 1
A63: 31.12.2012 | B63: UNHCR | C63: KBC | D63: Kachin | E63: Waingmaw | F63: Maina KBC (Bawng Ring) | G63: 1 | J63: 400 | K63: 400 | P63: =Table_Shelter[[#This Row],[HH per Shelter]]*(Table_Shelter[[#This Row],['# of Temporary Shelter Units Built]]+Table_Shelter[[#This Row],['# of Temporary Shelter Under Construction]]+Table_Shelter[[#This Row],['# of Permanent House Built]]+Table_Shelter[[#This Row],['# of Permanent House Under Construction]]) -> 400 | Q63: =VLOOKUP(Table_Shelter[[#This Row],[Camp Name]],'Camp List'!N$5:O$400,2,0) -> MMR001CMP040 | R63: =VLOOKUP(Table_Shelter[[#This Row],[Camp Name]],'Camp List'!N$5:Z$395,14,0) ->  | U63: =MATCH(Table_Shelter[[#This Row],['# of Temporary Shelter Units Built]],Table_Shelter[[#This Row],[HH Covered]]) -> 1
A64: 31.12.2012 | B64: UNHCR | C64: KBC | D64: Kachin | E64: Waingmaw | F64: Zai Awng / Mung Ga Zup | G64: 1 | J64: 325 | K64: 325 | P64: =Table_Shelter[[#This Row],[HH per Shelter]]*(Table_Shelter[[#This Row],['# of Temporary Shelter Units Built]]+Table_Shelter[[#This Row],['# of Temporary Shelter Under Construction]]+Table_Shelter[[#This Row],['# of Permanent House Built]]+Table_Shelter[[#This Row],['# of Permanent House Under Construction]]) -> 325 | Q64: =VLOOKUP(Table_Shelter[[#This Row],[Camp Name]],'Camp List'!N$5:O$400,2,0) -> MMR001CMP111 | R64: =VLOOKUP(Table_Shelter[[#This Row],[Camp Name]],'Camp List'!N$5:Z$395,14,0) ->  | U64: =MATCH(Table_Shelter[[#This Row],['# of Temporary Shelter Units Built]],Table_Shelter[[#This Row],[HH Covered]]) -> 1
A65: 31.12.2012 | B65: UNHCR | C65: KBC | D65: Kachin | E65: Waingmaw | F65: Pajau / Jan Mai | G65: 1 | J65: 35 | K65: 35 | P65: =Table_Shelter[[#This Row],[HH per Shelter]]*(Table_Shelter[[#This Row],['# of Temporary Shelter Units Built]]+Table_Shelter[[#This Row],['# of Temporary Shelter Under Construction]]+Table_Shelter[[#This Row],['# of Permanent House Built]]+Table_Shelter[[#This Row],['# of Permanent House Under Construction]]) -> 35 | Q65: =VLOOKUP(Table_Shelter[[#This Row],[Camp Name]],'Camp List'!N$5:O$400,2,0) -> MMR001CMP120 | R65: =VLOOKUP(Table_Shelter[[#This Row],[Camp Name]],'Camp List'!N$5:Z$395,14,0) ->  | U65: =MATCH(Table_Shelter[[#This Row],['# of Temporary Shelter Units Built]],Table_Shelter[[#This Row],[HH Covered]]) -> 1
A66: 31.12.2012 | B66: UNHCR | C66: KBC | D66: Kachin | E66: Waingmaw | F66: Shing Jai | G66: 1 | J66: 170 | K66: 170 | P66: =Table_Shelter[[#This Row],[HH per Shelter]]*(Table_Shelter[[#This Row],['# of Temporary Shelter Units Built]]+Table_Shelter[[#This Row],['# of Temporary Shelter Under Construction]]+Table_Shelter[[#This Row],['# of Permanent House Built]]+Table_Shelter[[#This Row],['# of Permanent House Under Construction]]) -> 170 | Q66: =VLOOKUP(Table_Shelter[[#This Row],[Camp Name]],'Camp List'!N$5:O$400,2,0) -> MMR001CMP041 | R66: =VLOOKUP(Table_Shelter[[#This Row],[Camp Name]],'Camp List'!N$5:Z$395,14,0) ->  | U66: =MATCH(Table_Shelter[[#This Row],['# of Temporary Shelter Units Built]],Table_Shelter[[#This Row],[HH Covered]]) -> 1
A67: 31.12.2012 | B67: UNHCR | C67: KBC | D67: Kachin | E67: Mansi | F67: Man Wing Baptist Church | G67: 1 | J67: 0 | K67: 0 | P67: =Table_Shelter[[#This Row],[HH per Shelter]]*(Table_Shelter[[#This Row],['# of Temporary Shelter Units Built]]+Table_Shelter[[#This Row],['# of Temporary Shelter Under Construction]]+Table_Shelter[[#This Row],['# of Permanent House Built]]+Table_Shelter[[#This Row],['# of Permanent House Under Construction]]) -> 0 | Q67: =VLOOKUP(Table_Shelter[[#This Row],[Camp Name]],'Camp List'!N$5:O$400,2,0) -> MMR001CMP133 | R67: =VLOOKUP(Table_Shelter[[#This Row],[Camp Name]],'Camp List'!N$5:Z$395,14,0) ->  | U67: =MATCH(Table_Shelter[[#This Row],['# of Temporary Shelter Units Built]],Table_Shelter[[#This Row],[HH Covered]]) -> 1
A68: 31.12.2012 | B68: UNHCR | C68: KBC | D68: Kachin | E68: Namhkan | F68: Nam Hkam (KBC Jaw Wang) | G68: 1 | J68: 0 | K68: 0 | P68: =Table_Shelter[[#This Row],[HH per Shelter]]*(Table_Shelter[[#This Row],['# of Temporary Shelter Units Built]]+Table_Shelter[[#This Row],['# of Temporary Shelter Under Construction]]+Table_Shelter[[#This Row],['# of Permanent House Built]]+Table_Shelter[[#This Row],['# of Permanent House Under Construction]]) -> 0 | Q68: =VLOOKUP(Table_Shelter[[#This Row],[Camp Name]],'Camp List'!N$5:O$400,2,0) -> MMR015CMP001 | R68: =VLOOKUP(Table_Shelter[[#This Row],[Camp Name]],'Camp List'!N$5:Z$395,14,0) ->  | U68: =MATCH(Table_Shelter[[#This Row],['# of Temporary Shelter Units Built]],Table_Shelter[[#This Row],[HH Covered]]) -> 1
A69: 31.12.2012 | B69: UNHCR | C69: KBC | D69: Kachin | E69: Namtu | F69: Nam Tu | G69: 1 | J69: 10 | K69: 10 | P69: =Table_Shelter[[#This Row],[HH per Shelter]]*(Table_Shelter[[#This Row],['# of Temporary Shelter Units Built]]+Table_Shelter[[#This Row],['# of Temporary Shelter Under Construction]]+Table_Shelter[[#This Row],['# of Permanent House Built]]+Table_Shelter[[#This Row],['# of Permanent House Under Construction]]) -> 10 | Q69: =VLOOKUP(Table_Shelter[[#This Row],[Camp Name]],'Camp List'!N$5:O$400,2,0) ->  | R69: =VLOOKUP(Table_Shelter[[#This Row],[Camp Name]],'Camp List'!N$5:Z$395,14,0) ->  | U69: =MATCH(Table_Shelter[[#This Row],['# of Temporary Shelter Units Built]],Table_Shelter[[#This Row],[HH Covered]]) -> 1
A70: 31.12.2012 | B70: UNHCR | C70: KBC | D70: Kachin | E70: Namhkan | F70: Nam Hkam - Nay Win Ni (Palawng) | G70: 1 | J70: 20 | K70: 20 | P70: =Table_Shelter[[#This Row],[HH per Shelter]]*(Table_Shelter[[#This Row],['# of Temporary Shelter Units Built]]+Table_Shelter[[#This Row],['# of Temporary Shelter Under Construction]]+Table_Shelter[[#This Row],['# of Permanent House Built]]+Table_Shelter[[#This Row],['# of Permanent House Under Construction]]) -> 20 | Q70: =VLOOKUP(Table_Shelter[[#This Row],[Camp Name]],'Camp List'!N$5:O$400,2,0) -> MMR015CMP004 | R70: =VLOOKUP(Table_Shelter[[#This Row],[Camp Name]],'Camp List'!N$5:Z$395,14,0) ->  | U70: =MATCH(Table_Shelter[[#This Row],['# of Temporary Shelter Units Built]],Table_Shelter[[#This Row],[HH Covered]]) -> 1
A71: 31.12.2012 | B71: UNHCR | C71: KBC | D71: Kachin | E71: Myitkyina | F71: Du Kahtawng Qtr. 4 | G71: 1 | J71: 0 | K71: 0 | P71: =Table_Shelter[[#This Row],[HH per Shelter]]*(Table_Shelter[[#This Row],['# of Temporary Shelter Units Built]]+Table_Shelter[[#This Row],['# of Temporary Shelter Under Construction]]+Table_Shelter[[#This Row],['# of Permanent House Built]]+Table_Shelter[[#This Row],['# of Permanent House Under Construction]]) -> 0 | Q71: =VLOOKUP(Table_Shelter[[#This Row],[Camp Name]],'Camp List'!N$5:O$400,2,0) -> MMR001CMP010 | R71: =VLOOKUP(Table_Shelter[[#This Row],[Camp Name]],'Camp List'!N$5:Z$395,14,0) ->  | U71: =MATCH(Table_Shelter[[#This Row],['# of Temporary Shelter Units Built]],Table_Shelter[[#This Row],[HH Covered]]) -> 1
A72: 31.12.2012 | B72: UNHCR | C72: KBC | D72: Kachin | E72: Myitkyina | F72: Du Kahtawng Qtr. 5 | G72: 1 | J72: 0 | K72: 0 | P72: =Table_Shelter[[#This Row],[HH per Shelter]]*(Table_Shelter[[#This Row],['# of Temporary Shelter Units Built]]+Table_Shelter[[#This Row],['# of Temporary Shelter Under Construction]]+Table_Shelter[[#This Row],['# of Permanent House Built]]+Table_Shelter[[#This Row],['# of Permanent House Under Construction]]) -> 0 | Q72: =VLOOKUP(Table_Shelter[[#This Row],[Camp Name]],'Camp List'!N$5:O$400,2,0) -> MMR001CMP011 | R72: =VLOOKUP(Table_Shelter[[#This Row],[Camp Name]],'Camp List'!N$5:Z$395,14,0) ->  | U72: =MATCH(Table_Shelter[[#This Row],['# of Temporary Shelter Units Built]],Table_Shelter[[#This Row],[HH Covered]]) -> 1
A73: 31.12.2012 | B73: UNHCR | C73: KBC | D73: Kachin | E73: Myitkyina | F73: Du Kahtawng Qtr. 14 | G73: 1 | J73: 0 | K73: 0 | P73: =Table_Shelter[[#This Row],[HH per Shelter]]*(Table_Shelter[[#This Row],['# of Temporary Shelter Units Built]]+Table_Shelter[[#This Row],['# of Temporary Shelter Under Construction]]+Table_Shelter[[#This Row],['# of Permanent House Built]]+Table_Shelter[[#This Row],['# of Permanent House Under Construction]]) -> 0 | Q73: =VLOOKUP(Table_Shelter[[#This Row],[Camp Name]],'Camp List'!N$5:O$400,2,0) -> MMR001CMP012 | R73: =VLOOKUP(Table_Shelter[[#This Row],[Camp Name]],'Camp List'!N$5:Z$395,14,0) ->  | U73: =MATCH(Table_Shelter[[#This Row],['# of Temporary Shelter Units Built]],Table_Shelter[[#This Row],[HH Covered]]) -> 1
A74: 31.12.2012 | B74: UNHCR | C74: KBC | D74: Kachin | E74: Mogaung | F74: Kyun Taw Baptist Church | G74: 1 | J74: 15 | K74: 15 | P74: =Table_Shelter[[#This Row],[HH per Shelter]]*(Table_Shelter[[#This Row],['# of Temporary Shelter Units Built]]+Table_Shelter[[#This Row],['# of Temporary Shelter Under Construction]]+Table_Shelter[[#This Row],['# of Permanent House Built]]+Table_Shelter[[#This Row],['# of Permanent House Under Construction]]) -> 15 | Q74: =VLOOKUP(Table_Shelter[[#This Row],[Camp Name]],'Camp List'!N$5:O$400,2,0) -> MMR001CMP078 | R74: =VLOOKUP(Table_Shelter[[#This Row],[Camp Name]],'Camp List'!N$5:Z$395,14,0) ->  | U74: =MATCH(Table_Shelter[[#This Row],['# of Temporary Shelter Units Built]],Table_Shelter[[#This Row],[HH Covered]]) -> 1
A75: 31.12.2012 | B75: UNHCR | C75: KBC | D75: Kachin | E75: Mogaung | F75: Mang Hawng Baptist Church | G75: 1 | J75: 10 | K75: 10 | P75: =Table_Shelter[[#This Row],[HH per Shelter]]*(Table_Shelter[[#This Row],['# of Temporary Shelter Units Built]]+Table_Shelter[[#This Row],['# of Temporary Shelter Under Construction]]+Table_Shelter[[#This Row],['# of Permanent House Built]]+Table_Shelter[[#This Row],['# of Permanent House Under Construction]]) -> 10 | Q75: =VLOOKUP(Table_Shelter[[#This Row],[Camp Name]],'Camp List'!N$5:O$400,2,0) -> MMR001CMP077 | R75: =VLOOKUP(Table_Shelter[[#This Row],[Camp Name]],'Camp List'!N$5:Z$395,14,0) ->  | U75: =MATCH(Table_Shelter[[#This Row],['# of Temporary Shelter Units Built]],Table_Shelter[[#This Row],[HH Covered]]) -> 1
A76: 31.12.2012 | B76: UNHCR | C76: KBC | D76: Kachin | E76: Mogaung | F76: Nat Gyi Kone Baptist Church | G76: 1 | J76: 15 | K76: 15 | P76: =Table_Shelter[[#This Row],[HH per Shelter]]*(Table_Shelter[[#This Row],['# of Temporary Shelter Units Built]]+Table_Shelter[[#This Row],['# of Temporary Shelter Under Construction]]+Table_Shelter[[#This Row],['# of Permanent House Built]]+Table_Shelter[[#This Row],['# of Permanent House Under Construction]]) -> 15 | Q76: =VLOOKUP(Table_Shelter[[#This Row],[Camp Name]],'Camp List'!N$5:O$400,2,0) -> MMR001CMP079 | R76: =VLOOKUP(Table_Shelter[[#This Row],[Camp Name]],'Camp List'!N$5:Z$395,14,0) ->  | U76: =MATCH(Table_Shelter[[#This Row],['# of Temporary Shelter Units Built]],Table_Shelter[[#This Row],[HH Covered]]) -> 1
A77: 31.12.2012 | B77: UNHCR | C77: KBC | D77: Kachin | E77: Mohnyin | F77: Nawng Ing (Indawgyi) Baptist Church | G77: 1 | J77: 20 | K77: 20 | P77: =Table_Shelter[[#This Row],[HH per Shelter]]*(Table_Shelter[[#This Row],['# of Temporary Shelter Units Built]]+Table_Shelter[[#This Row],['# of Temporary Shelter Under Construction]]+Table_Shelter[[#This Row],['# of Permanent House Built]]+Table_Shelter[[#This Row],['# of Permanent House Under Construction]]) -> 20 | Q77: =VLOOKUP(Table_Shelter[[#This Row],[Camp Name]],'Camp List'!N$5:O$400,2,0) -> MMR001CMP152 | R77: =VLOOKUP(Table_Shelter[[#This Row],[Camp Name]],'Camp List'!N$5:Z$395,14,0) ->  | U77: =MATCH(Table_Shelter[[#This Row],['# of Temporary Shelter Units Built]],Table_Shelter[[#This Row],[HH Covered]]) -> 1
A78: 31.12.2012 | B78: UNHCR | C78: KMSS | D78: Kachin | E78: Myitkyina | F78: Jan Mai Kawng Catholic Church | G78: 1 | J78: 20 | K78: 20 | P78: =Table_Shelter[[#This Row],[HH per Shelter]]*(Table_Shelter[[#This Row],['# of Temporary Shelter Units Built]]+Table_Shelter[[#This Row],['# of Temporary Shelter Under Construction]]+Table_Shelter[[#This Row],['# of Permanent House Built]]+Table_Shelter[[#This Row],['# of Permanent House Under Construction]]) -> 20 | Q78: =VLOOKUP(Table_Shelter[[#This Row],[Camp Name]],'Camp List'!N$5:O$400,2,0) -> MMR001CMP019 | R78: =VLOOKUP(Table_Shelter[[#This Row],[Camp Name]],'Camp List'!N$5:Z$395,14,0) ->  | U78: =MATCH(Table_Shelter[[#This Row],['# of Temporary Shelter Units Built]],Table_Shelter[[#This Row],[HH Covered]]) -> 1
A79: 31.12.2012 | B79: UNHCR | C79: KMSS | D79: Kachin | E79: Myitkyina | F79: Nong Pong Camp | G79: 1 | J79: 21 | K79: 21 | P79: =Table_Shelter[[#This Row],[HH per Shelter]]*(Table_Shelter[[#This Row],['# of Temporary Shelter Units Built]]+Table_Shelter[[#This Row],['# of Temporary Shelter Under Construction]]+Table_Shelter[[#This Row],['# of Permanent House Built]]+Table_Shelter[[#This Row],['# of Permanent House Under Construction]]) -> 21 | Q79: =VLOOKUP(Table_Shelter[[#This Row],[Camp Name]],'Camp List'!N$5:O$400,2,0) ->  | R79: =VLOOKUP(Table_Shelter[[#This Row],[Camp Name]],'Camp List'!N$5:Z$395,14,0) ->  | U79: =MATCH(Table_Shelter[[#This Row],['# of Temporary Shelter Units Built]],Table_Shelter[[#This Row],[HH Covered]]) -> 1
A80: 31.12.2012 | B80: UNHCR | C80: KMSS | D80: Kachin | E80: Waingmaw | F80: Maina Catholic Church (St. Joseph) | G80: 1 | J80: 58 | K80: 58 | P80: =Table_Shelter[[#This Row],[HH per Shelter]]*(Table_Shelter[[#This Row],['# of Temporary Shelter Units Built]]+Table_Shelter[[#This Row],['# of Temporary Shelter Under Construction]]+Table_Shelter[[#This Row],['# of Permanent House Built]]+Table_Shelter[[#This Row],['# of Permanent House Under Construction]]) -> 58 | Q80: =VLOOKUP(Table_Shelter[[#This Row],[Camp Name]],'Camp List'!N$5:O$400,2,0) -> MMR001CMP029 | R80: =VLOOKUP(Table_Shelter[[#This Row],[Camp Name]],'Camp List'!N$5:Z$395,14,0) ->  | U80: =MATCH(Table_Shelter[[#This Row],['# of Temporary Shelter Units Built]],Table_Shelter[[#This Row],[HH Covered]]) -> 1
A81: 31.12.2012 | B81: UNHCR | C81: KMSS | D81: Kachin | E81: Waingmaw | F81: Border Post 8 | G81: 1 | J81: 237 | K81: 237 | P81: =Table_Shelter[[#This Row],[HH per Shelter]]*(Table_Shelter[[#This Row],['# of Temporary Shelter Units Built]]+Table_Shelter[[#This Row],['# of Temporary Shelter Under Construction]]+Table_Shelter[[#This Row],['# of Permanent House Built]]+Table_Shelter[[#This Row],['# of Permanent House Under Construction]]) -> 237 | Q81: =VLOOKUP(Table_Shelter[[#This Row],[Camp Name]],'Camp List'!N$5:O$400,2,0) -> MMR001CMP113 | R81: =VLOOKUP(Table_Shelter[[#This Row],[Camp Name]],'Camp List'!N$5:Z$395,14,0) ->  | U81: =MATCH(Table_Shelter[[#This Row],['# of Temporary Shelter Units Built]],Table_Shelter[[#This Row],[HH Covered]]) -> 1
A82: 31.12.2012 | B82: UNHCR | C82: KMSS | D82: Kachin | E82: Waingmaw | F82: Post 6 Camp | G82: 1 | J82: 0 | K82: 0 | P82: =Table_Shelter[[#This Row],[HH per Shelter]]*(Table_Shelter[[#This Row],['# of Temporary Shelter Units Built]]+Table_Shelter[[#This Row],['# of Temporary Shelter Under Construction]]+Table_Shelter[[#This Row],['# of Permanent House Built]]+Table_Shelter[[#This Row],['# of Permanent House Under Construction]]) -> 0 | Q82: =VLOOKUP(Table_Shelter[[#This Row],[Camp Name]],'Camp List'!N$5:O$400,2,0) -> MMR001CMP160 | R82: =VLOOKUP(Table_Shelter[[#This Row],[Camp Name]],'Camp List'!N$5:Z$395,14,0) ->  | U82: =MATCH(Table_Shelter[[#This Row],['# of Temporary Shelter Units Built]],Table_Shelter[[#This Row],[HH Covered]]) -> 1
A83: 31.12.2012 | B83: UNHCR | C83: KMSS | D83: Kachin | E83: Momauk | F83: Dum Bung | G83: 1 | J83: 123 | K83: 123 | P83: =Table_Shelter[[#This Row],[HH per Shelter]]*(Table_Shelter[[#This Row],['# of Temporary Shelter Units Built]]+Table_Shelter[[#This Row],['# of Temporary Shelter Under Construction]]+Table_Shelter[[#This Row],['# of Permanent House Built]]+Table_Shelter[[#This Row],['# of Permanent House Under Construction]]) -> 123 | Q83: =VLOOKUP(Table_Shelter[[#This Row],[Camp Name]],'Camp List'!N$5:O$400,2,0) -> MMR001CMP123 | R83: =VLOOKUP(Table_Shelter[[#This Row],[Camp Name]],'Camp List'!N$5:Z$395,14,0) ->  | U83: =MATCH(Table_Shelter[[#This Row],['# of Temporary Shelter Units Built]],Table_Shelter[[#This Row],[HH Covered]]) -> 1
A84: 31.12.2012 | B84: UNHCR | C84: Shalom | D84: Kachin | E84: Myitkyina | F84: Wun Tho Buddhist Monastery | G84: 1 | J84: 24 | K84: 24 | P84: =Table_Shelter[[#This Row],[HH per Shelter]]*(Table_Shelter[[#This Row],['# of Temporary Shelter Units Built]]+Table_Shelter[[#This Row],['# of Temporary Shelter Under Construction]]+Table_Shelter[[#This Row],['# of Permanent House Built]]+Table_Shelter[[#This Row],['# of Permanent House Under Construction]]) -> 24 | Q84: =VLOOKUP(Table_Shelter[[#This Row],[Camp Name]],'Camp List'!N$5:O$400,2,0) -> MMR001CMP022 | R84: =VLOOKUP(Table_Shelter[[#This Row],[Camp Name]],'Camp List'!N$5:Z$395,14,0) ->  | U84: =MATCH(Table_Shelter[[#This Row],['# of Temporary Shelter Units Built]],Table_Shelter[[#This Row],[HH Covered]]) -> 1
A85: 31.12.2012 | B85: UNHCR | C85: Shalom | D85: Kachin | E85: Myitkyina | F85: Tat Kone COC Baptist / Tat Kone Htoi San | G85: 1 | J85: 20 | K85: 20 | P85: =Table_Shelter[[#This Row],[HH per Shelter]]*(Table_Shelter[[#This Row],['# of Temporary Shelter Units Built]]+Table_Shelter[[#This Row],['# of Temporary Shelter Under Construction]]+Table_Shelter[[#This Row],['# of Permanent House Built]]+Table_Shelter[[#This Row],['# of Permanent House Under Construction]]) -> 20 | Q85: =VLOOKUP(Table_Shelter[[#This Row],[Camp Name]],'Camp List'!N$5:O$400,2,0) -> MMR001CMP023 | R85: =VLOOKUP(Table_Shelter[[#This Row],[Camp Name]],'Camp List'!N$5:Z$395,14,0) ->  | U85: =MATCH(Table_Shelter[[#This Row],['# of Temporary Shelter Units Built]],Table_Shelter[[#This Row],[HH Covered]]) -> 1
A86: 31.12.2012 | B86: UNHCR | C86: Shalom | D86: Kachin | E86: Myitkyina | F86: Tat Kone San Pya Baptist Church | G86: 1 | J86: 5 | K86: 5 | P86: =Table_Shelter[[#This Row],[HH per Shelter]]*(Table_Shelter[[#This Row],['# of Temporary Shelter Units Built]]+Table_Shelter[[#This Row],['# of Temporary Shelter Under Construction]]+Table_Shelter[[#This Row],['# of Permanent House Built]]+Table_Shelter[[#This Row],['# of Permanent House Under Construction]]) -> 5 | Q86: =VLOOKUP(Table_Shelter[[#This Row],[Camp Name]],'Camp List'!N$5:O$400,2,0) -> MMR001CMP005 | R86: =VLOOKUP(Table_Shelter[[#This Row],[Camp Name]],'Camp List'!N$5:Z$395,14,0) ->  | U86: =MATCH(Table_Shelter[[#This Row],['# of Temporary Shelter Units Built]],Table_Shelter[[#This Row],[HH Covered]]) -> 1
A87: 31.12.2012 | B87: UNHCR | C87: Shalom | D87: Kachin | E87: Myitkyina | F87: Maw Hpawng Lhaovo Baptist Church | G87: 1 | J87: 19 | K87: 19 | P87: =Table_Shelter[[#This Row],[HH per Shelter]]*(Table_Shelter[[#This Row],['# of Temporary Shelter Units Built]]+Table_Shelter[[#This Row],['# of Temporary Shelter Under Construction]]+Table_Shelter[[#This Row],['# of Permanent House Built]]+Table_Shelter[[#This Row],['# of Permanent House Under Construction]]) -> 19 | Q87: =VLOOKUP(Table_Shelter[[#This Row],[Camp Name]],'Camp List'!N$5:O$400,2,0) -> MMR001CMP021 | R87: =VLOOKUP(Table_Shelter[[#This Row],[Camp Name]],'Camp List'!N$5:Z$395,14,0) ->  | U87: =MATCH(Table_Shelter[[#This Row],['# of Temporary Shelter Units Built]],Table_Shelter[[#This Row],[HH Covered]]) -> 1
A88: 31.12.2012 | B88: UNHCR | C88: Shalom | D88: Kachin | E88: Myitkyina | F88: Maw Hpawng Hka Nan Baptist Church | G88: 1 | J88: 11 | K88: 11 | P88: =Table_Shelter[[#This Row],[HH per Shelter]]*(Table_Shelter[[#This Row],['# of Temporary Shelter Units Built]]+Table_Shelter[[#This Row],['# of Temporary Shelter Under Construction]]+Table_Shelter[[#This Row],['# of Permanent House Built]]+Table_Shelter[[#This Row],['# of Permanent House Under Construction]]) -> 11 | Q88: =VLOOKUP(Table_Shelter[[#This Row],[Camp Name]],'Camp List'!N$5:O$400,2,0) -> MMR001CMP020 | R88: =VLOOKUP(Table_Shelter[[#This Row],[Camp Name]],'Camp List'!N$5:Z$395,14,0) ->  | U88: =MATCH(Table_Shelter[[#This Row],['# of Temporary Shelter Units Built]],Table_Shelter[[#This Row],[HH Covered]]) -> 1
A89: 31.12.2012 | B89: UNHCR | C89: Shalom | D89: Kachin | E89: Waingmaw | F89: Maina AG Church | G89: 1 | J89: 54 | K89: 54 | P89: =Table_Shelter[[#This Row],[HH per Shelter]]*(Table_Shelter[[#This Row],['# of Temporary Shelter Units Built]]+Table_Shelter[[#This Row],['# of Temporary Shelter Under Construction]]+Table_Shelter[[#This Row],['# of Permanent House Built]]+Table_Shelter[[#This Row],['# of Permanent House Under Construction]]) -> 54 | Q89: =VLOOKUP(Table_Shelter[[#This Row],[Camp Name]],'Camp List'!N$5:O$400,2,0) -> MMR001CMP031 | R89: =VLOOKUP(Table_Shelter[[#This Row],[Camp Name]],'Camp List'!N$5:Z$395,14,0) ->  | U89: =MATCH(Table_Shelter[[#This Row],['# of Temporary Shelter Units Built]],Table_Shelter[[#This Row],[HH Covered]]) -> 1
A90: 31.12.2012 | B90: UNHCR | C90: Shalom | D90: Kachin | E90: Waingmaw | F90: Qtr. 4 Monestry (Thargaya Thayett Taw) | G90: 1 | J90: 100 | K90: 100 | P90: =Table_Shelter[[#This Row],[HH per Shelter]]*(Table_Shelter[[#This Row],['# of Temporary Shelter Units Built]]+Table_Shelter[[#This Row],['# of Temporary Shelter Under Construction]]+Table_Shelter[[#This Row],['# of Permanent House Built]]+Table_Shelter[[#This Row],['# of Permanent House Under Construction]]) -> 100 | Q90: =VLOOKUP(Table_Shelter[[#This Row],[Camp Name]],'Camp List'!N$5:O$400,2,0) -> MMR001CMP026 | R90: =VLOOKUP(Table_Shelter[[#This Row],[Camp Name]],'Camp List'!N$5:Z$395,14,0) ->  | U90: =MATCH(Table_Shelter[[#This Row],['# of Temporary Shelter Units Built]],Table_Shelter[[#This Row],[HH Covered]]) -> 1
A91: 31.12.2012 | B91: UNHCR | C91: Shalom | D91: Kachin | E91: Waingmaw | F91: Thargaya Lisu Baptist Church | G91: 1 | J91: 27 | K91: 27 | P91: =Table_Shelter[[#This Row],[HH per Shelter]]*(Table_Shelter[[#This Row],['# of Temporary Shelter Units Built]]+Table_Shelter[[#This Row],['# of Temporary Shelter Under Construction]]+Table_Shelter[[#This Row],['# of Permanent House Built]]+Table_Shelter[[#This Row],['# of Permanent House Under Construction]]) -> 27 | Q91: =VLOOKUP(Table_Shelter[[#This Row],[Camp Name]],'Camp List'!N$5:O$400,2,0) -> MMR001CMP037 | R91: =VLOOKUP(Table_Shelter[[#This Row],[Camp Name]],'Camp List'!N$5:Z$395,14,0) ->  | U91: =MATCH(Table_Shelter[[#This Row],['# of Temporary Shelter Units Built]],Table_Shelter[[#This Row],[HH Covered]]) -> 1
A92: 31.12.2012 | B92: UNHCR | C92: Shalom | D92: Kachin | E92: Waingmaw | F92: Hkat Cho | G92: 1 | J92: 50 | K92: 50 | P92: =Table_Shelter[[#This Row],[HH per Shelter]]*(Table_Shelter[[#This Row],['# of Temporary Shelter Units Built]]+Table_Shelter[[#This Row],['# of Temporary Shelter Under Construction]]+Table_Shelter[[#This Row],['# of Permanent House Built]]+Table_Shelter[[#This Row],['# of Permanent House Under Construction]]) -> 50 | Q92: =VLOOKUP(Table_Shelter[[#This Row],[Camp Name]],'Camp List'!N$5:O$400,2,0) -> MMR001CMP028 | R92: =VLOOKUP(Table_Shelter[[#This Row],[Camp Name]],'Camp List'!N$5:Z$395,14,0) ->  | U92: =MATCH(Table_Shelter[[#This Row],['# of Temporary Shelter Units Built]],Table_Shelter[[#This Row],[HH Covered]]) -> 1
A93: 31.12.2012 | B93: UNHCR | C93: Shalom | D93: Kachin | E93: Waingmaw | F93: Qtr. 3 Mu-yin Baptist Church | G93: 1 | J93: 12 | K93: 12 | P93: =Table_Shelter[[#This Row],[HH per Shelter]]*(Table_Shelter[[#This Row],['# of Temporary Shelter Units Built]]+Table_Shelter[[#This Row],['# of Temporary Shelter Under Construction]]+Table_Shelter[[#This Row],['# of Permanent House Built]]+Table_Shelter[[#This Row],['# of Permanent House Under Construction]]) -> 12 | Q93: =VLOOKUP(Table_Shelter[[#This Row],[Camp Name]],'Camp List'!N$5:O$400,2,0) -> MMR001CMP030 | R93: =VLOOKUP(Table_Shelter[[#This Row],[Camp Name]],'Camp List'!N$5:Z$395,14,0) ->  | U93: =MATCH(Table_Shelter[[#This Row],['# of Temporary Shelter Units Built]],Table_Shelter[[#This Row],[HH Covered]]) -> 1
A94: 31.12.2012 | B94: UNHCR | C94: Shalom | D94: Kachin | E94: Waingmaw | F94: Waingmaw AG Church | G94: 1 | J94: 28 | K94: 28 | P94: =Table_Shelter[[#This Row],[HH per Shelter]]*(Table_Shelter[[#This Row],['# of Temporary Shelter Units Built]]+Table_Shelter[[#This Row],['# of Temporary Shelter Under Construction]]+Table_Shelter[[#This Row],['# of Permanent House Built]]+Table_Shelter[[#This Row],['# of Permanent House Under Construction]]) -> 28 | Q94: =VLOOKUP(Table_Shelter[[#This Row],[Camp Name]],'Camp List'!N$5:O$400,2,0) -> MMR001CMP038 | R94: =VLOOKUP(Table_Shelter[[#This Row],[Camp Name]],'Camp List'!N$5:Z$395,14,0) ->  | U94: =MATCH(Table_Shelter[[#This Row],['# of Temporary Shelter Units Built]],Table_Shelter[[#This Row],[HH Covered]]) -> 1
A95: 31.12.2012 | B95: UNHCR | C95: Shalom | D95: Kachin | E95: Waingmaw | F95: Qtr. 2 Lhaovo Baptist Church | G95: 1 | J95: 45 | K95: 45 | P95: =Table_Shelter[[#This Row],[HH per Shelter]]*(Table_Shelter[[#This Row],['# of Temporary Shelter Units Built]]+Table_Shelter[[#This Row],['# of Temporary Shelter Under Construction]]+Table_Shelter[[#This Row],['# of Permanent House Built]]+Table_Shelter[[#This Row],['# of Permanent House Under Construction]]) -> 45 | Q95: =VLOOKUP(Table_Shelter[[#This Row],[Camp Name]],'Camp List'!N$5:O$400,2,0) -> MMR001CMP032 | R95: =VLOOKUP(Table_Shelter[[#This Row],[Camp Name]],'Camp List'!N$5:Z$395,14,0) ->  | U95: =MATCH(Table_Shelter[[#This Row],['# of Temporary Shelter Units Built]],Table_Shelter[[#This Row],[HH Covered]]) -> 1
A96: 31.12.2012 | B96: UNHCR | C96: Shalom | D96: Kachin | E96: Waingmaw | F96: Mading Baptist Church | G96: 1 | J96: 25 | K96: 25 | P96: =Table_Shelter[[#This Row],[HH per Shelter]]*(Table_Shelter[[#This Row],['# of Temporary Shelter Units Built]]+Table_Shelter[[#This Row],['# of Temporary Shelter Under Construction]]+Table_Shelter[[#This Row],['# of Permanent House Built]]+Table_Shelter[[#This Row],['# of Permanent House Under Construction]]) -> 25 | Q96: =VLOOKUP(Table_Shelter[[#This Row],[Camp Name]],'Camp List'!N$5:O$400,2,0) -> MMR001CMP027 | R96: =VLOOKUP(Table_Shelter[[#This Row],[Camp Name]],'Camp List'!N$5:Z$395,14,0) ->  | U96: =MATCH(Table_Shelter[[#This Row],['# of Temporary Shelter Units Built]],Table_Shelter[[#This Row],[HH Covered]]) -> 1
A97: 31.12.2012 | B97: UNHCR | C97: Shalom | D97: Kachin | E97: Waingmaw | F97: Lhaovao Baptist Church (LBC) | G97: 1 | J97: 70 | K97: 70 | P97: =Table_Shelter[[#This Row],[HH per Shelter]]*(Table_Shelter[[#This Row],['# of Temporary Shelter Units Built]]+Table_Shelter[[#This Row],['# of Temporary Shelter Under Construction]]+Table_Shelter[[#This Row],['# of Permanent House Built]]+Table_Shelter[[#This Row],['# of Permanent House Under Construction]]) -> 70 | Q97: =VLOOKUP(Table_Shelter[[#This Row],[Camp Name]],'Camp List'!N$5:O$400,2,0) -> MMR001CMP195 | R97: =VLOOKUP(Table_Shelter[[#This Row],[Camp Name]],'Camp List'!N$5:Z$395,14,0) ->  | U97: =MATCH(Table_Shelter[[#This Row],['# of Temporary Shelter Units Built]],Table_Shelter[[#This Row],[HH Covered]]) -> 1
A98: 31.12.2012 | B98: UNHCR | C98: Shalom | D98: Kachin | E98: Hpakant | F98: Nga Pyaw Taw Baptist Nursery School | G98: 1 | J98: 20 | K98: 20 | P98: =Table_Shelter[[#This Row],[HH per Shelter]]*(Table_Shelter[[#This Row],['# of Temporary Shelter Units Built]]+Table_Shelter[[#This Row],['# of Temporary Shelter Under Construction]]+Table_Shelter[[#This Row],['# of Permanent House Built]]+Table_Shelter[[#This Row],['# of Permanent House Under Construction]]) -> 20 | Q98: =VLOOKUP(Table_Shelter[[#This Row],[Camp Name]],'Camp List'!N$5:O$400,2,0) -> MMR001CMP082 | R98: =VLOOKUP(Table_Shelter[[#This Row],[Camp Name]],'Camp List'!N$5:Z$395,14,0) ->  | U98: =MATCH(Table_Shelter[[#This Row],['# of Temporary Shelter Units Built]],Table_Shelter[[#This Row],[HH Covered]]) -> 1
A99: 31.12.2012 | B99: UNHCR | C99: Shalom | D99: Kachin | E99: Hpakant | F99: Maw Wan, Kachin Baptist Church | G99: 1 | J99: 10 | K99: 10 | P99: =Table_Shelter[[#This Row],[HH per Shelter]]*(Table_Shelter[[#This Row],['# of Temporary Shelter Units Built]]+Table_Shelter[[#This Row],['# of Temporary Shelter Under Construction]]+Table_Shelter[[#This Row],['# of Permanent House Built]]+Table_Shelter[[#This Row],['# of Permanent House Under Construction]]) -> 10 | Q99: =VLOOKUP(Table_Shelter[[#This Row],[Camp Name]],'Camp List'!N$5:O$400,2,0) -> MMR001CMP085 | R99: =VLOOKUP(Table_Shelter[[#This Row],[Camp Name]],'Camp List'!N$5:Z$395,14,0) ->  | U99: =MATCH(Table_Shelter[[#This Row],['# of Temporary Shelter Units Built]],Table_Shelter[[#This Row],[HH Covered]]) -> 1
A100: 31.12.2012 | B100: UNHCR | C100: Shalom | D100: Kachin | E100: Hpakant | F100: Mashi Kahtawng Baptist Church | G100: 1 | J100: 10 | K100: 10 | P100: =Table_Shelter[[#This Row],[HH per Shelter]]*(Table_Shelter[[#This Row],['# of Temporary Shelter Units Built]]+Table_Shelter[[#This Row],['# of Temporary Shelter Under Construction]]+Table_Shelter[[#This Row],['# of Permanent House Built]]+Table_Shelter[[#This Row],['# of Permanent House Under Construction]]) -> 10 | Q100: =VLOOKUP(Table_Shelter[[#This Row],[Camp Name]],'Camp List'!N$5:O$400,2,0) -> MMR001CMP094 | R100: =VLOOKUP(Table_Shelter[[#This Row],[Camp Name]],'Camp List'!N$5:Z$395,14,0) ->  | U100: =MATCH(Table_Shelter[[#This Row],['# of Temporary Shelter Units Built]],Table_Shelter[[#This Row],[HH Covered]]) -> 1
A101: 31.12.2012 | B101: UNHCR | C101: Shalom | D101: Kachin | E101: Hpakant | F101: Yumar Baptist Church | G101: 1 | J101: 10 | K101: 10 | P101: =Table_Shelter[[#This Row],[HH per Shelter]]*(Table_Shelter[[#This Row],['# of Temporary Shelter Units Built]]+Table_Shelter[[#This Row],['# of Temporary Shelter Under Construction]]+Table_Shelter[[#This Row],['# of Permanent House Built]]+Table_Shelter[[#This Row],['# of Permanent House Under Construction]]) -> 10 | Q101: =VLOOKUP(Table_Shelter[[#This Row],[Camp Name]],'Camp List'!N$5:O$400,2,0) -> MMR001CMP105 | R101: =VLOOKUP(Table_Shelter[[#This Row],[Camp Name]],'Camp List'!N$5:Z$395,14,0) ->  | U101: =MATCH(Table_Shelter[[#This Row],['# of Temporary Shelter Units Built]],Table_Shelter[[#This Row],[HH Covered]]) -> 1
A102: 31.12.2012 | B102: UNHCR | C102: HCR | D102: Kachin | E102: Myitkyina | F102: Shatapru Sut Ngai Tawng | G102: 1 | J102: 40 | K102: 40 | P102: =Table_Shelter[[#This Row],[HH per Shelter]]*(Table_Shelter[[#This Row],['# of Temporary Shelter Units Built]]+Table_Shelter[[#This Row],['# of Temporary Shelter Under Construction]]+Table_Shelter[[#This Row],['# of Permanent House Built]]+Table_Shelter[[#This Row],['# of Permanent House Under Construction]]) -> 40 | Q102: =VLOOKUP(Table_Shelter[[#This Row],[Camp Name]],'Camp List'!N$5:O$400,2,0) -> MMR001CMP006 | R102: =VLOOKUP(Table_Shelter[[#This Row],[Camp Name]],'Camp List'!N$5:Z$395,14,0) ->  | U102: =MATCH(Table_Shelter[[#This Row],['# of Temporary Shelter Units Built]],Table_Shelter[[#This Row],[HH Covered]]) -> 1
A103: 31.12.2012 | B103: UNHCR | C103: HCR | D103: Kachin | E103: Myitkyina | F103: Man Hkring Baptist Church | G103: 1 | J103: 10 | K103: 10 | P103: =Table_Shelter[[#This Row],[HH per Shelter]]*(Table_Shelter[[#This Row],['# of Temporary Shelter Units Built]]+Table_Shelter[[#This Row],['# of Temporary Shelter Under Construction]]+Table_Shelter[[#This Row],['# of Permanent House Built]]+Table_Shelter[[#This Row],['# of Permanent House Under Construction]]) -> 10 | Q103: =VLOOKUP(Table_Shelter[[#This Row],[Camp Name]],'Camp List'!N$5:O$400,2,0) -> MMR001CMP008 | R103: =VLOOKUP(Table_Shelter[[#This Row],[Camp Name]],'Camp List'!N$5:Z$395,14,0) ->  | U103: =MATCH(Table_Shelter[[#This Row],['# of Temporary Shelter Units Built]],Table_Shelter[[#This Row],[HH Covered]]) -> 1
A104: 31.12.2012 | B104: UNHCR | C104: HCR | D104: Kachin | E104: Myitkyina | F104: Le Kone Ziun Baptist Church | G104: 1 | J104: 5 | K104: 5 | P104: =Table_Shelter[[#This Row],[HH per Shelter]]*(Table_Shelter[[#This Row],['# of Temporary Shelter Units Built]]+Table_Shelter[[#This Row],['# of Temporary Shelter Under Construction]]+Table_Shelter[[#This Row],['# of Permanent House Built]]+Table_Shelter[[#This Row],['# of Permanent House Under Construction]]) -> 5 | Q104: =VLOOKUP(Table_Shelter[[#This Row],[Camp Name]],'Camp List'!N$5:O$400,2,0) -> MMR001CMP014 | R104: =VLOOKUP(Table_Shelter[[#This Row],[Camp Name]],'Camp List'!N$5:Z$395,14,0) ->  | U104: =MATCH(Table_Shelter[[#This Row],['# of Temporary Shelter Units Built]],Table_Shelter[[#This Row],[HH Covered]]) -> 1
A105: 31.12.2012 | B105: UNHCR | C105: HCR | D105: Kachin | E105: Myitkyina | F105: Du Kahtawng Qtr. 4 | G105: 1 | J105: 6 | K105: 6 | P105: =Table_Shelter[[#This Row],[HH per Shelter]]*(Table_Shelter[[#This Row],['# of Temporary Shelter Units Built]]+Table_Shelter[[#This Row],['# of Temporary Shelter Under Construction]]+Table_Shelter[[#This Row],['# of Permanent House Built]]+Table_Shelter[[#This Row],['# of Permanent House Under Construction]]) -> 6 | Q105: =VLOOKUP(Table_Shelter[[#This Row],[Camp Name]],'Camp List'!N$5:O$400,2,0) -> MMR001CMP010 | R105: =VLOOKUP(Table_Shelter[[#This Row],[Camp Name]],'Camp List'!N$5:Z$395,14,0) ->  | U105: =MATCH(Table_Shelter[[#This Row],['# of Temporary Shelter Units Built]],Table_Shelter[[#This Row],[HH Covered]]) -> 1
A106: 31.12.2012 | B106: UNHCR | C106: HCR | D106: Kachin | E106: Myitkyina | F106: Du Kahtawng Qtr. 5 | G106: 1 | J106: 3 | K106: 3 | P106: =Table_Shelter[[#This Row],[HH per Shelter]]*(Table_Shelter[[#This Row],['# of Temporary Shelter Units Built]]+Table_Shelter[[#This Row],['# of Temporary Shelter Under Construction]]+Table_Shelter[[#This Row],['# of Permanent House Built]]+Table_Shelter[[#This Row],['# of Permanent House Under Construction]]) -> 3 | Q106: =VLOOKUP(Table_Shelter[[#This Row],[Camp Name]],'Camp List'!N$5:O$400,2,0) -> MMR001CMP011 | R106: =VLOOKUP(Table_Shelter[[#This Row],[Camp Name]],'Camp List'!N$5:Z$395,14,0) ->  | U106: =MATCH(Table_Shelter[[#This Row],['# of Temporary Shelter Units Built]],Table_Shelter[[#This Row],[HH Covered]]) -> 1
A107: 31.12.2012 | B107: UNHCR | C107: HCR | D107: Kachin | E107: Myitkyina | F107: Du Kahtawng Qtr. 14 | G107: 1 | J107: 3 | K107: 3 | P107: =Table_Shelter[[#This Row],[HH per Shelter]]*(Table_Shelter[[#This Row],['# of Temporary Shelter Units Built]]+Table_Shelter[[#This Row],['# of Temporary Shelter Under Construction]]+Table_Shelter[[#This Row],['# of Permanent House Built]]+Table_Shelter[[#This Row],['# of Permanent House Under Construction]]) -> 3 | Q107: =VLOOKUP(Table_Shelter[[#This Row],[Camp Name]],'Camp List'!N$5:O$400,2,0) -> MMR001CMP012 | R107: =VLOOKUP(Table_Shelter[[#This Row],[Camp Name]],'Camp List'!N$5:Z$395,14,0) ->  | U107: =MATCH(Table_Shelter[[#This Row],['# of Temporary Shelter Units Built]],Table_Shelter[[#This Row],[HH Covered]]) -> 1
A108: 31.12.2012 | B108: UNHCR | C108: HCR | D108: Kachin | E108: Myitkyina | F108: Tat Kone Emanuel Church | G108: 1 | J108: 5 | K108: 5 | P108: =Table_Shelter[[#This Row],[HH per Shelter]]*(Table_Shelter[[#This Row],['# of Temporary Shelter Units Built]]+Table_Shelter[[#This Row],['# of Temporary Shelter Under Construction]]+Table_Shelter[[#This Row],['# of Permanent House Built]]+Table_Shelter[[#This Row],['# of Permanent House Under Construction]]) -> 5 | Q108: =VLOOKUP(Table_Shelter[[#This Row],[Camp Name]],'Camp List'!N$5:O$400,2,0) -> MMR001CMP004 | R108: =VLOOKUP(Table_Shelter[[#This Row],[Camp Name]],'Camp List'!N$5:Z$395,14,0) ->  | U108: =MATCH(Table_Shelter[[#This Row],['# of Temporary Shelter Units Built]],Table_Shelter[[#This Row],[HH Covered]]) -> 1
A109: 31.12.2012 | B109: UNHCR | C109: HCR | D109: Kachin | E109: Myitkyina | F109: Jan Mai Kawng Baptist Church | G109: 1 | J109: 50 | K109: 50 | P109: =Table_Shelter[[#This Row],[HH per Shelter]]*(Table_Shelter[[#This Row],['# of Temporary Shelter Units Built]]+Table_Shelter[[#This Row],['# of Temporary Shelter Under Construction]]+Table_Shelter[[#This Row],['# of Permanent House Built]]+Table_Shelter[[#This Row],['# of Permanent House Under Construction]]) -> 50 | Q109: =VLOOKUP(Table_Shelter[[#This Row],[Camp Name]],'Camp List'!N$5:O$400,2,0) -> MMR001CMP018 | R109: =VLOOKUP(Table_Shelter[[#This Row],[Camp Name]],'Camp List'!N$5:Z$395,14,0) ->  | U109: =MATCH(Table_Shelter[[#This Row],['# of Temporary Shelter Units Built]],Table_Shelter[[#This Row],[HH Covered]]) -> 1
A110: 31.12.2012 | B110: UNHCR | C110: HCR | D110: Kachin | E110: Waingmaw | F110: Qtr. 2 Myoma Baptist Church | G110: 1 | J110: 10 | K110: 10 | P110: =Table_Shelter[[#This Row],[HH per Shelter]]*(Table_Shelter[[#This Row],['# of Temporary Shelter Units Built]]+Table_Shelter[[#This Row],['# of Temporary Shelter Under Construction]]+Table_Shelter[[#This Row],['# of Permanent House Built]]+Table_Shelter[[#This Row],['# of Permanent House Under Construction]]) -> 10 | Q110: =VLOOKUP(Table_Shelter[[#This Row],[Camp Name]],'Camp List'!N$5:O$400,2,0) -> MMR001CMP025 | R110: =VLOOKUP(Table_Shelter[[#This Row],[Camp Name]],'Camp List'!N$5:Z$395,14,0) ->  | U110: =MATCH(Table_Shelter[[#This Row],['# of Temporary Shelter Units Built]],Table_Shelter[[#This Row],[HH Covered]]) -> 1
A111: 31.12.2012 | B111: UNHCR | C111: HCR | D111: Kachin | E111: Waingmaw | F111: Maina Lawang Baptist Church | G111: 1 | J111: 5 | K111: 5 | P111: =Table_Shelter[[#This Row],[HH per Shelter]]*(Table_Shelter[[#This Row],['# of Temporary Shelter Units Built]]+Table_Shelter[[#This Row],['# of Temporary Shelter Under Construction]]+Table_Shelter[[#This Row],['# of Permanent House Built]]+Table_Shelter[[#This Row],['# of Permanent House Under Construction]]) -> 5 | Q111: =VLOOKUP(Table_Shelter[[#This Row],[Camp Name]],'Camp List'!N$5:O$400,2,0) -> MMR001CMP039 | R111: =VLOOKUP(Table_Shelter[[#This Row],[Camp Name]],'Camp List'!N$5:Z$395,14,0) ->  | U111: =MATCH(Table_Shelter[[#This Row],['# of Temporary Shelter Units Built]],Table_Shelter[[#This Row],[HH Covered]]) -> 1
A112: 31.12.2012 | B112: UNHCR | C112: HCR | D112: Kachin | E112: Waingmaw | F112: Waingmaw Baptist Zonal Office | G112: 1 | J112: 5 | K112: 5 | P112: =Table_Shelter[[#This Row],[HH per Shelter]]*(Table_Shelter[[#This Row],['# of Temporary Shelter Units Built]]+Table_Shelter[[#This Row],['# of Temporary Shelter Under Construction]]+Table_Shelter[[#This Row],['# of Permanent House Built]]+Table_Shelter[[#This Row],['# of Permanent House Under Construction]]) -> 5 | Q112: =VLOOKUP(Table_Shelter[[#This Row],[Camp Name]],'Camp List'!N$5:O$400,2,0) -> MMR001CMP036 | R112: =VLOOKUP(Table_Shelter[[#This Row],[Camp Name]],'Camp List'!N$5:Z$395,14,0) ->  | U112: =MATCH(Table_Shelter[[#This Row],['# of Temporary Shelter Units Built]],Table_Shelter[[#This Row],[HH Covered]]) -> 1
A113: 31.12.2012 | B113: UNHCR | C113: HCR | D113: Kachin | E113: Waingmaw | F113: Maina Catholic Church (St. Joseph) | G113: 1 | J113: 120 | K113: 120 | P113: =Table_Shelter[[#This Row],[HH per Shelter]]*(Table_Shelter[[#This Row],['# of Temporary Shelter Units Built]]+Table_Shelter[[#This Row],['# of Temporary Shelter Under Construction]]+Table_Shelter[[#This Row],['# of Permanent House Built]]+Table_Shelter[[#This Row],['# of Permanent House Under Construction]]) -> 120 | Q113: =VLOOKUP(Table_Shelter[[#This Row],[Camp Name]],'Camp List'!N$5:O$400,2,0) -> MMR001CMP029 | R113: =VLOOKUP(Table_Shelter[[#This Row],[Camp Name]],'Camp List'!N$5:Z$395,14,0) ->  | U113: =MATCH(Table_Shelter[[#This Row],['# of Temporary Shelter Units Built]],Table_Shelter[[#This Row],[HH Covered]]) -> 1
A114: 31.12.2012 | B114: UNHCR | C114: HCR | D114: Kachin | E114: Bhamo | F114: Robert Church | G114: 1 | J114: 140 | K114: 140 | P114: =Table_Shelter[[#This Row],[HH per Shelter]]*(Table_Shelter[[#This Row],['# of Temporary Shelter Units Built]]+Table_Shelter[[#This Row],['# of Temporary Shelter Under Construction]]+Table_Shelter[[#This Row],['# of Permanent House Built]]+Table_Shelter[[#This Row],['# of Permanent House Under Construction]]) -> 140 | Q114: =VLOOKUP(Table_Shelter[[#This Row],[Camp Name]],'Camp List'!N$5:O$400,2,0) -> MMR001CMP047 | R114: =VLOOKUP(Table_Shelter[[#This Row],[Camp Name]],'Camp List'!N$5:Z$395,14,0) ->  | U114: =MATCH(Table_Shelter[[#This Row],['# of Temporary Shelter Units Built]],Table_Shelter[[#This Row],[HH Covered]]) -> 1
A115: 31.12.2012 | B115: UNHCR | C115: HCR | D115: Kachin | E115: Bhamo | F115: AD-2000 Tharthana Compound | G115: 1 | J115: 10 | K115: 10 | P115: =Table_Shelter[[#This Row],[HH per Shelter]]*(Table_Shelter[[#This Row],['# of Temporary Shelter Units Built]]+Table_Shelter[[#This Row],['# of Temporary Shelter Under Construction]]+Table_Shelter[[#This Row],['# of Permanent House Built]]+Table_Shelter[[#This Row],['# of Permanent House Under Construction]]) -> 10 | Q115: =VLOOKUP(Table_Shelter[[#This Row],[Camp Name]],'Camp List'!N$5:O$400,2,0) -> MMR001CMP050 | R115: =VLOOKUP(Table_Shelter[[#This Row],[Camp Name]],'Camp List'!N$5:Z$395,14,0) ->  | U115: =MATCH(Table_Shelter[[#This Row],['# of Temporary Shelter Units Built]],Table_Shelter[[#This Row],[HH Covered]]) -> 1
A116: 31.12.2012 | B116: UNHCR | C116: HCR | D116: Kachin | E116: Bhamo | F116: Lisu Boarding-House | G116: 1 | J116: 15 | K116: 15 | P116: =Table_Shelter[[#This Row],[HH per Shelter]]*(Table_Shelter[[#This Row],['# of Temporary Shelter Units Built]]+Table_Shelter[[#This Row],['# of Temporary Shelter Under Construction]]+Table_Shelter[[#This Row],['# of Permanent House Built]]+Table_Shelter[[#This Row],['# of Permanent House Under Construction]]) -> 15 | Q116: =VLOOKUP(Table_Shelter[[#This Row],[Camp Name]],'Camp List'!N$5:O$400,2,0) -> MMR001CMP049 | R116: =VLOOKUP(Table_Shelter[[#This Row],[Camp Name]],'Camp List'!N$5:Z$395,14,0) ->  | U116: =MATCH(Table_Shelter[[#This Row],['# of Temporary Shelter Units Built]],Table_Shelter[[#This Row],[HH Covered]]) -> 1
A117: 31.12.2012 | B117: UNHCR | C117: HCR | D117: Kachin | E117: Bhamo | F117: Nant Hlaing Church | G117: 1 | J117: 10 | K117: 10 | P117: =Table_Shelter[[#This Row],[HH per Shelter]]*(Table_Shelter[[#This Row],['# of Temporary Shelter Units Built]]+Table_Shelter[[#This Row],['# of Temporary Shelter Under Construction]]+Table_Shelter[[#This Row],['# of Permanent House Built]]+Table_Shelter[[#This Row],['# of Permanent House Under Construction]]) -> 10 | Q117: =VLOOKUP(Table_Shelter[[#This Row],[Camp Name]],'Camp List'!N$5:O$400,2,0) -> MMR001CMP054 | R117: =VLOOKUP(Table_Shelter[[#This Row],[Camp Name]],'Camp List'!N$5:Z$395,14,0) ->  | U117: =MATCH(Table_Shelter[[#This Row],['# of Temporary Shelter Units Built]],Table_Shelter[[#This Row],[HH Covered]]) -> 1
A118: 31.12.2012 | B118: UNHCR | C118: HCR | D118: Kachin | E118: Bhamo | F118: Ta Gun Taing Monastery (Shwe Kyi Na) | G118: 1 | J118: 40 | K118: 40 | P118: =Table_Shelter[[#This Row],[HH per Shelter]]*(Table_Shelter[[#This Row],['# of Temporary Shelter Units Built]]+Table_Shelter[[#This Row],['# of Temporary Shelter Under Construction]]+Table_Shelter[[#This Row],['# of Permanent House Built]]+Table_Shelter[[#This Row],['# of Permanent House Under Construction]]) -> 40 | Q118: =VLOOKUP(Table_Shelter[[#This Row],[Camp Name]],'Camp List'!N$5:O$400,2,0) -> MMR001CMP055 | R118: =VLOOKUP(Table_Shelter[[#This Row],[Camp Name]],'Camp List'!N$5:Z$395,14,0) ->  | U118: =MATCH(Table_Shelter[[#This Row],['# of Temporary Shelter Units Built]],Table_Shelter[[#This Row],[HH Covered]]) -> 1
A119: 31.12.2012 | B119: UNHCR | C119: HCR | D119: Kachin | E119: Momauk | F119: Momauk Baptist Church | G119: 1 | J119: 50 | K119: 50 | P119: =Table_Shelter[[#This Row],[HH per Shelter]]*(Table_Shelter[[#This Row],['# of Temporary Shelter Units Built]]+Table_Shelter[[#This Row],['# of Temporary Shelter Under Construction]]+Table_Shelter[[#This Row],['# of Permanent House Built]]+Table_Shelter[[#This Row],['# of Permanent House Under Construction]]) -> 50 | Q119: =VLOOKUP(Table_Shelter[[#This Row],[Camp Name]],'Camp List'!N$5:O$400,2,0) -> MMR001CMP056 | R119: =VLOOKUP(Table_Shelter[[#This Row],[Camp Name]],'Camp List'!N$5:Z$395,14,0) ->  | U119: =MATCH(Table_Shelter[[#This Row],['# of Temporary Shelter Units Built]],Table_Shelter[[#This Row],[HH Covered]]) -> 1
A120: 31.12.2012 | B120: UNHCR | C120: HCR | D120: Kachin | E120: Momauk | F120: Ni Thaw Ka Monestry | G120: 1 | J120: 5 | K120: 5 | P120: =Table_Shelter[[#This Row],[HH per Shelter]]*(Table_Shelter[[#This Row],['# of Temporary Shelter Units Built]]+Table_Shelter[[#This Row],['# of Temporary Shelter Under Construction]]+Table_Shelter[[#This Row],['# of Permanent House Built]]+Table_Shelter[[#This Row],['# of Permanent House Under Construction]]) -> 5 | Q120: =VLOOKUP(Table_Shelter[[#This Row],[Camp Name]],'Camp List'!N$5:O$400,2,0) -> MMR001CMP059 | R120: =VLOOKUP(Table_Shelter[[#This Row],[Camp Name]],'Camp List'!N$5:Z$395,14,0) ->  | U120: =MATCH(Table_Shelter[[#This Row],['# of Temporary Shelter Units Built]],Table_Shelter[[#This Row],[HH Covered]]) -> 1
A121: 31.12.2012 | B121: UNHCR | C121: HCR | D121: Kachin | E121: Momauk | F121: Man Bung Catholic compound | G121: 1 | J121: 11 | K121: 11 | P121: =Table_Shelter[[#This Row],[HH per Shelter]]*(Table_Shelter[[#This Row],['# of Temporary Shelter Units Built]]+Table_Shelter[[#This Row],['# of Temporary Shelter Under Construction]]+Table_Shelter[[#This Row],['# of Permanent House Built]]+Table_Shelter[[#This Row],['# of Permanent House Under Construction]]) -> 11 | Q121: =VLOOKUP(Table_Shelter[[#This Row],[Camp Name]],'Camp List'!N$5:O$400,2,0) -> MMR001CMP062 | R121: =VLOOKUP(Table_Shelter[[#This Row],[Camp Name]],'Camp List'!N$5:Z$395,14,0) ->  | U121: =MATCH(Table_Shelter[[#This Row],['# of Temporary Shelter Units Built]],Table_Shelter[[#This Row],[HH Covered]]) -> 1
A122: 31.12.2012 | B122: UNHCR | C122: HCR | D122: Kachin | E122: Mansi | F122: Mansi Baptist Church | G122: 1 | J122: 10 | K122: 10 | P122: =Table_Shelter[[#This Row],[HH per Shelter]]*(Table_Shelter[[#This Row],['# of Temporary Shelter Units Built]]+Table_Shelter[[#This Row],['# of Temporary Shelter Under Construction]]+Table_Shelter[[#This Row],['# of Permanent House Built]]+Table_Shelter[[#This Row],['# of Permanent House Under Construction]]) -> 10 | Q122: =VLOOKUP(Table_Shelter[[#This Row],[Camp Name]],'Camp List'!N$5:O$400,2,0) -> MMR001CMP066 | R122: =VLOOKUP(Table_Shelter[[#This Row],[Camp Name]],'Camp List'!N$5:Z$395,14,0) ->  | U122: =MATCH(Table_Shelter[[#This Row],['# of Temporary Shelter Units Built]],Table_Shelter[[#This Row],[HH Covered]]) -> 1
A123: 31.12.2012 | B123: UNHCR | C123: HCR | D123: Kachin | E123: Momauk | F123: Loi Je Baptist Church | G123: 1 | J123: 12 | K123: 12 | P123: =Table_Shelter[[#This Row],[HH per Shelter]]*(Table_Shelter[[#This Row],['# of Temporary Shelter Units Built]]+Table_Shelter[[#This Row],['# of Temporary Shelter Under Construction]]+Table_Shelter[[#This Row],['# of Permanent House Built]]+Table_Shelter[[#This Row],['# of Permanent House Under Construction]]) -> 12 | Q123: =VLOOKUP(Table_Shelter[[#This Row],[Camp Name]],'Camp List'!N$5:O$400,2,0) -> MMR001CMP071 | R123: =VLOOKUP(Table_Shelter[[#This Row],[Camp Name]],'Camp List'!N$5:Z$395,14,0) ->  | U123: =MATCH(Table_Shelter[[#This Row],['# of Temporary Shelter Units Built]],Table_Shelter[[#This Row],[HH Covered]]) -> 1
A124: 31.12.2012 | B124: UNHCR | C124: HCR | D124: Kachin | E124: Momauk | F124: Nyaung Na Pin | G124: 1 | J124: 45 | K124: 45 | P124: =Table_Shelter[[#This Row],[HH per Shelter]]*(Table_Shelter[[#This Row],['# of Temporary Shelter Units Built]]+Table_Shelter[[#This Row],['# of Temporary Shelter Under Construction]]+Table_Shelter[[#This Row],['# of Permanent House Built]]+Table_Shelter[[#This Row],['# of Permanent House Under Construction]]) -> 45 | Q124: =VLOOKUP(Table_Shelter[[#This Row],[Camp Name]],'Camp List'!N$5:O$400,2,0) -> MMR001CMP072 | R124: =VLOOKUP(Table_Shelter[[#This Row],[Camp Name]],'Camp List'!N$5:Z$395,14,0) ->  | U124: =MATCH(Table_Shelter[[#This Row],['# of Temporary Shelter Units Built]],Table_Shelter[[#This Row],[HH Covered]]) -> 1
A125: 31.12.2012 | B125: UNHCR | C125: HCR | D125: Kachin | E125: Momauk | F125: Loi Je Lisu Camp | G125: 1 | J125: 57 | K125: 57 | P125: =Table_Shelter[[#This Row],[HH per Shelter]]*(Table_Shelter[[#This Row],['# of Temporary Shelter Units Built]]+Table_Shelter[[#This Row],['# of Temporary Shelter Under Construction]]+Table_Shelter[[#This Row],['# of Permanent House Built]]+Table_Shelter[[#This Row],['# of Permanent House Under Construction]]) -> 57 | Q125: =VLOOKUP(Table_Shelter[[#This Row],[Camp Name]],'Camp List'!N$5:O$400,2,0) -> MMR001CMP070 | R125: =VLOOKUP(Table_Shelter[[#This Row],[Camp Name]],'Camp List'!N$5:Z$395,14,0) ->  | U125: =MATCH(Table_Shelter[[#This Row],['# of Temporary Shelter Units Built]],Table_Shelter[[#This Row],[HH Covered]]) -> 1
A126: 31.12.2012 | B126: UNHCR | C126: HCR | D126: Kachin | E126: Momauk | F126: Seng Ja | G126: 1 | J126: 40 | K126: 40 | P126: =Table_Shelter[[#This Row],[HH per Shelter]]*(Table_Shelter[[#This Row],['# of Temporary Shelter Units Built]]+Table_Shelter[[#This Row],['# of Temporary Shelter Under Construction]]+Table_Shelter[[#This Row],['# of Permanent House Built]]+Table_Shelter[[#This Row],['# of Permanent House Under Construction]]) -> 40 | Q126: =VLOOKUP(Table_Shelter[[#This Row],[Camp Name]],'Camp List'!N$5:O$400,2,0) -> MMR001CMP073 | R126: =VLOOKUP(Table_Shelter[[#This Row],[Camp Name]],'Camp List'!N$5:Z$395,14,0) ->  | U126: =MATCH(Table_Shelter[[#This Row],['# of Temporary Shelter Units Built]],Table_Shelter[[#This Row],[HH Covered]]) -> 1
A127: 31.12.2012 | B127: UNHCR | C127: HCR | D127: Kachin | E127: Bhamo | F127: Phan Khar Kone | G127: 1 | J127: 30 | K127: 30 | P127: =Table_Shelter[[#This Row],[HH per Shelter]]*(Table_Shelter[[#This Row],['# of Temporary Shelter Units Built]]+Table_Shelter[[#This Row],['# of Temporary Shelter Under Construction]]+Table_Shelter[[#This Row],['# of Permanent House Built]]+Table_Shelter[[#This Row],['# of Permanent House Under Construction]]) -> 30 | Q127: =VLOOKUP(Table_Shelter[[#This Row],[Camp Name]],'Camp List'!N$5:O$400,2,0) -> MMR001CMP193 | R127: =VLOOKUP(Table_Shelter[[#This Row],[Camp Name]],'Camp List'!N$5:Z$395,14,0) ->  | U127: =MATCH(Table_Shelter[[#This Row],['# of Temporary Shelter Units Built]],Table_Shelter[[#This Row],[HH Covered]]) -> 1
A128: 31.12.2012 | B128: UNHCR | C128: HCR | D128: Kachin | E128: Bhamo | F128: AD-2000 Tharthana Compound | G128: 1 | J128: 10 | K128: 10 | P128: =Table_Shelter[[#This Row],[HH per Shelter]]*(Table_Shelter[[#This Row],['# of Temporary Shelter Units Built]]+Table_Shelter[[#This Row],['# of Temporary Shelter Under Construction]]+Table_Shelter[[#This Row],['# of Permanent House Built]]+Table_Shelter[[#This Row],['# of Permanent House Under Construction]]) -> 10 | Q128: =VLOOKUP(Table_Shelter[[#This Row],[Camp Name]],'Camp List'!N$5:O$400,2,0) -> MMR001CMP050 | R128: =VLOOKUP(Table_Shelter[[#This Row],[Camp Name]],'Camp List'!N$5:Z$395,14,0) ->  | U128: =MATCH(Table_Shelter[[#This Row],['# of Temporary Shelter Units Built]],Table_Shelter[[#This Row],[HH Covered]]) -> 1
A129: 31.12.2012 | B129: UNHCR | C129: KMSS Bhamo | D129: Kachin | E129: Momauk | F129: Man Bung Catholic compound | G129: 1 | J129: 35 | K129: 35 | P129: =Table_Shelter[[#This Row],[HH per Shelter]]*(Table_Shelter[[#This Row],['# of Temporary Shelter Units Built]]+Table_Shelter[[#This Row],['# of Temporary Shelter Under Construction]]+Table_Shelter[[#This Row],['# of Permanent House Built]]+Table_Shelter[[#This Row],['# of Permanent House Under Construction]]) -> 35 | Q129: =VLOOKUP(Table_Shelter[[#This Row],[Camp Name]],'Camp List'!N$5:O$400,2,0) -> MMR001CMP062 | R129: =VLOOKUP(Table_Shelter[[#This Row],[Camp Name]],'Camp List'!N$5:Z$395,14,0) ->  | U129: =MATCH(Table_Shelter[[#This Row],['# of Temporary Shelter Units Built]],Table_Shelter[[#This Row],[HH Covered]]) -> 1
A130: 31.12.2012 | B130: UNHCR | C130: KMSS Bhamo | D130: Kachin | E130: Mansi | F130: Man Wing Catholic Church | G130: 1 | J130: 200 | K130: 200 | P130: =Table_Shelter[[#This Row],[HH per Shelter]]*(Table_Shelter[[#This Row],['# of Temporary Shelter Units Built]]+Table_Shelter[[#This Row],['# of Temporary Shelter Under Construction]]+Table_Shelter[[#This Row],['# of Permanent House Built]]+Table_Shelter[[#This Row],['# of Permanent House Under Construction]]) -> 200 | Q130: =VLOOKUP(Table_Shelter[[#This Row],[Camp Name]],'Camp List'!N$5:O$400,2,0) -> MMR001CMP132 | R130: =VLOOKUP(Table_Shelter[[#This Row],[Camp Name]],'Camp List'!N$5:Z$395,14,0) ->  | U130: =MATCH(Table_Shelter[[#This Row],['# of Temporary Shelter Units Built]],Table_Shelter[[#This Row],[HH Covered]]) -> 1
A131: 31.12.2012 | B131: UNHCR | C131: KMSS Bhamo | D131: Kachin | E131: Shwegu | F131: Shwe Gu Catholic Church | G131: 1 | J131: 10 | K131: 10 | P131: =Table_Shelter[[#This Row],[HH per Shelter]]*(Table_Shelter[[#This Row],['# of Temporary Shelter Units Built]]+Table_Shelter[[#This Row],['# of Temporary Shelter Under Construction]]+Table_Shelter[[#This Row],['# of Permanent House Built]]+Table_Shelter[[#This Row],['# of Permanent House Under Construction]]) -> 10 | Q131: =VLOOKUP(Table_Shelter[[#This Row],[Camp Name]],'Camp List'!N$5:O$400,2,0) -> MMR001CMP068 | R131: =VLOOKUP(Table_Shelter[[#This Row],[Camp Name]],'Camp List'!N$5:Z$395,14,0) ->  | U131: =MATCH(Table_Shelter[[#This Row],['# of Temporary Shelter Units Built]],Table_Shelter[[#This Row],[HH Covered]]) -> 1
A132: 31.12.2012 | B132: UNHCR | C132: KMSS Bhamo | D132: Kachin | E132: Momauk | F132: Loi Je Catholic Church | G132: 1 | J132: 6 | K132: 6 | P132: =Table_Shelter[[#This Row],[HH per Shelter]]*(Table_Shelter[[#This Row],['# of Temporary Shelter Units Built]]+Table_Shelter[[#This Row],['# of Temporary Shelter Under Construction]]+Table_Shelter[[#This Row],['# of Permanent House Built]]+Table_Shelter[[#This Row],['# of Permanent House Under Construction]]) -> 6 | Q132: =VLOOKUP(Table_Shelter[[#This Row],[Camp Name]],'Camp List'!N$5:O$400,2,0) -> MMR001CMP069 | R132: =VLOOKUP(Table_Shelter[[#This Row],[Camp Name]],'Camp List'!N$5:Z$395,14,0) ->  | U132: =MATCH(Table_Shelter[[#This Row],['# of Temporary Shelter Units Built]],Table_Shelter[[#This Row],[HH Covered]]) -> 1
A133: 31.12.2012 | B133: UNHCR | C133: KMSS Bhamo | D133: Kachin | E133: Momauk | F133: Pa Kahtawng | G133: 1 | J133: 130 | K133: 130 | P133: =Table_Shelter[[#This Row],[HH per Shelter]]*(Table_Shelter[[#This Row],['# of Temporary Shelter Units Built]]+Table_Shelter[[#This Row],['# of Temporary Shelter Under Construction]]+Table_Shelter[[#This Row],['# of Permanent House Built]]+Table_Shelter[[#This Row],['# of Permanent House Under Construction]]) -> 130 | Q133: =VLOOKUP(Table_Shelter[[#This Row],[Camp Name]],'Camp List'!N$5:O$400,2,0) -> MMR001CMP126 | R133: =VLOOKUP(Table_Shelter[[#This Row],[Camp Name]],'Camp List'!N$5:Z$395,14,0) ->  | U133: =MATCH(Table_Shelter[[#This Row],['# of Temporary Shelter Units Built]],Table_Shelter[[#This Row],[HH Covered]]) -> 1
A134: 31.12.2012 | B134: UNHCR | C134: KMSS Bhamo | D134: Kachin | E134: Momauk | F134: Lana Zup Ja | G134: 1 | J134: 350 | K134: 350 | P134: =Table_Shelter[[#This Row],[HH per Shelter]]*(Table_Shelter[[#This Row],['# of Temporary Shelter Units Built]]+Table_Shelter[[#This Row],['# of Temporary Shelter Under Construction]]+Table_Shelter[[#This Row],['# of Permanent House Built]]+Table_Shelter[[#This Row],['# of Permanent House Under Construction]]) -> 350 | Q134: =VLOOKUP(Table_Shelter[[#This Row],[Camp Name]],'Camp List'!N$5:O$400,2,0) -> MMR001CMP128 | R134: =VLOOKUP(Table_Shelter[[#This Row],[Camp Name]],'Camp List'!N$5:Z$395,14,0) ->  | U134: =MATCH(Table_Shelter[[#This Row],['# of Temporary Shelter Units Built]],Table_Shelter[[#This Row],[HH Covered]]) -> 1
A135: 31.12.2012 | B135: UNHCR | C135: KMSS Bhamo | D135: Kachin | E135: Mansi | F135: Nam Lim Pa - Scattered IDPs in forest | G135: 1 | J135: 36 | K135: 36 | P135: =Table_Shelter[[#This Row],[HH per Shelter]]*(Table_Shelter[[#This Row],['# of Temporary Shelter Units Built]]+Table_Shelter[[#This Row],['# of Temporary Shelter Under Construction]]+Table_Shelter[[#This Row],['# of Permanent House Built]]+Table_Shelter[[#This Row],['# of Permanent House Under Construction]]) -> 36 | Q135: =VLOOKUP(Table_Shelter[[#This Row],[Camp Name]],'Camp List'!N$5:O$400,2,0) -> MMR001CMP137 | R135: =VLOOKUP(Table_Shelter[[#This Row],[Camp Name]],'Camp List'!N$5:Z$395,14,0) ->  | U135: =MATCH(Table_Shelter[[#This Row],['# of Temporary Shelter Units Built]],Table_Shelter[[#This Row],[HH Covered]]) -> 1
A136: 31.12.2012 | B136: UNHCR | C136: KMSS Bhamo | D136: Kachin | E136: Mansi | F136: Mung Ding Pa (Boarder) | G136: 1 | J136: 24 | K136: 24 | P136: =Table_Shelter[[#This Row],[HH per Shelter]]*(Table_Shelter[[#This Row],['# of Temporary Shelter Units Built]]+Table_Shelter[[#This Row],['# of Temporary Shelter Under Construction]]+Table_Shelter[[#This Row],['# of Permanent House Built]]+Table_Shelter[[#This Row],['# of Permanent House Under Construction]]) -> 24 | Q136: =VLOOKUP(Table_Shelter[[#This Row],[Camp Name]],'Camp List'!N$5:O$400,2,0) -> MMR001CMP203 | R136: =VLOOKUP(Table_Shelter[[#This Row],[Camp Name]],'Camp List'!N$5:Z$395,14,0) ->  | U136: =MATCH(Table_Shelter[[#This Row],['# of Temporary Shelter Units Built]],Table_Shelter[[#This Row],[HH Covered]]) -> 1
A137: 31.12.2012 | B137: UNHCR | C137: KMSS Bhamo | D137: Kachin | E137: Momauk | F137: Je Yang Hka | G137: 1 | J137: 249 | K137: 249 | P137: =Table_Shelter[[#This Row],[HH per Shelter]]*(Table_Shelter[[#This Row],['# of Temporary Shelter Units Built]]+Table_Shelter[[#This Row],['# of Temporary Shelter Under Construction]]+Table_Shelter[[#This Row],['# of Permanent House Built]]+Table_Shelter[[#This Row],['# of Permanent House Under Construction]]) -> 249 | Q137: =VLOOKUP(Table_Shelter[[#This Row],[Camp Name]],'Camp List'!N$5:O$400,2,0) -> MMR001CMP121 | R137: =VLOOKUP(Table_Shelter[[#This Row],[Camp Name]],'Camp List'!N$5:Z$395,14,0) ->  | U137: =MATCH(Table_Shelter[[#This Row],['# of Temporary Shelter Units Built]],Table_Shelter[[#This Row],[HH Covered]]) -> 1
A138: 31.12.2012 | B138: UNHCR | C138: KMSS Bhamo | D138: Kachin | E138: Momauk | F138: Loi Je Catholic Church | G138: 1 | J138: 0 | K138: 0 | P138: =Table_Shelter[[#This Row],[HH per Shelter]]*(Table_Shelter[[#This Row],['# of Temporary Shelter Units Built]]+Table_Shelter[[#This Row],['# of Temporary Shelter Under Construction]]+Table_Shelter[[#This Row],['# of Permanent House Built]]+Table_Shelter[[#This Row],['# of Permanent House Under Construction]]) -> 0 | Q138: =VLOOKUP(Table_Shelter[[#This Row],[Camp Name]],'Camp List'!N$5:O$400,2,0) -> MMR001CMP069 | R138: =VLOOKUP(Table_Shelter[[#This Row],[Camp Name]],'Camp List'!N$5:Z$395,14,0) ->  | U138: =MATCH(Table_Shelter[[#This Row],['# of Temporary Shelter Units Built]],Table_Shelter[[#This Row],[HH Covered]]) -> 1
A139: 31.07.2013 | B139: UNHCR | C139: KBC | D139: Kachin | E139: Hpakant | F139: Nam Ma Phyit COC | G139: 1 | J139: 40 | L139: 40 | Q139: =VLOOKUP(Table_Shelter[[#This Row],[Camp Name]],'Camp List'!N$5:O$400,2,0) ->  | R139: =VLOOKUP(Table_Shelter[[#This Row],[Camp Name]],'Camp List'!N$5:Z$395,14,0) ->  | U139: =MATCH(Table_Shelter[[#This Row],['# of Temporary Shelter Units Built]],Table_Shelter[[#This Row],[HH Covered]]) -> 
A140: 31.07.2013 | B140: UNHCR | C140: KBC | D140: Kachin | E140: Hpakant | F140: 5 Ward Baptist Church(lon Khin) | G140: 1 | J140: 20 | L140: 20 | Q140: =VLOOKUP(Table_Shelter[[#This Row],[Camp Name]],'Camp List'!N$5:O$400,2,0) -> MMR001CMP179 | R140: =VLOOKUP(Table_Shelter[[#This Row],[Camp Name]],'Camp List'!N$5:Z$395,14,0) ->  | U140: =MATCH(Table_Shelter[[#This Row],['# of Temporary Shelter Units Built]],Table_Shelter[[#This Row],[HH Covered]]) -> 
A141: 31.07.2013 | B141: UNHCR | C141: KBC | D141: Kachin | E141: Hpakant | F141: Baptist Church, Hmaw Si Sar(Lon Khin) | G141: 1 | J141: 20 | L141: 20 | Q141: =VLOOKUP(Table_Shelter[[#This Row],[Camp Name]],'Camp List'!N$5:O$400,2,0) -> MMR001CMP169 | R141: =VLOOKUP(Table_Shelter[[#This Row],[Camp Name]],'Camp List'!N$5:Z$395,14,0) ->  | U141: =MATCH(Table_Shelter[[#This Row],['# of Temporary Shelter Units Built]],Table_Shelter[[#This Row],[HH Covered]]) -> 
A142: 31.07.2013 | B142: UNHCR | C142: KBC | D142: Kachin | E142: Hpakant | F142: Ward 2 Sai Taung Baptist Church, Seik Mu | G142: 1 | J142: 15 | L142: 15 | Q142: =VLOOKUP(Table_Shelter[[#This Row],[Camp Name]],'Camp List'!N$5:O$400,2,0) -> MMR001CMP184 | R142: =VLOOKUP(Table_Shelter[[#This Row],[Camp Name]],'Camp List'!N$5:Z$395,14,0) ->  | U142: =MATCH(Table_Shelter[[#This Row],['# of Temporary Shelter Units Built]],Table_Shelter[[#This Row],[HH Covered]]) -> 
A143: 31.07.2013 | B143: UNHCR | C143: KBC | D143: Kachin | E143: Hpakant | F143: Sai Nai Baptish Church, Maw Shan Vil., Seki Mu | G143: 1 | J143: 5 | L143: 5 | Q143: =VLOOKUP(Table_Shelter[[#This Row],[Camp Name]],'Camp List'!N$5:O$400,2,0) -> MMR001CMP183 | R143: =VLOOKUP(Table_Shelter[[#This Row],[Camp Name]],'Camp List'!N$5:Z$395,14,0) ->  | U143: =MATCH(Table_Shelter[[#This Row],['# of Temporary Shelter Units Built]],Table_Shelter[[#This Row],[HH Covered]]) -> 
A144: 31.07.2013 | B144: UNHCR | C144: KMSS Bhamo | D144: Kachin | E144: Momauk | F144: Momauk Catholic Church (St. Patrick) | G144: 1 | J144: 12 | K144: 12 | P144: =Table_Shelter[[#This Row],[HH per Shelter]]*(Table_Shelter[[#This Row],['# of Temporary Shelter Units Built]]+Table_Shelter[[#This Row],['# of Temporary Shelter Under Construction]]+Table_Shelter[[#This Row],['# of Permanent House Built]]+Table_Shelter[[#This Row],['# of Permanent House Under Construction]]) -> 12 | Q144: =VLOOKUP(Table_Shelter[[#This Row],[Camp Name]],'Camp List'!N$5:O$400,2,0) -> MMR001CMP057 | R144: =VLOOKUP(Table_Shelter[[#This Row],[Camp Name]],'Camp List'!N$5:Z$395,14,0) ->  | U144: =MATCH(Table_Shelter[[#This Row],['# of Temporary Shelter Units Built]],Table_Shelter[[#This Row],[HH Covered]]) -> 1
A145: 31.07.2013 | B145: UNHCR | C145: KMSS Bhamo | D145: Kachin | E145: Waingmaw | F145: Woi Chyai | G145: 1 | J145: 160 | L145: 160 | Q145: =VLOOKUP(Table_Shelter[[#This Row],[Camp Name]],'Camp List'!N$5:O$400,2,0) -> MMR001CMP116 | R145: =VLOOKUP(Table_Shelter[[#This Row],[Camp Name]],'Camp List'!N$5:Z$395,14,0) ->  | U145: =MATCH(Table_Shelter[[#This Row],['# of Temporary Shelter Units Built]],Table_Shelter[[#This Row],[HH Covered]]) -> 
A146: 31.07.2013 | B146: UNHCR | C146: KMSS Bhamo | D146: Kachin | E146: Bhamo | F146: AD-2000 Tharthana Compound | G146: 1 | J146: 132 | K146: 132 | P146: =Table_Shelter[[#This Row],[HH per Shelter]]*(Table_Shelter[[#This Row],['# of Temporary Shelter Units Built]]+Table_Shelter[[#This Row],['# of Temporary Shelter Under Construction]]+Table_Shelter[[#This Row],['# of Permanent House Built]]+Table_Shelter[[#This Row],['# of Permanent House Under Construction]]) -> 132 | Q146: =VLOOKUP(Table_Shelter[[#This Row],[Camp Name]],'Camp List'!N$5:O$400,2,0) -> MMR001CMP050 | R146: =VLOOKUP(Table_Shelter[[#This Row],[Camp Name]],'Camp List'!N$5:Z$395,14,0) ->  | U146: =MATCH(Table_Shelter[[#This Row],['# of Temporary Shelter Units Built]],Table_Shelter[[#This Row],[HH Covered]]) -> 1
A147: 31.12.2012 | B147: World Vision | C147: Shalom | D147: Kachin | E147: Waingmaw | F147: Waingmaw AG Church | G147: 1 | J147: 15 | K147: 15 | P147: =Table_Shelter[[#This Row],[HH per Shelter]]*(Table_Shelter[[#This Row],['# of Temporary Shelter Units Built]]+Table_Shelter[[#This Row],['# of Temporary Shelter Under Construction]]+Table_Shelter[[#This Row],['# of Permanent House Built]]+Table_Shelter[[#This Row],['# of Permanent House Under Construction]]) -> 15 | Q147: =VLOOKUP(Table_Shelter[[#This Row],[Camp Name]],'Camp List'!N$5:O$400,2,0) -> MMR001CMP038 | R147: =VLOOKUP(Table_Shelter[[#This Row],[Camp Name]],'Camp List'!N$5:Z$395,14,0) ->  | U147: =MATCH(Table_Shelter[[#This Row],['# of Temporary Shelter Units Built]],Table_Shelter[[#This Row],[HH Covered]]) -> 1
A148: 31.12.2012 | B148: World Vision | C148: Shalom | D148: Kachin | E148: Waingmaw | F148: Qtr. 2 Lhaovo Baptist Church | G148: 1 | J148: 10 | K148: 10 | P148: =Table_Shelter[[#This Row],[HH per Shelter]]*(Table_Shelter[[#This Row],['# of Temporary Shelter Units Built]]+Table_Shelter[[#This Row],['# of Temporary Shelter Under Construction]]+Table_Shelter[[#This Row],['# of Permanent House Built]]+Table_Shelter[[#This Row],['# of Permanent House Under Construction]]) -> 10 | Q148: =VLOOKUP(Table_Shelter[[#This Row],[Camp Name]],'Camp List'!N$5:O$400,2,0) -> MMR001CMP032 | R148: =VLOOKUP(Table_Shelter[[#This Row],[Camp Name]],'Camp List'!N$5:Z$395,14,0) ->  | U148: =MATCH(Table_Shelter[[#This Row],['# of Temporary Shelter Units Built]],Table_Shelter[[#This Row],[HH Covered]]) -> 1
A149: 31.12.2012 | B149: World Vision | C149: Shalom | D149: Kachin | E149: Waingmaw | F149: Thargaya Lisu Baptist Church | G149: 1 | J149: 18 | K149: 18 | P149: =Table_Shelter[[#This Row],[HH per Shelter]]*(Table_Shelter[[#This Row],['# of Temporary Shelter Units Built]]+Table_Shelter[[#This Row],['# of Temporary Shelter Under Construction]]+Table_Shelter[[#This Row],['# of Permanent House Built]]+Table_Shelter[[#This Row],['# of Permanent House Under Construction]]) -> 18 | Q149: =VLOOKUP(Table_Shelter[[#This Row],[Camp Name]],'Camp List'!N$5:O$400,2,0) -> MMR001CMP037 | R149: =VLOOKUP(Table_Shelter[[#This Row],[Camp Name]],'Camp List'!N$5:Z$395,14,0) ->  | U149: =MATCH(Table_Shelter[[#This Row],['# of Temporary Shelter Units Built]],Table_Shelter[[#This Row],[HH Covered]]) -> 1
A150: 31.12.2012 | B150: World Vision | C150: KBC | D150: Kachin | E150: Waingmaw | F150: Waingmaw Baptist Zonal Office | G150: 1 | J150: 10 | K150: 10 | P150: =Table_Shelter[[#This Row],[HH per Shelter]]*(Table_Shelter[[#This Row],['# of Temporary Shelter Units Built]]+Table_Shelter[[#This Row],['# of Temporary Shelter Under Construction]]+Table_Shelter[[#This Row],['# of Permanent House Built]]+Table_Shelter[[#This Row],['# of Permanent House Under Construction]]) -> 10 | Q150: =VLOOKUP(Table_Shelter[[#This Row],[Camp Name]],'Camp List'!N$5:O$400,2,0) -> MMR001CMP036 | R150: =VLOOKUP(Table_Shelter[[#This Row],[Camp Name]],'Camp List'!N$5:Z$395,14,0) ->  | U150: =MATCH(Table_Shelter[[#This Row],['# of Temporary Shelter Units Built]],Table_Shelter[[#This Row],[HH Covered]]) -> 1
A151: 31.12.2012 | B151: World Vision | C151: KBC | D151: Kachin | E151: Waingmaw | F151: Qtr. 2 Lhaovo Baptist Church | G151: 1 | J151: 10 | K151: 10 | P151: =Table_Shelter[[#This Row],[HH per Shelter]]*(Table_Shelter[[#This Row],['# of Temporary Shelter Units Built]]+Table_Shelter[[#This Row],['# of Temporary Shelter Under Construction]]+Table_Shelter[[#This Row],['# of Permanent House Built]]+Table_Shelter[[#This Row],['# of Permanent House Under Construction]]) -> 10 | Q151: =VLOOKUP(Table_Shelter[[#This Row],[Camp Name]],'Camp List'!N$5:O$400,2,0) -> MMR001CMP032 | R151: =VLOOKUP(Table_Shelter[[#This Row],[Camp Name]],'Camp List'!N$5:Z$395,14,0) ->  | U151: =MATCH(Table_Shelter[[#This Row],['# of Temporary Shelter Units Built]],Table_Shelter[[#This Row],[HH Covered]]) -> 1
A152: 31.12.2012 | B152: Ye Tiek Foundation | C152: KBC | D152: Kachin | E152: Waingmaw | F152: Maina KBC (Bawng Ring) | G152: 1 | J152: 10 | K152: 10 | P152: =Table_Shelter[[#This Row],[HH per Shelter]]*(Table_Shelter[[#This Row],['# of Temporary Shelter Units Built]]+Table_Shelter[[#This Row],['# of Temporary Shelter Under Construction]]+Table_Shelter[[#This Row],['# of Permanent House Built]]+Table_Shelter[[#This Row],['# of Permanent House Under Construction]]) -> 10 | Q152: =VLOOKUP(Table_Shelter[[#This Row],[Camp Name]],'Camp List'!N$5:O$400,2,0) -> MMR001CMP040 | R152: =VLOOKUP(Table_Shelter[[#This Row],[Camp Name]],'Camp List'!N$5:Z$395,14,0) ->  | U152: =MATCH(Table_Shelter[[#This Row],['# of Temporary Shelter Units Built]],Table_Shelter[[#This Row],[HH Covered]]) -> 1
A153: 31.12.2012 | B153: UNHCR | C153: KBC | D153: Shan_North | E153: Manton | F153: Howa | G153: 1 | J153: 10 | K153: 10 | P153: =Table_Shelter[[#This Row],[HH per Shelter]]*(Table_Shelter[[#This Row],['# of Temporary Shelter Units Built]]+Table_Shelter[[#This Row],['# of Temporary Shelter Under Construction]]+Table_Shelter[[#This Row],['# of Permanent House Built]]+Table_Shelter[[#This Row],['# of Permanent House Under Construction]]) -> 10 | Q153: =VLOOKUP(Table_Shelter[[#This Row],[Camp Name]],'Camp List'!N$5:O$400,2,0) -> MMR015CMP010 | R153: =VLOOKUP(Table_Shelter[[#This Row],[Camp Name]],'Camp List'!N$5:Z$395,14,0) ->  | U153: =MATCH(Table_Shelter[[#This Row],['# of Temporary Shelter Units Built]],Table_Shelter[[#This Row],[HH Covered]]) -> 1
A154: 31.12.2012 | B154: UNHCR | C154: KBC | D154: Shan_North | E154: Manton | F154: Mandung - Jinghpaw | G154: 1 | J154: 10 | K154: 10 | P154: =Table_Shelter[[#This Row],[HH per Shelter]]*(Table_Shelter[[#This Row],['# of Temporary Shelter Units Built]]+Table_Shelter[[#This Row],['# of Temporary Shelter Under Construction]]+Table_Shelter[[#This Row],['# of Permanent House Built]]+Table_Shelter[[#This Row],['# of Permanent House Under Construction]]) -> 10 | Q154: =VLOOKUP(Table_Shelter[[#This Row],[Camp Name]],'Camp List'!N$5:O$400,2,0) -> MMR015CMP009 | R154: =VLOOKUP(Table_Shelter[[#This Row],[Camp Name]],'Camp List'!N$5:Z$395,14,0) ->  | U154: =MATCH(Table_Shelter[[#This Row],['# of Temporary Shelter Units Built]],Table_Shelter[[#This Row],[HH Covered]]) -> 1

Sheet Shelter Progress
A2: KACHIN & NORTHERN SHAN SHELTER PROGRESS
A3: =Report_Date -> 2013-08-01
A4: Township | B4: Total # of HH (In camps) | C4: Total # of Population (In camps) | D4: Tents Distributed | E4: Temporary Shelter Built | F4: Temporary Shelter Under Construction | G4: Temporary Shelter Planned | H4: Permanent Shelter Built | I4: Permament Shelter Under Construction | J4: Permanent Shelter Planned | K4: Coverage (HH) | L4: Coverage (in Pop) | M4: Gap - HH | N4: Covered | O4: Ind. Not covered
A5: Bhamo | B5: =SUMIFS(Camplist_HH,Camplist_Township,'Shelter Progress'!$A5,Camplist_Type_Of_Acc,"Camp") -> 1002 | C5: =SUMIFS(Camplist_Popl,Camplist_Township,'Shelter Progress'!$A5,Camplist_Type_Of_Acc,"Camp") -> 4529 | D5: =SUMIF(Col_Shelter_Township,$A5,Col_Shelter_Tent_Dist) -> 0 | E5: =SUMIF(Col_Shelter_Township,$A5,Col_Shelter_Temp_B) -> 477 | F5: =SUMIF(Col_Shelter_Township,$A5,Col_Shelter_Temp_U) -> 0 | G5: =SUMIF(Col_Shelter_Township,$A5,Col_Shelter_Temp_P) -> 447 | H5: =SUMIF(Col_Shelter_Township,$A5,Col_Shelter_Perm_B) -> 0 | I5: =SUMIF(Col_Shelter_Township,$A5,Col_Shelter_Perm_U) -> 0 | J5: =SUMIF(Col_Shelter_Township,$A5,Col_Shelter_Perm_P) -> 0 | K5: =SUMIF(Col_Shelter_Township,$A5,Shelter_HH_Covered) -> 477 | L5: =K5*P5 -> 2156.020958 | M5: =B5-K5 -> 525 | N5: =IF(K5=0,0.000001,K5/B5) -> 0.4760479042 | O5: =MAX(0,C5-L5) -> 2372.979042 | P5: =IF(B5=0,5,C5/B5) -> 4.51996008
A6: Chipwi | B6: =SUMIFS(Camplist_HH,Camplist_Township,'Shelter Progress'!$A6,Camplist_Type_Of_Acc,"Camp") -> 637 | C6: =SUMIFS(Camplist_Popl,Camplist_Township,'Shelter Progress'!$A6,Camplist_Type_Of_Acc,"Camp") -> 3062 | D6: 0 | E6: 82 | F6: 0 | G6: 82 | H6: 0 | I6: 0 | J6: 0 | K6: 82 | L6: =K6*P6 -> 394.166405 | M6: 555 | N6: =IF(K6=0,0.000001,K6/B6) -> 0.1287284144 | O6: 2667.833595 | P6: 4.806907378
A7: Hpakant | B7: =SUMIFS(Camplist_HH,Camplist_Township,'Shelter Progress'!$A7,Camplist_Type_Of_Acc,"Camp") -> 1330 | C7: =SUMIFS(Camplist_Popl,Camplist_Township,'Shelter Progress'!$A7,Camplist_Type_Of_Acc,"Camp") -> 5075 | D7: 0 | E7: 50 | F7: 100 | G7: 150 | H7: 0 | I7: 0 | J7: 0 | K7: 50 | L7: 190.7894737 | M7: 1280 | N7: 0.03759398496 | O7: 4884.210526 | P7: 3.815789474
A8: Hseni | B8: =SUMIFS(Camplist_HH,Camplist_Township,'Shelter Progress'!$A8,Camplist_Type_Of_Acc,"Camp") -> 50 | C8: =SUMIFS(Camplist_Popl,Camplist_Township,'Shelter Progress'!$A8,Camplist_Type_Of_Acc,"Camp") -> 258 | D8: 0 | E8: 0 | F8: 0 | G8: 0 | H8: 0 | I8: 0 | J8: 0 | K8: 0 | L8: 0 | M8: 50 | N8: 1e-06 | O8: 258 | P8: 5.16
A9: Injangyang | B9: =SUMIFS(Camplist_HH,Camplist_Township,'Shelter Progress'!$A9,Camplist_Type_Of_Acc,"Camp") -> 0 | C9: =SUMIFS(Camplist_Popl,Camplist_Township,'Shelter Progress'!$A9,Camplist_Type_Of_Acc,"Camp") -> 0 | D9: 0 | E9: 0 | F9: 0 | G9: 0 | H9: 0 | I9: 0 | J9: 0 | K9: 0 | L9: 0 | M9: 0 | N9: 1e-06 | O9: 0 | P9: 5
A10: Khaunglanhpu | B10: =SUMIFS(Camplist_HH,Camplist_Township,'Shelter Progress'!$A10,Camplist_Type_Of_Acc,"Camp") -> 22 | C10: =SUMIFS(Camplist_Popl,Camplist_Township,'Shelter Progress'!$A10,Camplist_Type_Of_Acc,"Camp") -> 107 | D10: 0 | E10: 0 | F10: 0 | G10: 0 | H10: 0 | I10: 0 | J10: 0 | K10: 0 | L10: 0 | M10: 22 | N10: 1e-06 | O10: 107 | P10: 4.863636364
A11: Kutkai | B11: =SUMIFS(Camplist_HH,Camplist_Township,'Shelter Progress'!$A11,Camplist_Type_Of_Acc,"Camp") -> 513 | C11: =SUMIFS(Camplist_Popl,Camplist_Township,'Shelter Progress'!$A11,Camplist_Type_Of_Acc,"Camp") -> 2416 | D11: 0 | E11: 0 | F11: 0 | G11: 0 | H11: 0 | I11: 0 | J11: 0 | K11: 0 | L11: 0 | M11: 513 | N11: 1e-06 | O11: 2416 | P11: 4.709551657
A12: Mansi | B12: =SUMIFS(Camplist_HH,Camplist_Township,'Shelter Progress'!$A12,Camplist_Type_Of_Acc,"Camp") -> 1954 | C12: =SUMIFS(Camplist_Popl,Camplist_Township,'Shelter Progress'!$A12,Camplist_Type_Of_Acc,"Camp") -> 10303 | D12: 0 | E12: 439 | F12: 0 | G12: 439 | H12: 0 | I12: 0 | J12: 0 | K12: 439 | L12: 2314.747697 | M12: 1515 | N12: 0.224667349 | O12: 7988.252303 | P12: 5.272773797
A13: Manton | B13: =SUMIFS(Camplist_HH,Camplist_Township,'Shelter Progress'!$A13,Camplist_Type_Of_Acc,"Camp") -> 69 | C13: =SUMIFS(Camplist_Popl,Camplist_Township,'Shelter Progress'!$A13,Camplist_Type_Of_Acc,"Camp") -> 330 | D13: 0 | E13: 20 | F13: 0 | G13: 20 | H13: 0 | I13: 0 | J13: 0 | K13: 20 | L13: 95.65217391 | M13: 49 | N13: 0.2898550725 | O13: 234.3478261 | P13: 4.782608696
A14: Mogaung | B14: =SUMIFS(Camplist_HH,Camplist_Township,'Shelter Progress'!$A14,Camplist_Type_Of_Acc,"Camp") -> 45 | C14: =SUMIFS(Camplist_Popl,Camplist_Township,'Shelter Progress'!$A14,Camplist_Type_Of_Acc,"Camp") -> 187 | D14: 0 | E14: 40 | F14: 0 | G14: 40 | H14: 0 | I14: 0 | J14: 0 | K14: 40 | L14: 166.2222222 | M14: 5 | N14: 0.8888888889 | O14: 20.77777778 | P14: 4.155555556
A15: Mohnyin | B15: =SUMIFS(Camplist_HH,Camplist_Township,'Shelter Progress'!$A15,Camplist_Type_Of_Acc,"Camp") -> 34 | C15: =SUMIFS(Camplist_Popl,Camplist_Township,'Shelter Progress'!$A15,Camplist_Type_Of_Acc,"Camp") -> 144 | D15: 0 | E15: 32 | F15: 0 | G15: 32 | H15: 0 | I15: 0 | J15: 0 | K15: 32 | L15: 135.5294118 | M15: 2 | N15: 0.9411764706 | O15: 8.470588235 | P15: 4.235294118
A16: Momauk | B16: =SUMIFS(Camplist_HH,Camplist_Township,'Shelter Progress'!$A16,Camplist_Type_Of_Acc,"Camp") -> 4096 | C16: =SUMIFS(Camplist_Popl,Camplist_Township,'Shelter Progress'!$A16,Camplist_Type_Of_Acc,"Camp") -> 19697 | D16: 0 | E16: 2059 | F16: 0 | G16: 2125 | H16: 0 | I16: 0 | J16: 0 | K16: 2059 | L16: 9901.397217 | M16: 2037 | N16: 0.5026855469 | O16: 9795.602783 | P16: 4.808837891
A17: Muse | B17: =SUMIFS(Camplist_HH,Camplist_Township,'Shelter Progress'!$A17,Camplist_Type_Of_Acc,"Camp") -> 208 | C17: =SUMIFS(Camplist_Popl,Camplist_Township,'Shelter Progress'!$A17,Camplist_Type_Of_Acc,"Camp") -> 882 | D17: 0 | E17: 0 | F17: 0 | G17: 0 | H17: 0 | I17: 0 | J17: 0 | K17: 0 | L17: 0 | M17: 208 | N17: 1e-06 | O17: 882 | P17: 4.240384615
A18: Myitkyina | B18: =SUMIFS(Camplist_HH,Camplist_Township,'Shelter Progress'!$A18,Camplist_Type_Of_Acc,"Camp") -> 1378 | C18: =SUMIFS(Camplist_Popl,Camplist_Township,'Shelter Progress'!$A18,Camplist_Type_Of_Acc,"Camp") -> 6503 | D18: 0 | E18: 939 | F18: 0 | G18: 939 | H18: 0 | I18: 0 | J18: 0 | K18: 939 | L18: 4431.28955 | M18: 439 | N18: 0.6814223512 | O18: 2071.71045 | P18: 4.7191582
A19: Namhkan | B19: =SUMIFS(Camplist_HH,Camplist_Township,'Shelter Progress'!$A19,Camplist_Type_Of_Acc,"Camp") -> 360 | C19: =SUMIFS(Camplist_Popl,Camplist_Township,'Shelter Progress'!$A19,Camplist_Type_Of_Acc,"Camp") -> 1497 | D19: 0 | E19: 158 | F19: 0 | G19: 158 | H19: 0 | I19: 0 | J19: 0 | K19: 158 | L19: 657.0166667 | M19: 202 | N19: 0.4388888889 | O19: 839.9833333 | P19: 4.158333333
A20: Namtu | B20: =SUMIFS(Camplist_HH,Camplist_Township,'Shelter Progress'!$A20,Camplist_Type_Of_Acc,"Camp") -> 177 | C20: =SUMIFS(Camplist_Popl,Camplist_Township,'Shelter Progress'!$A20,Camplist_Type_Of_Acc,"Camp") -> 807 | D20: 0 | E20: 10 | F20: 0 | G20: 10 | H20: 0 | I20: 0 | J20: 0 | K20: 10 | L20: 45.59322034 | M20: 167 | N20: 0.05649717514 | O20: 761.4067797 | P20: 4.559322034
A21: Puta-O | B21: =SUMIFS(Camplist_HH,Camplist_Township,'Shelter Progress'!$A21,Camplist_Type_Of_Acc,"Camp") -> 7 | C21: =SUMIFS(Camplist_Popl,Camplist_Township,'Shelter Progress'!$A21,Camplist_Type_Of_Acc,"Camp") -> 15 | D21: 0 | E21: 0 | F21: 0 | G21: 0 | H21: 0 | I21: 0 | J21: 0 | K21: 0 | L21: 0 | M21: 7 | N21: 1e-06 | O21: 15 | P21: 2.142857143
A22: Shwegu | B22: =SUMIFS(Camplist_HH,Camplist_Township,'Shelter Progress'!$A22,Camplist_Type_Of_Acc,"Camp") -> 526 | C22: =SUMIFS(Camplist_Popl,Camplist_Township,'Shelter Progress'!$A22,Camplist_Type_Of_Acc,"Camp") -> 2128 | D22: 0 | E22: 76 | F22: 0 | G22: 58 | H22: 0 | I22: 0 | J22: 0 | K22: 76 | L22: 0 | M22: 450 | N22: =IF(K22=0,0.000001,K22/B22) -> 0.144486692 | O22: 2128
A23: Sumprabum | B23: =SUMIFS(Camplist_HH,Camplist_Township,'Shelter Progress'!$A23,Camplist_Type_Of_Acc,"Camp") -> 8 | C23: =SUMIFS(Camplist_Popl,Camplist_Township,'Shelter Progress'!$A23,Camplist_Type_Of_Acc,"Camp") -> 38 | D23: 0 | E23: 0 | F23: 0 | G23: 0 | H23: 0 | I23: 0 | J23: 0 | K23: 0 | L23: 0 | M23: 8 | N23: 1e-06 | O23: 38
A24: Waingmaw | B24: =SUMIFS(Camplist_HH,Camplist_Township,'Shelter Progress'!$A24,Camplist_Type_Of_Acc,"Camp") -> 5245 | C24: =SUMIFS(Camplist_Popl,Camplist_Township,'Shelter Progress'!$A24,Camplist_Type_Of_Acc,"Camp") -> 23482 | D24: 0 | E24: 2985 | F24: 160 | G24: 3145 | H24: 0 | I24: 0 | J24: 0 | K24: 2985 | L24: 13363.92183 | M24: 2260 | N24: 0.5691134414 | O24: 10118.07817 | P24: =IF(B24=0,5,C24/B24) -> 4.477025739
A25: Total | B25: =SUM(B5:B24) -> 17661 | C25: 81460 | D25: 0 | E25: 7367 | F25: 260 | G25: 7645 | H25: 0 | I25: 0 | J25: 0 | K25: 7367 | L25: 33852.34683 | M25: 10294 | N25: =K25/B25 -> 0.4171337976 | O25: =SUM(O5:O24) -> 47607.65317
A29: Rakhine
A73: State | B73: (Multiple Items) | H73: State | I73: (Multiple Items)
A75: Row Labels | B75: Sum of HHCovered | H75: Row Labels | I75: Sum of #ofTemporaryShelterBuilt
A76: DRC | B76: 1419 | H76: DRC | I76: 1419
A77: UNHCR | B77: 4395 | H77: UNHCR | I77: 4395
A78: KBC | B78: 82 | H78: KBC | I78: 82
A79: Miserreor | B79: 12 | H79: Miserreor | I79: 12
A80: Shalom | B80: 32 | H80: Shalom | I80: 32
A81: World Vision | B81: 63 | H81: World Vision | I81: 63
A82: Ye Tiek Foundation | B82: 10 | H82: Ye Tiek Foundation | I82: 10
A83: Oxfam | B83: 380 | H83: Oxfam | I83: 380
A84: DFID | B84: 350 | H84: DFID | I84: 350
A85: IRRC | B85: 18 | H85: IRRC | I85: 18
A86: Metta Foundation | B86: 590 | H86: Metta Foundation | I86: 590
A87: Caritas | B87: 340 | H87: Caritas | I87: 340
A88: Robert Church | B88: 48 | H88: Robert Church | I88: 48
A89: Grand Total | B89: 7739 | H89: Grand Total | I89: 7739

Sheet Shelter Summary (by Agency)
A2: KACHIN & NORTHERN SHAN SHELTER SUMMARY (BY AGENCY)
A3: =Report_Date -> 2013-08-01
A5: State | B5: (Multiple Items) | C5: (Select State)
A7: Row Labels | B7: Temporary Shelter Built | C7: Temporary Shelter Under Construction | D7: Permanent House Built | E7: Permanent House Under Construction
A8: Caritas | B8: 340
A9: DFID | B9: 350
A10: DRC | B10: 1419
A11: IRRC | B11: 18
A12: KBC | B12: 82
A13: Metta Foundation | B13: 590
A14: Miserreor | B14: 12
A15: Oxfam | B15: 380
A16: Robert Church | B16: 48
A17: Shalom | B17: 32
A18: UNHCR | B18: 4395 | C18: 260
A19: World Vision | B19: 63
A20: Ye Tiek Foundation | B20: 10
A21: Grand Total | B21: 7739 | C21: 260
A23: State | B23: (Multiple Items)
A25: Row Labels | B25: Sum of HHCovered
A26: Caritas | B26: 340
A27: DFID | B27: 350
A28: DRC | B28: 1419
A29: IRRC | B29: 18
A30: KBC | B30: 82
A31: Metta Foundation | B31: 590
A32: Miserreor | B32: 12
A33: Oxfam | B33: 380
A34: Robert Church | B34: 48
A35: Shalom | B35: 32
A36: UNHCR | B36: 4395
A37: World Vision | B37: 63
A38: Ye Tiek Foundation | B38: 10
A39: Grand Total | B39: 7739

Sheet Shelter Coverage & Gaps
A2: KACHIN & NORTHERN SHAN SHELTER COVERAGE & GAPS
A3: =Report_Date -> 2013-08-01
B14: Population | E14: Shelter
A15: Township | B15: # of HH | C15: # of Ind. | D15: # of Camp | E15: # Ind. Covered | F15: # Ind. Not Covered | G15: % Coverage
A16: Bhamo | B16: =SUMIFS(Camplist_HH,Camplist_Township,'Shelter Coverage & Gaps'!$A16,Camplist_Type_Of_Acc,"Camp") -> 1002 | C16: =SUMIFS(Camplist_Popl,Camplist_Township,'Shelter Coverage & Gaps'!$A16,Camplist_Type_Of_Acc,"Camp") -> 4529 | D16: =COUNTIFS(Camplist_Township,'Shelter Coverage & Gaps'!A16,CampList_Status,"open",Camplist_Type_Of_Acc,"Camp") -> 11 | E16: ='Shelter Progress'!L5 -> 2156.020958 | F16: ='Shelter Progress'!O5 -> 2372.979042 | G16: =IF(E16>0,E16/(E16+F16),0.00000001) -> 0.4760479042
A17: Chipwi | B17: =SUMIFS(Camplist_HH,Camplist_Township,'Shelter Coverage & Gaps'!$A17,Camplist_Type_Of_Acc,"Camp") -> 637 | C17: =SUMIFS(Camplist_Popl,Camplist_Township,'Shelter Coverage & Gaps'!$A17,Camplist_Type_Of_Acc,"Camp") -> 3062 | D17: =COUNTIFS(Camplist_Township,'Shelter Coverage & Gaps'!A17,CampList_Status,"open",Camplist_Type_Of_Acc,"Camp") -> 4 | E17: ='Shelter Progress'!L6 -> 394.166405 | F17: ='Shelter Progress'!O6 -> 2667.833595 | G17: =IF(E17>0,E17/(E17+F17),0.00000001) -> 0.1287284144
A18: Hpakant | B18: =SUMIFS(Camplist_HH,Camplist_Township,'Shelter Coverage & Gaps'!$A18,Camplist_Type_Of_Acc,"Camp") -> 1330 | C18: =SUMIFS(Camplist_Popl,Camplist_Township,'Shelter Coverage & Gaps'!$A18,Camplist_Type_Of_Acc,"Camp") -> 5075 | D18: =COUNTIFS(Camplist_Township,'Shelter Coverage & Gaps'!A18,CampList_Status,"open",Camplist_Type_Of_Acc,"Camp") -> 24 | E18: ='Shelter Progress'!L7 -> 190.7894737 | F18: ='Shelter Progress'!O7 -> 4884.210526 | G18: 0.03759398496
A19: Hseni | B19: =SUMIFS(Camplist_HH,Camplist_Township,'Shelter Coverage & Gaps'!$A19,Camplist_Type_Of_Acc,"Camp") -> 50 | C19: =SUMIFS(Camplist_Popl,Camplist_Township,'Shelter Coverage & Gaps'!$A19,Camplist_Type_Of_Acc,"Camp") -> 258 | D19: =COUNTIFS(Camplist_Township,'Shelter Coverage & Gaps'!A19,CampList_Status,"open",Camplist_Type_Of_Acc,"Camp") -> 1 | E19: ='Shelter Progress'!L8 -> 0 | F19: ='Shelter Progress'!O8 -> 258 | G19: 1e-08
A20: Injangyang | B20: =SUMIFS(Camplist_HH,Camplist_Township,'Shelter Coverage & Gaps'!$A20,Camplist_Type_Of_Acc,"Camp") -> 0 | C20: =SUMIFS(Camplist_Popl,Camplist_Township,'Shelter Coverage & Gaps'!$A20,Camplist_Type_Of_Acc,"Camp") -> 0 | D20: =COUNTIFS(Camplist_Township,'Shelter Coverage & Gaps'!A20,CampList_Status,"open",Camplist_Type_Of_Acc,"Camp") -> 1 | E20: ='Shelter Progress'!L9 -> 0 | F20: ='Shelter Progress'!O9 -> 0 | G20: 1e-08
A21: Khaunglanhpu | B21: =SUMIFS(Camplist_HH,Camplist_Township,'Shelter Coverage & Gaps'!$A21,Camplist_Type_Of_Acc,"Camp") -> 22 | C21: =SUMIFS(Camplist_Popl,Camplist_Township,'Shelter Coverage & Gaps'!$A21,Camplist_Type_Of_Acc,"Camp") -> 107 | D21: =COUNTIFS(Camplist_Township,'Shelter Coverage & Gaps'!A21,CampList_Status,"open",Camplist_Type_Of_Acc,"Camp") -> 1 | E21: ='Shelter Progress'!L10 -> 0 | F21: ='Shelter Progress'!O10 -> 107 | G21: 1e-08
A22: Kutkai | B22: =SUMIFS(Camplist_HH,Camplist_Township,'Shelter Coverage & Gaps'!$A22,Camplist_Type_Of_Acc,"Camp") -> 513 | C22: =SUMIFS(Camplist_Popl,Camplist_Township,'Shelter Coverage & Gaps'!$A22,Camplist_Type_Of_Acc,"Camp") -> 2416 | D22: =COUNTIFS(Camplist_Township,'Shelter Coverage & Gaps'!A22,CampList_Status,"open",Camplist_Type_Of_Acc,"Camp") -> 8 | E22: ='Shelter Progress'!L11 -> 0 | F22: ='Shelter Progress'!O11 -> 2416 | G22: 1e-08
A23: Mansi | B23: =SUMIFS(Camplist_HH,Camplist_Township,'Shelter Coverage & Gaps'!$A23,Camplist_Type_Of_Acc,"Camp") -> 1954 | C23: =SUMIFS(Camplist_Popl,Camplist_Township,'Shelter Coverage & Gaps'!$A23,Camplist_Type_Of_Acc,"Camp") -> 10303 | D23: =COUNTIFS(Camplist_Township,'Shelter Coverage & Gaps'!A23,CampList_Status,"open",Camplist_Type_Of_Acc,"Camp") -> 11 | E23: ='Shelter Progress'!L12 -> 2314.747697 | F23: ='Shelter Progress'!O12 -> 7988.252303 | G23: 0.224667349
A24: Manton | B24: =SUMIFS(Camplist_HH,Camplist_Township,'Shelter Coverage & Gaps'!$A24,Camplist_Type_Of_Acc,"Camp") -> 69 | C24: =SUMIFS(Camplist_Popl,Camplist_Township,'Shelter Coverage & Gaps'!$A24,Camplist_Type_Of_Acc,"Camp") -> 330 | D24: =COUNTIFS(Camplist_Township,'Shelter Coverage & Gaps'!A24,CampList_Status,"open",Camplist_Type_Of_Acc,"Camp") -> 4 | E24: ='Shelter Progress'!L13 -> 95.65217391 | F24: ='Shelter Progress'!O13 -> 234.3478261 | G24: 0.2898550725
A25: Mogaung | B25: =SUMIFS(Camplist_HH,Camplist_Township,'Shelter Coverage & Gaps'!$A25,Camplist_Type_Of_Acc,"Camp") -> 45 | C25: =SUMIFS(Camplist_Popl,Camplist_Township,'Shelter Coverage & Gaps'!$A25,Camplist_Type_Of_Acc,"Camp") -> 187 | D25: =COUNTIFS(Camplist_Township,'Shelter Coverage & Gaps'!A25,CampList_Status,"open",Camplist_Type_Of_Acc,"Camp") -> 3 | E25: ='Shelter Progress'!L14 -> 166.2222222 | F25: ='Shelter Progress'!O14 -> 20.77777778 | G25: 0.8888888889
A26: Mohnyin | B26: =SUMIFS(Camplist_HH,Camplist_Township,'Shelter Coverage & Gaps'!$A26,Camplist_Type_Of_Acc,"Camp") -> 34 | C26: =SUMIFS(Camplist_Popl,Camplist_Township,'Shelter Coverage & Gaps'!$A26,Camplist_Type_Of_Acc,"Camp") -> 144 | D26: =COUNTIFS(Camplist_Township,'Shelter Coverage & Gaps'!A26,CampList_Status,"open",Camplist_Type_Of_Acc,"Camp") -> 3 | E26: ='Shelter Progress'!L15 -> 135.5294118 | F26: ='Shelter Progress'!O15 -> 8.470588235 | G26: 0.9411764706
A27: Momauk | B27: =SUMIFS(Camplist_HH,Camplist_Township,'Shelter Coverage & Gaps'!$A27,Camplist_Type_Of_Acc,"Camp") -> 4096 | C27: =SUMIFS(Camplist_Popl,Camplist_Township,'Shelter Coverage & Gaps'!$A27,Camplist_Type_Of_Acc,"Camp") -> 19697 | D27: =COUNTIFS(Camplist_Township,'Shelter Coverage & Gaps'!A27,CampList_Status,"open",Camplist_Type_Of_Acc,"Camp") -> 16 | E27: ='Shelter Progress'!L16 -> 9901.397217 | F27: ='Shelter Progress'!O16 -> 9795.602783 | G27: 0.5026855469
A28: Muse | B28: =SUMIFS(Camplist_HH,Camplist_Township,'Shelter Coverage & Gaps'!$A28,Camplist_Type_Of_Acc,"Camp") -> 208 | C28: =SUMIFS(Camplist_Popl,Camplist_Township,'Shelter Coverage & Gaps'!$A28,Camplist_Type_Of_Acc,"Camp") -> 882 | D28: =COUNTIFS(Camplist_Township,'Shelter Coverage & Gaps'!A28,CampList_Status,"open",Camplist_Type_Of_Acc,"Camp") -> 3 | E28: ='Shelter Progress'!L17 -> 0 | F28: ='Shelter Progress'!O17 -> 882 | G28: 1e-08
A29: Myitkyina | B29: =SUMIFS(Camplist_HH,Camplist_Township,'Shelter Coverage & Gaps'!$A29,Camplist_Type_Of_Acc,"Camp") -> 1378 | C29: =SUMIFS(Camplist_Popl,Camplist_Township,'Shelter Coverage & Gaps'!$A29,Camplist_Type_Of_Acc,"Camp") -> 6503 | D29: =COUNTIFS(Camplist_Township,'Shelter Coverage & Gaps'!A29,CampList_Status,"open",Camplist_Type_Of_Acc,"Camp") -> 25 | E29: ='Shelter Progress'!L18 -> 4431.28955 | F29: ='Shelter Progress'!O18 -> 2071.71045 | G29: 0.6814223512
A30: Namhkan | B30: =SUMIFS(Camplist_HH,Camplist_Township,'Shelter Coverage & Gaps'!$A30,Camplist_Type_Of_Acc,"Camp") -> 360 | C30: =SUMIFS(Camplist_Popl,Camplist_Township,'Shelter Coverage & Gaps'!$A30,Camplist_Type_Of_Acc,"Camp") -> 1497 | D30: =COUNTIFS(Camplist_Township,'Shelter Coverage & Gaps'!A30,CampList_Status,"open",Camplist_Type_Of_Acc,"Camp") -> 6 | E30: ='Shelter Progress'!L19 -> 657.0166667 | F30: ='Shelter Progress'!O19 -> 839.9833333 | G30: 0.4388888889
A31: Namtu | B31: =SUMIFS(Camplist_HH,Camplist_Township,'Shelter Coverage & Gaps'!$A31,Camplist_Type_Of_Acc,"Camp") -> 177 | C31: =SUMIFS(Camplist_Popl,Camplist_Township,'Shelter Coverage & Gaps'!$A31,Camplist_Type_Of_Acc,"Camp") -> 807 | D31: =COUNTIFS(Camplist_Township,'Shelter Coverage & Gaps'!A31,CampList_Status,"open",Camplist_Type_Of_Acc,"Camp") -> 2 | E31: ='Shelter Progress'!L20 -> 45.59322034 | F31: ='Shelter Progress'!O20 -> 761.4067797 | G31: 0.05649717514
A32: Puta-O | B32: =SUMIFS(Camplist_HH,Camplist_Township,'Shelter Coverage & Gaps'!$A32,Camplist_Type_Of_Acc,"Camp") -> 7 | C32: =SUMIFS(Camplist_Popl,Camplist_Township,'Shelter Coverage & Gaps'!$A32,Camplist_Type_Of_Acc,"Camp") -> 15 | D32: =COUNTIFS(Camplist_Township,'Shelter Coverage & Gaps'!A32,CampList_Status,"open",Camplist_Type_Of_Acc,"Camp") -> 1 | E32: ='Shelter Progress'!L21 -> 0 | F32: ='Shelter Progress'!O21 -> 15 | G32: 1e-08
A33: Shwegu | B33: =SUMIFS(Camplist_HH,Camplist_Township,'Shelter Coverage & Gaps'!$A33,Camplist_Type_Of_Acc,"Camp") -> 526 | C33: =SUMIFS(Camplist_Popl,Camplist_Township,'Shelter Coverage & Gaps'!$A33,Camplist_Type_Of_Acc,"Camp") -> 2128 | D33: =COUNTIFS(Camplist_Township,'Shelter Coverage & Gaps'!A33,CampList_Status,"open",Camplist_Type_Of_Acc,"Camp") -> 3 | E33: ='Shelter Progress'!L22 -> 0 | F33: ='Shelter Progress'!O22 -> 2128 | G33: 1e-08
A34: Sumprabum | B34: =SUMIFS(Camplist_HH,Camplist_Township,'Shelter Coverage & Gaps'!$A34,Camplist_Type_Of_Acc,"Camp") -> 8 | C34: =SUMIFS(Camplist_Popl,Camplist_Township,'Shelter Coverage & Gaps'!$A34,Camplist_Type_Of_Acc,"Camp") -> 38 | D34: =COUNTIFS(Camplist_Township,'Shelter Coverage & Gaps'!A34,CampList_Status,"open",Camplist_Type_Of_Acc,"Camp") -> 1 | E34: ='Shelter Progress'!L23 -> 0 | F34: ='Shelter Progress'!O23 -> 38 | G34: 1e-08
A35: Waingmaw | B35: =SUMIFS(Camplist_HH,Camplist_Township,'Shelter Coverage & Gaps'!$A35,Camplist_Type_Of_Acc,"Camp") -> 5245 | C35: =SUMIFS(Camplist_Popl,Camplist_Township,'Shelter Coverage & Gaps'!$A35,Camplist_Type_Of_Acc,"Camp") -> 23482 | D35: =COUNTIFS(Camplist_Township,'Shelter Coverage & Gaps'!A35,CampList_Status,"open",Camplist_Type_Of_Acc,"Camp") -> 24 | E35: ='Shelter Progress'!L24 -> 13363.92183 | F35: ='Shelter Progress'!O24 -> 10118.07817 | G35: 0.5691134414
A36: Total | B36: =SUM(B16:B35) -> 17661 | C36: =SUM(C16:C35) -> 81460 | D36: =SUM(D16:D35) -> 152 | E36: =SUM(E16:E35) -> 33852.34683 | F36: =SUM(F16:F35) -> 47607.65317 | G36: 0.4155701795

Sheet Kachin (hidden)
A1: Camp | H1: Shelter | I1: NFI | L1: Pos | M1: 130
A2: Pcode | B2: Township | C2: Long. | D2: Lat. | E2: HS | F2: Pop | G2: N_cps | H2: Coverage | I2: Hygiene | J2: Core | K2: Sanitary | L2: Y | M2: X | N2: Column1
A3: MMR001010 | B3: Bhamo | C3: 97.21958333 | D3: 24.26 | E3: 1276 | F3: 5768 | G3: =CONCATENATE(N3, " cp",IF(N3>1,"s","")) -> 13 cps | H3: 0.144984326 | I3: 0 | J3: 0 | K3: 0 | L3: =1000-ROUND((D3-23.5)*$M$1,0) -> 901 | M3: =ROUND((C3-96.5)*$M$1,0)+100 -> 194 | N3: 13
A4: MMR001005 | B4: Chipwi | C4: 98.3228 | D4: 25.918 | E4: 95.4 | F4: 830 | G4: 6 cps | H4: 0.8595387841 | I4: 1 | J4: 0 | K4: 0.9538784067 | L4: 686 | M4: 337 | N4: 6
A5: MMR001009 | B5: Hpakant | C5: 96.37375 | D5: 25.58486111 | E5: 1330 | F5: 5069 | G5: 23 cps | H5: 0.03759398496 | I5: 0.6917293233 | J5: 0 | K5: 1 | L5: 729 | M5: 84 | N5: 23
A6: MMR001003 | B6: Injangyang | C6: 97.89587302 | D6: 26.23269841 | E6: 0 | F6: 0 | G6: 1 cp | H6: 0 | I6: 0 | J6: 0 | K6: 0 | L6: 645 | M6: 281 | N6: 1
A7: MMR001018 | B7: Khaunglanhpu | C7: 98.43857143 | D7: 27.16514286 | E7: 22 | F7: 107 | G7: 1 cp | H7: 0 | I7: 0 | J7: 0 | K7: 0 | L7: 524 | M7: 352 | N7: 1
A8: MMR015011 | B8: Kutkai | C8: 98.1 | D8: 23.55303191 | E8: 148 | F8: 571 | G8: 8 cps | H8: 0.0851775195 | I8: 0 | J8: 0 | K8: 1 | L8: 993 | M8: 308 | N8: 8
A9: MMR001013 | B9: Mansi | C9: 97.37284553 | D9: 23.94 | E9: 1551.2 | F9: 7286 | G9: 11 cps | H9: 0.1509141931 | I9: 0 | J9: 0 | K9: 0 | L9: 943 | M9: 213 | N9: 11
A10: MMR015019 | B10: Manton | C10: 97.26634783 | D10: 23.34582609 | E10: 53 | F10: 260 | G10: 3 cps | H10: 0.5419625501 | I10: 0 | J10: 0 | K10: 0 | L10: 1020 | M10: 200 | N10: 3
A11: MMR001008 | B11: Mogaung | C11: 96.82479452 | D11: 25.25780822 | E11: 45 | F11: 188 | G11: 3 cps | H11: 1 | I11: 0 | J11: 0 | K11: 0 | L11: 771 | M11: 142 | N11: 3
A12: MMR001007 | B12: Mohnyin | C12: 96.37655844 | D12: 24.95707792 | E12: 34 | F12: 143 | G12: 3 cps | H12: 1 | I12: 1 | J12: 0 | K12: 0 | L12: 811 | M12: 84 | N12: 3
A13: MMR001012 | B13: Momauk | C13: 97.44951049 | D13: 24.6 | E13: 5355 | F13: 25037 | G13: 25 cps | H13: 0.2644110246 | I13: 0.1254901961 | J13: 0 | K13: 0.5826330532 | L13: 857 | M13: 223 | N13: 25
A14: MMR015009 | B14: Muse | C14: 98.12 | D14: 23.97223529 | E14: 208 | F14: 882 | G14: 4 cps | H14: 0 | I14: 0 | J14: 0 | K14: 0 | L14: 939 | M14: 311 | N14: 4
A15: MMR001001 | B15: Myitkyina | C15: 97.30117647 | D15: 25.24 | E15: 1434 | F15: 6480 | G15: 25 cps | H15: 0.6713942308 | I15: 0.6506276151 | J15: 0 | K15: 0.2573221757 | L15: 774 | M15: 204 | N15: 25
A16: MMR015010 | B16: Namhkan | C16: 97.61985507 | D16: 23.7 | E16: 284 | F16: 1367 | G16: 7 cps | H16: 1 | I16: 0 | J16: 0 | K16: 0 | L16: 974 | M16: 246 | N16: 7
A17: MMR015015 | B17: Namtu | C17: 97.48 | D17: 23.01813559 | E17: 18 | F17: 74 | G17: 1 cp | H17: 1 | I17: 0 | J17: 0 | K17: 0 | L17: 1063 | M17: 227 | N17: 1
A18: MMR001014 | B18: Puta-O | C18: 97.43514851 | D18: 27.3270297 | E18: 0 | F18: 0 | G18: 1 cp | H18: 0 | I18: 0 | J18: 0 | K18: 0 | L18: 502 | M18: 222 | N18: 1
A19: MMR001011 | B19: Shwegu | C19: 96.75217949 | D19: 24.23384615 | E19: 535 | F19: 2153 | G19: 4 cps | H19: 0.0232234092 | I19: 0 | J19: 0 | K19: 0 | L19: 905 | M19: 133 | N19: 4
A20: MMR001002 | B20: Waingmaw | C20: 97.7 | D20: 25.37 | E20: 5769 | F20: 26775 | G20: 25 cps | H20: 0.5762525721 | I20: 0.3737216155 | J20: 0 | K20: 0.04628185127 | L20: =1000-ROUND((D20-23.5)*$M$1,0) -> 757 | M20: =ROUND((C20-96.5)*$M$1,0)+100 -> 256 | N20: 25
B21: Kachin/Shan | C21: 96.00 | D21: 27.00 | E21: =SUBTOTAL(109,Table58[HS]) -> 18157.6 | F21: =SUBTOTAL(109,Table58[Pop]) -> 82990 | G21: =CONCATENATE(Table58[[#Totals],[Column1]]," camps") -> 164 camps | H21: =SUMPRODUCT(Table58[Pop]*Table58[Coverage])/Table58[[#Totals],[Pop]] -> 0.3765660222 | I21: =SUMPRODUCT(Table58[Pop]*Table58[Hygiene])/Table58[[#Totals],[Pop]] -> 0.2632092684 | J21: =SUMPRODUCT(Table58[Pop]*Table58[Core])/Table58[[#Totals],[Pop]] -> 0 | K21: =SUMPRODUCT(Table58[Pop]*Table58[Sanitary])/Table58[[#Totals],[Pop]] -> 0.2882967478 | L21: =1000-ROUND((D21-23.5)*$M$1,0) -> 545 | M21: =ROUND((C21-96.5)*$M$1,0)+100 -> 35 | N21: 164

Sheet NFI Tracking
I1: ='NFI Covergae & Gaps'!P1 -> 1
A2: KACHIN & NORTHERN SHAN NFI TRACKING
A3: =Report_Date -> 2013-08-01
A5: Months | B5: Distribution Date | C5: Organization | D5: Implementing Partner | E5: State | F5: Township | G5: Camp Name | H5: Hygiene Kit | I5: NFI Core Kit | J5: Sanitary Kit | K5: Mosquito net | L5: Tarpaulin | M5: Blanket | N5: Kitchen Set | O5: Complementary Kit | P5: Plastic Bucket | Q5: Plastic Mat | R5: Hygiene Kit2 | S5: NFI Core Kit3 | T5: Sanitary Kit4 | U5: Mosquito net5 | V5: Tarpaulin6 | W5: Blanket7 | X5: Kitchen Set8 | Y5: Complementary Kit9 | Z5: Plastic Bucket | AA5: Plastic Mat | AB5: Pcode | AC5: Status
A6: =IF(ISBLANK(B6),"",(Report_Date-B6)/30) -> 14.76666667 | B6: 2012-05-15 | C6: UNHCR | D6: KBSS | E6: Kachin | F6: Bhamo | G6: AD-2000 Tharthana Compound | J6: 0 | K6: 90 | L6: 0 | M6: 0 | N6: 0 | O6: 0 | R6: =IF(NFI_Expiration=1,IF($A6<VLOOKUP(H$5,NFI,5,0),1,0)*Table_NFI[[#This Row],[Hygiene Kit]],0) -> 0 | S6: =IF(NFI_Expiration=1,IF($A6<VLOOKUP(I$5,NFI,5,0),1,0)*Table_NFI[[#This Row],[NFI Core Kit]],0) -> 0 | T6: =IF(NFI_Expiration=1,IF($A6<VLOOKUP(J$5,NFI,5,0),1,0)*Table_NFI[[#This Row],[Sanitary Kit]],0) -> 0 | U6: =IF(NFI_Expiration=1,IF($A6<VLOOKUP(K$5,NFI,5,0),1,0)*Table_NFI[[#This Row],[Mosquito net]],0) -> 0 | V6: =IF(NFI_Expiration=1,IF($A6<VLOOKUP(L$5,NFI,5,0),1,0)*Table_NFI[[#This Row],[Tarpaulin]],0) -> 0 | W6: =IF(NFI_Expiration=1,IF($A6<VLOOKUP(M$5,NFI,5,0),1,0)*Table_NFI[[#This Row],[Blanket]],0) -> 0 | X6: =IF(NFI_Expiration=1,IF($A6<VLOOKUP(N$5,NFI,5,0),1,0)*Table_NFI[[#This Row],[Kitchen Set]],0) -> 0 | Y6: =IF(NFI_Expiration=1,IF($A6<VLOOKUP(O$5,NFI,5,0),1,0)*Table_NFI[[#This Row],[Complementary Kit]],0) -> 0 | Z6: =IF(NFI_Expiration=1,IF($A6<VLOOKUP(P$5,NFI,5,0),1,0)*Table_NFI[[#This Row],[Plastic Bucket]],0) -> 0 | AA6: =IF(NFI_Expiration=1,IF($A6<VLOOKUP(Q$5,NFI,5,0),1,0)*Table_NFI[[#This Row],[Plastic Mat]],0) -> 0 | AB6: =VLOOKUP(Table_NFI[[#This Row],[Camp Name]],'Camp List'!N$5:Z$347,2,0) -> MMR001CMP050 | AC6: =VLOOKUP(Table_NFI[[#This Row],[Camp Name]],'Camp List'!N$5:Z$347,13,0) -> Open
A7: 14.56666667 | B7: 2012-05-21 | C7: UNHCR | D7: UNHCR | E7: Kachin | F7: Bhamo | G7: AD-2000 Tharthana Compound | J7: 0 | K7: 0 | L7: 15 | M7: 0 | N7: 0 | O7: 0 | R7: =IF(NFI_Expiration=1,IF($A7<VLOOKUP(H$5,NFI,5,0),1,0)*Table_NFI[[#This Row],[Hygiene Kit]],0) -> 0 | S7: =IF(NFI_Expiration=1,IF($A7<VLOOKUP(I$5,NFI,5,0),1,0)*Table_NFI[[#This Row],[NFI Core Kit]],0) -> 0 | T7: =IF(NFI_Expiration=1,IF($A7<VLOOKUP(J$5,NFI,5,0),1,0)*Table_NFI[[#This Row],[Sanitary Kit]],0) -> 0 | U7: =IF(NFI_Expiration=1,IF($A7<VLOOKUP(K$5,NFI,5,0),1,0)*Table_NFI[[#This Row],[Mosquito net]],0) -> 0 | V7: =IF(NFI_Expiration=1,IF($A7<VLOOKUP(L$5,NFI,5,0),1,0)*Table_NFI[[#This Row],[Tarpaulin]],0) -> 0 | W7: =IF(NFI_Expiration=1,IF($A7<VLOOKUP(M$5,NFI,5,0),1,0)*Table_NFI[[#This Row],[Blanket]],0) -> 0 | X7: =IF(NFI_Expiration=1,IF($A7<VLOOKUP(N$5,NFI,5,0),1,0)*Table_NFI[[#This Row],[Kitchen Set]],0) -> 0 | Y7: =IF(NFI_Expiration=1,IF($A7<VLOOKUP(O$5,NFI,5,0),1,0)*Table_NFI[[#This Row],[Complementary Kit]],0) -> 0 | Z7: =IF(NFI_Expiration=1,IF($A7<VLOOKUP(P$5,NFI,5,0),1,0)*Table_NFI[[#This Row],[Plastic Bucket]],0) -> 0 | AA7: =IF(NFI_Expiration=1,IF($A7<VLOOKUP(Q$5,NFI,5,0),1,0)*Table_NFI[[#This Row],[Plastic Mat]],0) -> 0 | AB7: =VLOOKUP(Table_NFI[[#This Row],[Camp Name]],'Camp List'!N$5:Z$347,2,0) -> MMR001CMP050 | AC7: =VLOOKUP(Table_NFI[[#This Row],[Camp Name]],'Camp List'!N$5:Z$347,13,0) -> Open
A8: 14.23333333 | B8: 2012-05-31 | C8: UNHCR | D8: KBC | E8: Kachin | F8: Bhamo | G8: Robert Church | J8: 0 | K8: 0 | L8: 20 | M8: 0 | N8: 0 | O8: 0 | R8: =IF(NFI_Expiration=1,IF($A8<VLOOKUP(H$5,NFI,5,0),1,0)*Table_NFI[[#This Row],[Hygiene Kit]],0) -> 0 | S8: =IF(NFI_Expiration=1,IF($A8<VLOOKUP(I$5,NFI,5,0),1,0)*Table_NFI[[#This Row],[NFI Core Kit]],0) -> 0 | T8: =IF(NFI_Expiration=1,IF($A8<VLOOKUP(J$5,NFI,5,0),1,0)*Table_NFI[[#This Row],[Sanitary Kit]],0) -> 0 | U8: =IF(NFI_Expiration=1,IF($A8<VLOOKUP(K$5,NFI,5,0),1,0)*Table_NFI[[#This Row],[Mosquito net]],0) -> 0 | V8: =IF(NFI_Expiration=1,IF($A8<VLOOKUP(L$5,NFI,5,0),1,0)*Table_NFI[[#This Row],[Tarpaulin]],0) -> 0 | W8: =IF(NFI_Expiration=1,IF($A8<VLOOKUP(M$5,NFI,5,0),1,0)*Table_NFI[[#This Row],[Blanket]],0) -> 0 | X8: =IF(NFI_Expiration=1,IF($A8<VLOOKUP(N$5,NFI,5,0),1,0)*Table_NFI[[#This Row],[Kitchen Set]],0) -> 0 | Y8: =IF(NFI_Expiration=1,IF($A8<VLOOKUP(O$5,NFI,5,0),1,0)*Table_NFI[[#This Row],[Complementary Kit]],0) -> 0 | Z8: =IF(NFI_Expiration=1,IF($A8<VLOOKUP(P$5,NFI,5,0),1,0)*Table_NFI[[#This Row],[Plastic Bucket]],0) -> 0 | AA8: =IF(NFI_Expiration=1,IF($A8<VLOOKUP(Q$5,NFI,5,0),1,0)*Table_NFI[[#This Row],[Plastic Mat]],0) -> 0 | AB8: =VLOOKUP(Table_NFI[[#This Row],[Camp Name]],'Camp List'!N$5:Z$347,2,0) -> MMR001CMP047 | AC8: =VLOOKUP(Table_NFI[[#This Row],[Camp Name]],'Camp List'!N$5:Z$347,13,0) -> Open
A9: 7.433333333 | B9: 2012-12-21 | C9: UNHCR | D9: UNHCR | E9: Kachin | F9: Bhamo | G9: Robert Church | J9: 0 | K9: 0 | L9: 0 | M9: 73 | N9: 0 | O9: 0 | R9: =IF(NFI_Expiration=1,IF($A9<VLOOKUP(H$5,NFI,5,0),1,0)*Table_NFI[[#This Row],[Hygiene Kit]],0) -> 0 | S9: =IF(NFI_Expiration=1,IF($A9<VLOOKUP(I$5,NFI,5,0),1,0)*Table_NFI[[#This Row],[NFI Core Kit]],0) -> 0 | T9: =IF(NFI_Expiration=1,IF($A9<VLOOKUP(J$5,NFI,5,0),1,0)*Table_NFI[[#This Row],[Sanitary Kit]],0) -> 0 | U9: =IF(NFI_Expiration=1,IF($A9<VLOOKUP(K$5,NFI,5,0),1,0)*Table_NFI[[#This Row],[Mosquito net]],0) -> 0 | V9: =IF(NFI_Expiration=1,IF($A9<VLOOKUP(L$5,NFI,5,0),1,0)*Table_NFI[[#This Row],[Tarpaulin]],0) -> 0 | W9: =IF(NFI_Expiration=1,IF($A9<VLOOKUP(M$5,NFI,5,0),1,0)*Table_NFI[[#This Row],[Blanket]],0) -> 73 | X9: =IF(NFI_Expiration=1,IF($A9<VLOOKUP(N$5,NFI,5,0),1,0)*Table_NFI[[#This Row],[Kitchen Set]],0) -> 0 | Y9: =IF(NFI_Expiration=1,IF($A9<VLOOKUP(O$5,NFI,5,0),1,0)*Table_NFI[[#This Row],[Complementary Kit]],0) -> 0 | Z9: =IF(NFI_Expiration=1,IF($A9<VLOOKUP(P$5,NFI,5,0),1,0)*Table_NFI[[#This Row],[Plastic Bucket]],0) -> 0 | AA9: =IF(NFI_Expiration=1,IF($A9<VLOOKUP(Q$5,NFI,5,0),1,0)*Table_NFI[[#This Row],[Plastic Mat]],0) -> 0 | AB9: =VLOOKUP(Table_NFI[[#This Row],[Camp Name]],'Camp List'!N$5:Z$347,2,0) -> MMR001CMP047 | AC9: =VLOOKUP(Table_NFI[[#This Row],[Camp Name]],'Camp List'!N$5:Z$347,13,0) -> Open
A10: 8.8 | B10: 2012-11-10 | C10: UNHCR | D10: UNHCR | E10: Kachin | F10: Hpakant | G10: Hlaing Naung Baptist | J10: 0 | K10: 12 | L10: 0 | M10: 12 | N10: 0 | O10: 0 | R10: =IF(NFI_Expiration=1,IF($A10<VLOOKUP(H$5,NFI,5,0),1,0)*Table_NFI[[#This Row],[Hygiene Kit]],0) -> 0 | S10: =IF(NFI_Expiration=1,IF($A10<VLOOKUP(I$5,NFI,5,0),1,0)*Table_NFI[[#This Row],[NFI Core Kit]],0) -> 0 | T10: =IF(NFI_Expiration=1,IF($A10<VLOOKUP(J$5,NFI,5,0),1,0)*Table_NFI[[#This Row],[Sanitary Kit]],0) -> 0 | U10: =IF(NFI_Expiration=1,IF($A10<VLOOKUP(K$5,NFI,5,0),1,0)*Table_NFI[[#This Row],[Mosquito net]],0) -> 12 | V10: =IF(NFI_Expiration=1,IF($A10<VLOOKUP(L$5,NFI,5,0),1,0)*Table_NFI[[#This Row],[Tarpaulin]],0) -> 0 | W10: =IF(NFI_Expiration=1,IF($A10<VLOOKUP(M$5,NFI,5,0),1,0)*Table_NFI[[#This Row],[Blanket]],0) -> 12 | X10: =IF(NFI_Expiration=1,IF($A10<VLOOKUP(N$5,NFI,5,0),1,0)*Table_NFI[[#This Row],[Kitchen Set]],0) -> 0 | Y10: =IF(NFI_Expiration=1,IF($A10<VLOOKUP(O$5,NFI,5,0),1,0)*Table_NFI[[#This Row],[Complementary Kit]],0) -> 0 | Z10: =IF(NFI_Expiration=1,IF($A10<VLOOKUP(P$5,NFI,5,0),1,0)*Table_NFI[[#This Row],[Plastic Bucket]],0) -> 0 | AA10: =IF(NFI_Expiration=1,IF($A10<VLOOKUP(Q$5,NFI,5,0),1,0)*Table_NFI[[#This Row],[Plastic Mat]],0) -> 0 | AB10: =VLOOKUP(Table_NFI[[#This Row],[Camp Name]],'Camp List'!N$5:Z$347,2,0) -> MMR001CMP148 | AC10: =VLOOKUP(Table_NFI[[#This Row],[Camp Name]],'Camp List'!N$5:Z$347,13,0) -> Open
A11: 7.466666667 | B11: 2012-12-20 | C11: UNHCR | D11: KBC | E11: Kachin | F11: Hpakant | G11: Hlaing Naung Baptist | J11: 0 | K11: 12 | L11: 0 | M11: 12 | N11: 0 | O11: 0 | R11: =IF(NFI_Expiration=1,IF($A11<VLOOKUP(H$5,NFI,5,0),1,0)*Table_NFI[[#This Row],[Hygiene Kit]],0) -> 0 | S11: =IF(NFI_Expiration=1,IF($A11<VLOOKUP(I$5,NFI,5,0),1,0)*Table_NFI[[#This Row],[NFI Core Kit]],0) -> 0 | T11: =IF(NFI_Expiration=1,IF($A11<VLOOKUP(J$5,NFI,5,0),1,0)*Table_NFI[[#This Row],[Sanitary Kit]],0) -> 0 | U11: =IF(NFI_Expiration=1,IF($A11<VLOOKUP(K$5,NFI,5,0),1,0)*Table_NFI[[#This Row],[Mosquito net]],0) -> 12 | V11: =IF(NFI_Expiration=1,IF($A11<VLOOKUP(L$5,NFI,5,0),1,0)*Table_NFI[[#This Row],[Tarpaulin]],0) -> 0 | W11: =IF(NFI_Expiration=1,IF($A11<VLOOKUP(M$5,NFI,5,0),1,0)*Table_NFI[[#This Row],[Blanket]],0) -> 12 | X11: =IF(NFI_Expiration=1,IF($A11<VLOOKUP(N$5,NFI,5,0),1,0)*Table_NFI[[#This Row],[Kitchen Set]],0) -> 0 | Y11: =IF(NFI_Expiration=1,IF($A11<VLOOKUP(O$5,NFI,5,0),1,0)*Table_NFI[[#This Row],[Complementary Kit]],0) -> 0 | Z11: =IF(NFI_Expiration=1,IF($A11<VLOOKUP(P$5,NFI,5,0),1,0)*Table_NFI[[#This Row],[Plastic Bucket]],0) -> 0 | AA11: =IF(NFI_Expiration=1,IF($A11<VLOOKUP(Q$5,NFI,5,0),1,0)*Table_NFI[[#This Row],[Plastic Mat]],0) -> 0 | AB11: =VLOOKUP(Table_NFI[[#This Row],[Camp Name]],'Camp List'!N$5:Z$347,2,0) -> MMR001CMP148 | AC11: =VLOOKUP(Table_NFI[[#This Row],[Camp Name]],'Camp List'!N$5:Z$347,13,0) -> Open
A12: 5.466666667 | B12: 2013-02-18 | C12: UNHCR | D12: UNHCR | E12: Kachin | F12: Hpakant | G12: Hlaing Naung Baptist | J12: 30 | K12: 0 | L12: 0 | M12: 0 | N12: 0 | O12: 0 | R12: =IF(NFI_Expiration=1,IF($A12<VLOOKUP(H$5,NFI,5,0),1,0)*Table_NFI[[#This Row],[Hygiene Kit]],0) -> 0 | S12: =IF(NFI_Expiration=1,IF($A12<VLOOKUP(I$5,NFI,5,0),1,0)*Table_NFI[[#This Row],[NFI Core Kit]],0) -> 0 | T12: =IF(NFI_Expiration=1,IF($A12<VLOOKUP(J$5,NFI,5,0),1,0)*Table_NFI[[#This Row],[Sanitary Kit]],0) -> 30 | U12: =IF(NFI_Expiration=1,IF($A12<VLOOKUP(K$5,NFI,5,0),1,0)*Table_NFI[[#This Row],[Mosquito net]],0) -> 0 | V12: =IF(NFI_Expiration=1,IF($A12<VLOOKUP(L$5,NFI,5,0),1,0)*Table_NFI[[#This Row],[Tarpaulin]],0) -> 0 | W12: =IF(NFI_Expiration=1,IF($A12<VLOOKUP(M$5,NFI,5,0),1,0)*Table_NFI[[#This Row],[Blanket]],0) -> 0 | X12: =IF(NFI_Expiration=1,IF($A12<VLOOKUP(N$5,NFI,5,0),1,0)*Table_NFI[[#This Row],[Kitchen Set]],0) -> 0 | Y12: =IF(NFI_Expiration=1,IF($A12<VLOOKUP(O$5,NFI,5,0),1,0)*Table_NFI[[#This Row],[Complementary Kit]],0) -> 0 | Z12: =IF(NFI_Expiration=1,IF($A12<VLOOKUP(P$5,NFI,5,0),1,0)*Table_NFI[[#This Row],[Plastic Bucket]],0) -> 0 | AA12: =IF(NFI_Expiration=1,IF($A12<VLOOKUP(Q$5,NFI,5,0),1,0)*Table_NFI[[#This Row],[Plastic Mat]],0) -> 0 | AB12: =VLOOKUP(Table_NFI[[#This Row],[Camp Name]],'Camp List'!N$5:Z$347,2,0) -> MMR001CMP148 | AC12: =VLOOKUP(Table_NFI[[#This Row],[Camp Name]],'Camp List'!N$5:Z$347,13,0) -> Open
A13: 5.4 | B13: 2013-02-20 | C13: UNHCR | D13: UNHCR | E13: Kachin | F13: Hpakant | G13: Nga Pyaw Taw Baptist Nursery School | J13: 175 | K13: 0 | L13: 0 | M13: 0 | N13: 0 | O13: 0 | R13: =IF(NFI_Expiration=1,IF($A13<VLOOKUP(H$5,NFI,5,0),1,0)*Table_NFI[[#This Row],[Hygiene Kit]],0) -> 0 | S13: =IF(NFI_Expiration=1,IF($A13<VLOOKUP(I$5,NFI,5,0),1,0)*Table_NFI[[#This Row],[NFI Core Kit]],0) -> 0 | T13: =IF(NFI_Expiration=1,IF($A13<VLOOKUP(J$5,NFI,5,0),1,0)*Table_NFI[[#This Row],[Sanitary Kit]],0) -> 175 | U13: =IF(NFI_Expiration=1,IF($A13<VLOOKUP(K$5,NFI,5,0),1,0)*Table_NFI[[#This Row],[Mosquito net]],0) -> 0 | V13: =IF(NFI_Expiration=1,IF($A13<VLOOKUP(L$5,NFI,5,0),1,0)*Table_NFI[[#This Row],[Tarpaulin]],0) -> 0 | W13: =IF(NFI_Expiration=1,IF($A13<VLOOKUP(M$5,NFI,5,0),1,0)*Table_NFI[[#This Row],[Blanket]],0) -> 0 | X13: =IF(NFI_Expiration=1,IF($A13<VLOOKUP(N$5,NFI,5,0),1,0)*Table_NFI[[#This Row],[Kitchen Set]],0) -> 0 | Y13: =IF(NFI_Expiration=1,IF($A13<VLOOKUP(O$5,NFI,5,0),1,0)*Table_NFI[[#This Row],[Complementary Kit]],0) -> 0 | Z13: =IF(NFI_Expiration=1,IF($A13<VLOOKUP(P$5,NFI,5,0),1,0)*Table_NFI[[#This Row],[Plastic Bucket]],0) -> 0 | AA13: =IF(NFI_Expiration=1,IF($A13<VLOOKUP(Q$5,NFI,5,0),1,0)*Table_NFI[[#This Row],[Plastic Mat]],0) -> 0 | AB13: =VLOOKUP(Table_NFI[[#This Row],[Camp Name]],'Camp List'!N$5:Z$347,2,0) -> MMR001CMP082 | AC13: =VLOOKUP(Table_NFI[[#This Row],[Camp Name]],'Camp List'!N$5:Z$347,13,0) -> Open
A14: 5.4 | B14: 2013-02-20 | C14: UNHCR | D14: UNHCR | E14: Kachin | F14: Hpakant | G14: Mashi Kahtawng Baptist Church | J14: 74 | K14: 0 | L14: 0 | M14: 0 | N14: 0 | O14: 0 | R14: =IF(NFI_Expiration=1,IF($A14<VLOOKUP(H$5,NFI,5,0),1,0)*Table_NFI[[#This Row],[Hygiene Kit]],0) -> 0 | S14: =IF(NFI_Expiration=1,IF($A14<VLOOKUP(I$5,NFI,5,0),1,0)*Table_NFI[[#This Row],[NFI Core Kit]],0) -> 0 | T14: =IF(NFI_Expiration=1,IF($A14<VLOOKUP(J$5,NFI,5,0),1,0)*Table_NFI[[#This Row],[Sanitary Kit]],0) -> 74 | U14: =IF(NFI_Expiration=1,IF($A14<VLOOKUP(K$5,NFI,5,0),1,0)*Table_NFI[[#This Row],[Mosquito net]],0) -> 0 | V14: =IF(NFI_Expiration=1,IF($A14<VLOOKUP(L$5,NFI,5,0),1,0)*Table_NFI[[#This Row],[Tarpaulin]],0) -> 0 | W14: =IF(NFI_Expiration=1,IF($A14<VLOOKUP(M$5,NFI,5,0),1,0)*Table_NFI[[#This Row],[Blanket]],0) -> 0 | X14: =IF(NFI_Expiration=1,IF($A14<VLOOKUP(N$5,NFI,5,0),1,0)*Table_NFI[[#This Row],[Kitchen Set]],0) -> 0 | Y14: =IF(NFI_Expiration=1,IF($A14<VLOOKUP(O$5,NFI,5,0),1,0)*Table_NFI[[#This Row],[Complementary Kit]],0) -> 0 | Z14: =IF(NFI_Expiration=1,IF($A14<VLOOKUP(P$5,NFI,5,0),1,0)*Table_NFI[[#This Row],[Plastic Bucket]],0) -> 0 | AA14: =IF(NFI_Expiration=1,IF($A14<VLOOKUP(Q$5,NFI,5,0),1,0)*Table_NFI[[#This Row],[Plastic Mat]],0) -> 0 | AB14: =VLOOKUP(Table_NFI[[#This Row],[Camp Name]],'Camp List'!N$5:Z$347,2,0) -> MMR001CMP094 | AC14: =VLOOKUP(Table_NFI[[#This Row],[Camp Name]],'Camp List'!N$5:Z$347,13,0) -> Close
A15: 5.4 | B15: 2013-02-20 | C15: UNHCR | D15: UNHCR | E15: Kachin | F15: Hpakant | G15: Yumar Baptist Church | J15: 46 | K15: 0 | L15: 0 | M15: 0 | N15: 0 | O15: 0 | R15: =IF(NFI_Expiration=1,IF($A15<VLOOKUP(H$5,NFI,5,0),1,0)*Table_NFI[[#This Row],[Hygiene Kit]],0) -> 0 | S15: =IF(NFI_Expiration=1,IF($A15<VLOOKUP(I$5,NFI,5,0),1,0)*Table_NFI[[#This Row],[NFI Core Kit]],0) -> 0 | T15: =IF(NFI_Expiration=1,IF($A15<VLOOKUP(J$5,NFI,5,0),1,0)*Table_NFI[[#This Row],[Sanitary Kit]],0) -> 46 | U15: =IF(NFI_Expiration=1,IF($A15<VLOOKUP(K$5,NFI,5,0),1,0)*Table_NFI[[#This Row],[Mosquito net]],0) -> 0 | V15: =IF(NFI_Expiration=1,IF($A15<VLOOKUP(L$5,NFI,5,0),1,0)*Table_NFI[[#This Row],[Tarpaulin]],0) -> 0 | W15: =IF(NFI_Expiration=1,IF($A15<VLOOKUP(M$5,NFI,5,0),1,0)*Table_NFI[[#This Row],[Blanket]],0) -> 0 | X15: =IF(NFI_Expiration=1,IF($A15<VLOOKUP(N$5,NFI,5,0),1,0)*Table_NFI[[#This Row],[Kitchen Set]],0) -> 0 | Y15: =IF(NFI_Expiration=1,IF($A15<VLOOKUP(O$5,NFI,5,0),1,0)*Table_NFI[[#This Row],[Complementary Kit]],0) -> 0 | Z15: =IF(NFI_Expiration=1,IF($A15<VLOOKUP(P$5,NFI,5,0),1,0)*Table_NFI[[#This Row],[Plastic Bucket]],0) -> 0 | AA15: =IF(NFI_Expiration=1,IF($A15<VLOOKUP(Q$5,NFI,5,0),1,0)*Table_NFI[[#This Row],[Plastic Mat]],0) -> 0 | AB15: =VLOOKUP(Table_NFI[[#This Row],[Camp Name]],'Camp List'!N$5:Z$347,2,0) -> MMR001CMP105 | AC15: =VLOOKUP(Table_NFI[[#This Row],[Camp Name]],'Camp List'!N$5:Z$347,13,0) -> Open
A16: 5.4 | B16: 2013-02-20 | C16: UNHCR | D16: UNHCR | E16: Kachin | F16: Hpakant | G16: Nant Ma Hpit Catholic Church | J16: 35 | K16: 0 | L16: 0 | M16: 0 | N16: 0 | O16: 0 | R16: =IF(NFI_Expiration=1,IF($A16<VLOOKUP(H$5,NFI,5,0),1,0)*Table_NFI[[#This Row],[Hygiene Kit]],0) -> 0 | S16: =IF(NFI_Expiration=1,IF($A16<VLOOKUP(I$5,NFI,5,0),1,0)*Table_NFI[[#This Row],[NFI Core Kit]],0) -> 0 | T16: =IF(NFI_Expiration=1,IF($A16<VLOOKUP(J$5,NFI,5,0),1,0)*Table_NFI[[#This Row],[Sanitary Kit]],0) -> 35 | U16: =IF(NFI_Expiration=1,IF($A16<VLOOKUP(K$5,NFI,5,0),1,0)*Table_NFI[[#This Row],[Mosquito net]],0) -> 0 | V16: =IF(NFI_Expiration=1,IF($A16<VLOOKUP(L$5,NFI,5,0),1,0)*Table_NFI[[#This Row],[Tarpaulin]],0) -> 0 | W16: =IF(NFI_Expiration=1,IF($A16<VLOOKUP(M$5,NFI,5,0),1,0)*Table_NFI[[#This Row],[Blanket]],0) -> 0 | X16: =IF(NFI_Expiration=1,IF($A16<VLOOKUP(N$5,NFI,5,0),1,0)*Table_NFI[[#This Row],[Kitchen Set]],0) -> 0 | Y16: =IF(NFI_Expiration=1,IF($A16<VLOOKUP(O$5,NFI,5,0),1,0)*Table_NFI[[#This Row],[Complementary Kit]],0) -> 0 | Z16: =IF(NFI_Expiration=1,IF($A16<VLOOKUP(P$5,NFI,5,0),1,0)*Table_NFI[[#This Row],[Plastic Bucket]],0) -> 0 | AA16: =IF(NFI_Expiration=1,IF($A16<VLOOKUP(Q$5,NFI,5,0),1,0)*Table_NFI[[#This Row],[Plastic Mat]],0) -> 0 | AB16: =VLOOKUP(Table_NFI[[#This Row],[Camp Name]],'Camp List'!N$5:Z$347,2,0) -> MMR001CMP103 | AC16: =VLOOKUP(Table_NFI[[#This Row],[Camp Name]],'Camp List'!N$5:Z$347,13,0) -> Open
A17: 5.4 | B17: 2013-02-20 | C17: UNHCR | D17: UNHCR | E17: Kachin | F17: Hpakant | G17: Aye Mya Tharyar Church of Christ | J17: 18 | K17: 0 | L17: 0 | M17: 0 | N17: 0 | O17: 0 | R17: =IF(NFI_Expiration=1,IF($A17<VLOOKUP(H$5,NFI,5,0),1,0)*Table_NFI[[#This Row],[Hygiene Kit]],0) -> 0 | S17: =IF(NFI_Expiration=1,IF($A17<VLOOKUP(I$5,NFI,5,0),1,0)*Table_NFI[[#This Row],[NFI Core Kit]],0) -> 0 | T17: =IF(NFI_Expiration=1,IF($A17<VLOOKUP(J$5,NFI,5,0),1,0)*Table_NFI[[#This Row],[Sanitary Kit]],0) -> 18 | U17: =IF(NFI_Expiration=1,IF($A17<VLOOKUP(K$5,NFI,5,0),1,0)*Table_NFI[[#This Row],[Mosquito net]],0) -> 0 | V17: =IF(NFI_Expiration=1,IF($A17<VLOOKUP(L$5,NFI,5,0),1,0)*Table_NFI[[#This Row],[Tarpaulin]],0) -> 0 | W17: =IF(NFI_Expiration=1,IF($A17<VLOOKUP(M$5,NFI,5,0),1,0)*Table_NFI[[#This Row],[Blanket]],0) -> 0 | X17: =IF(NFI_Expiration=1,IF($A17<VLOOKUP(N$5,NFI,5,0),1,0)*Table_NFI[[#This Row],[Kitchen Set]],0) -> 0 | Y17: =IF(NFI_Expiration=1,IF($A17<VLOOKUP(O$5,NFI,5,0),1,0)*Table_NFI[[#This Row],[Complementary Kit]],0) -> 0 | Z17: =IF(NFI_Expiration=1,IF($A17<VLOOKUP(P$5,NFI,5,0),1,0)*Table_NFI[[#This Row],[Plastic Bucket]],0) -> 0 | AA17: =IF(NFI_Expiration=1,IF($A17<VLOOKUP(Q$5,NFI,5,0),1,0)*Table_NFI[[#This Row],[Plastic Mat]],0) -> 0 | AB17: =VLOOKUP(Table_NFI[[#This Row],[Camp Name]],'Camp List'!N$5:Z$347,2,0) -> MMR001CMP092 | AC17: =VLOOKUP(Table_NFI[[#This Row],[Camp Name]],'Camp List'!N$5:Z$347,13,0) -> Close
A18: 4.466666667 | B18: 2013-03-20 | C18: UNHCR | D18: UNHCR | E18: Kachin | F18: Hpakant | G18: Zomee Baptist Church camp, Hmaw Wan | J18: 6 | K18: 0 | L18: 0 | M18: 11 | N18: 0 | O18: 0 | R18: =IF(NFI_Expiration=1,IF($A18<VLOOKUP(H$5,NFI,5,0),1,0)*Table_NFI[[#This Row],[Hygiene Kit]],0) -> 0 | S18: =IF(NFI_Expiration=1,IF($A18<VLOOKUP(I$5,NFI,5,0),1,0)*Table_NFI[[#This Row],[NFI Core Kit]],0) -> 0 | T18: =IF(NFI_Expiration=1,IF($A18<VLOOKUP(J$5,NFI,5,0),1,0)*Table_NFI[[#This Row],[Sanitary Kit]],0) -> 6 | U18: =IF(NFI_Expiration=1,IF($A18<VLOOKUP(K$5,NFI,5,0),1,0)*Table_NFI[[#This Row],[Mosquito net]],0) -> 0 | V18: =IF(NFI_Expiration=1,IF($A18<VLOOKUP(L$5,NFI,5,0),1,0)*Table_NFI[[#This Row],[Tarpaulin]],0) -> 0 | W18: =IF(NFI_Expiration=1,IF($A18<VLOOKUP(M$5,NFI,5,0),1,0)*Table_NFI[[#This Row],[Blanket]],0) -> 11 | X18: =IF(NFI_Expiration=1,IF($A18<VLOOKUP(N$5,NFI,5,0),1,0)*Table_NFI[[#This Row],[Kitchen Set]],0) -> 0 | Y18: =IF(NFI_Expiration=1,IF($A18<VLOOKUP(O$5,NFI,5,0),1,0)*Table_NFI[[#This Row],[Complementary Kit]],0) -> 0 | Z18: =IF(NFI_Expiration=1,IF($A18<VLOOKUP(P$5,NFI,5,0),1,0)*Table_NFI[[#This Row],[Plastic Bucket]],0) -> 0 | AA18: =IF(NFI_Expiration=1,IF($A18<VLOOKUP(Q$5,NFI,5,0),1,0)*Table_NFI[[#This Row],[Plastic Mat]],0) -> 0 | AB18: =VLOOKUP(Table_NFI[[#This Row],[Camp Name]],'Camp List'!N$5:Z$347,2,0) -> MMR001CMP201 | AC18: =VLOOKUP(Table_NFI[[#This Row],[Camp Name]],'Camp List'!N$5:Z$347,13,0) -> Close
A19: 12.66666667 | B19: 2012-07-17 | C19: UNHCR | D19: UNHCR | E19: Kachin | F19: Mansi | G19: Lung Kawk ( Hka Hkye Zup) | J19: 0 | K19: 0 | L19: 0 | M19: 0 | N19: 0 | O19: 0 | R19: =IF(NFI_Expiration=1,IF($A19<VLOOKUP(H$5,NFI,5,0),1,0)*Table_NFI[[#This Row],[Hygiene Kit]],0) -> 0 | S19: =IF(NFI_Expiration=1,IF($A19<VLOOKUP(I$5,NFI,5,0),1,0)*Table_NFI[[#This Row],[NFI Core Kit]],0) -> 0 | T19: =IF(NFI_Expiration=1,IF($A19<VLOOKUP(J$5,NFI,5,0),1,0)*Table_NFI[[#This Row],[Sanitary Kit]],0) -> 0 | U19: =IF(NFI_Expiration=1,IF($A19<VLOOKUP(K$5,NFI,5,0),1,0)*Table_NFI[[#This Row],[Mosquito net]],0) -> 0 | V19: =IF(NFI_Expiration=1,IF($A19<VLOOKUP(L$5,NFI,5,0),1,0)*Table_NFI[[#This Row],[Tarpaulin]],0) -> 0 | W19: =IF(NFI_Expiration=1,IF($A19<VLOOKUP(M$5,NFI,5,0),1,0)*Table_NFI[[#This Row],[Blanket]],0) -> 0 | X19: =IF(NFI_Expiration=1,IF($A19<VLOOKUP(N$5,NFI,5,0),1,0)*Table_NFI[[#This Row],[Kitchen Set]],0) -> 0 | Y19: =IF(NFI_Expiration=1,IF($A19<VLOOKUP(O$5,NFI,5,0),1,0)*Table_NFI[[#This Row],[Complementary Kit]],0) -> 0 | Z19: =IF(NFI_Expiration=1,IF($A19<VLOOKUP(P$5,NFI,5,0),1,0)*Table_NFI[[#This Row],[Plastic Bucket]],0) -> 0 | AA19: =IF(NFI_Expiration=1,IF($A19<VLOOKUP(Q$5,NFI,5,0),1,0)*Table_NFI[[#This Row],[Plastic Mat]],0) -> 0 | AB19: =VLOOKUP(Table_NFI[[#This Row],[Camp Name]],'Camp List'!N$5:Z$347,2,0) -> MMR001CMP135 | AC19: =VLOOKUP(Table_NFI[[#This Row],[Camp Name]],'Camp List'!N$5:Z$347,13,0) -> Open
A20: 12.66666667 | B20: 2012-07-17 | C20: UNHCR | D20: UNHCR | E20: Kachin | F20: Mansi | G20: Man Wing Baptist Church | J20: 0 | K20: 0 | L20: 0 | M20: 0 | N20: 0 | O20: 0 | R20: =IF(NFI_Expiration=1,IF($A20<VLOOKUP(H$5,NFI,5,0),1,0)*Table_NFI[[#This Row],[Hygiene Kit]],0) -> 0 | S20: =IF(NFI_Expiration=1,IF($A20<VLOOKUP(I$5,NFI,5,0),1,0)*Table_NFI[[#This Row],[NFI Core Kit]],0) -> 0 | T20: =IF(NFI_Expiration=1,IF($A20<VLOOKUP(J$5,NFI,5,0),1,0)*Table_NFI[[#This Row],[Sanitary Kit]],0) -> 0 | U20: =IF(NFI_Expiration=1,IF($A20<VLOOKUP(K$5,NFI,5,0),1,0)*Table_NFI[[#This Row],[Mosquito net]],0) -> 0 | V20: =IF(NFI_Expiration=1,IF($A20<VLOOKUP(L$5,NFI,5,0),1,0)*Table_NFI[[#This Row],[Tarpaulin]],0) -> 0 | W20: =IF(NFI_Expiration=1,IF($A20<VLOOKUP(M$5,NFI,5,0),1,0)*Table_NFI[[#This Row],[Blanket]],0) -> 0 | X20: =IF(NFI_Expiration=1,IF($A20<VLOOKUP(N$5,NFI,5,0),1,0)*Table_NFI[[#This Row],[Kitchen Set]],0) -> 0 | Y20: =IF(NFI_Expiration=1,IF($A20<VLOOKUP(O$5,NFI,5,0),1,0)*Table_NFI[[#This Row],[Complementary Kit]],0) -> 0 | Z20: =IF(NFI_Expiration=1,IF($A20<VLOOKUP(P$5,NFI,5,0),1,0)*Table_NFI[[#This Row],[Plastic Bucket]],0) -> 0 | AA20: =IF(NFI_Expiration=1,IF($A20<VLOOKUP(Q$5,NFI,5,0),1,0)*Table_NFI[[#This Row],[Plastic Mat]],0) -> 0 | AB20: =VLOOKUP(Table_NFI[[#This Row],[Camp Name]],'Camp List'!N$5:Z$347,2,0) -> MMR001CMP133 | AC20: =VLOOKUP(Table_NFI[[#This Row],[Camp Name]],'Camp List'!N$5:Z$347,13,0) -> Open
A21: 16.4 | B21: 2012-03-27 | C21: UNHCR | D21: UNHCR | E21: Kachin | F21: Momauk | G21: Mai Ja Yang Gat Pa | J21: 0 | K21: 52 | L21: 52 | M21: 0 | N21: 0 | O21: 0 | R21: =IF(NFI_Expiration=1,IF($A21<VLOOKUP(H$5,NFI,5,0),1,0)*Table_NFI[[#This Row],[Hygiene Kit]],0) -> 0 | S21: =IF(NFI_Expiration=1,IF($A21<VLOOKUP(I$5,NFI,5,0),1,0)*Table_NFI[[#This Row],[NFI Core Kit]],0) -> 0 | T21: =IF(NFI_Expiration=1,IF($A21<VLOOKUP(J$5,NFI,5,0),1,0)*Table_NFI[[#This Row],[Sanitary Kit]],0) -> 0 | U21: =IF(NFI_Expiration=1,IF($A21<VLOOKUP(K$5,NFI,5,0),1,0)*Table_NFI[[#This Row],[Mosquito net]],0) -> 0 | V21: =IF(NFI_Expiration=1,IF($A21<VLOOKUP(L$5,NFI,5,0),1,0)*Table_NFI[[#This Row],[Tarpaulin]],0) -> 0 | W21: =IF(NFI_Expiration=1,IF($A21<VLOOKUP(M$5,NFI,5,0),1,0)*Table_NFI[[#This Row],[Blanket]],0) -> 0 | X21: =IF(NFI_Expiration=1,IF($A21<VLOOKUP(N$5,NFI,5,0),1,0)*Table_NFI[[#This Row],[Kitchen Set]],0) -> 0 | Y21: =IF(NFI_Expiration=1,IF($A21<VLOOKUP(O$5,NFI,5,0),1,0)*Table_NFI[[#This Row],[Complementary Kit]],0) -> 0 | Z21: =IF(NFI_Expiration=1,IF($A21<VLOOKUP(P$5,NFI,5,0),1,0)*Table_NFI[[#This Row],[Plastic Bucket]],0) -> 0 | AA21: =IF(NFI_Expiration=1,IF($A21<VLOOKUP(Q$5,NFI,5,0),1,0)*Table_NFI[[#This Row],[Plastic Mat]],0) -> 0 | AB21: =VLOOKUP(Table_NFI[[#This Row],[Camp Name]],'Camp List'!N$5:Z$347,2,0) ->  | AC21: =VLOOKUP(Table_NFI[[#This Row],[Camp Name]],'Camp List'!N$5:Z$347,13,0) -> 
A22: 16.36666667 | B22: 2012-03-28 | C22: UNHCR | D22: UNHCR | E22: Kachin | F22: Momauk | G22: Mai Ja Yang Ung Lung | J22: 0 | K22: 217 | L22: 217 | M22: 0 | N22: 0 | O22: 0 | R22: =IF(NFI_Expiration=1,IF($A22<VLOOKUP(H$5,NFI,5,0),1,0)*Table_NFI[[#This Row],[Hygiene Kit]],0) -> 0 | S22: =IF(NFI_Expiration=1,IF($A22<VLOOKUP(I$5,NFI,5,0),1,0)*Table_NFI[[#This Row],[NFI Core Kit]],0) -> 0 | T22: =IF(NFI_Expiration=1,IF($A22<VLOOKUP(J$5,NFI,5,0),1,0)*Table_NFI[[#This Row],[Sanitary Kit]],0) -> 0 | U22: =IF(NFI_Expiration=1,IF($A22<VLOOKUP(K$5,NFI,5,0),1,0)*Table_NFI[[#This Row],[Mosquito net]],0) -> 0 | V22: =IF(NFI_Expiration=1,IF($A22<VLOOKUP(L$5,NFI,5,0),1,0)*Table_NFI[[#This Row],[Tarpaulin]],0) -> 0 | W22: =IF(NFI_Expiration=1,IF($A22<VLOOKUP(M$5,NFI,5,0),1,0)*Table_NFI[[#This Row],[Blanket]],0) -> 0 | X22: =IF(NFI_Expiration=1,IF($A22<VLOOKUP(N$5,NFI,5,0),1,0)*Table_NFI[[#This Row],[Kitchen Set]],0) -> 0 | Y22: =IF(NFI_Expiration=1,IF($A22<VLOOKUP(O$5,NFI,5,0),1,0)*Table_NFI[[#This Row],[Complementary Kit]],0) -> 0 | Z22: =IF(NFI_Expiration=1,IF($A22<VLOOKUP(P$5,NFI,5,0),1,0)*Table_NFI[[#This Row],[Plastic Bucket]],0) -> 0 | AA22: =IF(NFI_Expiration=1,IF($A22<VLOOKUP(Q$5,NFI,5,0),1,0)*Table_NFI[[#This Row],[Plastic Mat]],0) -> 0 | AB22: =VLOOKUP(Table_NFI[[#This Row],[Camp Name]],'Camp List'!N$5:Z$347,2,0) ->  | AC22: =VLOOKUP(Table_NFI[[#This Row],[Camp Name]],'Camp List'!N$5:Z$347,13,0) -> 
A23: 16.33333333 | B23: 2012-03-29 | C23: UNHCR | D23: UNHCR | E23: Kachin | F23: Momauk | G23: Seng Ja | J23: 0 | K23: 66 | L23: 66 | M23: 0 | N23: 0 | O23: 0 | R23: =IF(NFI_Expiration=1,IF($A23<VLOOKUP(H$5,NFI,5,0),1,0)*Table_NFI[[#This Row],[Hygiene Kit]],0) -> 0 | S23: =IF(NFI_Expiration=1,IF($A23<VLOOKUP(I$5,NFI,5,0),1,0)*Table_NFI[[#This Row],[NFI Core Kit]],0) -> 0 | T23: =IF(NFI_Expiration=1,IF($A23<VLOOKUP(J$5,NFI,5,0),1,0)*Table_NFI[[#This Row],[Sanitary Kit]],0) -> 0 | U23: =IF(NFI_Expiration=1,IF($A23<VLOOKUP(K$5,NFI,5,0),1,0)*Table_NFI[[#This Row],[Mosquito net]],0) -> 0 | V23: =IF(NFI_Expiration=1,IF($A23<VLOOKUP(L$5,NFI,5,0),1,0)*Table_NFI[[#This Row],[Tarpaulin]],0) -> 0 | W23: =IF(NFI_Expiration=1,IF($A23<VLOOKUP(M$5,NFI,5,0),1,0)*Table_NFI[[#This Row],[Blanket]],0) -> 0 | X23: =IF(NFI_Expiration=1,IF($A23<VLOOKUP(N$5,NFI,5,0),1,0)*Table_NFI[[#This Row],[Kitchen Set]],0) -> 0 | Y23: =IF(NFI_Expiration=1,IF($A23<VLOOKUP(O$5,NFI,5,0),1,0)*Table_NFI[[#This Row],[Complementary Kit]],0) -> 0 | Z23: =IF(NFI_Expiration=1,IF($A23<VLOOKUP(P$5,NFI,5,0),1,0)*Table_NFI[[#This Row],[Plastic Bucket]],0) -> 0 | AA23: =IF(NFI_Expiration=1,IF($A23<VLOOKUP(Q$5,NFI,5,0),1,0)*Table_NFI[[#This Row],[Plastic Mat]],0) -> 0 | AB23: =VLOOKUP(Table_NFI[[#This Row],[Camp Name]],'Camp List'!N$5:Z$347,2,0) -> MMR001CMP073 | AC23: =VLOOKUP(Table_NFI[[#This Row],[Camp Name]],'Camp List'!N$5:Z$347,13,0) -> Open
A24: 16.33333333 | B24: 2012-03-29 | C24: UNHCR | D24: UNHCR | E24: Kachin | F24: Momauk | G24: Bum Tsit Pa | J24: 0 | K24: 66 | L24: 66 | M24: 0 | N24: 0 | O24: 0 | R24: =IF(NFI_Expiration=1,IF($A24<VLOOKUP(H$5,NFI,5,0),1,0)*Table_NFI[[#This Row],[Hygiene Kit]],0) -> 0 | S24: =IF(NFI_Expiration=1,IF($A24<VLOOKUP(I$5,NFI,5,0),1,0)*Table_NFI[[#This Row],[NFI Core Kit]],0) -> 0 | T24: =IF(NFI_Expiration=1,IF($A24<VLOOKUP(J$5,NFI,5,0),1,0)*Table_NFI[[#This Row],[Sanitary Kit]],0) -> 0 | U24: =IF(NFI_Expiration=1,IF($A24<VLOOKUP(K$5,NFI,5,0),1,0)*Table_NFI[[#This Row],[Mosquito net]],0) -> 0 | V24: =IF(NFI_Expiration=1,IF($A24<VLOOKUP(L$5,NFI,5,0),1,0)*Table_NFI[[#This Row],[Tarpaulin]],0) -> 0 | W24: =IF(NFI_Expiration=1,IF($A24<VLOOKUP(M$5,NFI,5,0),1,0)*Table_NFI[[#This Row],[Blanket]],0) -> 0 | X24: =IF(NFI_Expiration=1,IF($A24<VLOOKUP(N$5,NFI,5,0),1,0)*Table_NFI[[#This Row],[Kitchen Set]],0) -> 0 | Y24: =IF(NFI_Expiration=1,IF($A24<VLOOKUP(O$5,NFI,5,0),1,0)*Table_NFI[[#This Row],[Complementary Kit]],0) -> 0 | Z24: =IF(NFI_Expiration=1,IF($A24<VLOOKUP(P$5,NFI,5,0),1,0)*Table_NFI[[#This Row],[Plastic Bucket]],0) -> 0 | AA24: =IF(NFI_Expiration=1,IF($A24<VLOOKUP(Q$5,NFI,5,0),1,0)*Table_NFI[[#This Row],[Plastic Mat]],0) -> 0 | AB24: =VLOOKUP(Table_NFI[[#This Row],[Camp Name]],'Camp List'!N$5:Z$347,2,0) -> MMR001CMP129 | AC24: =VLOOKUP(Table_NFI[[#This Row],[Camp Name]],'Camp List'!N$5:Z$347,13,0) -> Open
A25: 16.33333333 | B25: 2012-03-29 | C25: UNHCR | D25: UNHCR | E25: Kachin | F25: Momauk | G25: Pa Kahtawng | J25: 0 | K25: 0 | L25: 50 | M25: 0 | N25: 0 | O25: 0 | R25: =IF(NFI_Expiration=1,IF($A25<VLOOKUP(H$5,NFI,5,0),1,0)*Table_NFI[[#This Row],[Hygiene Kit]],0) -> 0 | S25: =IF(NFI_Expiration=1,IF($A25<VLOOKUP(I$5,NFI,5,0),1,0)*Table_NFI[[#This Row],[NFI Core Kit]],0) -> 0 | T25: =IF(NFI_Expiration=1,IF($A25<VLOOKUP(J$5,NFI,5,0),1,0)*Table_NFI[[#This Row],[Sanitary Kit]],0) -> 0 | U25: =IF(NFI_Expiration=1,IF($A25<VLOOKUP(K$5,NFI,5,0),1,0)*Table_NFI[[#This Row],[Mosquito net]],0) -> 0 | V25: =IF(NFI_Expiration=1,IF($A25<VLOOKUP(L$5,NFI,5,0),1,0)*Table_NFI[[#This Row],[Tarpaulin]],0) -> 0 | W25: =IF(NFI_Expiration=1,IF($A25<VLOOKUP(M$5,NFI,5,0),1,0)*Table_NFI[[#This Row],[Blanket]],0) -> 0 | X25: =IF(NFI_Expiration=1,IF($A25<VLOOKUP(N$5,NFI,5,0),1,0)*Table_NFI[[#This Row],[Kitchen Set]],0) -> 0 | Y25: =IF(NFI_Expiration=1,IF($A25<VLOOKUP(O$5,NFI,5,0),1,0)*Table_NFI[[#This Row],[Complementary Kit]],0) -> 0 | Z25: =IF(NFI_Expiration=1,IF($A25<VLOOKUP(P$5,NFI,5,0),1,0)*Table_NFI[[#This Row],[Plastic Bucket]],0) -> 0 | AA25: =IF(NFI_Expiration=1,IF($A25<VLOOKUP(Q$5,NFI,5,0),1,0)*Table_NFI[[#This Row],[Plastic Mat]],0) -> 0 | AB25: =VLOOKUP(Table_NFI[[#This Row],[Camp Name]],'Camp List'!N$5:Z$347,2,0) -> MMR001CMP126 | AC25: =VLOOKUP(Table_NFI[[#This Row],[Camp Name]],'Camp List'!N$5:Z$347,13,0) -> Open
A26: 16.1 | B26: 2012-04-05 | C26: UNHCR | D26: UNHCR | E26: Kachin | F26: Momauk | G26: Momauk Catholic Church (St. Patrick) | J26: 0 | K26: 0 | L26: 50 | M26: 0 | N26: 0 | O26: 0 | R26: =IF(NFI_Expiration=1,IF($A26<VLOOKUP(H$5,NFI,5,0),1,0)*Table_NFI[[#This Row],[Hygiene Kit]],0) -> 0 | S26: =IF(NFI_Expiration=1,IF($A26<VLOOKUP(I$5,NFI,5,0),1,0)*Table_NFI[[#This Row],[NFI Core Kit]],0) -> 0 | T26: =IF(NFI_Expiration=1,IF($A26<VLOOKUP(J$5,NFI,5,0),1,0)*Table_NFI[[#This Row],[Sanitary Kit]],0) -> 0 | U26: =IF(NFI_Expiration=1,IF($A26<VLOOKUP(K$5,NFI,5,0),1,0)*Table_NFI[[#This Row],[Mosquito net]],0) -> 0 | V26: =IF(NFI_Expiration=1,IF($A26<VLOOKUP(L$5,NFI,5,0),1,0)*Table_NFI[[#This Row],[Tarpaulin]],0) -> 0 | W26: =IF(NFI_Expiration=1,IF($A26<VLOOKUP(M$5,NFI,5,0),1,0)*Table_NFI[[#This Row],[Blanket]],0) -> 0 | X26: =IF(NFI_Expiration=1,IF($A26<VLOOKUP(N$5,NFI,5,0),1,0)*Table_NFI[[#This Row],[Kitchen Set]],0) -> 0 | Y26: =IF(NFI_Expiration=1,IF($A26<VLOOKUP(O$5,NFI,5,0),1,0)*Table_NFI[[#This Row],[Complementary Kit]],0) -> 0 | Z26: =IF(NFI_Expiration=1,IF($A26<VLOOKUP(P$5,NFI,5,0),1,0)*Table_NFI[[#This Row],[Plastic Bucket]],0) -> 0 | AA26: =IF(NFI_Expiration=1,IF($A26<VLOOKUP(Q$5,NFI,5,0),1,0)*Table_NFI[[#This Row],[Plastic Mat]],0) -> 0 | AB26: =VLOOKUP(Table_NFI[[#This Row],[Camp Name]],'Camp List'!N$5:Z$347,2,0) -> MMR001CMP057 | AC26: =VLOOKUP(Table_NFI[[#This Row],[Camp Name]],'Camp List'!N$5:Z$347,13,0) -> Open
A27: 14.03333333 | B27: 2012-06-06 | C27: UNHCR | D27: UNHCR | E27: Kachin | F27: Momauk | G27: Hpun Lum Yang | J27: 0 | K27: 0 | L27: 200 | M27: 0 | N27: 0 | O27: 0 | R27: =IF(NFI_Expiration=1,IF($A27<VLOOKUP(H$5,NFI,5,0),1,0)*Table_NFI[[#This Row],[Hygiene Kit]],0) -> 0 | S27: =IF(NFI_Expiration=1,IF($A27<VLOOKUP(I$5,NFI,5,0),1,0)*Table_NFI[[#This Row],[NFI Core Kit]],0) -> 0 | T27: =IF(NFI_Expiration=1,IF($A27<VLOOKUP(J$5,NFI,5,0),1,0)*Table_NFI[[#This Row],[Sanitary Kit]],0) -> 0 | U27: =IF(NFI_Expiration=1,IF($A27<VLOOKUP(K$5,NFI,5,0),1,0)*Table_NFI[[#This Row],[Mosquito net]],0) -> 0 | V27: =IF(NFI_Expiration=1,IF($A27<VLOOKUP(L$5,NFI,5,0),1,0)*Table_NFI[[#This Row],[Tarpaulin]],0) -> 0 | W27: =IF(NFI_Expiration=1,IF($A27<VLOOKUP(M$5,NFI,5,0),1,0)*Table_NFI[[#This Row],[Blanket]],0) -> 0 | X27: =IF(NFI_Expiration=1,IF($A27<VLOOKUP(N$5,NFI,5,0),1,0)*Table_NFI[[#This Row],[Kitchen Set]],0) -> 0 | Y27: =IF(NFI_Expiration=1,IF($A27<VLOOKUP(O$5,NFI,5,0),1,0)*Table_NFI[[#This Row],[Complementary Kit]],0) -> 0 | Z27: =IF(NFI_Expiration=1,IF($A27<VLOOKUP(P$5,NFI,5,0),1,0)*Table_NFI[[#This Row],[Plastic Bucket]],0) -> 0 | AA27: =IF(NFI_Expiration=1,IF($A27<VLOOKUP(Q$5,NFI,5,0),1,0)*Table_NFI[[#This Row],[Plastic Mat]],0) -> 0 | AB27: =VLOOKUP(Table_NFI[[#This Row],[Camp Name]],'Camp List'!N$5:Z$347,2,0) -> MMR001CMP122 | AC27: =VLOOKUP(Table_NFI[[#This Row],[Camp Name]],'Camp List'!N$5:Z$347,13,0) -> Open
A28: 12.66666667 | B28: 2012-07-17 | C28: UNHCR | D28: UNHCR | E28: Kachin | F28: Momauk | G28: Pa Kahtawng | J28: 0 | K28: 0 | L28: 0 | M28: 0 | N28: 0 | O28: 0 | R28: =IF(NFI_Expiration=1,IF($A28<VLOOKUP(H$5,NFI,5,0),1,0)*Table_NFI[[#This Row],[Hygiene Kit]],0) -> 0 | S28: =IF(NFI_Expiration=1,IF($A28<VLOOKUP(I$5,NFI,5,0),1,0)*Table_NFI[[#This Row],[NFI Core Kit]],0) -> 0 | T28: =IF(NFI_Expiration=1,IF($A28<VLOOKUP(J$5,NFI,5,0),1,0)*Table_NFI[[#This Row],[Sanitary Kit]],0) -> 0 | U28: =IF(NFI_Expiration=1,IF($A28<VLOOKUP(K$5,NFI,5,0),1,0)*Table_NFI[[#This Row],[Mosquito net]],0) -> 0 | V28: =IF(NFI_Expiration=1,IF($A28<VLOOKUP(L$5,NFI,5,0),1,0)*Table_NFI[[#This Row],[Tarpaulin]],0) -> 0 | W28: =IF(NFI_Expiration=1,IF($A28<VLOOKUP(M$5,NFI,5,0),1,0)*Table_NFI[[#This Row],[Blanket]],0) -> 0 | X28: =IF(NFI_Expiration=1,IF($A28<VLOOKUP(N$5,NFI,5,0),1,0)*Table_NFI[[#This Row],[Kitchen Set]],0) -> 0 | Y28: =IF(NFI_Expiration=1,IF($A28<VLOOKUP(O$5,NFI,5,0),1,0)*Table_NFI[[#This Row],[Complementary Kit]],0) -> 0 | Z28: =IF(NFI_Expiration=1,IF($A28<VLOOKUP(P$5,NFI,5,0),1,0)*Table_NFI[[#This Row],[Plastic Bucket]],0) -> 0 | AA28: =IF(NFI_Expiration=1,IF($A28<VLOOKUP(Q$5,NFI,5,0),1,0)*Table_NFI[[#This Row],[Plastic Mat]],0) -> 0 | AB28: =VLOOKUP(Table_NFI[[#This Row],[Camp Name]],'Camp List'!N$5:Z$347,2,0) -> MMR001CMP126 | AC28: =VLOOKUP(Table_NFI[[#This Row],[Camp Name]],'Camp List'!N$5:Z$347,13,0) -> Open
A29: 12.66666667 | B29: 2012-07-17 | C29: UNHCR | D29: UNHCR | E29: Kachin | F29: Momauk | G29: Hpun Lum Yang | J29: 0 | K29: 0 | L29: 0 | M29: 0 | N29: 0 | O29: 0 | R29: =IF(NFI_Expiration=1,IF($A29<VLOOKUP(H$5,NFI,5,0),1,0)*Table_NFI[[#This Row],[Hygiene Kit]],0) -> 0 | S29: =IF(NFI_Expiration=1,IF($A29<VLOOKUP(I$5,NFI,5,0),1,0)*Table_NFI[[#This Row],[NFI Core Kit]],0) -> 0 | T29: =IF(NFI_Expiration=1,IF($A29<VLOOKUP(J$5,NFI,5,0),1,0)*Table_NFI[[#This Row],[Sanitary Kit]],0) -> 0 | U29: =IF(NFI_Expiration=1,IF($A29<VLOOKUP(K$5,NFI,5,0),1,0)*Table_NFI[[#This Row],[Mosquito net]],0) -> 0 | V29: =IF(NFI_Expiration=1,IF($A29<VLOOKUP(L$5,NFI,5,0),1,0)*Table_NFI[[#This Row],[Tarpaulin]],0) -> 0 | W29: =IF(NFI_Expiration=1,IF($A29<VLOOKUP(M$5,NFI,5,0),1,0)*Table_NFI[[#This Row],[Blanket]],0) -> 0 | X29: =IF(NFI_Expiration=1,IF($A29<VLOOKUP(N$5,NFI,5,0),1,0)*Table_NFI[[#This Row],[Kitchen Set]],0) -> 0 | Y29: =IF(NFI_Expiration=1,IF($A29<VLOOKUP(O$5,NFI,5,0),1,0)*Table_NFI[[#This Row],[Complementary Kit]],0) -> 0 | Z29: =IF(NFI_Expiration=1,IF($A29<VLOOKUP(P$5,NFI,5,0),1,0)*Table_NFI[[#This Row],[Plastic Bucket]],0) -> 0 | AA29: =IF(NFI_Expiration=1,IF($A29<VLOOKUP(Q$5,NFI,5,0),1,0)*Table_NFI[[#This Row],[Plastic Mat]],0) -> 0 | AB29: =VLOOKUP(Table_NFI[[#This Row],[Camp Name]],'Camp List'!N$5:Z$347,2,0) -> MMR001CMP122 | AC29: =VLOOKUP(Table_NFI[[#This Row],[Camp Name]],'Camp List'!N$5:Z$347,13,0) -> Open
A30: 12.66666667 | B30: 2012-07-17 | C30: UNHCR | D30: UNHCR | E30: Kachin | F30: Momauk | G30: Loi Je Lisu Camp | J30: 0 | K30: 0 | L30: 0 | M30: 0 | N30: 0 | O30: 0 | R30: =IF(NFI_Expiration=1,IF($A30<VLOOKUP(H$5,NFI,5,0),1,0)*Table_NFI[[#This Row],[Hygiene Kit]],0) -> 0 | S30: =IF(NFI_Expiration=1,IF($A30<VLOOKUP(I$5,NFI,5,0),1,0)*Table_NFI[[#This Row],[NFI Core Kit]],0) -> 0 | T30: =IF(NFI_Expiration=1,IF($A30<VLOOKUP(J$5,NFI,5,0),1,0)*Table_NFI[[#This Row],[Sanitary Kit]],0) -> 0 | U30: =IF(NFI_Expiration=1,IF($A30<VLOOKUP(K$5,NFI,5,0),1,0)*Table_NFI[[#This Row],[Mosquito net]],0) -> 0 | V30: =IF(NFI_Expiration=1,IF($A30<VLOOKUP(L$5,NFI,5,0),1,0)*Table_NFI[[#This Row],[Tarpaulin]],0) -> 0 | W30: =IF(NFI_Expiration=1,IF($A30<VLOOKUP(M$5,NFI,5,0),1,0)*Table_NFI[[#This Row],[Blanket]],0) -> 0 | X30: =IF(NFI_Expiration=1,IF($A30<VLOOKUP(N$5,NFI,5,0),1,0)*Table_NFI[[#This Row],[Kitchen Set]],0) -> 0 | Y30: =IF(NFI_Expiration=1,IF($A30<VLOOKUP(O$5,NFI,5,0),1,0)*Table_NFI[[#This Row],[Complementary Kit]],0) -> 0 | Z30: =IF(NFI_Expiration=1,IF($A30<VLOOKUP(P$5,NFI,5,0),1,0)*Table_NFI[[#This Row],[Plastic Bucket]],0) -> 0 | AA30: =IF(NFI_Expiration=1,IF($A30<VLOOKUP(Q$5,NFI,5,0),1,0)*Table_NFI[[#This Row],[Plastic Mat]],0) -> 0 | AB30: =VLOOKUP(Table_NFI[[#This Row],[Camp Name]],'Camp List'!N$5:Z$347,2,0) -> MMR001CMP070 | AC30: =VLOOKUP(Table_NFI[[#This Row],[Camp Name]],'Camp List'!N$5:Z$347,13,0) -> Open
A31: 12.66666667 | B31: 2012-07-17 | C31: UNHCR | D31: UNHCR | E31: Kachin | F31: Momauk | G31: Pa Kahtawng | J31: 0 | K31: 0 | L31: 0 | M31: 0 | N31: 0 | O31: 0 | R31: =IF(NFI_Expiration=1,IF($A31<VLOOKUP(H$5,NFI,5,0),1,0)*Table_NFI[[#This Row],[Hygiene Kit]],0) -> 0 | S31: =IF(NFI_Expiration=1,IF($A31<VLOOKUP(I$5,NFI,5,0),1,0)*Table_NFI[[#This Row],[NFI Core Kit]],0) -> 0 | T31: =IF(NFI_Expiration=1,IF($A31<VLOOKUP(J$5,NFI,5,0),1,0)*Table_NFI[[#This Row],[Sanitary Kit]],0) -> 0 | U31: =IF(NFI_Expiration=1,IF($A31<VLOOKUP(K$5,NFI,5,0),1,0)*Table_NFI[[#This Row],[Mosquito net]],0) -> 0 | V31: =IF(NFI_Expiration=1,IF($A31<VLOOKUP(L$5,NFI,5,0),1,0)*Table_NFI[[#This Row],[Tarpaulin]],0) -> 0 | W31: =IF(NFI_Expiration=1,IF($A31<VLOOKUP(M$5,NFI,5,0),1,0)*Table_NFI[[#This Row],[Blanket]],0) -> 0 | X31: =IF(NFI_Expiration=1,IF($A31<VLOOKUP(N$5,NFI,5,0),1,0)*Table_NFI[[#This Row],[Kitchen Set]],0) -> 0 | Y31: =IF(NFI_Expiration=1,IF($A31<VLOOKUP(O$5,NFI,5,0),1,0)*Table_NFI[[#This Row],[Complementary Kit]],0) -> 0 | Z31: =IF(NFI_Expiration=1,IF($A31<VLOOKUP(P$5,NFI,5,0),1,0)*Table_NFI[[#This Row],[Plastic Bucket]],0) -> 0 | AA31: =IF(NFI_Expiration=1,IF($A31<VLOOKUP(Q$5,NFI,5,0),1,0)*Table_NFI[[#This Row],[Plastic Mat]],0) -> 0 | AB31: =VLOOKUP(Table_NFI[[#This Row],[Camp Name]],'Camp List'!N$5:Z$347,2,0) -> MMR001CMP126 | AC31: =VLOOKUP(Table_NFI[[#This Row],[Camp Name]],'Camp List'!N$5:Z$347,13,0) -> Open
A32: 12.66666667 | B32: 2012-07-17 | C32: UNHCR | D32: UNHCR | E32: Kachin | F32: Momauk | G32: Mai Khat | J32: 0 | K32: 0 | L32: 0 | M32: 0 | N32: 0 | O32: 0 | R32: =IF(NFI_Expiration=1,IF($A32<VLOOKUP(H$5,NFI,5,0),1,0)*Table_NFI[[#This Row],[Hygiene Kit]],0) -> 0 | S32: =IF(NFI_Expiration=1,IF($A32<VLOOKUP(I$5,NFI,5,0),1,0)*Table_NFI[[#This Row],[NFI Core Kit]],0) -> 0 | T32: =IF(NFI_Expiration=1,IF($A32<VLOOKUP(J$5,NFI,5,0),1,0)*Table_NFI[[#This Row],[Sanitary Kit]],0) -> 0 | U32: =IF(NFI_Expiration=1,IF($A32<VLOOKUP(K$5,NFI,5,0),1,0)*Table_NFI[[#This Row],[Mosquito net]],0) -> 0 | V32: =IF(NFI_Expiration=1,IF($A32<VLOOKUP(L$5,NFI,5,0),1,0)*Table_NFI[[#This Row],[Tarpaulin]],0) -> 0 | W32: =IF(NFI_Expiration=1,IF($A32<VLOOKUP(M$5,NFI,5,0),1,0)*Table_NFI[[#This Row],[Blanket]],0) -> 0 | X32: =IF(NFI_Expiration=1,IF($A32<VLOOKUP(N$5,NFI,5,0),1,0)*Table_NFI[[#This Row],[Kitchen Set]],0) -> 0 | Y32: =IF(NFI_Expiration=1,IF($A32<VLOOKUP(O$5,NFI,5,0),1,0)*Table_NFI[[#This Row],[Complementary Kit]],0) -> 0 | Z32: =IF(NFI_Expiration=1,IF($A32<VLOOKUP(P$5,NFI,5,0),1,0)*Table_NFI[[#This Row],[Plastic Bucket]],0) -> 0 | AA32: =IF(NFI_Expiration=1,IF($A32<VLOOKUP(Q$5,NFI,5,0),1,0)*Table_NFI[[#This Row],[Plastic Mat]],0) -> 0 | AB32: =VLOOKUP(Table_NFI[[#This Row],[Camp Name]],'Camp List'!N$5:Z$347,2,0) -> MMR001CMP064 | AC32: =VLOOKUP(Table_NFI[[#This Row],[Camp Name]],'Camp List'!N$5:Z$347,13,0) -> Open
A33: 12.66666667 | B33: 2012-07-17 | C33: UNHCR | D33: UNHCR | E33: Kachin | F33: Momauk | G33: Mai Khat | J33: 0 | K33: 0 | L33: 0 | M33: 0 | N33: 0 | O33: 0 | R33: =IF(NFI_Expiration=1,IF($A33<VLOOKUP(H$5,NFI,5,0),1,0)*Table_NFI[[#This Row],[Hygiene Kit]],0) -> 0 | S33: =IF(NFI_Expiration=1,IF($A33<VLOOKUP(I$5,NFI,5,0),1,0)*Table_NFI[[#This Row],[NFI Core Kit]],0) -> 0 | T33: =IF(NFI_Expiration=1,IF($A33<VLOOKUP(J$5,NFI,5,0),1,0)*Table_NFI[[#This Row],[Sanitary Kit]],0) -> 0 | U33: =IF(NFI_Expiration=1,IF($A33<VLOOKUP(K$5,NFI,5,0),1,0)*Table_NFI[[#This Row],[Mosquito net]],0) -> 0 | V33: =IF(NFI_Expiration=1,IF($A33<VLOOKUP(L$5,NFI,5,0),1,0)*Table_NFI[[#This Row],[Tarpaulin]],0) -> 0 | W33: =IF(NFI_Expiration=1,IF($A33<VLOOKUP(M$5,NFI,5,0),1,0)*Table_NFI[[#This Row],[Blanket]],0) -> 0 | X33: =IF(NFI_Expiration=1,IF($A33<VLOOKUP(N$5,NFI,5,0),1,0)*Table_NFI[[#This Row],[Kitchen Set]],0) -> 0 | Y33: =IF(NFI_Expiration=1,IF($A33<VLOOKUP(O$5,NFI,5,0),1,0)*Table_NFI[[#This Row],[Complementary Kit]],0) -> 0 | Z33: =IF(NFI_Expiration=1,IF($A33<VLOOKUP(P$5,NFI,5,0),1,0)*Table_NFI[[#This Row],[Plastic Bucket]],0) -> 0 | AA33: =IF(NFI_Expiration=1,IF($A33<VLOOKUP(Q$5,NFI,5,0),1,0)*Table_NFI[[#This Row],[Plastic Mat]],0) -> 0 | AB33: =VLOOKUP(Table_NFI[[#This Row],[Camp Name]],'Camp List'!N$5:Z$347,2,0) -> MMR001CMP064 | AC33: =VLOOKUP(Table_NFI[[#This Row],[Camp Name]],'Camp List'!N$5:Z$347,13,0) -> Open
A34: 20.73333333 | B34: 2011-11-18 | C34: UNHCR | D34: UNHCR | E34: Kachin | F34: Myitkyina | G34: Wun Tho Buddhist Monastery | J34: 0 | K34: 175 | L34: 0 | M34: 175 | N34: 0 | O34: 0 | R34: =IF(NFI_Expiration=1,IF($A34<VLOOKUP(H$5,NFI,5,0),1,0)*Table_NFI[[#This Row],[Hygiene Kit]],0) -> 0 | S34: =IF(NFI_Expiration=1,IF($A34<VLOOKUP(I$5,NFI,5,0),1,0)*Table_NFI[[#This Row],[NFI Core Kit]],0) -> 0 | T34: =IF(NFI_Expiration=1,IF($A34<VLOOKUP(J$5,NFI,5,0),1,0)*Table_NFI[[#This Row],[Sanitary Kit]],0) -> 0 | U34: =IF(NFI_Expiration=1,IF($A34<VLOOKUP(K$5,NFI,5,0),1,0)*Table_NFI[[#This Row],[Mosquito net]],0) -> 0 | V34: =IF(NFI_Expiration=1,IF($A34<VLOOKUP(L$5,NFI,5,0),1,0)*Table_NFI[[#This Row],[Tarpaulin]],0) -> 0 | W34: =IF(NFI_Expiration=1,IF($A34<VLOOKUP(M$5,NFI,5,0),1,0)*Table_NFI[[#This Row],[Blanket]],0) -> 0 | X34: =IF(NFI_Expiration=1,IF($A34<VLOOKUP(N$5,NFI,5,0),1,0)*Table_NFI[[#This Row],[Kitchen Set]],0) -> 0 | Y34: =IF(NFI_Expiration=1,IF($A34<VLOOKUP(O$5,NFI,5,0),1,0)*Table_NFI[[#This Row],[Complementary Kit]],0) -> 0 | Z34: =IF(NFI_Expiration=1,IF($A34<VLOOKUP(P$5,NFI,5,0),1,0)*Table_NFI[[#This Row],[Plastic Bucket]],0) -> 0 | AA34: =IF(NFI_Expiration=1,IF($A34<VLOOKUP(Q$5,NFI,5,0),1,0)*Table_NFI[[#This Row],[Plastic Mat]],0) -> 0 | AB34: =VLOOKUP(Table_NFI[[#This Row],[Camp Name]],'Camp List'!N$5:Z$347,2,0) -> MMR001CMP022 | AC34: =VLOOKUP(Table_NFI[[#This Row],[Camp Name]],'Camp List'!N$5:Z$347,13,0) -> Open
A35: 15.43333333 | B35: 2012-04-25 | C35: UNHCR | D35: UNHCR | E35: Kachin | F35: Myitkyina | G35: Wun Tho Buddhist Monastery | J35: 0 | K35: 39 | L35: 19 | M35: 78 | N35: 19 | O35: 0 | R35: =IF(NFI_Expiration=1,IF($A35<VLOOKUP(H$5,NFI,5,0),1,0)*Table_NFI[[#This Row],[Hygiene Kit]],0) -> 0 | S35: =IF(NFI_Expiration=1,IF($A35<VLOOKUP(I$5,NFI,5,0),1,0)*Table_NFI[[#This Row],[NFI Core Kit]],0) -> 0 | T35: =IF(NFI_Expiration=1,IF($A35<VLOOKUP(J$5,NFI,5,0),1,0)*Table_NFI[[#This Row],[Sanitary Kit]],0) -> 0 | U35: =IF(NFI_Expiration=1,IF($A35<VLOOKUP(K$5,NFI,5,0),1,0)*Table_NFI[[#This Row],[Mosquito net]],0) -> 0 | V35: =IF(NFI_Expiration=1,IF($A35<VLOOKUP(L$5,NFI,5,0),1,0)*Table_NFI[[#This Row],[Tarpaulin]],0) -> 0 | W35: =IF(NFI_Expiration=1,IF($A35<VLOOKUP(M$5,NFI,5,0),1,0)*Table_NFI[[#This Row],[Blanket]],0) -> 0 | X35: =IF(NFI_Expiration=1,IF($A35<VLOOKUP(N$5,NFI,5,0),1,0)*Table_NFI[[#This Row],[Kitchen Set]],0) -> 0 | Y35: =IF(NFI_Expiration=1,IF($A35<VLOOKUP(O$5,NFI,5,0),1,0)*Table_NFI[[#This Row],[Complementary Kit]],0) -> 0 | Z35: =IF(NFI_Expiration=1,IF($A35<VLOOKUP(P$5,NFI,5,0),1,0)*Table_NFI[[#This Row],[Plastic Bucket]],0) -> 0 | AA35: =IF(NFI_Expiration=1,IF($A35<VLOOKUP(Q$5,NFI,5,0),1,0)*Table_NFI[[#This Row],[Plastic Mat]],0) -> 0 | AB35: =VLOOKUP(Table_NFI[[#This Row],[Camp Name]],'Camp List'!N$5:Z$347,2,0) -> MMR001CMP022 | AC35: =VLOOKUP(Table_NFI[[#This Row],[Camp Name]],'Camp List'!N$5:Z$347,13,0) -> Open
A36: 14.43333333 | B36: 2012-05-25 | C36: UNHCR | D36: UNHCR | E36: Kachin | F36: Myitkyina | G36: Shwe Zet Baptist Church | J36: 0 | K36: 0 | L36: 25 | M36: 0 | N36: 0 | O36: 0 | R36: =IF(NFI_Expiration=1,IF($A36<VLOOKUP(H$5,NFI,5,0),1,0)*Table_NFI[[#This Row],[Hygiene Kit]],0) -> 0 | S36: =IF(NFI_Expiration=1,IF($A36<VLOOKUP(I$5,NFI,5,0),1,0)*Table_NFI[[#This Row],[NFI Core Kit]],0) -> 0 | T36: =IF(NFI_Expiration=1,IF($A36<VLOOKUP(J$5,NFI,5,0),1,0)*Table_NFI[[#This Row],[Sanitary Kit]],0) -> 0 | U36: =IF(NFI_Expiration=1,IF($A36<VLOOKUP(K$5,NFI,5,0),1,0)*Table_NFI[[#This Row],[Mosquito net]],0) -> 0 | V36: =IF(NFI_Expiration=1,IF($A36<VLOOKUP(L$5,NFI,5,0),1,0)*Table_NFI[[#This Row],[Tarpaulin]],0) -> 0 | W36: =IF(NFI_Expiration=1,IF($A36<VLOOKUP(M$5,NFI,5,0),1,0)*Table_NFI[[#This Row],[Blanket]],0) -> 0 | X36: =IF(NFI_Expiration=1,IF($A36<VLOOKUP(N$5,NFI,5,0),1,0)*Table_NFI[[#This Row],[Kitchen Set]],0) -> 0 | Y36: =IF(NFI_Expiration=1,IF($A36<VLOOKUP(O$5,NFI,5,0),1,0)*Table_NFI[[#This Row],[Complementary Kit]],0) -> 0 | Z36: =IF(NFI_Expiration=1,IF($A36<VLOOKUP(P$5,NFI,5,0),1,0)*Table_NFI[[#This Row],[Plastic Bucket]],0) -> 0 | AA36: =IF(NFI_Expiration=1,IF($A36<VLOOKUP(Q$5,NFI,5,0),1,0)*Table_NFI[[#This Row],[Plastic Mat]],0) -> 0 | AB36: =VLOOKUP(Table_NFI[[#This Row],[Camp Name]],'Camp List'!N$5:Z$347,2,0) -> MMR001CMP009 | AC36: =VLOOKUP(Table_NFI[[#This Row],[Camp Name]],'Camp List'!N$5:Z$347,13,0) -> Open
A37: 12.66666667 | B37: 2012-07-17 | C37: UNHCR | D37: UNHCR | E37: Kachin | F37: Myitkyina | G37: Maw Hpawng Hka Nan Baptist Church | J37: 0 | K37: 0 | L37: 0 | M37: 0 | N37: 0 | O37: 0 | R37: =IF(NFI_Expiration=1,IF($A37<VLOOKUP(H$5,NFI,5,0),1,0)*Table_NFI[[#This Row],[Hygiene Kit]],0) -> 0 | S37: =IF(NFI_Expiration=1,IF($A37<VLOOKUP(I$5,NFI,5,0),1,0)*Table_NFI[[#This Row],[NFI Core Kit]],0) -> 0 | T37: =IF(NFI_Expiration=1,IF($A37<VLOOKUP(J$5,NFI,5,0),1,0)*Table_NFI[[#This Row],[Sanitary Kit]],0) -> 0 | U37: =IF(NFI_Expiration=1,IF($A37<VLOOKUP(K$5,NFI,5,0),1,0)*Table_NFI[[#This Row],[Mosquito net]],0) -> 0 | V37: =IF(NFI_Expiration=1,IF($A37<VLOOKUP(L$5,NFI,5,0),1,0)*Table_NFI[[#This Row],[Tarpaulin]],0) -> 0 | W37: =IF(NFI_Expiration=1,IF($A37<VLOOKUP(M$5,NFI,5,0),1,0)*Table_NFI[[#This Row],[Blanket]],0) -> 0 | X37: =IF(NFI_Expiration=1,IF($A37<VLOOKUP(N$5,NFI,5,0),1,0)*Table_NFI[[#This Row],[Kitchen Set]],0) -> 0 | Y37: =IF(NFI_Expiration=1,IF($A37<VLOOKUP(O$5,NFI,5,0),1,0)*Table_NFI[[#This Row],[Complementary Kit]],0) -> 0 | Z37: =IF(NFI_Expiration=1,IF($A37<VLOOKUP(P$5,NFI,5,0),1,0)*Table_NFI[[#This Row],[Plastic Bucket]],0) -> 0 | AA37: =IF(NFI_Expiration=1,IF($A37<VLOOKUP(Q$5,NFI,5,0),1,0)*Table_NFI[[#This Row],[Plastic Mat]],0) -> 0 | AB37: =VLOOKUP(Table_NFI[[#This Row],[Camp Name]],'Camp List'!N$5:Z$347,2,0) -> MMR001CMP020 | AC37: =VLOOKUP(Table_NFI[[#This Row],[Camp Name]],'Camp List'!N$5:Z$347,13,0) -> Open
A38: 14.4 | B38: 2012-05-26 | C38: UNHCR | D38: KBC | E38: Kachin | F38: Shwegu | G38: Lawk Awng Mare D. (Sinbo Area) | J38: 0 | K38: 200 | L38: 200 | M38: 0 | N38: 0 | O38: 0 | R38: =IF(NFI_Expiration=1,IF($A38<VLOOKUP(H$5,NFI,5,0),1,0)*Table_NFI[[#This Row],[Hygiene Kit]],0) -> 0 | S38: =IF(NFI_Expiration=1,IF($A38<VLOOKUP(I$5,NFI,5,0),1,0)*Table_NFI[[#This Row],[NFI Core Kit]],0) -> 0 | T38: =IF(NFI_Expiration=1,IF($A38<VLOOKUP(J$5,NFI,5,0),1,0)*Table_NFI[[#This Row],[Sanitary Kit]],0) -> 0 | U38: =IF(NFI_Expiration=1,IF($A38<VLOOKUP(K$5,NFI,5,0),1,0)*Table_NFI[[#This Row],[Mosquito net]],0) -> 0 | V38: =IF(NFI_Expiration=1,IF($A38<VLOOKUP(L$5,NFI,5,0),1,0)*Table_NFI[[#This Row],[Tarpaulin]],0) -> 0 | W38: =IF(NFI_Expiration=1,IF($A38<VLOOKUP(M$5,NFI,5,0),1,0)*Table_NFI[[#This Row],[Blanket]],0) -> 0 | X38: =IF(NFI_Expiration=1,IF($A38<VLOOKUP(N$5,NFI,5,0),1,0)*Table_NFI[[#This Row],[Kitchen Set]],0) -> 0 | Y38: =IF(NFI_Expiration=1,IF($A38<VLOOKUP(O$5,NFI,5,0),1,0)*Table_NFI[[#This Row],[Complementary Kit]],0) -> 0 | Z38: =IF(NFI_Expiration=1,IF($A38<VLOOKUP(P$5,NFI,5,0),1,0)*Table_NFI[[#This Row],[Plastic Bucket]],0) -> 0 | AA38: =IF(NFI_Expiration=1,IF($A38<VLOOKUP(Q$5,NFI,5,0),1,0)*Table_NFI[[#This Row],[Plastic Mat]],0) -> 0 | AB38: =VLOOKUP(Table_NFI[[#This Row],[Camp Name]],'Camp List'!N$5:Z$347,2,0) -> MMR001CMP147 | AC38: =VLOOKUP(Table_NFI[[#This Row],[Camp Name]],'Camp List'!N$5:Z$347,13,0) -> Open
A39: 7.433333333 | B39: 2012-12-21 | C39: UNHCR | D39: UNHCR | E39: Kachin | F39: Shwegu | G39: Shwe Gu Baptist Church | J39: 0 | K39: 0 | L39: 0 | M39: 83 | N39: 0 | O39: 0 | R39: =IF(NFI_Expiration=1,IF($A39<VLOOKUP(H$5,NFI,5,0),1,0)*Table_NFI[[#This Row],[Hygiene Kit]],0) -> 0 | S39: =IF(NFI_Expiration=1,IF($A39<VLOOKUP(I$5,NFI,5,0),1,0)*Table_NFI[[#This Row],[NFI Core Kit]],0) -> 0 | T39: =IF(NFI_Expiration=1,IF($A39<VLOOKUP(J$5,NFI,5,0),1,0)*Table_NFI[[#This Row],[Sanitary Kit]],0) -> 0 | U39: =IF(NFI_Expiration=1,IF($A39<VLOOKUP(K$5,NFI,5,0),1,0)*Table_NFI[[#This Row],[Mosquito net]],0) -> 0 | V39: =IF(NFI_Expiration=1,IF($A39<VLOOKUP(L$5,NFI,5,0),1,0)*Table_NFI[[#This Row],[Tarpaulin]],0) -> 0 | W39: =IF(NFI_Expiration=1,IF($A39<VLOOKUP(M$5,NFI,5,0),1,0)*Table_NFI[[#This Row],[Blanket]],0) -> 83 | X39: =IF(NFI_Expiration=1,IF($A39<VLOOKUP(N$5,NFI,5,0),1,0)*Table_NFI[[#This Row],[Kitchen Set]],0) -> 0 | Y39: =IF(NFI_Expiration=1,IF($A39<VLOOKUP(O$5,NFI,5,0),1,0)*Table_NFI[[#This Row],[Complementary Kit]],0) -> 0 | Z39: =IF(NFI_Expiration=1,IF($A39<VLOOKUP(P$5,NFI,5,0),1,0)*Table_NFI[[#This Row],[Plastic Bucket]],0) -> 0 | AA39: =IF(NFI_Expiration=1,IF($A39<VLOOKUP(Q$5,NFI,5,0),1,0)*Table_NFI[[#This Row],[Plastic Mat]],0) -> 0 | AB39: =VLOOKUP(Table_NFI[[#This Row],[Camp Name]],'Camp List'!N$5:Z$347,2,0) -> MMR001CMP067 | AC39: =VLOOKUP(Table_NFI[[#This Row],[Camp Name]],'Camp List'!N$5:Z$347,13,0) -> Open
